Workbook

Sheet DAT_INI (hidden)
A2: GOBIERNO AUTONOMO DESCENTRALIZADO | B2: MUNICIPAL DEL CANTON PEDRO MONCAYO
A3: PROFORMA PRESUPUESTARIA | B3: 2020
A4: FECHA DE HOY | B4: 2019-10-10
A6: SALARIO BASICO UNIFICADO | B6: 405
A7: Porcentaje de actualización salarial | B7: 0%
A10: PARAMETRIZACION
A11: EMPLEADOS
A12: Encargos y subrogaciones | B12: 1.5 | D12: Remuneración Mensual de Autoridades, Directores y Jefes Departamentales. Afecta aporte patronal, aporte personal y fondos de reserva.
A13: Capacitación | B13: $ 100.00 | D13: Por puesto
A14: Capacitación internacional | B14: $ 3,000.00 | D14: Por puesto de Dirección
A15: Capacitación seguridad ocupacional | B15: $ 313.81 | D15: Por empleado
A16: Indemnización por Acogerse a Jubilación IESS | B16: 5 | D16: SBU x año de trabajo hasta un máximo de 30 años
A17: Uniformes | B17: $ 220.00 | D17: Valor por terno. Dotación: 2 cada empleado
A18: Calzado | B18: $ 52.64 | D18: Por empleado
A19: Vacunación, Exámenes periódicos, Medicación Básica | B19: $ 502.10 | D19: Por empleado
A20: Horas Extras | B20: =1.3125*12 -> 15.75 | D20: Remuneración Mensual de RECAUDADOR
A21: Remuneración Variable por Eficiencia | B21: =0.72*0.1 -> 7.20% | D21: Remuneración Mensual a excepción de Autoridades y Directores
A30: PARAMETRIZACION
A31: TRABAJADORES
A32: Subsidio Familiar | B32: 1% | D32: Salario Básico por cada hijo menor de 18 años, se considera un promedio de 2 cargas por trabajador
A33: Subsidio de Alimentación | B33: $ 1.75 | D33: Por cada día laborado
A34: Subsidio de Antigüedad | B34: 0.25% | D34: Por el número de años laborados desde el 01 de enero de 2005
A35: Subsidio de Transporte | B35: $ 0.50 | D35: Por cada día laborado
A36: Capacitación | B36: $ 200.00 | D36: Por puesto
A37: Capacitación seguridad ocupacional | B37: $ 313.81 | D37: Por empleado
A38: Seguro de vida | B38: $ 4.00 | D38: Mensuales por trabajador
A39: Indemnización por Acogerse a Jubilación IESS | B39: 7 | D39: SBU x año de trabajo hasta un máximo de 30 años
A40: Uniformes | B40: $ 183.00 | D40: Valor por terno. Dotación: 1 cada trabajador, a excepcion de POLICIAS MUNICIPALES
A41: Ropa de Trabajo | B41: $ 316.75 | D41: Por trabajador, a excepción de MUSICOS DE LA BANDA y POLICIAS MUNICIPALES
A42: Ropa de Trabajo (MUSICOS DE LA BANDA Y POLICIA) | B42: =20000/50 -> $ 400.00 | D42: Por cada músico de la Banda y POLICIA
A43: Vacunación, Exámenes periódicos, Medicación Básica | B43: =B19 -> $ 502.10 | D43: Por trabajador, a excepción de MUSICOS DE LA BANDA y POLICIAS MUNICIPALES
A44: Equipos de Protección | B44: $ 347.23 | D44: Por trabajador
A45: Calzado de Seguridad | B45: $ 347.23 | D45: Por trabajador
A46: Horas Extras | B46: =1.3125*12 -> 15.75 | D46: Salario Mensual de DIR TURISMO, DIR SSPP, SERVICIOS GENERALES, POLICIAS, OOPP
A49: PARAMETROS LABORAL
A50: NOMBRAMIENTO
A51: CONTRATO
A52: PLANTA

Sheet RESUMEN PRESUPUESTO
C1: =CONCATENATE(DAT_INI!A2," ",DAT_INI!B2) -> GOBIERNO AUTONOMO DESCENTRALIZADO MUNICIPAL DEL CANTON PEDRO MONCAYO
C2: =CONCATENATE("RESUMEN PROFORMA PRESUPUESTARIA AÑO"," ",DAT_INI!B3) -> RESUMEN PROFORMA PRESUPUESTARIA AÑO 2020
C3: INGRESOS | G3: GASTOS
B4: 1. | C4: Ingresos Corrientes | D4: =+D5+D6+D7+D8+D9+D10 -> 5,450,918.36 | E4: =+D4/$D$25 -> 31% | G4: Gastos Corrientes | H4: =SUM(H5:H8) -> 4,050,421.57 | I4: =+H4/$D$25 -> 23%
B5: =+INGRESOS!A6 -> 1.1. | C5: Impuestos | D5: =+INGRESOS!C6 -> 1,245,500.00 | E5: 7% | F5: 5.1 | G5: Personal | H5: =+GASTO!C120 -> 2,561,649.03 | I5: =+H5/$D$25 -> 15%
B6: =+INGRESOS!A25 -> 1.3. | C6: Tasas y Contribuciones | D6: =+INGRESOS!D25 -> 2,320,356.10 | E6: 13% | F6: 5.3 | G6: Bienes y servicios de consumo | H6: =+GASTO!D120 -> 1,187,389.21 | I6: =+H6/$D$25 -> 7% | K6: total | L6: total | M6: total
B7: 1.4 | C7: Venta de bienes y servicios | D7: =+INGRESOS!D87 -> 95,000.00 | E7: 1% | F7: 5.7 | G7: Gastos financieros | H7: =+GASTO!E120 -> 101,783.33 | I7: =+H7/$D$25 -> 1% | K7: personal 2018 | L7: personal 2019 | M7: personal 2020
B8: =+INGRESOS!A101 -> 1.7 | C8: Renta de inversiones y multas | D8: =+INGRESOS!D101 -> 223,100.00 | E8: 1% | F8: 5.8 | G8: Transferencias Corrientes | H8: =+GASTO!F120 -> 199,600.00 | I8: =+H8/$D$25 -> 1% | K8: 4,787,788.34 | L8: 6,453,706.38 | M8: =+_msoanchor_1+H13 -> 6,561,824.85
B9: =+INGRESOS!A128 -> 1.8. | C9: Transferencias y Donaciones Corrientes | D9: =+INGRESOS!C128 -> 1,542,417.26 | E9: 9% | K9: =+K8-L8 -> (1,665,918.04) | L9: =+(K8/L8)-1 -> -26% | M9: =+(L8/M8)-1 -> -2%
B10: =+INGRESOS!A145 -> 1.9 | C10: Otros Ingresos | D10: =+INGRESOS!D145 -> 24,545.00 | E10: 0%
B12: 2. | C12: Ingresos de Capital | D12: =SUM(D13:D18) -> 8,491,358.02 | E12: =+D12/$D$25 -> 49% | G12: Gastos de Inversión | H12: =SUM(H13:H17) -> 11,427,979.88 | I12: =+H12/$D$25 -> 66%
B13: 2.8.01 | C13: Transferencias y Donaciones de Capital e Inversión | D13: =+INGRESOS!C163+INGRESOS!C159 -> 2,592,384.40 | E13: =+D13/$D$25 -> 15% | F13: 7.1 | G13: Personal | H13: =+GASTO!H120 -> 4,000,175.82 | I13: =+H13/$D$25 -> 23%
B14: 2.8.02 | C14: Donaciones de Capital del Sector Privado Interno | D14: =+INGRESOS!D199 -> 0.00 | E14: =+D14/$D$25 -> 0% | F14: 7.3 | G14: Bienes y servicios de consumo | H14: =+GASTO!I120 -> 2,158,734.29 | I14: 12%
B15: 2.8.06 | C15: Aportes y Participaciones de Capital e Inversión del Régimen Seccional Autónomo | D15: =+INGRESOS!C207 -> 3,598,973.62 | E15: =+D15/$D$25 -> 21% | F15: 7.5 | G15: Obras públicas | H15: =+GASTO!J120 -> 4,964,569.77 | I15: 29%
B16: =+INGRESOS!A227 -> 2.8.10. | C16: Del Presupuesto General del Estado a Gobiernos Autonomos Descentralizados Provinciales | D16: =+INGRESOS!C227 -> 2,300,000.00 | E16: =+D16/$D$25 -> 13% | F16: 7.8 | G16: Transferencias de Inversión | H16: =+GASTO!L120 -> 300,000.00 | I16: 2%
F17: 7.7 | G17: Otros Gastos de Inversión | H17: =+GASTO!K120 -> 4,500.00 | I17: 0%
B19: 3. | C19: Ingresos de financiamiento | D19: =SUM(D20:D23) -> 3,384,233.45 | E19: =+D19/$D$25 -> 20% | L19: a
B20: 3.6 | C20: Financiamiento Público | D20: =+INGRESOS!C235 -> 1,466,781.89 | E20: =+D20/$D$25 -> 8% | G20: Gastos de Capital | H20: =+H21 -> 1,474,108.38 | I20: =+H20/$D$25 -> 9%
B21: 3.7 | C21: Saldos Disponibles | D21: =+INGRESOS!C245 -> 700,000.00 | E21: =+D21/$D$25 -> 4% | F21: 80 | G21: Activos de larga duración | H21: =+GASTO!M120 -> 1,474,108.38 | I21: =+H21/$D$25 -> 9%
B22: 3.8 | C22: Cuentas Pendientes por Cobrar | D22: =+INGRESOS!C256 -> 1,217,451.56 | E22: =+D22/$D$25 -> 7%
G23: Aplicación de financiamiento | H23: =+H24 -> 374,000.00 | I23: =+H23/$D$25 -> 2%
F24: 9.6 | G24: Deuda Pública | H24: =+GASTO!O120 -> 374,000.00
C25: TOTAL INGRESOS | D25: =+D19+D12+D4 -> 17,326,509.83 | E25: =+D25/$D$25 -> 100% | G25: TOTAL GASTOS | H25: =+H23+H20+H12+H4 -> 17,326,509.83 | I25: =+I4+I12+I20+I23 -> 100%
C26: FECHA: 10 DE DICIEMBRE /2019 | H26: =+ROUNDUP((D25-H25),3) -> 0.00
C27: ELABORADO: DIRECCION FINANCIERA - PRESUPUESTO
C28: FUENTE: PRESUPUESTO

Sheet INGRESOS
A1: GOBIERNO AUTONOMO DESCENTRALIZADO MUNICIPAL DEL CANTON PEDRO MONCAYO
A2: ESTIMACION DE INGRESOS PARA EL AÑO 2020
A4: CODIGO | B4: CONCEPTO | C4: PARCIAL | D4: SUBTOTAL | E4: TOTAL | G4: no borrar
A5: 1. | B5: INGRESOS CORRIENTES | C5: =+C6+C25+C87+C101+C128+C145 -> 5,450,918.36 | D5: =+D6+D25+D87+D101+D118+D120+D128+D145 -> 5,450,918.36 | E5: =+D5 -> 5,450,918.36 | G5: =IF(C5>0,"ET","CERO") -> ET
A6: 1.1. | B6: IMPUESTOS | C6: =+C7+C11+C22 -> 1,245,500.00 | D6: =+C7+C11+C22 -> 1,245,500.00 | G6: =IF(C6>0,"ET","CERO") -> ET
A7: 1.1.01. | B7: SOBRE LA RENTA, UTILIDAD Y GANANCIAS DE CAPITAL | C7: =SUM(C8:C10) -> 170,000.00 | G7: ET
A8: 1.1.01.02 | B8: A LA UTILIDAD POR LA VENTA DE PREDIOS URBANOS | C8: 170,000.00 | G8: ET
A9: 1.1.01.03 | B9: A LA UTILIDAD POR LA VENTA DE PREDIOS RURALES | C9: 0.00 | G9: CERO
A10: 1.1.01.04 | B10: A LOS JUEGOS DE AZAR | C10: 0.00 | G10: CERO
A11: 1.1.02. | B11: SOBRE LA PROPIEDAD | C11: =+C15+C16+C14+C13+C12 -> 935,000.00 | G11: ET
A12: 1.1.02.01 | B12: A LOS PREDIOS URBANOS | C12: 100,000.00 | G12: ET
A13: 1.1.02.02 | B13: A LOS PREDIOS RUSTICOS | C13: 120,000.00 | G13: ET
A14: 1.1.02.05 | B14: DE LOS VEHICULOS MOTORIZADOS DE TRANSPORTE TERRESTRE | C14: 15,000.00 | G14: ET
A15: 1.1.02.06 | B15: IMPUESTO DE ALCABALAS | C15: 350,000.00 | G15: ET
A16: 1.1.02.07 | B16: A LOS ACTIVOS TOTALES | C16: 350,000.00 | G16: ET
G17: CERO
A18: 1.1.03. | B18: AL CONSUMO DE BIENES Y SERVICIOS | D18: =SUM(C19:C20) -> 0.00 | G18: CERO
A19: 1.1.03.11 | B19: A LAS TELECOMUNICACIONES | C19: 0.00 | G19: CERO
A20: 1.1.03.12 | B20: A LOS ESPECTACULOS PUBLICOS | C20: 0.00 | G20: CERO
G21: CERO
A22: 1.1.07 | B22: IMPUESTOS DIVERSOS | C22: =+C23+C24 -> 140,500.00 | G22: ET
A23: 1.1.07.04 | B23: PATENTES COMERCIALES, INDUSTRIALES Y DE SERVICIO | C23: 140,000.00 | G23: ET
A24: 1.1.07.08 | B24: AL DESPOSTE DE GANADO | C24: 500.00 | G24: ET
A25: 1.3. | B25: TASAS Y CONTRIBUCIONES | C25: =+C26+C78+C80 -> 2,320,356.10 | D25: =+C25 -> 2,320,356.10 | G25: ET
A26: 1.3.01 | B26: TASAS GENERALES | C26: =+SUM(C27:C34)+C35+C46+C47 -> 818,356.10 | G26: ET
A27: 1.3.01.03.001 | B27: Mercado | G27: CERO
A28: 1.3.01.03.002 | B28: VIAS | C28: 35,000.00 | G28: ET
A29: 1.3.01.06.000 | B29: ESPECIES FISCALES | G29: CERO
A30: 1.3.01.12.000 | B30: PERMISO IMPLANTACION ESTACION BASE CELULAR | C30: 35,000.00 | G30: ET
A31: 1.3.01.16.000 | B31: RECOLECCION DE BASURA | C31: 495,000.00 | G31: ET
A32: 1.3.01.17.000 | B32: AFERICION DE PESAS Y MEDIDAS | C32: 600.00 | G32: ET
A33: 1.3.01.06.03 | B33: INGRESOS SERVICIOS PARQUE ACUATICO BALZAPAMBA | C33: 0.00 | I33: }
A34: 1.3.01.17 | B34: AFERICION DE PESAS Y MEDIDAS | C34: 0.00 | G34: CERO
A35: 1.3.01.18 | B35: APROBACION DE PLANOS E INSPECCIONES DE CONSTRUCCIONES | C35: =+SUM(C36:C45) -> 116,500.00 | G35: ET
A36: 1.3.01.18.01 | B36: APROBACION DE PLANOS | C36: 20,000.00 | G36: ET
A37: 1.3.01.18.02 | B37: LINEA DE FABRICA | C37: 16,000.00 | G37: ET
A38: 1.3.01.18.03 | B38: PERMISOS DE CONSTRUCCION | C38: 16,000.00 | G38: ET
A39: 1.3.01.18.04 | B39: PERMISOS DE FRACIONAMIENTO | C39: 7,400.00 | G39: ET
A40: 1.3.01.18.05 | B40: DECLARATORIA DE PROPIEDAD HORIZONTAL | C40: 600.00 | G40: ET
A41: 1.3.01.18.06 | B41: AREAS VERDES | C41: 40,000.00 | G41: ET
A42: 1.3.01.18.07 | B42: CABIDAS Y LINDEROS | C42: 6,000.00 | G42: ET
A43: 1.3.01.18.08 | B43: TRABAJOS VARIOS | C43: 7,500.00 | G43: ET
A44: 1.3.01.18.09 | B44: USO DEL SUELO | C44: 3,000.00 | G44: ET
A45: 1.3.01.18.10 | B45: CONSTRUCCION DE RESERVORIOS | G45: CERO
A46: 1.3.01.28 | B46: PATENTES DE CONSERVACION MINERA | C46: 2,500.00 | G46: ET
A47: 1.3.01.99 | B47: OTRAS TASAS GENERALES | C47: =+SUM(C49:C77) -> 133,756.10 | G47: ET
A48: 1.3.01.99.001 | B48: OTRAS TASAS GENERALES | C48: 130.00 | G48: ET
A49: 1.3.01.99.002 | B49: DESPOSTE DE GANADO | C49: 100.00 | G49: ET
A50: 1.3.01.99.003 | B50: INSPECCION PRODUCTIVA Y CONSTRUCCION | C50: 9,000.00 | G50: ET
A51: 1.3.01.99.004 | B51: COPIA CERTIFICADAS, REIMPRSION | C51: 4,000.00 | G51: ET
A52: 1.3.01.99.005 | B52: REGISTROS DE ESCRITURAS EN CATASTROS | C52: 4,000.00 | G52: ET
A53: 1.3.01.99.006 | B53: CERTIFICADO REGISTRO AMBIENTAL | C53: 2,500.00 | G53: ET
A54: 1.3.01.99.007 | B54: IMRESION DE FICHAS CARTOGRAFICAS, FOTOGRAFICAS | C54: 1,500.00 | G54: ET
A55: 1.3.01.99.008 | B55: ELABORACION DE CONTRATOS | C55: 2,500.00 | G55: ET
A56: 1.3.01.99.009 | B56: RELLENO SANITARIO EMPRESAS | C56: 6,000.00 | G56: ET
A57: 1.3.01.99.010 | B57: INSPECCIONES CATASTRALES | C57: 600.00 | G57: ET
A58: 1.3.01.99.011 | B58: EXEDENTES Y DIFERENCIS EN AREAS DE TERRENO | C58: 40,000.00 | G58: ET
A59: 1.3.01.99.012 | B59: EMISION DE CERIFICADOS DE NO ADEUDAR AL MUNICIPIO | C59: 20,000.00 | G59: ET
A60: 1.3.01.99.013 | B60: EXHUMACIONES | C60: 900.00 | G60: ET
A61: 1.3.01.99.014 | B61: PERIFONEO | C61: 250.00 | G61: ET
A62: 1.3.01.99.015 | B62: CONTROL DE ARIDOS Y PETREOS | C62: 0.00 | G62: CERO
A63: 1.3.01.99.016 | B63: CONTRATO DE ARRENDAMIENTO | C63: 486.10 | G63: ET
A64: 1.3.01.99.017 | B64: VENTA DE PUNTOS PARA COORDENADAS | C64: 3,400.00 | G64: ET
A65: 1.3.01.99.018 | B65: CERTIFICADO DE AVALUOS | C65: 8,000.00 | G65: ET
A66: 1.3.01.99.019 | B66: UNIFICACION DE PREDIOS | C66: 1,500.00 | G66: ET
A67: 1.3.01.99.020 | B67: INSPECION MINERA | C67: 1,200.00 | G67: ET
A68: 1.3.01.99.021 | B68: CERTIFICACIONES PLANOS | C68: 400.00 | G68: ET
A69: 1.3.01.99.022 | B69: REVISION DE PLANOS | C69: 8,000.00 | G69: ET
A70: 1.3.01.99.023 | B70: ARRIENDO STAND DE EXPOFERIAS | C70: 3,000.00 | G70: ET
A71: 1.3.01.99.024 | B71: REGISTRO DE ARRENDAMIENTO | C71: 1,000.00 | G71: ET
A72: 1.3.01.99.025 | B72: ELABORACION DE CONTRATOS , ADQUISICIONES | C72: 6,000.00 | G72: ET
A73: 1.3.01.99.026 | B73: ELABORACION DE PLIEGOS Y ADJUDICACION | C73: 6,000.00 | G73: ET
A74: 1.3.01.99.027 | B74: IMPRESIÓN DE FOTOGRAFIA A4 | C74: 100.00 | G74: ET
A75: 1.3.01.99.028 | B75: CERTIFICADO ESTADO DEL INMUEBLE | C75: 300.00 | G75: ET
A76: 1.3.01.99.029 | B76: COPIAS CERTIFICADAS | C76: 20.00 | G76: ET
A77: 1.3.01.99.030 | B77: TASA LEGALIZACION DE INVERNADEROS | C77: 3,000.00 | G77: ET
A78: 13.03 | B78: TASAS DIVERSAS | C78: =+C79 -> 0.00 | G78: CERO
A79: 13.03.99 | B79: CONCESION MINERA | C79: 0.00 | G79: CERO
A80: 1.3.04. | B80: CONTRIBUCIONES | C80: =+C81+C82+C84+C85+C86+C83 -> 1,502,000.00 | G80: ET
A81: 1.3.04.06 | B81: Apertura, Pavimentacion, Ensanche y Construccion de Vias de toda clase | C81: 800,000.00 | G81: ET
A82: 1.3.04.08 | B82: ACERAS, BORDILLOS Y CERCAS (construccion especial de mejoras9 | C82: 700,000.00 | G82: ET
A83: 1.3.04.09 | B83: PARADAS | C83: 2,000.00 | G83: ET
A84: 1.3.04.10 | B84: OBRAS DE ALCANTARRILLADO Y CANALIZACION | C84: 0.00 | G84: CERO
A85: 1.3.04.11 | B85: PARADA SECTOR LA Y TABACUNDO | C85: 0.00 | G85: CERO
A86: 1.3.04.14 | B86: OBRAS DE ALCANTARRILLADO Y CANALIZACION | G86: CERO
A87: 1.4. | B87: VENTA DE BIENES Y SERVICIOS | C87: =+C90+C93 -> 95,000.00 | D87: =SUM(C89:C90) -> 95,000.00 | G87: ET
A88: 1.4.02. | B88: VENTA DE PRODUCTOS Y MATERIALES | G88: CERO
A89: 1.4.02.04 | B89: DE OFICINA, DIDACTICOS Y PUBLICACIONES | C89: 0.00 | G89: CERO
A90: 1.4.03. | B90: VENTAS NO INDUSTRIALES | C90: =+C91+C92 -> 95,000.00 | G90: ET
A91: 1.4.03.99.001 | B91: SERVICIOS CENTRO DE REHABILITACION | C91: 45,000.00 | G91: ET
A92: 1.4.03.99.002 | B92: PROCESAMIENTO DE DATOS | C92: 50,000.00 | G92: ET
A93: 1.4.03.99 | B93: OTROS SERVICIOS TECNICOS Y ESPECIALIZADOS | C93: =C94+C95+C96+C97+C98+C99+C100 -> 0.00 | G93: CERO
A94: 1.4.03.99.01 | B94: CERTIFICADOS QUE EXTIENDEN LOS MUNICIPIOS | C94: 0.00 | G94: CERO
A95: 1.4.03.99.02 | B95: REAVALUOS DE PREDIOS URBANOS | C95: 0.00 | G95: CERO
A96: 1.4.03.99.04 | B96: PERMISOS DE FRACCIONAMIENTO Y CONSTRUCCION | C96: 0.00 | G96: CERO
A97: 1.4.03.99.05 | B97: SERVICIO DE ASEO PUBLICO | C97: 0.00 | G97: CERO
A98: 1.4.03.99.06 | B98: PROCESAMIENTO DE DATOS | C98: 0.00 | G98: CERO
A99: 1.4.03.99.07 | B99: SERVICIO DE BANDA DE MUSICA | C99: 0.00 | G99: CERO
A100: 1.4.03.99.08 | B100: FONDOS AJENOS 10% | C100: 0.00 | G100: CERO
A101: 1.7 | B101: RENTAS DE INVERSION Y MULTAS | C101: =+C104+C106+C113+C110 -> 223,100.00 | D101: =+C101 -> 223,100.00 | G101: ET
A102: 1.7.01 | B102: RENTAS DE INVERSIONES | D102: =C103 -> 0.00 | G102: CERO
A103: 1.7.01.01 | B103: INTERESES POR DEPOSITOS A PLAZO GANADOS | C103: 0.00 | G103: CERO
A104: 1.7.02. | B104: RENTAS POR ARRENDAMIENTO DE BIENES | C104: =+C105 -> 35,000.00 | G104: ET
A105: 1.7.02.02 | B105: EDIFICIOS LOCALES Y RESIDENCIAS | C105: 35,000.00 | G105: ET
A106: 1.7.02.99 | B106: OTROS ARRENDAMIENTOS | C106: =+C107+C108+C109 -> 31,100.00 | G106: ET
A107: 1.7.02.99.01 | B107: CEMENTERIOS | C107: 30,000.00 | G107: ET
A108: 1.7.02.99.02 | B108: CABAÑAS | C108: 100.00 | G108: ET
A109: 1.7.02.99.03 | B109: AREA DE CAMPING | C109: 1,000.00 | G109: ET
A110: 1.7.03. | B110: INTERESES POR MORA | C110: =+C111 -> 100,000.00 | G110: ET
A111: 1.7.03.01 | B111: TRIBUTARIA POR MORA | C111: 100,000.00 | G111: ET
A112: 1.7.03.02 | B112: ORDENANZAS MUNICIPALES | C112: 0.00 | G112: CERO
A113: 1.7.04. | B113: MULTAS | C113: =++C114+C116+C115+C117 -> 57,000.00 | G113: ET
A114: 1.7.04.01 | B114: INFRACCION A ORDENANZAS MUNICIPALES | C114: 50,000.00 | G114: ET
A115: 1.7.04.02 | B115: MULTAS CONSTRUCCIONES ILEGALES | C115: 5,000.00 | G115: ET
A116: 1.7.04.03 | B116: INCUMPLIMIENTO DE CONTRATOS | C116: 1,000.00 | G116: ET
A117: 1.7.04.04 | B117: OTRAS MULTAS | C117: 1,000.00 | G117: ET
A118: 1.8.06. | B118: APORTES Y PARTICIPACIONES CORRIENTES DEL GAD Y REGIMEN ESPECIAL | C118: =+C119 -> 0.00 | D118: =+C118 -> 0.00
A119: 18.06.16 | B119: DEL FONDO DE DESCENTRALIZACION A MUNICIPIOS | C119: 0.00
A120: 1.9.04. | B120: OTROS NO OPERACIONALES | C120: =+C121+C122+C123+C124+C125 -> 0.00 | D120: =+C120 -> 0.00
A121: 1.9.04.99.001 | B121: REINTEGRO DE VALORES PAGADOS INDEBIDAMENTE
A122: 1.9.04.99.004 | B122: OTROS NO ESPECIFICADOS
A123: 1.9.04.99.005 | B123: 10% FONDOS AJENOS
A124: 1.9.04.99.006 | B124: INGRESOS GLOSAS CONTRALORIA
A125: 1.9.04.99.007 | B125: EXEDENTES DE TIERRA
A126: SUBTOTAL | C126: =+C7+C11+C22+C26+C78+C80+C87+C101+C118+C120 -> 3,883,956.10 | D126: =+D6+D25+D87+D101+D118+D120 -> 3,883,956.10 | E126: =+D126 -> 3,883,956.10 | G126: ET
B127: INGRESOS NO TRIBUTARIOS | C127: =+C128+C145 -> 1,566,962.26 | D127: =+D128+D145 -> 1,566,962.26 | E127: =+D127 -> 1,566,962.26 | G127: ET
A128: 1.8. | B128: TRANSFERENCIAS Y DONACIONES CORRIENTES | C128: =+C129+C137 -> 1,542,417.26 | D128: =+C141 -> 1,542,417.26 | G128: ET
A129: 1.8.01. | B129: TRANSFERENCIAS CORRIENTES DEL SECTOR PUBLICO | C129: =+C130+C133 -> 0.00 | G129: CERO
A130: 1.8.01.01 | B130: DEL GOBIERNO CENTRAL | C130: =+C131+C132 -> 0.00 | G130: CERO
A131: 1.8.01.01.00 | B131: DEL MINISTERIO DE FINANZAS CONSEJO NACIONAL DE COMPETENCIAS ASIGNAC | C131: 0.00 | G131: CERO
A132: 1.8.01.01.01 | B132: Del Gobierno Central - Asignaciones Globales | C132: 0.00 | G132: CERO
A133: 1.8.01.08 | B133: CUENTAS Y FONDOS ESPECIALES | C133: =C134 -> 0.00 | G133: CERO
A134: 18.01.08.01 | B134: COOPERACION NACIONAL E INTERNACIONAL | C134: 0.00 | G134: =IF(C134>0,"ET","CERO") -> CERO
A135: 1.8.02 | B135: DONACIONES CORRIENTES DEL SECTOR PRIVADO FINANCIERO | C135: =C136 -> 0.00 | G135: CERO
A136: 1.8.02.03 | B136: DEL SECTOR PRIVADO FINANCIERO (BCOS) | C136: 0.00 | G136: CERO
A137: 1.8.06 | B137: APORTES Y PARTICIPACIONES CTES DEL REGIMEN SECCIONAL AUTONOMO | C137: =+C141 -> 1,542,417.26 | G137: ET | I137: =+C126-D126 -> 0.0
A138: 1.8.06.05 | B138: DEL FODESEC A CONSEJOS PROVINCIALES | C138: =+C139+C140 -> 0.00 | G138: CERO
A139: 1.8.06.04.01 | B139: FONDO DE DESARROLLO SECCIONAL FODESEC/RETENCION AUTOMATICA-2011 | C139: 0.00 | G139: CERO
A140: 1.8.06.04.02 | B140: FONDO DE DESARROLLO SECCIONAL FODESEC/RETENCION AUTOMATICA-2010 | C140: 0.00 | G140: CERO
A141: 1.8.06.16 | B141: DEL FONDO DE DESCENTRALIZACION A MUNICIPIOS | C141: =+H228 -> 1,542,417.26 | G141: ET
A142: 1.8.06.17.01 | B142: DEL FONDO DE DESCENTRALIZACION A CONSEJOS PROVINCIALES | C142: =+H227 -> 0.00 | G142: CERO
A143: 1.8.06.42. | B143: DEL PRESUPUESTO GENERAL DEL ESTADO POR COMPETENCIAS DE RIEGO A GADs PROVINCIALES | C143: =+C144 -> 0.00
A144: 1.8.06.42.01 | B144: DEL PRESUPUESTO GENERAL DEL ESTADO POR COMPETENCIAS DE RIEGO A GADs PROVINCIALES | C144: 0.00 | G144: CERO
A145: 1.9 | B145: OTROS INGRESOS | C145: =+C146+C148 -> 24,545.00 | D145: =+C145 -> 24,545.00 | G145: ET
A146: 1.9.01 | B146: EJECUCION DE GARANTIAS | C146: =+C147 -> 0.00 | G146: CERO
A147: 1.9.01.01.01 | B147: EJECUCION DE GARANTIAS (EFECTIVIZAR GARANTIAS) | C147: 0.00 | G147: CERO
A148: 1.9.04 | B148: OTROS NO OPERACIONALES | C148: =C149 -> 24,545.00 | G148: ET
A149: 1.9.04.99 | B149: OTROS NO ESPECIFICADOS | C149: =+C150+C152+C153+C154+C155+C151 -> 24,545.00 | G149: ET
A150: 1.9.04.99.001 | B150: REINTEGRO DE VALORES PAGADOS INDEBIDAMENTE | C150: 45.00 | G150: ET
A151: 1.9.04.99.002 | B151: OTROS NO ESPECIFICADOS, NO TRIBUTARIOS | C151: 7,000.00 | G151: ET
A152: 1.9.04.99.003 | B152: OTROS NO ESPECIFICADOS | C152: 1,500.00 | G152: ET
A153: 1.9.04.99.004 | B153: 10% FONDOS AJENOS | C153: 15,000.00 | G153: ET
A154: 1.9.04.99.005 | B154: INGRESOS GLOSAS CONTRALORIA | C154: 500.00 | G154: ET
A155: 1.9.04.99.006 | B155: EXEDENTES DE TIERRA | C155: 500.00 | G155: ET
A156: SUBTOTAL | C156: =+C145+C128 -> 1,566,962.26 | D156: =SUM(D128:D155) -> 1,566,962.26 | E156: =+D156 -> 1,566,962.26 | G156: ET
A157: TOTAL INGRESO CORRIENTE | C157: =+C156+C126 -> 5,450,918.36 | D157: =+C157 -> 5,450,918.36 | E157: =+E156+E126 -> 5,450,918.36 | G157: ET
A158: 2. | B158: INGRESOS DE CAPITAL | C158: =+C162+C159 -> 8,491,358.02 | D158: =+D163+D207+D227+D199+D159 -> 8,491,358.02 | E158: =+D158 -> 8,491,358.02 | G158: ET
A159: 2.4 | B159: BIENES MUEBLES | C159: =+C160+C161 -> 54,259.68 | D159: =+C160+C161 -> 54,259.68 | G159: ET
A160: 2.4.01.04 | B160: MAQUINARIA Y EQUIPOS | C160: =35000-13000 -> 22,000.00 | G160: ET
A161: 2.4.01.05 | B161: VEHICULOS | C161: 32,259.68 | G161: ET
A162: 2.8 | B162: TRANSFERENCIAS Y DONACIONES DE CAPITAL E INVERSION | C162: =+C163+C207+C227 -> 8,437,098.34 | D162: =+C163+C207+C227 -> 8,437,098.34 | E162: =+D163+D207+D227+D199 -> 8,437,098.34 | G162: ET
A163: 2.8.01 | B163: TRANSFERENCIAS DE CAPITAL E INVERSION DEL SECTOR PUBLICO | C163: =+C164+C167+C178+C195+C180 -> 2,538,124.72 | D163: =+C163 -> 2,538,124.72 | G163: ET
A164: 2.8.01.01 | B164: GOBIERNO CENTRAL | C164: =+C165+C166 -> 0.00 | G164: CERO
A165: 2.8.01.01.01 | B165: El Gobierno Central (Ministerio de Obras Publicas 75%) | C165: 0.00 | G165: CERO
A166: 2.8.01.01.02 | B166: Aportes Gobierno Central | C166: 0.00 | G166: CERO
A167: 2.8.01.02 | B167: DE ENTIDADES DESCENTRALIZADAS Y AUTONOMAS | C167: =+C168+C171+C175+C185+C186+C187+C188+C189+C190+C191+C192+C193+C194 -> 0.00 | D167: =+C167 -> 0.00 | E167: =+D167 -> 0.00 | G167: CERO
A168: 2.8.01.02.01 | B168: Aportes entidades descentralizadas y autonomas (senagua) | C168: 0.00 | G168: CERO
A169: 2.8.01.02.02 | C169: 0.00 | G169: CERO
A170: 2.8.01.02.03 | C170: 0.00 | G170: CERO
A171: 2.8.01.02.02 | B171: TRANSFERENCIAS POR DECRETO DE EMERGENCIA EJECUTIVA | C171: 0.00 | G171: CERO
A172: 2.8.01.02.03 | B172: PROGRAMA PRODEPRO - REEMBOLSO MINISTERIO DE ECONOMIA-fidiecomisos | C172: 0.00 | G172: CERO
A173: 2.8.01.02.04 | B173: PROGRAMA PROCECAM - REEMBOLSO MINISTERIO DE ECONOMIA -fideicomisos | C173: 0.00 | G173: CERO
A174: 2.8.01.02.05 | B174: PROGRAMA PROCECAM 2 - MINISTERIO REEMBOLSO - fideicomisos | C174: 0.00 | G174: CERO
A175: 2.8.01.02.03 | B175: CONVENIO GPB.INAR. Y MAGAP PROYECTO DE RIEGO EN LA PROVINCIA | C175: 0.00 | G175: CERO
A176: 2.8.01.02.09 | B176: CONVENIO CNCFP.CAPACITACION Y FORMACION EMPRESARIAL - | C176: 0.00 | G176: CERO
G177: CERO
A178: 2.8.01.03 | B178: DE EMPRESAS PUBLICAS | C178: =C179 -> 115,000.00 | G178: ET
A179: 2.8.01.03.01 | B179: REMANENTE REGISTRO DE LA PROPIEDAD | C179: 115,000.00 | G179: ET
A180: 2.8.01.08 | B180: CUENTAS Y FONDOS ESPECIALES | C180: =C182+C181 -> 1,485,346.29 | G180: ET
A181: 2.8.01.08.01 | B181: RED DE CONDUCCION DE AGUA POTABLE CHIRIAYACU (EMASA) | C181: 0.00 | G181: CERO
A182: 2.8.01.08.01 | B182: APORTE MIESS (SERVICIOS DE DESARROLLO INFANTIL) | C182: 1,485,346.29 | G182: ET
A183: 2.8.01.02.10 | B183: PROCECAM II - A.E.C. CREDITO - | C183: 0.00 | G183: CERO
A184: 2.8.01.02.11 | B184: PROCECAM II - A.E.C. SUBVENCION | C184: 0.00 | G184: CERO | J184: 12 | K184: =+I184*J184 -> 0
A185: 2.8.01.02.04 | B185: CONVENIO COOPERACION SENAGUA - GPB FORESTACION Y REFORESTACION | C185: 0.00 | G185: CERO
A186: 2.8.01.02.05 | B186: CONVENIO INFA GADPB | C186: 0.00 | G186: CERO | K186: 20%
A187: 2.8.01.02.06 | B187: EMERGENCIA VIAL EN LOS SIETE CANTONES DE LA PROVINCIA BOLIVAR- MINISTERIO DE FINANZAS | C187: 0.00 | G187: CERO
A188: 2.8.01.02.07 | B188: CONVENIO SENAGUA FORESTACION Y REFORESTACION UNORCIE - UCOS - AÑOS ANTERIORES | C188: 0.00 | G188: CERO
A189: 2.8.01.02.08 | B189: Credito - Construccion MUROS DE CONTENCION - 50 -50 -Subs.Riesgos - BEDE -MF. 2 | C189: 0.00 | G189: CERO
A190: 2.8.01.02.9 | B190: Convenio - Especifico de Cooperacion Interinstitucional entre el CPCCS y el GADPB-CONSEJO DE PARTICIPACION CIUDADANA | C190: 0.00 | G190: CERO
A191: 2.8.01.02.10 | B191: CONVENIO ITAGRA - Instituto Tecnologico Agrario CT- | C191: 0.00 | G191: CERO
A192: 2.8.01.02.11 | B192: PROGRAMA PRODEPRO REEMBOLSO MINISTERIO DE ECONOMIA FIDEICOMISO | C192: 0.00 | G192: CERO
A193: 2.8.01.02.12 | B193: PROGRAMA PROCECAM REEMBOLSO MINISTERIO DE ECONOMIA FIDEICOMISO | C193: 0.00 | G193: CERO
A194: 2.8.01.02.13 | B194: PROGRAMA PROCECAM 2 MINISTERIO REEMBOLSO FIDEICOMISO | C194: 0.00 | G194: CERO
A195: 2.8.01.06 | B195: DE ENTIDADES FINANCIERAS PUBLICAS | C195: =+C196+C197+C198 -> 937,778.43 | G195: ET
A196: 2.8.01.06.01 | B196: CREDITO ( 2 plantas de tratamiento Chimbacalle, Cabecera Cantonal) BEDE | C196: 937,778.43 | G196: ET
A197: 2.8.01.06.02 | B197: PROYECTO DE AGUA POTABLE PESILLO IMBABURA, BEDE | C197: 0.00 | G197: CERO
A198: 2.8.01.06.03 | G198: CERO
A199: 2.8.03 | B199: DONACIONES DE CAPITAL DEL EXTERIOR | C199: =+C200 -> 0.00 | D199: =C200 -> 0.00 | G199: CERO
A200: 2.8.03.02 | B200: De Gobiernos y Organismos Gubernamentales | C200: 0.00 | G200: CERO
A201: 2.8.03.02.01 | B201: Embajada de Japon ( puente Pacana - Caluma) | C201: 0.00 | G201: CERO
... 100 more rows

Sheet ORG 2009 (hidden)
C3: ANEXO N°. 02
C4: =+#REF! -> 
C5: ESQUEMA ORGANIZACIONAL
C6: PROPUESTA
Z8: GOBIERNO PROVINCIAL DE BOLIVAR
I9: COMITÉ DE DESARROLLO | AR9: COMISIONES
I10: PROVINCIAL | AR10: GENERALES
AR12: SALA DE
AR13: COMISIONES
Z16: PREFECTURA | AR16: COMITE INSTITUCIONAL
AR17: DE DESARROLLO
O20: ASESORIA | AK20: COMUNICACIÓN E
O21: JURIDICA | AK21: INFORMACION SOCIAL - RELACIONES INTERN
K25: SECRETARIA
K26: ADMINISTRATIVA
C29: RECURSOS | I29: ADQUISICIONES | O29: SERVICIOS | U29: ARCHIVO | AF29: SECRETARIA | AR29: UNIDAD DE
C30: HUMANOS | O30: VARIOS | U30: GENERAL | AF30: GENERAL | AR30: INFORMATICA
C34: SECRETARIA DE | I34: SECRETARIA DE | Q34: SECRETARIA DE OBRAS PUBLICAS PROVINCIALES | AF34: SECRETARIA DE | AL34: SECRETARIA DE | AR34: SECRETARIA DE
C35: DE DESARROLLO PROVINCIAL | I35: FINANZAS PROVINCIALES | AF35: DESARROLLO ECONOMICO Y PRODUCTIVO | AL35: EDUCACION, CULTURA Y DEPORTES PROVINCIAL | AR35: IMAGEN CORPORATIVA | AX35: CONTROL DE GESTION
C38: PLAN DE | O38: CONSTRUCCION | U38: CONSTRUCCION Y | AF38: (PACA)
C39: DESARROOLLO PROVINCIAL, SEGUIMIENTO E INVESTIGACION | I39: PRESUPUESTO | O39: DE OBRAS CIVILES | U39: MANTENIMIENTO VIAL | AF39: MARCA BOLIVAR - BANCO DE PROYECTOS PRODUCTIVOS | AL39: TELECENTROS E INFORMATICA | AR39: CONCIENCACION CIUDADANA | AX39: AUDITORIA DE GESTION
C41: ESTUDIOS | O41: CENTRO | U41: CONSERVACION | AF41: ASISTNCIA TECNICA
C42: PROGRMAS Y PROYECTOS | I42: CONTABILIDAD | O42: DE ARTES Y OFICIOS PRODUCTIVOS | U42: PARQUE AUTOMOTOR | AF42: AGROPECUARIA Y PRODUCTIVA | AL42: EDUCACION A RADIAL | AR42: SEGURIDAD COMUNITARIA RURAL | AX42: FISCAL.IZACION DE OBRAS Y SERVICIOS
C44: DESARROLLO | AR44: PROMOCION
C45: COMUNITARIO | I45: TESORERIA | AF45: UNIDAD DE GESTION AMBIENTAL | AL45: DEPORTES | AR45: Y DESARROLLO TURISTICO
I48: BODEGA
U49: PATRONATO
U50: ASISTENCIA SOCIAL
U53: PROGRAMA | Z53: PROGRAMA | AE53: CONVENIO
U54: NUTRICIONAL | Z54: DE SALUD | AE54: INTERINSTITUCIONAL

Sheet ORG 2010 (hidden)
C3: =+#REF! -> 
C4: ESTRUCTURA ORGANIZACIONAL 2010
Z6: GOBIERNO PROVINCIAL DE BOLIVAR
I7: COMITÉ DE DESARROLLO | AR7: COMISIONES
I8: PROVINCIAL | AR8: GENERALES
AR10: SALA DE
AR11: COMISIONES
Z14: PREFECTURA | AR14: COMITE INSTITUCIONAL
AR15: DE DESARROLLO
O18: ASESORIA | AK18: COMUNICACIÓN E
O19: JURIDICA | AK19: INFORMACION SOCIAL
K23: SECRETARIA
K24: ADMINISTRATIVA
C27: RECURSOS | I27: ADQUISICIONES Y | O27: SERVICIOS | U27: ARCHIVO | AF27: SECRETARIA | AR27: DESARROLLO
C28: HUMANOS | I28: COMPRAS PUBLICAS | O28: VARIOS | U28: GENERAL | AF28: GENERAL | AR28: TECNOLOGICO
C32: SECRETARIA DE | I32: SECRETARIA DE | O32: SECRETARIA DE | U32: SECRETARIA DE | AF32: SECRETARIA DE | AL32: SECRETARIA DE | AR32: SECRETARIA DE
C33: DE DESARROLLO PROVINCIAL | I33: FINANZAS PROVINCIALES | O33: OBRAS PUBLICAS PROVINCIALES | U33: FISCALIZACION DE OBRAS | AF33: DESARROLLO ECONOMICO Y PRODUCTIVO | AL33: DESARROLLO AMBIENTAL Y TURISMO | AR33: IMAGEN CORPORATIVA | AX33: CONTROL DE GESTION
C36: PLAN DE | O36: CONSTRUCCION | AF36: DESARROLLO
C37: DESARROOLLO PROVINCIAL, SEGUIMIENTO E INVESTIGACION | I37: PRESUPUESTO | O37: DE OBRAS CIVILES | AF37: AGROPECUARIO | AL37: GESTION AMBIENTAL | AR37: CONCIENCACION CIUDADANA | AX37: AUDITORIA DE GESTION
C39: ESTUDIOS | O39: CENTRO | AF39: DESARROLLO
C40: PROGRMAS Y PROYECTOS | I40: CONTABILIDAD | O40: DE ARTES Y OFICIOS PRODUCTIVOS | AF40: PRODUCTIVO (PACA) | AL40: GESTION TURISTICA | AR40: EDUCACION Y CULTURA
C42: DESARROLLO | O42: CONSTRUCCION Y | AF42: RIEGO | AL42: ADMINISTRACION
C43: COMUNITARIO | I43: TESORERIA | O43: MANTENIMIENTO VIAL | AL43: PARQUE ACUATICO
C45: GESTION Y | O45: CONSERVACION
C46: RELACIONES INTERNACIONALES | I46: BODEGA | O46: PARQUE AUTOMOTOR
U48: PATRONATO
U49: ASISTENCIA SOCIAL

Sheet ORG 2013 (hidden)
C3: =CONCATENATE(DAT_INI!A2," ",DAT_INI!B2) -> GOBIERNO AUTONOMO DESCENTRALIZADO MUNICIPAL DEL CANTON PEDRO MONCAYO
C4: =CONCATENATE("ESTRUCTURA ORGANIZACIONAL"," ",DAT_INI!B3) -> ESTRUCTURA ORGANIZACIONAL 2020

Sheet GASTO
A2: onal
C3: GASTOS CORRIENTES | H3: GASTO DE CAPITAL
A4: FUNCION | B4: CLASIFICACION ECONOMICA | C4: GASTOS DE | D4: BIENES Y | E4: FINANCIER | F4: TRANSFERENCIAS | G4: SUBTOTAL | H4: REMUNERAC. | I4: SERVICIOS Y | J4: OBRA | K4: OTROS GAST | L4: TRANSFERENCIA | M4: BIENES | N4: SUBTOTAL | O4: DEUDA PUBLICA | P4: TOTAL
C5: PERSONAL 51 | D5: SERVICIOS 53 | E5: Y OTROS 57 | F5: 58 | H5: 71 | I5: SUMINISTROS 73 | J5: PUBLICA 75 | K5: INVERS 77 | L5: 78 | M5: MUEBLES 8 | O5: 96 | P5: GASTOS | Q5: SELECC
A6: 100 | B6: FUNCION I: SERVICIOS GENERALES | C6: =+C7+C19+C27+C34+C39+C45 -> 2,561,649.03 | D6: =+D7+D19+D27+D34+D39+D45 -> 1,187,389.21 | E6: 56,500.00 | F6: 139,600.00 | G6: 3,945,138.24 | H6: =+H7+H19+H27+H34+H39+H45 -> 0 | I6: =+I7+I19+I27+I34+I39+I45 -> 0 | J6: =+J7+J19+J27+J34+J39+J45 -> 0 | K6: =+K7+K19+K27+K34+K39+K45 -> 0 | L6: =+L7+L19+L27+L34+L39+L45 -> 0 | M6: =+M7+M19+M27+M34+M39+M45 -> 138,558.59 | N6: =+N7+N19+N27+N34+N39+N45 -> 138,558.59 | O6: =+O7+O19+O27+O34+O39+O45 -> 0 | P6: =+P7+P19+P27+P34+P39+P45 -> 4,083,696.83 | Q6: =IF(P6>0,"ET","CERO") -> ET
A7: 110 | B7: ADMINISTRACION GENERAL | C7: =SUM(C8:C18) -> 933,022.72 | D7: 246,771.23 | E7: 5,000.00 | F7: 50,000.00 | G7: 1,234,793.95 | H7: 0 | I7: 0 | J7: 0 | K7: 0 | L7: 0 | M7: 77,600.00 | N7: 77,600.00 | O7: 0 | P7: 1,312,393.95 | Q7: =IF(P7>0,"ET","CERO") -> ET
A8: 111 | B8: ALCALDIA | C8: =+'110'!C128 -> 104,193.21 | D8: =+'110'!C150 -> 6,900.00 | E8: =+'110'!C194 -> 0 | G8: =SUM(C8:F8) -> 111,093.21 | M8: =+'110'!C197 -> 61,000.00 | N8: =SUM(H8:M8) -> 61,000.00 | P8: =+O8+N8+G8 -> 172,093.21 | Q8: ET
A9: 112 | B9: PARTICIPACION CIUDADANA | C9: =+'110'!C235 -> 65,244.54 | D9: =+'110'!C258 -> 10,700.00 | G9: 75,944.54 | M9: =+'110'!C309 -> 2,900.00 | N9: 2,900.00 | P9: =+O9+N9+G9 -> 78,844.54 | Q9: ET
A10: 113 | B10: DIRECCION COMUNICACIÓN SOCIAL | C10: =+'110'!C346 -> 114,896.99 | D10: =+'110'!C369 -> 138,180.00 | E10: =+'110'!C414 -> 0 | G10: 253,076.99 | M10: =+'110'!C420 -> 0 | N10: 0 | P10: 253,076.99 | Q10: ET
A11: 114 | B11: COMISIONES | C11: =+'110'!C454 -> 186,830.46 | D11: =+'110'!C477 -> 3,650.00 | G11: 190,480.46 | M11: =+'110'!C530 -> 0 | N11: 0 | P11: 190,480.46 | Q11: ET
A12: 115 | B12: PROCURADORIA SINDICA | C12: =+'110'!C565 -> 146,486.74 | D12: =+'110'!C588 -> 5,534.00 | E12: =+'110'!C649 -> 5,000.00 | F12: 0 | G12: 157,020.74 | M12: =+'110'!C652 -> 1,500.00 | N12: 1,500.00 | P12: 158,520.74 | Q12: ET
A13: 116 | B13: SECRETARIA GENERAL Y DE CONSEJO | C13: =+'110'!C689 -> 100,151.57 | D13: =+'110'!C712 -> 14,700.00 | E13: =+'110'!C759 -> 0 | G13: 114,851.57 | M13: =+'110'!C765 -> 2,000.00 | N13: 2,000.00 | P13: 116,851.57 | Q13: ET
A14: 117 | B14: ARCHIVO Y RECEPCION DE DOCUMENTOS | C14: =+'110'!C830 -> 19,067.38 | D14: =+'110'!C851 -> 11,700.00 | E14: =+'110'!C878 -> 0 | G14: =SUM(C14:F14) -> 30,767.38 | M14: =+'110'!C887 -> 2,000.00 | N14: 2,000.00 | P14: 32,767.38 | Q14: ET
A15: 118 | B15: ASESORIA DE GESTION | C15: =+'110'!C965 -> 71,887.17 | D15: =+'110'!C990 -> 1,000.00 | E15: =+'110'!C1039 -> 0 | G15: =SUM(C15:F15) -> 72,887.17 | M15: =+'110'!C1045 -> 0 | N15: =SUM(H15:M15) -> 0 | P15: 72,887.17
A16: 119 | B16: JUNTA CANTONAL DE PROTECCION DE DERECHOS Y CCAPID PM.. | C16: =+'110'!C1079 -> 59,020.13 | D16: =+'110'!C1102 -> 3,667.23 | E16: =+'110'!C1141 -> 0 | F16: =+'110'!C1147 -> 50,000.00 | G16: =SUM(C16:F16) -> 112,687.36 | M16: =+'110'!C1151 -> 700.00 | N16: =SUM(H16:M16) -> 700.00 | P16: =+O16+N16+G16 -> 113,387.36 | Q16: =IF(P16>0,"ET","CERO") -> ET
A17: 120 | B17: SERVICIOS PUBLICOS | C17: =+'110'!C1182 -> 0 | D17: =+'110'!C1205 -> 0 | E17: =+'110'!C1243 -> 0 | F17: =+'110'!C1249 -> 0 | G17: =SUM(C17:F17) -> 0 | M17: =+'110'!C1252 -> 0 | N17: =SUM(H17:M17) -> 0 | P17: =+O17+N17+G17 -> 0.00 | Q17: =IF(P17>0,"ET","CERO") -> CERO
A18: 120 | B18: SEGURIDAD CIUDADANA Y GESTION DE RIESGOS | C18: =+'110'!C1282 -> 65,244.54 | D18: =+'110'!C1305 -> 50,740.00 | E18: =+'110'!C1143 -> 0 | G18: 115,984.54 | M18: =+'110'!C1352 -> 7,500.00 | N18: 7,500.00 | P18: 123,484.54 | Q18: ET
A19: 120 | B19: DIRECCION ADMINISTRATIVA | C19: =SUM(C20:C26) -> 308,626.76 | D19: 731,982.98 | E19: 20,000.00 | F19: 75,000.00 | G19: 1,135,609.74 | H19: 0 | I19: 0 | J19: 0 | K19: 0 | L19: 0 | M19: 41,258.59 | N19: 41,258.59 | O19: 0 | P19: 1,176,868.33 | Q19: ET
A20: 121 | B20: DIR. ADMINISTRATIVA | C20: =+'120'!C129 -> 47,080.14 | D20: =+'120'!C152 -> 237,000.00 | F20: =+'120'!C205 -> 75,000.00 | G20: =SUM(C20:F20) -> 359,080.14 | M20: =+'120'!C213 -> 0 | N20: =SUM(H20:M20) -> 0 | P20: =+O20+N20+G20 -> 359,080.14 | Q20: ET
A21: 123 | B21: COMPLEJOS RECREACIONALES | C21: =+'120'!C360 -> 0 | D21: =+'120'!C383 -> 0 | F21: =+'120'!C431 -> 0 | G21: =SUM(C21:F21) -> 0 | M21: =+'120'!C436 -> 0 | N21: =SUM(H21:M21) -> 0 | P21: =+O21+N21+G21 -> 0.00 | Q21: CERO
A22: 123 | B22: COMPRAS PUBLICAS Y ADQUISICIONES | C22: =+'120'!C473 -> 55,261.98 | D22: =+'120'!C496 -> 2,000.00 | F22: =+'120'!C541 -> 0 | G22: =SUM(C22:F22) -> 57,261.98 | M22: =+'120'!C551 -> 300.00 | N22: =SUM(H22:M22) -> 300.00 | P22: =+O22+N22+G22 -> 57,561.98 | Q22: ET
A23: 125 | B23: UNIDAD DE BIENES Y TRANSPORTES | C23: =+'120'!C694 -> 92,174.07 | D23: =+'120'!C723 -> 359,416.00 | E23: =+'120'!C768 -> 5,000.00 | G23: =SUM(C23:F23) -> 456,590.07 | M23: =+'120'!C780 -> 24,500.00 | N23: =SUM(H23:M23) -> 24,500.00 | P23: =+O23+N23+G23 -> 481,090.07 | Q23: ET
A24: 126 | B24: UNIDAD DE SERVICIOS INSTITUCIONALES | C24: =+'120'!C823 -> 55,347.49 | D24: =+'120'!C846 -> 32,958.42 | E24: =+'120'!C891 -> 15,000.00 | G24: =SUM(C24:F24) -> 103,305.91 | M24: =+'120'!C901 -> 3,500.00 | N24: =SUM(H24:M24) -> 3,500.00 | P24: =+O24+N24+G24 -> 106,805.91 | Q24: =IF(P24>0,"ET","CERO") -> ET
A25: 127 | B25: SEGURIDAD Y SALUD OCUPACIONAL. | C25: =+'120'!C933 -> 0 | D25: =+'120'!C956 -> 0 | E25: =+'120'!C1002 -> 0 | G25: 0 | M25: =+'120'!C1012 -> 0 | N25: 0 | P25: 0.00 | Q25: CERO
A26: 128 | B26: UNIDAD DE SISTEMAS INFORMATICOS | C26: =+'120'!C1068 -> 58,763.07 | D26: =+'120'!C1091 -> 100,608.56 | E26: =+'120'!C1136 -> 0 | G26: 159,371.63 | M26: =+'120'!C1146 -> 12,958.59 | N26: 12,958.59 | P26: 172,330.22 | Q26: ET
A27: 130 | B27: DIRECCION FINANCIERA | C27: =SUM(C28:C33) -> 337,500.18 | D27: 114,748.00 | E27: 25,500.00 | F27: 14,600.00 | G27: 492,348.18 | H27: 0 | I27: 0 | J27: 0 | L27: =SUM(L28:L33) -> 0 | M27: =SUM(M28:M33) -> 4,950.00 | N27: =SUM(N28:N33) -> 4,950.00 | O27: =SUM(O28:O33) -> 0 | P27: =SUM(P28:P33) -> 497,298.18 | Q27: ET
A28: 131 | B28: DIR. FINANCIERA | C28: =+'130'!C129 -> 47,080.14 | D28: =+'130'!C151 -> 21,348.00 | E28: =+'130'!C183 -> 25,000.00 | F28: =+'130'!C186 -> 13,000.00 | G28: =SUM(C28:F28) -> 106,428.14 | M28: =+'130'!C193 -> 1,000.00 | N28: =SUM(H28:M28) -> 1,000.00 | P28: =+O28+N28+G28 -> 107,428.14 | Q28: ET
A29: 132 | B29: PRESUPUESTO | C29: =+'130'!C223 -> 59,558.02 | D29: =+'130'!C247 -> 21,400.00 | F29: =+'130'!C279 -> 0 | G29: 80,958.02 | M29: =+'130'!C286 -> 0 | N29: 0 | P29: 80,958.02 | Q29: ET
A30: 133 | B30: CONTABILIDAD | C30: =+'130'!C316 -> 66,060.63 | D30: =+'130'!C338 -> 21,900.00 | F30: =+'130'!C368 -> 0 | G30: 87,960.63 | M30: =+'130'!C374 -> 0 | N30: 0 | P30: 87,960.63 | Q30: ET
A31: 134 | B31: TESORERIA Y RECAUDACION | C31: =+'130'!C403 -> 89,327.93 | D31: =+'130'!C425 -> 26,900.00 | F31: =+'130'!C460 -> 1,600.00 | G31: 117,827.93 | M31: =+'130'!C469 -> 2,100.00 | N31: 2,100.00 | P31: 119,927.93 | Q31: ET
A32: 135 | B32: RENTAS | C32: =+'130'!C499 -> 75,473.46 | D32: =+'130'!C521 -> 23,200.00 | E32: =+'130'!C552 -> 500.00 | G32: 99,173.46 | M32: =+'130'!C558 -> 1,850.00 | N32: 1,850.00 | P32: 101,023.46 | Q32: ET
A33: 126 | B33: SOLANGE | C33: =+'130'!C590 -> 0 | D33: =+'130'!C610 -> 0 | G33: 0 | M33: =+'130'!C646 -> 0 | N33: 0 | P33: 0.00 | Q33: CERO
A34: 140 | B34: DIRECCION DE FISCALIZACION | C34: =SUM(C35:C38) -> 73,292.19 | D34: 1,701.00 | E34: 0 | F34: 0 | G34: 74,993.19 | H34: 0 | I34: 0 | J34: 0 | K34: 0 | L34: 0 | M34: 2,150.00 | N34: 2,150.00 | O34: 0 | P34: 77,143.19 | Q34: ET
A35: 141 | B35: DIR. DE GESTION DE FISCALIZACION | C35: =+'140'!C123 -> 73,292.19 | D35: =+'140'!C142 -> 1,701.00 | G35: =SUM(C35:F35) -> 74,993.19 | M35: =+'140'!C169 -> 2,150.00 | N35: =SUM(H35:M35) -> 2,150.00 | P35: =+O35+N35+G35 -> 77,143.19 | Q35: ET
A36: 142 | C36: =+'140'!C202 -> 0 | D36: =+'140'!C223 -> 0 | G36: =SUM(C36:F36) -> 0 | M36: =+'140'!C272 -> 0 | N36: =SUM(H36:M36) -> 0 | P36: =+O36+N36+G36 -> 0.00 | Q36: CERO
A37: 143 | B37: ASESORIA DE GESTIONAL | C37: =+'140'!C306 -> 0 | D37: =+'140'!C325 -> 0 | G37: =SUM(C37:F37) -> 0 | M37: =+'140'!C356 -> 0 | N37: =SUM(H37:M37) -> 0 | P37: =+O37+N37+G37 -> 0.00 | Q37: CERO
A38: 144 | B38: COMISARIA MUNICIPAL | C38: =+'140'!C388 -> 0 | D38: =+'140'!C413 -> 0 | G38: =SUM(C38:F38) -> 0 | M38: =+'140'!C451 -> 0 | N38: =SUM(H38:M38) -> 0 | P38: =+O38+N38+G38 -> 0.00
A39: 150 | B39: DIRECCION DE TALENTO HUMANO | C39: =SUM(C40:C43) -> 471,235.85 | D39: 72,400.00 | E39: 6,000.00 | F39: 0 | G39: =SUM(C39:F39) -> 549,635.85 | H39: 0 | I39: 0 | J39: 0 | K39: 0 | L39: 0 | M39: 5,400.00 | N39: =SUM(H39:M39) -> 5,400.00 | O39: 0 | P39: =+O39+N39+G39 -> 555,035.85 | Q39: =IF(P39>0,"ET","CERO") -> ET
A40: 151 | B40: DIR. DE TALENTO HUMANO | C40: =+'150'!C128 -> 117,417.61 | D40: =+'150'!C150 -> 4,100.00 | G40: =SUM(C40:F40) -> 121,517.61 | M40: =+'150'!C192 -> 1,500.00 | N40: =SUM(H40:M40) -> 1,500.00 | P40: 123,017.61
A41: 152 | B41: UNIDAD DE TALENTO HUMANO | C41: =+'150'!C226 -> 300,000.00 | D41: =+'150'!C251 -> 12,800.00 | E41: =+'150'!C284 -> 6,000.00 | G41: 318,800.00 | N41: 0 | P41: 318,800.00
A42: 153 | B42: SEGURIDAD Y SALUD OCUPACIONAL | C42: =+'150'!C339 -> 53,818.24 | D42: =+'150'!C361 -> 51,800.00 | G42: 105,618.24 | M42: =+'150'!C400 -> 2,400.00 | N42: 2,400.00 | P42: 108,018.24
A43: 154 | B43: UNIDAD DE FORTALECIMIENTO INSTITUCIONAL | C43: =+'150'!C432 -> 0 | D43: =+'150'!C454 -> 3,700.00 | G43: 3,700.00 | M43: =+'150'!C498 -> 1,500.00 | N43: 1,500.00 | P43: 5,200.00
A44: 155 | B44: SOLANGE
A45: 160 | B45: DIRECCION DE SERVICIOS PUBLICOS | C45: =SUM(C46:C49) -> 437,971.33 | D45: 19,786.00 | E45: 0 | F45: 0 | G45: 457,757.33 | H45: 0 | I45: 0 | J45: 0 | K45: 0 | L45: 0 | M45: 7,200.00 | N45: 7,200.00 | O45: 0 | P45: 464,957.33
A46: 161 | B46: DIRECCION DE SERVICIOS PUBLICOS | C46: =+'160'!C129 -> 47,886.34 | D46: =+'160'!C151 -> 6,900.00 | E46: =+'160'!C186 -> 0 | G46: =SUM(C46:F46) -> 54,786.34 | M46: =+'160'!C193 -> 4,400.00 | N46: =SUM(H46:M46) -> 4,400.00 | P46: =+O46+N46+G46 -> 59,186.34
A47: 162 | B47: CONTROL Y MANTENIMIENTO DE ESPACIOS PUBLICOS | C47: =+'160'!C225 -> 46,043.33 | D47: =+'160'!C255 -> 1,200.00 | G47: 47,243.33 | M47: =+'160'!C294 -> 500.00 | N47: 500.00 | P47: 47,743.33
A48: 163 | B48: COMISARIA MUNICIPAL. | C48: =+'160'!C332 -> 344,041.66 | D48: =+'160'!C360 -> 11,336.00 | G48: 355,377.66 | M48: =+'160'!C396 -> 1,000.00 | N48: 1,000.00 | P48: 356,377.66
A49: 164 | B49: HIGIENE Y SANEAMIENTO | C49: =+'160'!C426 -> 0 | D49: =+'160'!C448 -> 350.00 | G49: 350.00 | M49: =+'160'!C492 -> 1,300.00 | N49: 1,300.00 | P49: 1,650.00
A51: 200 | B51: FUNCION II: SERVICIOS SOCIALES | C51: =+C52+C60 -> 0 | D51: =+D52+D60 -> 0 | E51: 0 | F51: 0 | G51: 0 | H51: =+H52+H60 -> 1,360,798.74 | I51: =+I52+I60 -> 1,019,954.29 | J51: 200 | K51: =+K52+K60 -> 0 | L51: 210,000.00 | M51: 10,500.00 | N51: =+N52+N60 -> 2,601,453.03 | O51: 0 | P51: =+P52+P60 -> 2,601,453.03 | Q51: ET
A52: 210 | B52: DIRECCION DE ACCION SOCIAL Y GRUPOS PRIORITARIOS | C52: =SUM(C53:C57) -> 0 | D52: =SUM(D53:D57) -> 0 | E52: 0 | F52: 0 | G52: 0 | H52: =SUM(H53:H59) -> 1,179,801.24 | I52: 924,454.29 | J52: 200 | K52: 0 | L52: 140,000.00 | M52: 7,000.00 | N52: 2,251,455.53 | O52: 0 | P52: 2,251,455.53 | Q52: ET
A53: 211 | B53: DIR. DE GESTION DE ACCION SOCIAL Y GRUPOS PRIORITARIOS | G53: =SUM(C53:F53) -> 0 | H53: =+'210'!C151 -> 45,838.58 | I53: =+'210'!C170 -> 900.00 | J53: =+'210'!C231 -> 0 | L53: =+'210'!C271 -> 0 | M53: =+'210'!C307 -> 0 | N53: =SUM(H53:M53) -> 46,738.58 | O53: =+'210'!C283 -> 0 | P53: =+O53+N53+G53 -> 46,738.58 | Q53: ET
A54: 212 | B54: JUNTA CANTONAL DE PROTECCION DE DERECHOS Y CCAPID PM | G54: =SUM(C54:F54) -> 0 | H54: =+'210'!C346 -> 0 | I54: =+'210'!C365 -> 0 | J54: =+'210'!C392 -> 0 | L54: =+'210'!C405 -> 0 | M54: =+'210'!C440 -> 0 | N54: 0 | O54: =+'210'!C459 -> 0 | P54: 0.00 | Q54: CERO
A55: 213 | B55: DESARROLLO INFANTIL | G55: =SUM(C55:F55) -> 0 | H55: =+'210'!C472 -> 635,524.59 | I55: =+'210'!C491 -> 812,767.01 | J55: =+'210'!C520 -> 0 | L55: =+'210'!C527 -> 0 | M55: =+'210'!C565 -> 0 | N55: 1,448,291.60 | O55: =+'210'!C573 -> 0 | P55: 1,448,291.60 | Q55: ET
A56: 214 | B56: ADULTO MAYOR | H56: =+'210'!C853 -> 258,332.26 | I56: =+'210'!C872 -> 67,079.28 | J56: =+'210'!C901 -> 0 | L56: =+'210'!C908 -> 140,000.00 | M56: =+'210'!C688 -> 0 | N56: 465,411.54 | O56: =+'210'!C675 -> 0 | P56: 465,411.54 | Q56: ET
A57: 215 | B57: CENTRO DE REHABILITACION | G57: =SUM(C57:F57) -> 0 | H57: =+'210'!C984 -> 160,612.21 | I57: =+'210'!C1003 -> 23,200.00 | J57: =+'210'!C1031 -> 200.00 | L57: =+'210'!C1041 -> 0 | M57: =+'210'!C1077 -> 7,000.00 | N57: 191,012.21 | O57: =+'210'!C788 -> 0 | P57: 191,012.21 | Q57: ET
A58: 216 | B58: DISCAPACIDADES | G58: =SUM(C58:F58) -> 0 | H58: =+'210'!C1116 -> 79,493.60 | I58: =+'210'!C1135 -> 20,508.00 | J58: =+'210'!C1163 -> 0 | L58: =+'210'!C1173 -> 0 | M58: =+'210'!C1209 -> 0 | N58: 100,001.60 | O58: =+'210'!C789 -> 0 | P58: 100,001.60 | Q58: =IF(P58>0,"ET","CERO") -> ET
A59: 217 | B59: SOLANGE | G59: =SUM(C59:F59) -> 0 | H59: =+'210'!C721 -> 0 | I59: =+'210'!C740 -> 0 | J59: =+'210'!C767 -> 0 | L59: =+'210'!C777 -> 0 | M59: =+'210'!C813 -> 0 | N59: 0 | O59: =+'210'!C790 -> 0 | P59: 0.00 | Q59: =IF(P59>0,"ET","CERO") -> CERO
A60: 220 | B60: DIRECCION DE EDUCACION, CULTURA, DEPORTES Y JUVENTUDES | C60: =SUM(C61:C61) -> 0 | D60: =SUM(D61:D61) -> 0 | E60: 0 | F60: 0 | G60: 0 | H60: =SUM(H61:H64) -> 180,997.50 | I60: =SUM(I61:I64) -> 95,500.00 | J60: 0 | K60: 0 | L60: 70,000.00 | M60: 3,500.00 | N60: 349,997.50 | O60: 0 | P60: 349,997.50 | Q60: ET
A61: 221 | B61: DIR. DE GESTION DE EDUCACION, CULTURA, DEPORTE Y JUVENTUDES | G61: =SUM(C61:F61) -> 0 | H61: =+'220'!C13 -> 47,239.40 | I61: =+'220'!C32 -> 700.00 | J61: =+'220'!C72 -> 0 | L61: =+'220'!C85 -> 40,000.00 | M61: =+'220'!C121 -> 1,500.00 | N61: 89,439.40 | O61: =+'220'!C104 -> 0 | P61: =+O61+N61+G61 -> 89,439.40 | Q61: ET
A62: 222 | B62: UNIDAD DE EDUCACION Y CULTURA | H62: =+'220'!C168 -> 60,866.85 | I62: =+'220'!C187 -> 85,900.00 | N62: 146,766.85 | P62: =+O62+N62+G62 -> 146,766.85 | R62: =+H66+I66+J66+K66+M66 -> 9,999,976.64
A63: 223 | B63: UNIDAD DE DEPORTES | H63: =+'220'!C331 -> 9,982.56 | I63: =+'220'!C350 -> 600.00 | L63: =+'220'!C403 -> 30,000.00 | M63: =+'220'!C439 -> 1,000.00 | N63: 41,582.56 | P63: 41,582.56
A64: 224 | B64: UNIDAD DE JUVENTUDES | H64: =+'220'!C489 -> 62,908.69 | I64: =+'220'!C508 -> 8,300.00 | M64: =+'220'!C597 -> 1,000.00 | N64: 72,208.69 | P64: 72,208.69
A66: 300 | B66: FUNCION III: SERVICIOS COMUNALES | C66: =+C75+C96+C102+C88+C67+C108+C82 -> 0 | D66: =+D75+D96+D102+D88+D67+D108 -> 0 | E66: =+E75+E96+E102+E88+E67+E108 -> 0 | F66: =+F75+F96+F102+F88+F67+F108 -> 0 | G66: =+G75+G96+G102+G88+G67+G108 -> 0 | H66: =+H67+H75+H82+H88+H96+H102+H108 -> 2,569,277.08 | I66: =+I67+I75+I82+I88+I96+I102+I108 -> 1,136,780.00 | J66: 4,964,369.77 | K66: 4,500.00 | L66: 0 | M66: 1,325,049.79 | N66: 9,999,976.64 | O66: =+O67+O75+O82+O88+O96+O102+O108+O113 -> 0 | P66: =+P67+P75+P82+P88+P96+P102+P108 -> 9,999,976.64 | Q66: ET
A67: 310 | B67: DIRECCION DE PLANIFICACION Y ORDENAMIENTO TERRITORIAL | H67: =SUM(H68:H73) -> 340,363.76 | I67: =SUM(I68:I73) -> 57,546.00 | J67: =SUM(J68:J73) -> 0 | K67: 0 | L67: 0 | M67: 86,600.00 | N67: 484,509.76 | O67: 0 | P67: =SUM(P68:P73) -> 484,509.76 | Q67: ET | R67: =+R68+R69 -> 1,286,000.00 | S67: =+R67+M67+L67+J67 -> 1,372,600.00
A68: 311 | B68: DIR. DE PLANIFICACION | H68: =+'310'!C167 -> 123,514.37 | I68: =+'310'!C191 -> 30,346.00 | J68: =+'310'!C269+'310'!C245 -> 0 | L68: =+'310'!C247 -> 0 | M68: =+'310'!C251 -> 4,600.00 | N68: =SUM(H68:M68) -> 158,460.37 | P68: =+O68+N68+G68 -> 158,460.37 | Q68: ET | R68: 1,183,000.00 | S68: =+R68+M68+L68+J68 -> 1,187,600.00
A69: 312 | B69: ORDENAMIENTO TERRITORIAL | H69: =+'310'!C298 -> 75,295.62 | I69: =+'310'!C318 -> 2,300.00 | J69: =+'310'!C363 -> 0 | K69: =+'310'!C366 -> 0 | L69: =+'310'!C369 -> 0 | M69: =+'310'!C374 -> 80,000.00 | N69: 157,595.62 | P69: 157,595.62 | Q69: ET | R69: 103,000.00 | S69: =+R69+M69+L69+J69 -> 183,000.00
A70: 313 | B70: ESTUDIO Y DISEÑO DE PROYECTOS | H70: =+'310'!C405 -> 93,436.46 | I70: =+'310'!C426 -> 22,400.00 | M70: =+'310'!C471 -> 1,000.00 | N70: 116,836.46 | P70: 116,836.46 | Q70: ET
B71: COMISARIA DE CONSTRUCCIONES | H71: =+'310'!C504 -> 48,117.31 | I71: =+'310'!C525 -> 2,500.00 | M71: =+'310'!C568 -> 1,000.00 | N71: 51,617.31 | P71: 51,617.31
A72: 314 | B72: ARIDOS Y PETREOS | H72: =+'310'!C609 -> 0 | I72: =+'310'!C629 -> 0 | M72: =+'310'!C656 -> 0 | N72: 0 | P72: 0.00 | Q72: CERO
A73: 315 | B73: SOLANGE | H73: =+'310'!C683 -> 0 | I73: =+'310'!C705 -> 0 | M73: =+'310'!C741 -> 0 | N73: 0 | P73: 0.00 | Q73: CERO
A74: 316 | B74: SOLANGE | H74: =+'310'!C770 -> 0 | I74: =+'310'!C790 -> 0 | M74: =+'310'!C821 -> 0 | N74: 0 | P74: 0.00
A75: 320 | B75: DIRECCION DE OBRAS PUBLICAS | H75: =SUM(H76:H81) -> 1,376,080.90 | I75: 651,448.00 | J75: 4,932,819.77 | K75: 0 | L75: 0 | M75: 1,034,649.79 | N75: 7,994,998.46 | O75: 0 | P75: 7,994,998.46 | Q75: ET | R75: =SUBTOTAL(9,R76:R79) -> 309,000.00 | S75: =SUBTOTAL(9,S76:S79) -> 6,276,469.56
A76: 321 | B76: DIR. DE OBRAS PUBLICAS | H76: =+'320'!C166 -> 46,510.41 | I76: =+'320'!C193 -> 28,896.00 | J76: =+'320'!C301 -> 0.00 | M76: =+'320'!C315 -> 3,850.00 | N76: =SUM(H76:M76) -> 79,256.41 | O76: =+'320'!C333 -> 0 | P76: 79,256.41 | Q76: ET | R76: 103,000.00 | S76: =+R76+M76+L76+J76 -> 106,850.00
A77: 322 | B77: INFRAESTRUCTURA CIVIL | H77: =+'320'!C356 -> 692,414.45 | I77: =+'320'!C388 -> 262,036.00 | J77: =+'320'!C442 -> 3,794,507.59 | M77: =+'320'!C581 -> 0 | N77: 4,748,958.04 | O77: =+'320'!C617 -> 0 | P77: 4,748,958.04 | Q77: ET | R77: 103,000.00 | S77: =+R77+M77+L77+J77 -> 3,897,507.59
A78: 323 | B78: VIALIDAD URBANA | H78: =+'320'!C642 -> 637,156.04 | I78: =+'320'!C671 -> 360,516.00 | J78: =+'320'!C732 -> 1,138,312 | K78: =+'320'!C761 -> 0 | M78: =+'320'!C797 -> 1,030,799.79 | N78: 3,166,784.01 | O78: =+'320'!C786 -> 0 | P78: 3,166,784.01 | Q78: ET | R78: 103,000.00 | S78: =+R78+M78+L78+J78 -> 2,272,111.97
A79: 324 | B79: SANEAMIENTO | H79: =+'320'!C836 -> 0 | I79: =+'320'!C860 -> 0 | J79: =+'320'!C898 -> 0 | M79: =+'320'!C990 -> 0 | N79: 0 | O79: =+'320'!C1010 -> 0 | P79: 0.00 | Q79: CERO | S79: =+R79+M79+L79+J79 -> 0
A80: 325 | B80: SOLANGE | H80: =+'320'!C1034 -> 0 | I80: =+'320'!C1057+'320'!C1100 -> 0 | M80: =+'320'!C1103 -> 0 | N80: 0 | P80: 0.00 | Q80: CERO
A81: 326 | B81: SOLANGE | H81: =+'320'!C1146 -> 0 | I81: =+'320'!C1169 -> 0 | J81: =+'320'!C1201+'320'!C1233 -> 0 | M81: =+'320'!C1215 -> 0 | N81: 0 | P81: 0.00 | Q81: CERO
A82: 330 | B82: DIRECCION DE GESTION AMBIENTAL | H82: =SUM(H83:H87) -> 427,963.47 | I82: =SUM(I83:I87) -> 134,690.00 | J82: 31,550.00 | K82: 4,500.00 | L82: 0 | M82: 177,800.00 | N82: 776,503.47 | O82: 0 | P82: 776,503.47 | Q82: ET
A83: 331 | B83: DIR. DE GESTION AMBIENTAL | H83: =+'330'!C167 -> 47,080.14 | I83: =+'330'!C194 -> 900.00 | M83: =+'330'!C283 -> 1,000.00 | N83: =SUM(H83:M83) -> 48,980.14 | P83: 48,980.14 | Q83: ET
A84: 332 | B84: RESIDUOS SOLIDOS | H84: =+'330'!C323 -> 278,268.98 | I84: =+'330'!C352 -> 83,340.00 | J84: =+'330'!C395 -> 31,550.00 | K84: =+'330'!C518 -> 0 | M84: =+'330'!C522 -> 175,000.00 | N84: =SUM(H84:M84) -> 568,158.98 | O84: =+'330'!C547 -> 0 | P84: 568,158.98 | Q84: ET
A85: 333 | B85: PATRIMONIO NATURAL | H85: =+'330'!C575 -> 12,055.50 | I85: =+'330'!C602 -> 1,300.00 | J85: =+'330'!C639 -> 0 | M85: =+'330'!C654 -> 800.00 | N85: =SUM(H85:M85) -> 14,155.50 | O85: =+'330'!C672 -> 0 | P85: 14,155.50 | Q85: ET
A86: 337 | B86: CALIDAD AMBIENTAL | H86: =+'330'!C720 -> 45,279.42 | I86: =+'330'!C743 -> 17,750.00 | J86: =+'330'!C776 -> 0 | K86: =+'330'!C854 -> 2,100.00 | M86: =+'330'!C857 -> 0 | N86: 65,129.42 | O86: =+'330'!C676 -> 0 | P86: =+O86+N86+G86 -> 65,129.42 | Q86: =IF(P86>0,"ET","CERO") -> ET
B87: UNIDAD DE MINERIA ARIDOS Y PETREOS | H87: =+'330'!C930 -> 45,279.42 | I87: =+'330'!C953 -> 31,400.00 | J87: =+'330'!C989 -> 0 | K87: =+'330'!C1067 -> 2,400.00 | M87: =+'330'!C1070 -> 1,000.00 | N87: 80,079.42 | P87: 80,079.42
A88: 340 | B88: DIRECCION DE PLANIFICACION INSTITUCIONAL Y COOPERACION | E88: =SUM(E89:E94) -> 0 | G88: =SUM(G89:G94) -> 0 | H88: =SUM(H89:H95) -> 64,346.80 | I88: 48,196.00 | J88: 0 | K88: 0 | L88: 0 | M88: 6,000.00 | N88: 118,542.80 | O88: 0 | P88: =SUM(P89:P95) -> 118,542.80 | Q88: ET
A89: 341 | B89: DIRECCION DE PLANIFICACION INSTITUCIONAL Y COOPERACION | E89: =+'340'!C281 -> 0 | G89: =SUM(C89:F89) -> 0 | H89: =+'340'!C168 -> 45,279.42 | I89: =+'340'!C190 -> 32,696.00 | J89: =+'340'!C248+'340'!C280 -> 0 | L89: =+'340'!C258 -> 0 | M89: =+'340'!C262 -> 5,600.00 | N89: =SUM(H89:M89) -> 83,575.42 | O89: =+'340'!C275 -> 0 | P89: 83,575.42 | Q89: ET
A90: 342 | B90: UNIDAD DE COOPERACION INTERNACIONAL | E90: =+'340'!C282 -> 0 | G90: =SUM(C90:F90) -> 0 | H90: =+'340'!C317 -> 19,067.38 | I90: =+'340'!C343 -> 15,500.00 | J90: =+'340'!C388 -> 0 | L90: =+'340'!C393 -> 0 | M90: =+'340'!C405 -> 400.00 | N90: =SUM(H90:M90) -> 34,967.38 | P90: 34,967.38 | Q90: ET
A91: 343 | B91: COMISARIA | G91: =SUM(C91:F91) -> 0 | H91: =+'340'!C515 -> 0 | I91: =+'340'!C539 -> 0 | J91: =+'340'!C591 -> 0 | L91: =+'340'!C616 -> 0 | M91: =+'340'!C624 -> 0 | N91: 0 | P91: 0.00 | Q91: CERO
A92: 344 | B92: HIGIENE | H92: =+'340'!C663 -> 0 | I92: =+'340'!C685 -> 0 | J92: =+'340'!C735 -> 0 | L92: =+'340'!C745 -> 0 | M92: =+'340'!C755 -> 0 | N92: 0 | P92: 0.00 | Q92: CERO
A93: 345 | B93: SOLANGE | H93: =+'340'!C792 -> 0 | I93: =+'340'!C814 -> 0 | J93: =+'340'!C873 -> 0 | L93: =+'340'!C880 -> 0 | M93: =+'340'!C884 -> 0 | N93: =SUM(H93:M93) -> 0 | P93: 0.00 | Q93: CERO
A94: 345 | B94: SOLANGE | H94: =+'340'!C920 -> 0 | I94: =+'340'!C940 -> 0 | J94: =+'340'!C976 -> 0 | M94: =+'340'!C982 -> 0 | N94: 0 | P94: 0.00 | Q94: CERO
A95: 347 | B95: SOLANGE | H95: =+'340'!C1019 -> 0 | I95: =+'340'!C1039 -> 0 | J95: =+'340'!C1075 -> 0 | M95: =+'340'!C1081 -> 0 | N95: 0 | P95: 0.00
A96: 350 | B96: DIRECCION DE AVALUOS Y CATASTROS | H96: =SUM(H97:H101) -> 203,997.68 | I96: 92,500.00 | J96: 0.00 | K96: 0 | L96: 0 | M96: 1,000.00 | N96: 297,497.68 | O96: =SUM(O98:O101) -> 0 | P96: =SUM(P97:P101) -> 297,497.68 | Q96: ET
A97: 351 | B97: DIR. DE AVALUOS Y CATASTROS | H97: =+'350'!C163 -> 45,356.41 | I97: =+'350'!C186 -> 2,700.00 | J97: =+'350'!C232 -> 0 | M97: =+'350'!C239 -> 0 | N97: =SUM(H97:M97) -> 48,056.41 | O97: =+'350'!C252 -> 0 | P97: =+O97+N97+G97 -> 48,056.41 | Q97: ET
A98: 352 | B98: CATASTRO URBANO | H98: =+'350'!C292 -> 55,261.98 | I98: =+'350'!C315 -> 26,200.00 | J98: =+'350'!C348 -> 0 | M98: =+'350'!C378 -> 0 | N98: =SUM(H98:M98) -> 81,461.98 | P98: =+O98+N98+G98 -> 81,461.98 | Q98: ET
A99: 353 | B99: CATASTRO RURAL | H99: =+'350'!C414 -> 29,049.93 | I99: =+'350'!C435 -> 58,900.00 | J99: =+'350'!C463 -> 0 | M99: =+'350'!C485 -> 0 | N99: =SUM(H99:M99) -> 87,949.93 | P99: =+O99+N99+G99 -> 87,949.93 | Q99: =IF(P99>0,"ET","CERO") -> ET
A100: 354 | B100: LEGALIZACION DE TIERRAS | H100: =+'350'!C517 -> 74,329.36 | I100: =+'350'!C538 -> 4,700.00 | J100: =+'350'!C592 -> 0 | M100: =+'350'!C634 -> 1,000.00 | N100: =SUM(H100:M100) -> 80,029.36 | P100: =+O100+N100+G100 -> 80,029.36 | Q100: ET
A101: 355 | B101: SOLANGE | H101: =+'350'!C690 -> 0 | I101: =+'350'!C711 -> 0 | J101: =+'350'!C739 -> 0 | M101: =+'350'!C748 -> 0 | N101: =SUM(H101:M101) -> 0 | P101: =+O101+N101+G101 -> 0.00 | Q101: CERO
A102: 360 | B102: DIRECCION DE MOVILIDAD | E102: =SUM(E103:E105) -> 0 | G102: =SUM(G103:G105) -> 0 | H102: =SUM(H103:H107) -> 0 | I102: 700.00 | J102: 0 | K102: 0 | L102: 0 | M102: 10,000.00 | N102: =SUM(N103:N107) -> 10,700.00 | O102: 0 | P102: =SUM(P103:P107) -> 10,700.00 | Q102: ET
A103: 361 | B103: DIR. DE MOVILIDAD | E103: =+'360'!C308 -> 0 | G103: =SUM(C103:F103) -> 0 | H103: =+'360'!C166 -> 0 | I103: =+'360'!C189 -> 700.00 | J103: =+'360'!C236 -> 0 | L103: =+'360'!C249 -> 0 | M103: =+'360'!C291 -> 10,000.00 | N103: =SUM(H103:M103) -> 10,700.00 | O103: =+'360'!C302 -> 0 | P103: =+O103+N103+G103 -> 10,700.00 | Q103: ET
A104: 362 | B104: SOLANGE | H104: =+'360'!C333 -> 0 | I104: =+'360'!C356 -> 0 | J104: =+'360'!C389+'360'!C433 -> 0 | M104: =+'360'!C423 -> 0 | N104: 0 | P104: =+O104+N104+G104 -> 0.00 | Q104: CERO
A105: 363 | B105: SOLANGE | H105: =+'360'!C459 -> 0 | I105: =+'360'!C527+'360'!C480 -> 0 | J105: =+'360'!C509 -> 0 | M105: =+'360'!C532 -> 0 | N105: 0 | P105: =+O105+N105+G105 -> 0.00 | Q105: CERO
A106: 364 | B106: SOLANGE | H106: =+'360'!C562 -> 0 | I106: =+'360'!C581 -> 0 | M106: =+'360'!C623 -> 0 | N106: 0 | P106: =+O106+N106+G106 -> 0.00 | Q106: CERO
A107: 365 | B107: SOLANGE | H107: =+'360'!C653 -> 0 | I107: =+'360'!C672 -> 0 | M107: =+'360'!C707 -> 0 | N107: 0 | P107: =+O107+N107+G107 -> 0.00 | Q107: CERO
A108: 370 | B108: DIRECCION DESARROLLO ECONOMICO Y TURISMO | H108: =SUM(H109:H112) -> 156,524.47 | I108: =SUM(I109:I112) -> 151,700.00 | J108: =SUM(J109:J111) -> 0 | K108: 0 | L108: 0 | M108: =SUM(M109:M112) -> 9,000.00 | N108: 317,224.47 | O108: 0 | P108: =SUM(P109:P112) -> 317,224.47 | Q108: ET
A109: 371 | B109: DIR. DESARROLLO ECONOMICO Y TURISMO | H109: =+'370'!C166 -> 45,926.14 | I109: =+'370'!C188 -> 3,400.00 | J109: =+'370'!C250 -> 0 | M109: =+'370'!C255 -> 1,500.00 | N109: 50,826.14 | P109: =+O109+N109+G109 -> 50,826.14 | Q109: ET
A110: 372 | B110: UNIDAD DE AGROECOLOGIA Y AGROPECUARIO | H110: =+'370'!C291 -> 19,067.38 | I110: =+'370'!C311 -> 16,900.00 | K110: =+'370'!C365 -> 0 | L110: =+'370'!C367 -> 0 | M110: =+'370'!C377 -> 2,500.00 | N110: 38,467.38 | P110: =+O110+N110+G110 -> 38,467.38 | Q110: ET
A111: 373 | B111: UNIDAD DE TURISMO Y PATRIMONIO | H111: =+'370'!C411 -> 49,731.48 | I111: =+'370'!C429 -> 32,200.00 | L111: =+'370'!C475 -> 0 | M111: =+'370'!C479 -> 2,500.00 | N111: 84,431.48 | P111: =+O111+N111+G111 -> 84,431.48 | Q111: ET
A112: 374 | B112: UNIDAD DE AGROINDUSTRIA, COMERCIALIZACION Y EMPRENDIMIENTO | H112: =+'370'!C549 -> 41,799.48 | I112: =+'370'!C567 -> 99,200.00 | M112: =+'370'!C619 -> 2,500.00 | N112: 143,499.48 | P112: =+O112+N112+G112 -> 143,499.48 | Q112: ET
A113: 380 | B113: SOLANGE | H113: =+H114 -> 0 | I113: =+I114 -> 0 | J113: 0 | K113: 0 | L113: 0 | M113: 0 | N113: 0 | O113: 0 | P113: =+P114 -> 0
A114: 381 | B114: SOLANGE | H114: =+'380'!C164 -> 0 | I114: =+'380'!C182 -> 0 | J114: =+'380'!C217 -> 0 | M114: =+'380'!C226 -> 0 | N114: =SUM(H114:M114) -> 0 | P114: =+O114+N114+G114 -> 0.00 | Q114: CERO
A116: 500 | B116: FUNCION V: SERVICIOS INCLASIFICADOS | C116: =+C118 -> 0 | D116: =+D118 -> 0 | E116: =+E118 -> 45,283.33 | F116: =+F118 -> 60,000.00 | G116: =+F116+E116+C116+D116 -> 105,283.33 | H116: =+H118 -> 70,100.00 | I116: 2,000.00 | J116: 0 | L116: 90,000.00 | M116: 0 | N116: =SUM(H116:M116) -> 162,100.00 | O116: 374,000.00 | P116: =+N116+G116+O116 -> 641,383.33 | Q116: ET
A117: 510 | B117: GASTOS COMUNES DE LA ENTIDAD Y S. DEUDA | Q117: CERO
A118: 511 | B118: GASTOS COMUNES DE LA ENTIDAD Y S. DEUDA | C118: =+'500'!D11 -> 0 | E118: =+'500'!C23 -> 45,283.33 | F118: =+'500'!D43+'500'!D23 -> 60,000.00 | G118: =+F118+E118+C118+D118 -> 105,283.33 | H118: =+'500'!C61 -> 70,100.00 | I118: =+'500'!C84 -> 2,000.00 | L118: =+'500'!C87 -> 90,000.00 | N118: =SUM(H118:M118) -> 162,100.00 | O118: =+'500'!C94+'500'!C103 -> 374,000.00 | P118: =+N118+G118+O118 -> 641,383.33 | Q118: ET
Q119: CERO
B120: TOTAL: | C120: =+C6+C51+C66+C116 -> 2,561,649.03 | D120: =+D6+D51+D66+D116 -> 1,187,389.21 | E120: =+E6+E51+E66+E116 -> 101,783.33 | F120: =+F6+F51+F66+F116 -> 199,600.00 | G120: =+F120+E120+D120+C120 -> 4,050,421.57 | H120: =+H116+H66+H51+H6 -> 4,000,175.82 | I120: 2,158,734.29 | J120: 4,964,570 | K120: 4,500.00 | L120: 300,000.00 | M120: 1,474,108.38 | N120: 12,902,088.26 | O120: =+O6+O51+O66+O116 -> 374,000.00 | P120: =+P116+P66+P51+P6 -> 17,326,509.83 | Q120: ET
B121: TOTAL INGRESOS | O121: =+P120-P121 -> -0.00 | P121: =+'RESUMEN PRESUPUESTO'!D25 -> 17,326,509.83 | Q121: ET
B128: <

Sheet 100 (hidden)
B1: =CONCATENATE(DAT_INI!A2," ",DAT_INI!B2) -> GOBIERNO AUTONOMO DESCENTRALIZADO MUNICIPAL DEL CANTON PEDRO MONCAYO
B2: =CONCATENATE(DAT_INI!A3," ","AÑO"," ",DAT_INI!B3) -> PROFORMA PRESUPUESTARIA AÑO 2020
B4: =+GASTO!B6 -> FUNCION I: SERVICIOS GENERALES
B5: CÓDIGO DE FUNCIÓN: 100
B6: 3RA. ASIGNACIÓN SEGÚN EL OBJETO DEL GASTO
B10: PARTIDA | C10: DETALLE | D10: ASIGNACIÓN
D11: =CONCATENATE("AÑO"," ",DAT_INI!B3) -> AÑO 2020 | N11: SELECC
B12: 5 | C12: GASTOS CORRIENTES | D12: =+D13+D36+D86 -> 2,179,284.10 | N12: =IF(D12>0,"ET","CERO") -> ET
B13: 51 | C13: GASTOS EN PERSONAL | D13: =SUM(D14+D17+D20+D28)+186190.21 -> 1,381,492.71 | N13: =IF(D13>0,"ET","CERO") -> ET
B14: 51.01 | C14: REMUNERACIONES BÁSICAS | D14: =SUM(D15:D16) -> 896,892.00 | N14: ET
B15: 51.01.05 | C15: Remuneraciones Unificadas | D15: =+'110'!D15+'130'!D15+'140'!D15+'120'!D15 -> 896,892.00 | N15: ET
B16: 51.01.06 | C16: Salarios Unificados | D16: =+'110'!D16+'130'!D16+'140'!D16+'120'!D16 -> 0.00 | N16: CERO
B17: 51.02 | C17: REMUNERACIONES COMPLEMENTARIAS | D17: =SUM(D18:D19) -> 105,254.00 | N17: ET
B18: 51.02.03 | C18: Décimo Tercer Sueldo | D18: =+'110'!D18+'130'!D18+'140'!D18+'120'!D18 -> 80,549.00 | N18: ET
B19: 51.02.04 | C19: Décimo Cuarto Sueldo | D19: =+'110'!D19+'130'!D19+'140'!D19+'120'!D19 -> 24,705.00 | N19: ET
B20: 51.05 | C20: REMUNERACIONES TEMPORALES | D20: 0.00 | N20: CERO
B21: 51.05.12 | C21: Subrogaciones | D21: =+'110'!D21+'130'!D21+'140'!#REF!+'120'!D21 -> 
B22: 51.05.13 | C22: Encargos | D22: =+'110'!D22+'130'!D22+'140'!#REF!+'120'!D22 -> 
B23: 51.05.08 | C23: Dietas | D23: =+'110'!D23+'130'!D23+'140'!#REF!+'120'!D23 -> 
B24: 51.05.09 | C24: Horas Extraordinarias y Suplementarias | D24: 0.00 | N24: CERO
B25: 51.05.10 | C25: Servicios Personales de contratos | D25: 0.00 | N25: CERO
B26: 51.05.12 | C26: Subrogación
B27: 51.05.13 | C27: Encargos
B28: 51.06 | C28: APORTES PATRONALES A LA SEGURIDAD SOCIAL | D28: =SUM(D29:D30) -> 193,156.50 | N28: ET
B29: 51.06.01 | C29: Aporte Patronal | D29: =+'110'!D27+'130'!D29+'140'!D23+'120'!D30 -> 112,607.50 | N29: ET
B30: 51.06.02 | C30: Fondos de Reserva | D30: =+'110'!D28+'130'!D30+'140'!D24+'120'!D31 -> 80,549.00 | N30: ET
B31: 51.07 | C31: INDEMNIZACIONES | D31: =SUM(D32:D33) -> 0.00 | N31: CERO
B32: 51.07.01 | C32: Compensación por Renuncia Voluntaria | D32: =+'110'!D30+'130'!D32+'140'!D26+'120'!D33 -> 0.00 | N32: CERO
B33: 51.07.99 | C33: Otras Indemnizaciones laborales | D33: =+'110'!D31+'130'!D33+'140'!D27+'120'!D34 -> 0.00 | N33: CERO
B34: 51.99 | C34: ASIGNACIONES A DISTRIBUIR | D34: =D35 -> 0.00 | N34: CERO
B35: 51.99.01 | C35: Asignaciones a distribuir en Gastos en el Personal | D35: =+'110'!D33+'130'!D35+'140'!D29+'120'!D36 -> 0.00 | N35: CERO
B36: 53 | C36: BIENES Y SERVICIOS DE CONSUMO | D36: =150000+336000+637.39 -> 486,637.39 | N36: ET
B37: 53.01 | C37: SERVICIOS BÁSICOS | D37: =SUM(D38:D41) -> 90,640.00 | N37: ET
B38: 53.01.01 | C38: Agua Potable | D38: =+'110'!D36+'130'!D38+'140'!D32+'120'!D39 -> 11,000.00 | N38: ET
B39: 53.01.04 | C39: Energía eléctrica | D39: =+'110'!D37+'130'!D39+'140'!D33+'120'!D40 -> 25,000.00 | N39: ET
B40: 53.01.05 | C40: Telecomunicaciones | D40: =+'110'!D38+'130'!D40+'140'!D34+'120'!D41 -> 54,040.00 | N40: ET
B41: 53.01.06 | C41: Servicio de Correo | D41: =+'110'!D39+'130'!D41+'140'!D35+'120'!D42 -> 600.00 | N41: ET
B42: 53.02 | C42: SERVICIOS GENERALES | D42: =+D43+D44+D45+D46+D47 -> 117,667.23 | N42: ET
B43: 53.02.01 | C43: Transporte de personal | D43: =+'110'!D41+'130'!D43+'140'!D37+'120'!D44 -> 2,367.23 | N43: ET
B44: 53.02.04 | C44: Edición, Impresión, reproducción y publicaciones | D44: =+'110'!D42+'130'!D44+'140'!D38+'120'!D45 -> 15,300.00 | N44: ET
B45: 53.02.05 | C45: Espectáculos Culturales y Sociales | N45: CERO
B46: 53.02.06 | C46: Eventos Públicos y Oficiales | N46: CERO
B47: 53.02.17 | C47: Difusión e Información | D47: =+'110'!D45+'130'!D47+'140'!D41+'120'!D48 -> 100,000.00 | N47: ET
B48: 53.02.08 | C48: Difusión, Información y Publicidad | D48: =+'110'!D46+'130'!D48+'140'!D42+'120'!D49 -> 130,000.00 | N48: ET
B49: 53.02.99 | C49: Otros Servicios Generales | N49: CERO
B50: 53.03 | C50: TRASLADOS, INSTALACIONES, VIÁTICOS Y SUBSISTENCIAS | D50: =SUM(D51:D54) -> 6,600.00 | N50: ET
B51: 53.03.01 | C51: Pasajes al Interior | D51: =+'110'!D49+'130'!D51+'140'!D45+'120'!D52 -> 1,600.00 | N51: ET
B52: 53.03.02 | C52: Pasajes al exterior | D52: =+'110'!D50+'130'!D52+'140'!D46+'120'!D53 -> 1,000.00 | N52: ET
B53: 53.03.03 | C53: Viáticos y Subsistencias en el Interior | D53: =+'110'!D51+'130'!D53+'140'!D47+'120'!D54 -> 2,240.00 | N53: ET
B54: 53.03.04 | C54: Viáticos y Subsistencias en el Exterior | D54: =+'110'!D52+'130'!D54+'140'!D48+'120'!D55 -> 1,760.00 | N54: ET
B55: 53.04 | C55: INSTALACIÓN, MANTENIMIENTO Y REPARACIÓN | D55: =+D57+D58+D59 -> 6,350.00 | N55: ET
B56: 53.04.02 | C56: Edificios, locales y residencias | D56: =+'110'!D54+'130'!D56+'140'!D50+'120'!D57 -> 5,300.00 | N56: ET
B57: 53.04.03 | C57: Mobiliarios | D57: =+'110'!D55+'130'!D57+'140'!D51+'120'!D58 -> 1,250.00 | N57: ET
B58: 53.04.04 | C58: Maquinarias y Equipos | D58: =+'110'!D56+'130'!D58+'140'!D52+'120'!D59 -> 100.00 | N58: ET
B59: 53.04.05 | C59: Vehículos | D59: 5,000.00 | N59: ET
B60: 53.04.99 | C60: Otras instalaciones, mantenimiento y reparaciones. | D60: =+'110'!D58+'130'!D60+'140'!D53+'120'!D61 -> 0.00 | N60: CERO
B61: 53.06 | C61: CONTRATACIÓN DE ESTUDIOS E INVESTÍ | D61: =SUM(D62:D63) -> 21,800.00 | N61: ET
B62: 53.06.01 | C62: Consultoría, Ascesoria e Investigación especializada | D62: =+'110'!D60+'130'!D62+'140'!D55+'120'!D63 -> 15,000.00 | N62: ET
B63: 53.06.03 | C63: Servicios de Capacitación | D63: =+'110'!D61+'130'!D63+'140'!D56+'120'!D64 -> 6,800.00 | N63: ET
B64: 53.07 | C64: GASTOS EN INFORMÁTICA | D64: =SUM(D65:D67) -> 107,100.00 | N64: ET
B65: 53.07.01 | C65: Desarrollo Equipos, sistemas y paquetes informáticos | D65: =+'110'!D63+'130'!D65+'140'!D58+'120'!D66 -> 0.00 | N65: CERO
B66: 53.07.02 | C66: Arrendamiento y Licencias de Uso de Paquetes Informáticos | D66: =+'110'!D64+'130'!D66+'140'!D59+'120'!D67 -> 104,150.00 | N66: ET
B67: 53.07.04 | C67: Mantenimiento y reparación de sistemas informáticos | D67: =+'110'!D65+'130'!D67+'140'!D60+'120'!D68 -> 2,950.00 | N67: ET
B68: 53.08 | C68: BIENES DE USO Y CONSUMO CORRIENTE | D68: =+D70+D71+D72+D73+D75 -> 32,178.00 | N68: ET
B69: 53.08.01 | C69: Alimentos y Bebidas | N69: CERO
B70: 53.08.02 | C70: Vestuario, Lencería y Prendas de Protección | D70: =+'110'!D68+'130'!D70+'140'!D63+'120'!D71 -> 12,828.00 | N70: ET
B71: 53.08.03 | C71: Combustible y Lubricantes | D71: =+'110'!D69+'130'!D71+'140'!D64+'120'!D72 -> 0.00 | N71: CERO
B72: 53.08.04 | C72: Materiales de Oficina | D72: =+'110'!D70+'130'!D72+'140'!D65+'120'!D73 -> 10,300.00 | N72: ET
B73: 53.08.05 | C73: Materiales de Aseo | D73: =+'110'!D71+'130'!D73+'140'!D66+'120'!D74 -> 2,350.00 | N73: ET
B74: 53.08.06 | C74: Herramientas | D74: =+'110'!D72+'130'!D74+'140'!D67+'120'!D75 -> 475.00 | N74: ET
B75: 53.08.07 | C75: Materiales de impresión,fotografía,reprod,y publicaciones | D75: =+'110'!D73+'130'!D75+'140'!D68+'120'!D76 -> 6,700.00 | N75: ET
B76: 53.08.11 | C76: Materiales de construcción, eléctricos plomería, carpintería. | D76: =+'110'!D74+'130'!D76+'140'!D69+'120'!D77 -> 10,000.00 | N76: ET
B77: 53.08.13 | C77: Repuestos y accesorios | D77: =+'110'!D75+'130'!D77+'140'!D70+'120'!D78 -> 1,500.00 | N77: ET
B78: 53.08.99 | C78: Otros de uso y consumo. | D78: =+'110'!D76+'130'!D78+'140'!D71+'120'!D79 -> 0.00 | N78: CERO
B79: 53.10 | C79: PERTRECHOS PARA LA DEFENSA Y SEGURIDAD PUBLICA | D79: =+D80 -> 0.00 | N79: =IF(D79>0,"ET","CERO") -> CERO
B80: 53.10.02 | C80: Suministros para la defensa y seguridad publica | D80: =+'110'!D78+'130'!D80+'140'!D73+'120'!D81 -> 0.00 | N80: CERO
B81: 53.99 | C81: ASIGNACIONES A DISTRIBUIR | D81: =D82 -> 0.00 | N81: CERO
B82: 53.99.01 | C82: Asignaciones para distribuir en bienes y servicios | D82: =+'110'!D80+'130'!D82+'140'!D75+'120'!D83 -> 0.00 | N82: CERO
B83: 56 | C83: GASTOS FINANCIEROS | D83: =SUM(D84) -> 25,000.00 | N83: ET
B84: 56.01 | C84: TÍTULOS Y VALORES EN CIRCULACIÓN | D84: =SUM(D85) -> 25,000.00 | N84: ET
B85: 56.01.06 | C85: Descuentos, Comisiones y otros cargos en Títulos y valores | D85: =+'110'!D83+'130'!D85+'140'!D78+'120'!D86 -> 25,000.00 | N85: ET
B86: 57 | C86: OTROS GASTOS CORRIENTES | D86: =+D87 -> 311,154.00 | N86: ET
B87: 57.02 | C87: SEGUROS, COSTOS FINANCIEROS Y OTROS GASTOS | D87: =SUM(D88:D92)+221554 -> 311,154.00 | N87: ET
B88: 57.02.01 | C88: Seguros, pago de pólizas de vehículos, de vida, fidelidad, matrículas | D88: =+'110'!D86+'130'!D88+'140'!D81+'120'!D89 -> 73,500.00 | N88: ET
B89: 57.02.03 | C89: Comisiones bancarias | D89: =+'110'!D87+'130'!D89+'140'!D82+'120'!D90 -> 5,100.00 | N89: ET
B90: 57.02.06 | C90: Costos Judiciales | D90: =+'110'!D88+'130'!D90+'140'!D83+'120'!D91 -> 5,000.00 | N90: ET
B91: 57.02.13 | C91: Devolución de garantías | D91: =+'110'!D89+'130'!D91+'140'!D84+'120'!D92 -> 0.00 | N91: CERO
B92: 57.02.99 | C92: Otros Gastos Financieros | D92: =+'110'!D90+'130'!D92+'140'!D85+'120'!D93 -> 6,000.00 | N92: ET
B93: 8. | C93: GASTOS DE CAPITAL | D93: =+D94 -> 19,250.00 | N93: ET
B94: 84. | C94: ACTIVOS DE LARGA DURACIÓN | D94: =+D95 -> 19,250.00 | N94: ET
B95: 84.01 | C95: BIENES MUEBLES | D95: =+D96+D97+D98+D99 -> 19,250.00 | N95: ET
B96: 84.01.03 | C96: Mobiliarios | D96: =+'110'!D94+'130'!D96+'140'!D89+'120'!D97 -> 8,800.00 | N96: ET
B97: 84.01.04 | C97: Maquinarias y Equipos | D97: 100.00 | N97: ET
B98: 84.01.05 | C98: Vehiculos | D98: =+'110'!D96+'130'!D98+'140'!D91+'120'!D99 -> 0.00 | N98: CERO
B99: 84.01.07 | C99: Equipos, sistemas y Paquetes informáticos | D99: =+'110'!D97+'130'!D99+'140'!D92+'120'!D100 -> 10,350.00 | N99: ET
B100: 84.01.09 | C100: Libros y Colecciones | D100: =+'110'!D98+'130'!D100+'140'!D93+'120'!D101 -> 5,000.00 | N100: ET
B101: 84.01.11 | C101: Partes y Repuestos | D101: =+'110'!D99+'130'!D101+'140'!D94+'120'!D102 -> 0.00 | N101: CERO
B102: 84.03 | C102: EXPROPIACIÓN DE BIENES | D102: =+D103+D104 -> 0.00 | N102: CERO
B103: 84.03.01 | C103: Terrenos | D103: =+'110'!D101+'130'!D103+'140'!D96+'120'!D104 -> 0.00 | N103: CERO
B104: 84.03.02 | C104: Edificios, locales y residencias | D104: =+'110'!D102+'130'!D104+'140'!D97+'120'!D105 -> 0.00 | N104: CERO
B105: 97 | C105: PASIVO CIRCULANTE | D105: =+D106 -> 0.00 | N105: CERO
B106: 97.01 | C106: DEUDA FLOTANTE | D106: =+D107 -> 0.00 | N106: CERO
B107: 97.01.01 | C107: De cuentas por pagar | D107: =+'110'!D105+'130'!D107+'140'!D100+'120'!D108 -> 0.00 | N107: CERO
C108: TOTAL PROGRAMA | D108: =+'110'!C1372+'120'!C1170+'130'!C665+'140'!C470+'150'!C693+'160'!C512 -> 4,083,696.83 | N108: ET
N109: ET
C110: DETALLE | N110: ET
C111: CORRIENTES | D111: =+D108-D113 -> 4,064,446.83 | N111: ET
C112: INVERSIÓN | D112: 0.00 | N112: CERO
C113: CAPITAL | D113: =+D93 -> 19,250.00 | N113: ET
C114: PASIVO CIRCULANTE | D114: =+D105 -> 0.00 | N114: CERO
C115: SUBTOTAL | D115: =+D111+D113+D114 -> 4,083,696.83 | F115: =+'130'!#REF! ->  | G115: =+D115-F115 ->  | N115: ET
N116: ET
B117: REALIZADO POR: | D117: AUTORIZADO POR: | N117: ET
N118: ET
N119: ET
N120: ET
N121: ET
B122: =+DAT_INI!$B$8 -> 0 | D122: =+DAT_INI!$B$9 -> 0 | N122: CERO
D123: =+DAT_INI!B10 -> 0 | N123: CERO
B891: Remuneraciones Unificadas

Sheet 110
A1: =+'100'!B1 -> GOBIERNO AUTONOMO DESCENTRALIZADO MUNICIPAL DEL CANTON PEDRO MONCAYO
A2: =+'100'!B2 -> PROFORMA PRESUPUESTARIA AÑO 2020
A4: =+'100'!$B$4 -> FUNCION I: SERVICIOS GENERALES
A5: =CONCATENATE("CÓDIGO DE FUNCIÓN:"," ",GASTO!$A$6) -> CÓDIGO DE FUNCIÓN: 100
A6: =CONCATENATE("PROGRAMA 1ro:",GASTO!$B$7) -> PROGRAMA 1ro:ADMINISTRACION GENERAL
A7: =CONCATENATE("CÓDIGO DE PROGRAMA:"," ",GASTO!$A$7) -> CÓDIGO DE PROGRAMA: 110
A8: 3RA. ASIGNACIÓN SEGÚN EL OBJETO DEL GASTO
A10: PARTIDA | B10: DETALLE | D10: ASIGNACIÓN | F10: PARTIDA
D11: =+DAT_INI!B3 -> 2020 | V11: SELECC
A12: 5 | B12: GASTOS CORRIENTES | D12: =SUM(D13+D34+D84+D81) -> 1,120,205.95 | F12: 5 | V12: =IF(D12>0,"ET","CERO") -> ET
A13: 51 | B13: GASTOS EN PERSONAL | D13: =SUM(D14+D17+D20+D26+D29+D32) -> 913,118.72 | F13: 51 | V13: =IF(D13>0,"ET","CERO") -> ET
A14: 51.01 | B14: REMUNERACIONES BÁSICAS | D14: =SUM(D15:D16) -> 551,952.00 | F14: 51.01 | V14: ET
A15: 51.01.05 | B15: Remuneraciones Unificadas | D15: =SUMIF(admgen,F15,admgen1) -> 551,952.00 | F15: 51.01.05 | V15: ET
A16: 51.01.06 | B16: Salarios Unificados | D16: =SUMIF(admgen,F16,admgen1) -> 0.00 | F16: 51.01.06 | V16: CERO
A17: 51.02 | B17: REMUNERACIONES COMPLEMENTARIAS | D17: =SUM(D18:D19) -> 66,384.00 | F17: 51.02 | V17: ET
A18: 51.02.03 | B18: Décimo Tercer Sueldo | D18: =SUMIF(admgen,F18,admgen1) -> 51,804.00 | F18: 51.02.03 | V18: ET
A19: 51.02.04 | B19: Décimo Cuarto Sueldo | D19: =SUMIF(admgen,F19,admgen1) -> 14,580.00 | F19: 51.02.04 | V19: ET
A20: 51.05 | B20: REMUNERACIONES TEMPORALES | D20: =SUM(D21:D25) -> 170,556.73 | F20: 51.05 | V20: ET
A21: 51.05.12 | B21: Subrogaciones | D21: =SUMIF(admgen,F21,admgen1) -> 0.00 | F21: 51.05.04 | V21: CERO
A22: 51.05.13 | B22: Encargos | D22: =SUMIF(admgen,F22,admgen1) -> 0.00 | F22: 51.05.06 | V22: CERO
A23: 51.05.08 | B23: Dietas | F23: 51.05.08 | V23: CERO
A24: 51.05.09 | B24: Horas Extraordinarias y Suplementarias | D24: =SUMIF(admgen,F24,admgen1) -> 0.00 | F24: 51.05.09 | V24: CERO
A25: 51.05.10 | B25: Servicios Personales por contrato( personal técnico.especil.pract) | D25: =SUMIF(admgen,F25,admgen1) -> 170,556.73 | F25: 51.05.10 | V25: ET
A26: 51.06 | B26: APORTES PATRONALES A LA SEGURIDAD SOCIAL | D26: =SUM(D27:D28) -> 124,225.99 | F26: 51.06 | V26: ET
A27: 51.06.01 | B27: Aporte Patronal | D27: =SUMIF(admgen,F27,admgen1) -> 72,421.99 | F27: 51.06.01 | V27: ET
A28: 51.06.02 | B28: Fondos de Reserva | D28: =SUMIF(admgen,F28,admgen1) -> 51,804.00 | F28: 51.06.02 | V28: ET
A29: 51.07 | B29: INDEMNIZACIONES | D29: =SUM(D30:D31) -> 0.00 | F29: 51.07 | V29: CERO
A30: 51.07.01 | B30: Compensación por renuncia Voluntaria | D30: =SUMIF(admgen,F30,admgen1) -> 0.00 | F30: 51.07.01 | V30: CERO
A31: 51.07.99 | B31: Otras Indem/por renuncia voluntaria | D31: =SUMIF(admgen,F31,admgen1) -> 0.00 | F31: 51.07.99 | V31: CERO
A32: 51.99 | B32: ASIGNACIONES A DISTRIBUIR | D32: =D33 -> 0.00 | F32: 51.99 | V32: CERO
A33: 51.99.01 | B33: Asignaciones a distribuir en Gastos en Personal | D33: =SUMIF(admgen,F33,admgen1) -> 0.00 | F33: 51.99.01 | V33: CERO
A34: 53 | B34: BIENES Y SERVICIOS DE CONSUMO | D34: =SUM(D35+D40+D48+D53+D59+D62+D66+D79) -> 202,087.23 | F34: 53 | V34: ET
A35: 53.01 | B35: SERVICIOS BÁSICOS | D35: =SUM(D36:D39) -> 39,040.00 | F35: 53.01 | V35: ET
A36: 53.01.01 | B36: Agua Potable | D36: =SUMIF(admgen,F36,admgen1) -> 0.00 | F36: 53.01.01 | V36: CERO
A37: 53.01.04 | B37: Energía eléctrica | D37: =SUMIF(admgen,F37,admgen1) -> 0.00 | F37: 53.01.04 | V37: CERO
A38: 53.01.05 | B38: Telecomunicaciones | D38: =SUMIF(admgen,F38,admgen1) -> 39,040.00 | F38: 53.01.05 | V38: ET
A39: 53.01.06 | B39: Servicio de Correo | D39: =SUMIF(admgen,F39,admgen1) -> 0.00 | F39: 53.01.06 | V39: CERO
A40: 53.02 | B40: SERVICIOS GENERALES | D40: =SUM(D41:D47) -> 114,367.23 | F40: 53.02 | V40: ET
A41: 53.02.01 | B41: Transporte de personal | D41: =SUMIF(admgen,F41,admgen1) -> 2,367.23 | F41: 53.02.01 | V41: ET
A42: 53.02.04 | B42: Edición, Impresión. reproducción y publicaciones | D42: 12,000.00 | F42: 53.02.04 | V42: ET
A43: 53.02.05 | B43: Espectáculos Culturales y Sociales | F43: 53.02.05 | V43: CERO
A44: 53.02.06 | B44: Eventos Públicos y Oficiales | D44: 0.00 | F44: 53.02.06 | V44: CERO
A45: 53.02.17 | B45: Difusión e Información | D45: 100,000.00 | F45: 53.02.07 | V45: ET
A46: 53.02.08 | B46: Servicios de Vigilancia | D46: 0.00 | F46: 53.02.08 | V46: CERO
A47: 53.02.99 | B47: Otros servicios generales | D47: 0.00 | F47: 53.02.99 | V47: CERO
A48: 53.03 | B48: TRASLADOS. INSTALACIONES. VIÁTICOS Y SUBSISTENCIAS | D48: =SUM(D49:D52) -> 6,600.00 | F48: 53.03 | V48: ET
A49: 53.03.01 | B49: Pasajes al Interior | D49: =SUMIF(admgen,F49,admgen1) -> 1,600.00 | F49: 53.03.01 | V49: ET
A50: 53.03.02 | B50: Pasajes al exterior | D50: =SUMIF(admgen,F50,admgen1) -> 1,000.00 | F50: 53.03.02 | V50: ET
A51: 53.03.03 | B51: Viáticos y Subsistencias en el Interior | D51: =SUMIF(admgen,F51,admgen1) -> 2,240.00 | F51: 53.03.03 | V51: ET
A52: 53.03.04 | B52: Viáticos y Subsistencias en el Exterior | D52: =SUMIF(admgen,F52,admgen1) -> 1,760.00 | F52: 53.03.04 | V52: ET
A53: 53.04 | B53: INSTALACIÓN. MANTENIMIENTO Y REPARACIÓN | D53: =SUM(D54:D58) -> 650.00 | F53: 53.04 | V53: ET
A54: 53.04.02 | B54: Edificios. locales y residencias | D54: =SUMIF(admgen,F54,admgen1) -> 300.00 | F54: 53.04.02 | V54: ET
A55: 53.04.03 | B55: Mobiliarios | D55: =SUMIF(admgen,F55,admgen1) -> 250.00 | F55: 53.04.03 | V55: ET
A56: 53.04.04 | B56: Maquinarias y Equipos | D56: =SUMIF(admgen,F56,admgen1) -> 100.00 | F56: 53.04.04 | V56: ET
A57: 53.04.05 | B57: Vehículos | D57: =SUMIF(admgen,F57,admgen1) -> 0.00 | F57: 53.04.05 | V57: CERO
A58: 53.04.99 | B58: Otras instalaciones. mantenimiento y reparaciones. | D58: =SUMIF(admgen,F58,admgen1) -> 0.00 | F58: 53.04.99 | V58: CERO
A59: 53.06 | B59: CONTRATACIÓN DE ESTUDIOS E INVESTÍ | D59: =SUM(D60:D61) -> 18,700.00 | F59: 53.06 | V59: ET
A60: 53.06.01 | B60: Consultoría. Ascesoria e Investigación especializada | D60: =SUMIF(admgen,F60,admgen1) -> 15,000.00 | F60: 53.06.01 | V60: ET
A61: 53.06.03 | B61: Servicios de Capacitación | D61: =SUMIF(admgen,F61,admgen1) -> 3,700.00 | F61: 53.06.03 | V61: ET
A62: 53.07 | B62: GASTOS EN INFORMÁTICA | D62: =SUM(D63:D65) -> 5,000.00 | F62: 53.07 | V62: ET
A63: 53.07.01 | B63: Desarrollo Equipos. sistemas y paquetes informáticos | D63: =SUMIF(admgen,F63,admgen1) -> 0.00 | F63: 53.07.01 | V63: CERO
A64: 53.07.02 | B64: Arrendamiento y Licencias de Uso de Paquetes Informáticos | D64: =SUMIF(admgen,F64,admgen1) -> 2,650.00 | F64: 53.07.02 | V64: ET
A65: 53.07.04 | B65: Mantenimiento y reparación de equipos y sistemas informáticos | D65: =SUMIF(admgen,F65,admgen1) -> 2,350.00 | F65: 53.07.04 | V65: ET
A66: 53.08 | B66: BIENES DE USO Y CONSUMO CORRIENTE | D66: =SUM(D67:D76) -> 17,730.00 | F66: 53.08 | V66: ET
A67: 53.08.01 | B67: Alimentos y Bebidas | F67: 53.08.01 | V67: CERO
A68: 53.08.02 | B68: Vestuario. Lencería y Prendas de Protección | D68: =SUMIF(admgen,F68,admgen1) -> 7,380.00 | F68: 53.08.02 | V68: ET
A69: 53.08.03 | B69: Combustibles y Lubricantes | F69: 53.08.03 | V69: CERO
A70: 53.08.04 | B70: Materiales de Oficina | D70: 6,800.00 | F70: 53.08.04 | V70: ET
A71: 53.08.05 | B71: Materiales de Aseo | D71: 1,050.00 | F71: 53.08.05 | V71: ET
A72: 53.08.06 | B72: Herramientas | F72: 53.08.06 | V72: CERO
A73: 53.08.07 | B73: Materiales de Impresión. Fotografía. Reproduc.y Publi. | D73: 1,000.00 | F73: 53.08.07 | V73: ET
A74: 53.08.11 | B74: Mat.const. Eléctrica. Plomería y carpintería | F74: 53.08.11 | V74: CERO
A75: 53.08.13 | B75: Repuestos y accesorios | D75: 1,500.00 | F75: 53.08.13 | V75: ET
A76: 53.08.99 | B76: Otros de uso y consumo. | D76: 0.00 | F76: 53.08.99 | V76: CERO
A77: 53.10 | B77: PERTRECHOS PARA LA DEFENSA Y SEGURIDAD PUBLICA | D77: =+D78 -> 0.00 | F77: 53.10 | V77: =IF(D77>0,"ET","CERO") -> CERO
A78: 53.10.02 | B78: Suministros para la defensa y seguridad publica | D78: =SUMIF(admgen,F78,admgen1) -> 0.00 | F78: 53.10.02 | V78: CERO
A79: 53.99 | B79: ASIGNACIONES A DISTRIBUIR | D79: =D80 -> 0.00 | F79: 53.99 | V79: CERO
A80: 53.99.01 | B80: Asignaciones a distribuir en Bienes y servicios | D80: =SUMIF(admgen,F80,admgen1) -> 0.00 | F80: 53.99.01 | V80: CERO
A81: 56 | B81: GASTOS FINANCIEROS | D81: =+D82 -> 0.00 | F81: 56 | V81: CERO
A82: 56.01 | B82: TÍTULOS Y VALORES EN CIRCULACIÓN | D82: =+D83 -> 0.00 | F82: 56.01 | V82: CERO
A83: 56.01.06 | B83: Descuentos. Comisiones y otros cargos en Títulos y valores | D83: =SUMIF(admgen,F83,admgen1) -> 0.00 | F83: 56.01.06 | V83: CERO
A84: 57 | B84: OTROS GASTOS CORRIENTES | D84: =SUM(D85) -> 5,000.00 | F84: 57 | V84: ET
A85: 57.02 | B85: SEGUROS. COSTOS FINANCIEROS Y OTROS GASTOS | D85: =SUM(D86:D90) -> 5,000.00 | F85: 57.02 | V85: ET
A86: 57.02.01 | B86: Seguros, pago de pólicas de vehículos, de vida, fidelidad, matrículas | D86: =SUMIF(admgen,F86,admgen1) -> 0.00 | F86: 57.02.01 | V86: CERO
A87: 57.02.03 | B87: Comisiones bancarias | D87: =SUMIF(admgen,F87,admgen1) -> 0.00 | F87: 57.02.03 | V87: CERO
A88: 57.02.06 | B88: Costos Judiciales | D88: =SUMIF(admgen,F88,admgen1) -> 5,000.00 | F88: 57.02.06 | V88: ET
A89: 57.02.13 | B89: Devolución de garantías | D89: =SUMIF(admgen,F89,admgen1) -> 0.00 | F89: 57.02.13 | V89: CERO
A90: 57.02.99 | B90: Otros Gastos Financieros | D90: =SUMIF(admgen,F90,admgen1) -> 0.00 | F90: 57.02.99 | V90: CERO
A91: 8. | B91: GASTOS DE CAPITAL | D91: =SUM(D92) -> 1,600.00 | F91: 8. | V91: ET
A92: 84. | B92: ACTIVOS DE LARGA DURACIÓN | D92: =SUM(D93+D100) -> 1,600.00 | F92: 84. | V92: ET
A93: 84.01 | B93: BIENES MUEBLES | D93: =SUM(D94:D99) -> 1,600.00 | F93: 84.01 | V93: ET
A94: 84.01.03 | B94: Mobiliarios | D94: =SUMIF(admgen,F94,admgen1) -> 5,400.00 | F94: 84.01.03 | V94: ET
A95: 84.01.04 | B95: Maquinarias y Equipos | D95: =SUMIF(admgen,F95,admgen1)-25000 -> -17,300.00 | F95: 84.01.04 | V95: CERO
A96: 84.01.06 | B96: Herramientas | F96: 84.01.06 | V96: CERO
A97: 84.01.07 | B97: Equipos. sistemas y Paquetes informáticos | D97: 8,500.00 | F97: 84.01.07 | V97: ET
A98: 84.01.09 | B98: Libros y Colecciones | D98: 5,000.00 | F98: 84.01.09 | V98: ET
A99: 84.01.11 | B99: Partes y Repuestos | D99: 0.00 | F99: 84.01.11 | V99: CERO
A100: 84.03 | B100: EXPROPIACIÓN DE BIENES | D100: =SUM(D101:D102) -> 0.00 | F100: 84.03 | V100: CERO
A101: 84.03.01 | B101: Terrenos | D101: =SUMIF(admgen,F101,admgen1) -> 0.00 | F101: 84.03.01 | V101: CERO
A102: 84.03.02 | B102: Edificios. locales y residencias | D102: =SUMIF(admgen,F102,admgen1) -> 0.00 | F102: 84.03.02 | V102: CERO
A103: 97 | B103: PASIVO CIRCULANTE | D103: =SUM(D104) -> 0.00 | F103: 97 | V103: CERO
A104: 97.01 | B104: Deuda Flotante | D104: =D105 -> 0.00 | F104: 97.01 | V104: CERO
A105: 97.01.01 | B105: De cuentas por pagar | D105: =SUMIF(admgen,F105,admgen1) -> 0.00 | F105: 97.01.01 | V105: CERO
B106: TOTAL PROGRAMA | D106: =+C1372 -> 1,312,393.95 | V106: ET
V107: ET
B108: DETALLE | V108: ET
B109: CORRIENTES | D109: =+D12 -> 1,120,205.95 | E109: =+E12 -> 0 | V109: ET
B110: INVERSIÓN | D110: 0 | E110: 0 | V110: ET
B111: CAPITAL | D111: =+D91+255872.36 -> 257,472.36 | E111: =+E91 -> 0 | V111: ET
B112: PASIVO CIRCULANTE | D112: =+D103 -> 0 | V112: ET
B113: SUBTOTAL | D113: =+D106 -> 1,312,393.95 | E113: =SUM(E108:E111) -> 0 | F113: =+D113-GASTO!P7-GASTO!P19 -> -1,176,868.33 | V113: ET
V114: ET
V115: ET
A116: =+'100'!$B$4 -> FUNCION I: SERVICIOS GENERALES | V116: ET
A117: =CONCATENATE("CÓDIGO DE FUNCIÓN:"," ",GASTO!$A$6) -> CÓDIGO DE FUNCIÓN: 100 | V117: ET
A118: =CONCATENATE("PROGRAMA 1ro:",GASTO!$B$7) -> PROGRAMA 1ro:ADMINISTRACION GENERAL | V118: ET
A119: =CONCATENATE("CÓDIGO DE PROGRAMA:"," ",GASTO!$A$7) -> CÓDIGO DE PROGRAMA: 110 | V119: ET
A120: =CONCATENATE("SUBPROGRAMA 1ro",":"," ",GASTO!$B$8) -> SUBPROGRAMA 1ro: ALCALDIA | V120: ET
A121: =CONCATENATE("CÓDIGO SUBPROGRAMA:"," ",GASTO!$A$8) -> CÓDIGO SUBPROGRAMA: 111 | V121: ET
A122: 3RA. ASIGNACIÓN SEGÚN EL OBJETO DEL GASTO | V122: ET
V123: CERO
V124: CERO
A125: PARTIDA | B125: DETALLE | C125: ASIGNACIÓN | G125: PARTIDA | H125: DETALLE | V125: ET
C126: =+D11 -> 2020 | V126: ET
A127: 5 | B127: GASTOS CORRIENTES | C127: =SUM(C128+C150+C194) -> 111,093.21 | G127: 5 | H127: GASTOS CORRIENTES | V127: =IF(C127>0,"ET","CERO") -> ET
A128: 51 | B128: GASTOS EN PERSONAL | C128: =SUM(C129+C132+C135+C142+C145+C148) -> 104,193.21 | G128: 51 | H128: GASTOS EN PERSONAL | Q128: 6000 | R128: 12 | S128: =+Q128*R128 -> 72,000.00 | V128: =IF(C128>0,"ET","CERO") -> ET
A129: 51.01 | B129: REMUNERACIONES BÁSICAS | C129: =SUM(C130:C131) -> 76,740.00 | G129: 51.01 | H129: REMUNERACIONES BÁSICAS | Q129: 80% | V129: ET
A130: 51.01.05 | B130: Remuneraciones Unificadas | C130: =+'CDR PERS'!$F$5 -> 76,740.00 | G130: 51.01.05 | H130: Remuneraciones Unificadas | P130: 117,720.00 | Q130: =++Q128*Q129 -> 4800 | R130: 12 | S130: =+Q130*R130 -> 57,600.00 | V130: ET
A131: 51.01.06 | B131: Salarios Unificados | C131: =SUMIFS(REMUN,ORG,GASTO!$B$8,CLASIF,B131) -> 0.00 | G131: 51.01.06 | H131: Salarios Unificados | V131: CERO
A132: 51.02 | B132: REMUNERACIONES COMPLEMENTARIAS | C132: =SUM(C133:C134) -> 7,610.00 | G132: 51.02 | H132: REMUNERACIONES COMPLEMENTARIAS | S132: =+S130+S128 -> 129,600.00 | V132: ET
A133: 51.02.03 | B133: Décimo Tercer Sueldo | C133: =+'CDR PERS'!G5 -> 6,395.00 | G133: 51.02.03 | H133: Décimo Tercer Sueldo | V133: ET
A134: 51.02.04 | B134: Décimo Cuarto Sueldo | C134: =+'CDR PERS'!H5 -> 1,215.00 | G134: 51.02.04 | H134: Décimo Cuarto Sueldo | V134: ET
A135: 51.05 | B135: REMUNERACIONES TEMPORALES | C135: =+C136+C137+C138+C139+C140+C141 -> 4,508.00 | G135: 51.05 | H135: REMUNERACIONES TEMPORALES | Q135: 10% | V135: ET
A136: 51.05.09 | B136: Horas Extraordinarias y Suplementarias | C136: 0.00
A137: 51.05.12 | B137: Subrogación | C137: 4,508.00 | G137: 51.05.04 | H137: Encargo y subrogaciones | Q137: =+Q128*Q135 -> 600 | V137: ET
A138: 51.05.13 | B138: Encargos | C138: 0.00 | G138: 51.05.06 | H138: Licencia Remunerada | V138: CERO
A139: 51.05.08 | B139: Dietas | G139: 51.05.08 | H139: Dietas | Q139: 12 | V139: CERO
A140: 51.05.09 | B140: Horas Extraordinarias y Suplementarias | C140: =SUMIFS(extras,ORG,GASTO!$B$8,CLASIF,B130)+SUMIFS(extras,ORG,GASTO!$B$8,CLASIF,B131) -> 0.00 | G140: 51.05.09 | H140: Horas Extraordinarias y Suplementarias | Q140: =+Q137*Q139 -> 7200 | R140: 5 | S140: =+Q140*R140 -> 36,000.00 | V140: CERO
A141: 51.05.10 | B141: Servicios Personales por contrato | C141: 0.00 | G141: 51.05.10 | H141: Servicios Personales de contratos | S141: 145200 | V141: CERO
A142: 51.06 | B142: APORTES PATRONALES A LA SEGURIDAD SOCIAL | C142: =SUM(C143:C144) -> 15,335.21 | G142: 51.06 | H142: APORTES PATRONALES A LA SEGURIDAD SOCIAL | S142: =+S141-S140 -> 109,200.00 | V142: ET
A143: 51.06.01 | B143: Aporte Patronal | C143: =+'CDR PERS'!J5 -> 8,940.21 | G143: 51.06.01 | H143: Aporte Patronal | V143: ET
A144: 51.06.02 | B144: Fondos de Reserva | C144: =+C130/12 -> 6,395.00 | G144: 51.06.02 | H144: Fondos de Reserva | V144: ET
A145: 51.07 | B145: INDEMNIZACIONES | C145: =SUM(C146:C147) -> 0.00 | G145: 51.07 | H145: INDEMNIZACIONES | V145: CERO
A146: 51.07.01 | B146: Compensación por renuncia Voluntaria | C146: 0.00 | G146: 51.07.01 | H146: Compensación por Renuncia Voluntaria | V146: CERO
A147: 51.07.99 | B147: Otras Indem/por renuncia voluntaria | C147: 0.00 | G147: 51.07.99 | H147: Otras Indemnizaciones laborales | V147: CERO
A148: 51.99 | B148: ASIGNACIONES A DISTRIBUIR | C148: =C149 -> 0.00 | G148: 51.99 | H148: ASIGNACIONES A DISTRIBUIR | V148: CERO
A149: 51.99.01 | B149: Asignaciones a distribuir en Gastos en Personal | C149: 0.00 | G149: 51.99.01 | H149: Asignaciones a distribuir en Gastos en el Personal | V149: CERO
A150: 53 | B150: BIENES Y SERVICIOS DE CONSUMO | C150: =+C159+C167+C172+C180+C178+C187 -> 6,900.00 | G150: 53 | H150: BIENES Y SERVICIOS DE CONSUMO | V150: ET
A151: 53.01 | B151: SERVICIOS BÁSICOS | C151: =SUM(C152:C156) -> 0.00 | G151: 53.01 | H151: SERVICIOS BÁSICOS | V151: CERO
A152: 53.01.01 | B152: Agua Potable | C152: 0.00 | G152: 53.01.01 | H152: Agua Potable | V152: CERO
A153: 53.01 | B153: SERVICIOS BASICOS
A154: 53.01.04 | B154: Energía eléctrica | C154: 0.00 | G154: 53.01.04 | H154: Energía eléctrica | V154: CERO
A155: 53.01.05 | B155: Telecomunicaciones | C155: 0.00 | G155: 53.01.05 | H155: Telecomunicaciones | V155: CERO
A156: 53.01.06 | B156: Servicio de Correo | C156: 0.00 | G156: 53.01.06 | H156: Servicio de Correo | V156: CERO
A157: 53.02 | B157: SERVICIOS GENERALES | C157: =SUM(C162:C166) -> 0.00 | G157: 53.02 | H157: SERVICIOS GENERALES | V157: CERO
A158: 53.02.01 | B158: Transporte de personal | C158: 0.00 | G158: 53.02.01 | H158: Transporte de personal | V158: CERO
A159: 53.02 | B159: SERVICIOS GENERALES | C159: =+C161 -> 300.00
A161: 53.02.04 | B161: Edición, Impresión. reproducción y publicaciones | C161: 300.00 | G161: 53.02.04 | H161: Impresión. reproducción y publicaciones | V161: ET
A162: 53.02.05 | B162: Espectáculos Culturales y Sociales | C162: 0.00 | G162: 53.02.05 | H162: Espectáculos Culturales y Sociales | V162: CERO
A163: 53.02.06 | B163: Eventos Públicos y Oficiales | C163: 0.00 | G163: 53.02.06 | H163: Eventos Públicos y Oficiales | V163: CERO
A164: 53.02.07 | B164: Difusión. Información y Publicidad | C164: 0.00 | G164: 53.02.07 | H164: Difusión. Información y Publicidad | V164: CERO
A165: 53.02.08 | B165: Servicios de Vigilancia | C165: 0.00 | V165: CERO
A166: 53.02.99 | B166: Otros servicios generales | C166: 0.00 | G166: 53.02.99 | H166: Otros Servicios Generales | V166: CERO
A167: 53.03 | B167: TRASLADOS. INSTALACIONES. VIÁTICOS Y SUBSISTENCIAS | C167: =+SUM(C168:C171) -> 5,000.00 | G167: 53.03 | H167: TRASLADOS. INSTALACIONES. VIÁTICOS Y SUBSISTENCIAS | V167: ET
A168: 53.03.01 | B168: Pasajes al Interior | C168: 1,000.00 | G168: 53.03.01 | H168: Pasajes al Interior | V168: ET
A169: 53.03.02 | B169: Pasajes al exterior | C169: 1,000.00 | G169: 53.03.02 | H169: Pasajes al exterior | V169: ET
A170: 53.03.03 | B170: Viáticos y Subsistencias en el Interior | C170: 1,240.00 | G170: 53.03.03 | H170: Viáticos y Subsistencias en el Interior | V170: ET
A171: 53.03.04 | B171: Viáticos y Subsistencias en el Exterior | C171: 1,760.00 | G171: 53.03.04 | H171: Viáticos y Subsistencias en el Exterior | S171: 25 | V171: ET
A172: 53.04 | B172: INSTALACIÓN. MANTENIMIENTO Y REPARACIÓN | C172: =SUM(C173:C177) -> 0.00 | G172: 53.04 | H172: INSTALACIÓN. MANTENIMIENTO Y REPARACIÓN | V172: CERO
A173: 53.04.02 | B173: Edificios. locales y residencias | G173: 53.04.02 | H173: Edificios. locales y residencias | V173: CERO
A174: 53.04.03 | B174: Mobiliarios | C174: 0.00 | G174: 53.04.03 | H174: Mobiliarios | V174: CERO
A175: 53.04.04 | B175: Maquinarias y Equipos | C175: 0.00 | G175: 53.04.04 | H175: Maquinarias y Equipos | V175: CERO
A176: 53.04.05 | B176: Vehículos | C176: 0.00 | G176: 53.04.05 | H176: Vehículos | V176: CERO
A177: 53.04.99 | B177: Otras instalaciones. mantenimiento y reparaciones. | C177: 0.00 | G177: 53.04.99 | H177: Otras instalaciones. mantenimiento y reparaciones. | V177: CERO
A178: 53.05 | B178: ARRENDAMIENTO DE BIENES | C178: =+C179 -> 0.00 | G178: 53.06 | H178: CONTRATACIÓN DE ESTUDIOS E INVESTÍ | V178: =IF(C180>0,"ET","CERO") -> ET
A179: 53,05.05 | B179: Vehiculos | G179: 53.06.01 | H179: Consultoría. Ascesoria e Investigación especializada | V179: CERO
A180: 53.06 | B180: CONTRATACIÓN DE ESTUDIOS E INVESTÍ | C180: =SUM(C181:C182) -> 300.00 | G180: 53.06.03 | H180: Servicios de Capacitación | V180: ET
A181: 53.06.01 | B181: Consultoría. Asesoria e Investigación especializada | C181: 0.00 | G181: 53.07 | H181: GASTOS EN INFORMÁTICA | S181: 240 | V181: ET
A182: 53.06.03 | B182: Servicios de Capacitación | C182: =SUMIFS(capac,ORG,GASTO!$B$8,CLASIF,B130)+SUMIFS(capac,ORG,GASTO!$B$8,CLASIF,B131)+SUMIFS(capac,ORG,GASTO!$B$8,CLASIF,B141) -> 300.00 | G182: 53.07.01 | H182: Desarrollo Equipos. sistemas y paquetes informáticos | V182: CERO
A183: 53.07 | B183: GASTOS EN INFORMÁTICA | C183: =SUM(C185:C186) -> 200.00 | G183: 53.07.02 | H183: Arrendamiento y Licencias de Uso de Paquetes Informáticos | V183: CERO
A184: 53.07.01 | B184: Desarrollo Equipos. sistemas y paquetes informáticos | C184: 0.00 | G184: 53.07.04 | H184: Mantenimiento y reparación de sistemas informáticos | S184: =+S171*S181 -> 6000 | V184: =IF(C186>0,"ET","CERO") -> ET
A185: 53.07.02 | B185: Arrendamiento y Licencias de Uso de Paquetes Informáticos | C185: 0.00 | G185: 53.08 | H185: BIENES DE USO Y CONSUMO CORRIENTE | V185: =IF(C194>0,"ET","CERO") -> CERO
A186: 53.07.04 | B186: Mantenimiento y reparación de sistemas informáticos | C186: 200.00 | G186: 53.08.01 | H186: Alimentos y Bebidas | V186: =IF(C195>0,"ET","CERO") -> CERO
A187: 53.08 | B187: BIENES DE USO Y CONSUMO CORRIENTE | C187: =SUM(C188:C192) -> 1,300.00
A188: 53.08.01 | B188: Alimentos y Bebidas
A189: 53.08.02 | B189: Vestuario. Lencería y Prendas de Protección | C189: =+'CDR PERS'!N5 -> 300.00
A190: 53.08.03 | B190: Combustibles y Lubricantes | C190: 0.00
A191: 53.08.04 | B191: Materiales de Oficina | C191: 900.00
A192: 53.08.05 | B192: Materiales de Aseo | C192: 100.00
A194: 57 | B194: OTROS GASTOS CORRIENTES | C194: =+C195 -> 0.00 | G194: 53.08.02 | H194: Vestuario. Lencería y Prendas de Protección | P194: 900.00 | V194: CERO
A195: 57.03 | B195: DIETAS | C195: =+C196 -> 0.00 | G195: 53.08.03 | H195: Combustible y Lubricantes | V195: =IF(#REF!>0,"ET","CERO") -> 
A196: 57.03.01 | B196: Dietas | C196: 0.00 | G196: 53.08.04 | H196: Materiales de Oficina | V196: =IF(#REF!>0,"ET","CERO") -> 
A197: 8. | B197: GASTOS DE CAPITAL | C197: =SUM(C198) -> 61,000.00 | G197: 57.02.03 | H197: Comisiones bancarias | V197: =IF(C199>0,"ET","CERO") -> ET
A198: 84. | B198: ACTIVOS DE LARGA DURACIÓN | C198: =SUM(C199+C206) -> 61,000.00 | G198: 57.02.06 | H198: Costos Judiciales | V198: =IF(C200>0,"ET","CERO") -> ET
A199: 84.01 | B199: BIENES MUEBLES | C199: =SUM(C200:C205) -> 61,000.00 | G199: 57.02.13 | H199: Devolución de garantías | V199: =IF(C201>0,"ET","CERO") -> CERO
A200: 84.01.03 | B200: Mobiliarios | C200: 2,000.00
A201: 84.01.04 | B201: Maquinarias y Equipos | C201: 0.00 | G201: 57.02.99 | H201: Otros Gastos Financieros | V201: ET
A202: 84.01.05 | B202: Vehículos | C202: 56,000.00 | G202: 8. | H202: GASTOS DE CAPITAL | V202: CERO
A203: 84.01.07 | B203: Equipos. sistemas y Paquetes informáticos | C203: 3,000.00 | G203: 84. | H203: ACTIVOS DE LARGA DURACIÓN | V203: CERO
A204: 84.01.09 | B204: Libros y Colecciones | C204: 0.00 | G204: 84.01 | H204: BIENES MUEBLES | V204: CERO | W204: =+C199+C194+C180+C172+C159+C142+C132+C129 -> 161,285.21
... 1064 more rows

Sheet 130
A1: =+'100'!B1 -> GOBIERNO AUTONOMO DESCENTRALIZADO MUNICIPAL DEL CANTON PEDRO MONCAYO
A2: =+'100'!B2 -> PROFORMA PRESUPUESTARIA AÑO 2020
A4: FUNCIÓN I: SERVICIOS GENERALES
A5: CÓDIGO DE FUNCIÓN: 100
A6: =CONCATENATE("PROGRAMA 2do:"," ",GASTO!$B$27) -> PROGRAMA 2do: DIRECCION FINANCIERA
A7: =CONCATENATE("CÓDIGO DE PROGRAMA:",+GASTO!A27) -> CÓDIGO DE PROGRAMA:130
A8: 3DA. ASIGNACIÓN SEGÚN EL OBJETO DEL GASTO
A10: PARTIDA | B10: DETALLE | D10: ASIGNACIÓN
D11: =+DAT_INI!B3 -> 2020 | S11: SELECC
A12: 5 | B12: GASTOS CORRIENTES | D12: =SUM(D13+D36+D86+D83) -> 491,572.18 | S12: =IF(D12>0,"ET","CERO") -> ET
A13: 51 | B13: GASTOS EN PERSONAL | D13: =+D14+D17+D20+D28+37038.21 -> 345,124.18 | S13: =IF(D13>0,"ET","CERO") -> ET
A14: 51.01 | B14: REMUNERACIONES BÁSICAS | D14: =SUM(D15:D16) -> 212,388.00 | S14: ET
A15: 51.01.05 | B15: Remuneraciones Unificadas | D15: =+SUMIF(_cod1,A15,valor1) -> 212,388.00 | S15: ET
A16: 51.01.06 | B16: Salarios unificados | D16: =+SUMIF(_cod1,A16,valor1) -> 0.00 | S16: CERO
A17: 51.02 | B17: REMUNERACIONES COMPLEMENTARIAS | D17: =SUM(D18:D19) -> 24,584.00 | S17: ET
A18: 51.02.03 | B18: Décimo Tercer Sueldo | D18: =+SUMIF(_cod1,A18,valor1) -> 17,699.00 | S18: ET
A19: 51.02.04 | B19: Décimo Cuarto Sueldo | D19: =+SUMIF(_cod1,A19,valor1) -> 6,885.00 | S19: ET
A20: 51.05 | B20: REMUNERACIONES TEMPORALES | D20: =SUM(D21:D25)+D26+D27 -> 28,671.77 | S20: ET
A21: 51.05.12 | B21: Subrogación | S21: CERO
A22: 51.05.06 | B22: Licencia Remunerada | D22: =+SUMIF(_cod1,A22,valor1) -> 0.00 | S22: CERO
A23: 51.05.13 | B23: Encargos | S23: CERO
A24: 51.05.09 | B24: Horas Extraordinarias y Suplementarias | D24: =+SUMIF(_cod1,A24,valor1) -> 0.00 | S24: CERO
A25: 51.05.10 | B25: Servicios Personales por contrato | D25: =+SUMIF(_cod1,A25,valor1)-26590.21 -> 28,671.77 | S25: ET
A26: 51.05.12 | B26: Subrogación
A27: 51.05.13 | B27: Encargos
A28: 51.06 | B28: APORTES PATRONALES A LA SEGURIDAD SOCIAL | D28: =SUM(D29:D30) -> 42,442.20 | S28: ET
A29: 51.06.01 | B29: Aporte Patronal | D29: =+SUMIF(_cod1,A29,valor1) -> 24,743.20 | S29: ET
A30: 51.06.02 | B30: Fondos de Reserva | D30: =+SUMIF(_cod1,A30,valor1) -> 17,699.00 | S30: ET
A31: 51.07 | B31: INDEMNIZACIONES | D31: =SUM(D32+D33) -> 0.00 | S31: CERO
A32: 51.07.01 | B32: Compensación por Renuncia Voluntaria | D32: =+SUMIF(_cod1,A32,valor1) -> 0.00 | S32: CERO
A33: 51.07.99 | B33: Otras Indemnizaciones laborales | D33: =+SUMIF(_cod1,A33,valor1) -> 0.00 | S33: CERO
A34: 51.99 | B34: ASIGNACIÓN A DISTRIBUIR | D34: =D35 -> 0.00 | S34: CERO
A35: 51.99.01 | B35: Asignaciones a distribuir Gastos en el Personal | D35: =+SUMIF(_cod1,A35,valor1) -> 0.00 | S35: CERO
A36: 53 | B36: BIENES Y SERVICIOS DE CONSUMO | D36: =+D42+D50+D55+D61+D64+D68 -> 112,848.00 | S36: ET
A37: 53.01 | B37: SERVICIOS BÁSICOS | S37: CERO
A38: 53.01.01 | B38: Agua Potable | D38: 0.00 | S38: CERO
A39: 53.01.04 | B39: Energía eléctrica | D39: 0.00 | S39: CERO
A40: 53.01.05 | B40: Telecomunicaciones | D40: 0.00 | S40: CERO
A41: 53.01.06 | B41: Servicio de Correo | S41: CERO
A42: 53.02 | B42: SERVICIOS GENERALES | D42: =SUM(D43:D49) -> 2,900.00 | S42: ET
A43: 53.02.01 | B43: Transporte de personal | D43: =+SUMIF(_cod1,A43,valor1) -> 0.00 | S43: CERO
A44: 53.02.04 | B44: Edición, impresión, reproducción y publicaciones | D44: 2,900.00 | S44: ET
A45: 53.02.05 | B45: Espectáculos Culturales y Sociales | D45: 0.00 | S45: CERO
A46: 53.02.06 | B46: Eventos Públicos y Oficiales | D46: 0.00 | S46: CERO
A47: 53.02.07 | B47: Difusión, Información y Publicidad | D47: 0.00 | S47: CERO
A48: 53.02.08 | B48: Servicios de Vigilancia | D48: 0.00 | S48: CERO
A49: 53.02.99 | B49: Otros Servicios Generales | D49: 0.00 | S49: CERO
A50: 53.03 | B50: TRASLADOS, INSTALACIONES, VIÁTICOS Y SUBSISTENCIAS | D50: =SUM(D51:D54) -> 0.00 | S50: CERO
A51: 53.03.01 | B51: Pasajes al Interior | D51: =+SUMIF(_cod1,A51,valor1) -> 0.00 | S51: CERO
A52: 53.03.02 | B52: Pasajes al exterior | D52: =+SUMIF(_cod1,A52,valor1) -> 0.00 | S52: CERO
A53: 53.03.03 | B53: Viáticos y Subsistencias en el Interior | D53: =+SUMIF(_cod1,A53,valor1) -> 0.00 | S53: CERO
A54: 53.03.04 | B54: Viáticos y Subsistencias en el Exterior | D54: =+SUMIF(_cod1,A54,valor1) -> 0.00 | S54: CERO
A55: 53.04 | B55: INSTALACIÓN, MANTENIMIENTO Y REPARACIÓN | D55: =SUM(D56:D60) -> 0.00 | S55: CERO
A56: 53.04.02 | B56: Edificios, locales y residencias | D56: 0.00 | S56: CERO
A57: 53.04.03 | B57: Mobiliarios | D57: =+SUMIF(_cod1,A57,valor1) -> 0.00 | S57: CERO
A58: 53.04.04 | B58: Maquinarias y Equipos | S58: CERO
A59: 53.04.05 | B59: Vehículos | S59: CERO
A60: 53.04.99 | B60: Otras instalaciones, mantenimiento y reparaciones. | D60: =+SUMIF(_cod1,A60,valor1) -> 0.00 | S60: CERO
A61: 53.06 | B61: CONTRATACIÓN DE ESTUDIOS E INVESTÍ | D61: =SUM(D63:D63) -> 2,000.00 | S61: ET
A62: 53.06.01 | B62: Consultoría, Ascesoria e Investigación especializada | D62: 0.00 | S62: CERO
A63: 53.06.03 | B63: Servicios de Capacitación | D63: =+SUMIF(_cod1,A63,valor1) -> 2,000.00 | S63: ET
A64: 53.07 | B64: GASTOS EN INFORMÁTICA | D64: =SUM(D65:D67) -> 100,600.00 | S64: ET
A65: 53.07.01 | B65: Desarrollo Equipos. sistemas y paquetes informáticos | D65: 0.00 | S65: CERO
A66: 53.07.02 | B66: Arrendamiento y Licencias de Uso de Paquetes Informáticos | D66: =+SUMIF(_cod1,A66,valor1) -> 100,000.00 | S66: ET
A67: 53.07.04 | B67: Mantenimiento y reparación de sistemas informáticos | D67: =+SUMIF(_cod1,A67,valor1) -> 600.00 | S67: ET
A68: 53.08 | B68: BIENES DE USO Y CONSUMO CORRIENTE | D68: =SUM(D69:D78) -> 7,348.00 | S68: ET
A69: 53.08.01 | B69: Alimentos y Bebidas | D69: 0.00 | S69: CERO
A70: 53.08.02 | B70: Vestuario, Lencería y Prendas de Protección | D70: =+SUMIF(_cod1,A70,valor1) -> 3,848.00 | S70: ET
A71: 53.08.03 | B71: Combustibles y Lubricantes | D71: 0.00 | S71: CERO
A72: 53.08.04 | B72: Materiales de Oficina | D72: 2,500.00 | S72: ET
A73: 53.08.05 | B73: Materiales de Aseo | D73: 500.00 | S73: ET
A74: 53.08.06 | B74: Herramientas | D74: 0.00 | S74: CERO
A75: 53.08.07 | B75: Materiales de Impresión, Fotografía, Reproduc.y Publicaciones | D75: 500.00 | S75: ET
A76: 53.08.11 | B76: Insumos, Bienes, Materiales y Suministros para la Construcción, Eléctricos, Plomería, Carpintería, Señalización Vial, Navegación y Contra Incendios | D76: 0.00 | S76: CERO
A77: 53.08.13 | B77: Repuestos y Accesorios | D77: 0.00 | S77: CERO
A78: 53.08.99 | B78: Otros de uso y consumo. | D78: 0.00 | S78: CERO
A79: 53.10 | B79: PERTRECHOS PARA LA DEFENSA Y SEGURIDAD PUBLICA | D79: 0.00 | S79: =IF(D79>0,"ET","CERO") -> CERO
A80: 53.10.02 | B80: Suministros para la defensa y seguridad publica | D80: 0.00 | S80: CERO
A81: 53.99 | B81: ASIGNACIONES A DISTRIBUIR | D81: =D82 -> 0.00 | S81: CERO
A82: 53.99.01 | B82: Asignaciones a distribuir para Bienes y servicios | D82: =+SUMIF(_cod1,A82,valor1) -> 0.00 | S82: CERO
A83: 56 | B83: GASTOS FINANCIEROS | D83: =+D85 -> 25,000.00 | S83: ET
A84: 56.01 | B84: TÍTULOS Y VALORES EN CIRCULACIÓN | D84: =+D85 -> 25,000.00 | S84: ET
A85: 56.01.06 | B85: Descuentos, Comisiones y otros cargos en Títulos y valores | D85: =+SUMIF(_cod1,A85,valor1) -> 25,000.00 | S85: ET
A86: 57 | B86: OTROS GASTOS CORRIENTES | D86: =+D88+D89 -> 8,600.00 | S86: ET
A87: 57.02 | B87: SEGUROS, COSTOS FINANCIEROS Y OTROS GASTOS | D87: =SUM(D88:D92) -> 14,600.00 | S87: ET
A88: 57.02.01 | B88: Seguros (caución funcionarios) | D88: =+SUMIF(_cod1,A88,valor1) -> 3,500.00 | S88: ET
A89: 57.02.03 | B89: Comisiones bancarias | D89: =+SUMIF(_cod1,A89,valor1) -> 5,100.00 | S89: ET
A90: 57.02.06 | B90: Costos Judiciales | S90: CERO
A91: 57.02.13 | B91: Devolución de garantías | D91: =+SUMIF(_cod1,A91,valor1) -> 0.00 | S91: CERO
A92: 57.02.99 | B92: Otros Gastos Financieros | D92: =+SUMIF(_cod1,A92,valor1) -> 6,000.00 | S92: ET
A93: 8. | B93: GASTOS DE CAPITAL | D93: =+D96+D97+D99 -> 4,950.00 | S93: ET
A94: 84. | B94: ACTIVOS DE LARGA DURACIÓN | D94: =SUM(D95) -> 4,950.00 | S94: ET
A95: 84.01 | B95: BIENES MUEBLES | D95: =SUM(D96:D101) -> 4,950.00 | S95: ET
A96: 84.01.03 | B96: Mobiliarios | D96: =+SUMIF(_cod1,A96,valor1) -> 3,100.00 | S96: ET
A97: 84.01.04 | B97: Maquinarias y Equipos | D97: 0.00 | S97: CERO
A98: 84.01.06 | B98: Herramientas | D98: 0.00 | S98: CERO
A99: 84.01.07 | B99: Equipos, sistemas y Paquetes informáticos | D99: 1,850.00 | S99: ET
A100: 84.01.09 | B100: Libros y Colecciones | D100: 0.00 | S100: CERO
A101: 84.01.11 | B101: Partes y Repuestos | D101: 0.00 | S101: CERO
A102: 84.03 | B102: EXPROPIACIÓN DE BIENES | D102: 0.00 | S102: CERO
A103: 84.03.01 | B103: Terrenos | D103: 0.00 | S103: CERO
A104: 84.03.02 | B104: Edificios, locales y residencias | D104: 0.00 | S104: CERO
A105: 97 | B105: PASIVO CIRCULANTE | D105: =SUM(D106) -> 0.00 | S105: CERO
A106: 97.01 | B106: DEUDA FLOTANTE | D106: =D107 -> 0.00 | S106: CERO
A107: 97.01.01 | B107: De cuentas por pagar | D107: =+SUMIF(_cod1,A107,valor1) -> 0.00 | S107: CERO
B108: TOTAL PROGRAMA | D108: =+C665 -> 497,298.18 | S108: ET
S109: ET
B110: DETALLE | C110: =+C111-GASTO!C27 -> 154,072.00 | S110: ET
B111: CORRIENTES | C111: =+D12 -> 491,572.18 | S111: ET
B112: INVERSIÓN | C112: 0 | S112: ET
B113: CAPITAL | C113: =+D93 -> 4,950.00 | S113: ET
B114: PASIVO CIRCULANTE | C114: =+D105 -> 0 | S114: ET
B115: SUBTOTAL | C115: =+D108 -> 497,298.18 | P115: 544,142.22 | S115: ET
P116: 899,944.58 | S116: ET
P117: 340,086.76 | S117: ET
A118: FUNCIÓN I: SERVICIOS GENERALES | P118: =SUM(P115:P117) -> 1,784,173.56 | S118: ET
A119: CÓDIGO DE FUNCIÓN: 100 | O119: 1,770,073.56 | P119: =+P118-O119 -> 14,100.00 | S119: ET
A120: PROGRAMA 3ro: ADMINISTRACIÓN FINANCIERA | S120: ET
A121: =CONCATENATE("CÓDIGO DE PROGRAMA:",+GASTO!A27) -> CÓDIGO DE PROGRAMA:130 | S121: ET
A122: =CONCATENATE("SUBPROGRAMA 1ro",":"," ",GASTO!$B$28) -> SUBPROGRAMA 1ro: DIR. FINANCIERA | S122: ET
A123: =CONCATENATE("CÓDIGO SUBPROGRAMA:"," ",GASTO!$A$28) -> CÓDIGO SUBPROGRAMA: 131 | S123: ET
A124: 3DA. ASIGNACIÓN SEGÚN EL OBJETO DEL GASTO | S124: ET
S125: ET
A126: PARTIDA | B126: DETALLE | C126: ASIGNACIÓN | S126: ET
C127: =+D11 -> 2020 | S127: ET
A128: 5 | B128: GASTOS CORRIENTES | C128: =SUM(C129+C151+C186+C183) -> 106,428.14 | S128: =IF(C128>0,"ET","CERO") -> ET
A129: 51 | B129: GASTOS EN PERSONAL | C129: =SUM(C130+C133+C136+C143+C146+C149) -> 47,080.14 | S129: =IF(C129>0,"ET","CERO") -> ET
A130: 51.01 | B130: REMUNERACIONES BÁSICAS | C130: =SUM(C131:C132) -> 35,160.00 | S130: ET
A131: 51.01.05 | B131: Remuneraciones Unificadas | C131: =SUMIFS(REMUN,ORG,GASTO!$B$28,CLASIF,B131) -> 35,160.00 | O131: 29,520.00 | P131: 2300 | S131: ET
A132: 51.01.06 | B132: Salarios Unificados | C132: =SUMIFS(REMUN,ORG,GASTO!$B$28,CLASIF,B132) -> 0.00 | P132: 12 | S132: CERO
A133: 51.02 | B133: REMUNERACIONES COMPLEMENTARIAS | C133: =SUM(C134:C135) -> 3,740.00 | P133: =+P131*P132 -> 27600 | S133: ET
A134: 51.02.03 | B134: Décimo Tercer Sueldo | C134: =SUMIFS(tercero,CLASIF,B131,ORG,GASTO!$B$28)+SUMIFS(tercero,CLASIF,B132,ORG,GASTO!$B$28) -> 2,930.00 | S134: ET
A135: 51.02.04 | B135: Décimo Cuarto Sueldo | C135: =SUMIFS(cuarto,CLASIF,B131,ORG,GASTO!$B$28)+SUMIFS(cuarto,CLASIF,B132,ORG,GASTO!$B$28) -> 810.00 | S135: ET
A136: 51.05 | B136: REMUNERACIONES TEMPORALES | C136: =SUM(C137:C137:C140)+C141+C142 -> 1,154.00 | S136: ET
A137: 51.05.12 | B137: Subrogación | C137: 1,154.00 | S137: ET
A138: 51.05.13 | B138: Encargos | C138: 0.00 | S138: CERO
A139: 51.05.09 | B139: Horas Extraordinarias y Suplementarias | S139: CERO
A140: 51.05.10 | B140: Servicios Personales por contrato | C140: =SUMIFS(ren_anual,CLASIF,B140,ORG,GASTO!$B$28) -> 0.00 | S140: CERO
A141: 51.05.12 | B141: Subrogación
A142: 51.05.13 | B142: Encargos
A143: 51.06 | B143: APORTES PATRONALES A LA SEGURIDAD SOCIAL | C143: =SUM(C144:C145) -> 7,026.14 | S143: ET
A144: 51.06.01 | B144: Aporte Patronal | C144: =SUMIFS(patronal,ORG,GASTO!$B$28,CLASIF,B131)+SUMIFS(patronal,ORG,GASTO!$B$28,CLASIF,B132) -> 4,096.14 | S144: ET
A145: 51.06.02 | B145: Fondos de Reserva | C145: =SUMIFS(reserva,ORG,GASTO!$B$28,CLASIF,B131)+SUMIFS(reserva,ORG,GASTO!$B$28,CLASIF,B132) -> 2,930.00 | S145: ET
A146: 51.07 | B146: INDEMNIZACIONES | C146: =SUM(C147:C148) -> 0.00 | S146: CERO
A147: 51.07.01 | B147: Compensación por Renuncia Voluntaria | C147: 0.00 | S147: CERO
A148: 51.07.99 | B148: Otras Indemnizaciones laborales | C148: 0.00 | S148: CERO
A149: 51.99 | B149: ASIGNACIÓN A DISTRIBUIR | C149: =C150 -> 0.00 | S149: CERO
A150: 51.99.01 | B150: Asignaciones a distribuir Gastos en el Personal | C150: =C130*0 -> 0.00 | S150: CERO
A151: 53 | B151: BIENES Y SERVICIOS DE CONSUMO | C151: =SUM(C152+C154+C158+C162+C167+C169+C172+C181) -> 21,348.00 | S151: ET
A152: 53.01 | B152: SERVICIOS BASICOS | C152: =+C153 -> 100.00
A153: 53.01.06 | B153: Servicios de Correos | C153: 100.00
A154: 53.02 | B154: SERVICIOS GENERALES | C154: =SUM(C155:C157) -> 0.00 | S154: CERO
A155: 53.02.04 | B155: Edición, impresión, reproducción y publicaciones | C155: 0.00 | S155: CERO
A156: 53.02.07 | B156: Difusión, Información y Publicidad | C156: 0.00 | S156: CERO
A157: 53.02.17 | B157: Difusión e información | C157: 0.00 | S157: CERO
A158: 53.03 | B158: TRASLADOS, INSTALACIONES, VIÁTICOS Y SUBSISTENCIAS | C158: =+C159+C160+C161 -> 0.00 | S158: CERO
A159: 53.03.01 | B159: Pasajes al Interior | C159: 0.00 | S159: CERO
A160: 53.03.03 | B160: Viáticos y Subsistencias en el Interior | C160: 0.00 | S160: CERO
A161: 53.03.06 | B161: Viáticos por Gastos de Residencia | S161: CERO
A162: 53.04 | B162: INSTALACIÓN, MANTENIMIENTO Y REPARACIÓN | C162: =+C163+C165 -> 300.00 | S162: ET
A163: 53.04.02 | B163: Edificios, Locales , Residencias y Cableado Estructural | C163: 300.00 | S163: ET
A164: 53.04.04 | B164: Maquinarias y Equipos | C164: 0.00
A165: 53.04.05 | B165: Vehículos | C165: 0.00
A166: 53.04.99 | B166: Otras instalaciones. mantenimiento y reparaciones. | C166: 0.00 | S166: CERO
A167: 53.06 | B167: CONTRATACIÓN DE ESTUDIOS E INVESTÍ | C167: =+C168 -> 200.00 | S167: ET
A168: 53.06.03 | B168: Servicios de Capacitación | C168: 200.00 | S168: ET
A169: 53.07 | B169: GASTOS EN INFORMÁTICA | C169: =+C170+C171 -> 20,000.00 | S169: ET
A170: 53.07.02 | B170: Arrendamiento y Licencias de Uso de Paquetes Informáticos (sistema Olympo) | C170: 20,000.00 | S170: ET
A171: 53.07.04 | B171: Mantenimiento y reparación de equipos y sistemas informáticos | C171: 0.00 | S171: CERO
A172: 53.08 | B172: BIENES DE USO Y CONSUMO CORRIENTE | C172: =+C173+C174+C175+C176+C178+C187 -> 748.00 | S172: ET
A173: 53.08.02 | B173: Vestuario, Lencería y Prendas de Protección | C173: =224*2 -> 448.00 | S173: ET
A174: 53.08.03 | B174: Combustible y Lubricantes
A175: 53.08.04 | B175: Materiales de Oficina | C175: 200.00 | S175: ET
A176: 53.08.05 | B176: Materiales de Aseo | C176: 100.00 | S176: ET
A177: 53.08.07 | B177: Materiales de Impresión, Fotografía, Reproduc.y Publicaciones | C177: 0.00 | S177: CERO
A178: 53.08.11 | B178: Insumos, Bienes, Materiales y Suministros para la Construcción, Eléctricos, Plomería, Carpintería, Señalización Vial, Navegación y Contra Incendios | C178: 0.00 | S178: CERO
A179: 53.08.13 | B179: Repuestos y Accesorios | C179: 0.00 | S179: CERO
A180: 53.08.99 | B180: Otros de uso y consumo. | C180: 0.00 | S180: CERO
A181: 53.99 | B181: ASIGNACIONES A DISTRIBUIR | C181: =C182 -> 0.00 | S181: CERO
A182: 53.99.01 | B182: Asignaciones a distribuir para Bienes y servicios | C182: 0.00 | S182: CERO
A183: 56 | B183: GASTOS FINANCIEROS | C183: =+C185 -> 25,000.00 | S183: ET
A184: 56.01 | B184: TÍTULOS Y VALORES EN CIRCULACIÓN | C184: =+C185 -> 25,000.00 | S184: ET
A185: 56.01.06 | B185: Descuentos, Comisiones y otros cargos en Títulos y valores | C185: 25,000.00 | S185: ET
A186: 57 | B186: OTROS GASTOS CORRIENTES | C186: =SUM(C188) -> 13,000.00 | S186: ET
A187: 53.08.13 | B187: Repuestos y Accesorios | C187: 0.00
A188: 57.02 | B188: SEGUROS, COSTOS FINANCIEROS Y OTROS GASTOS | C188: =+C189+C190+C192 -> 13,000.00 | S188: ET
A189: 57.02.01 | B189: Seguros (caución funcionarios) | C189: 3,000.00 | S189: ET
A190: 57.02.03 | B190: Comisiones bancarias | C190: 5,000.00 | S190: ET
A191: 57.02.13 | B191: Devolución de garantías | C191: 0.00 | S191: CERO
A192: 57.02.99 | B192: Intereses por mora patronal IESS | C192: 5,000.00 | S192: ET
A193: 8. | B193: GASTOS DE CAPITAL | C193: =+C195 -> 1,000.00 | S193: ET
A194: 84. | B194: ACTIVOS DE LARGA DURACIÓN | C194: =+C195 -> 1,000.00 | S194: ET
A195: 84.01 | B195: BIENES MUEBLES | C195: =+C198+C196 -> 1,000.00 | S195: ET
A196: 84.01.03 | B196: Mobiliarios | C196: 1,000.00 | S196: ET
A197: 84.01.04 | B197: Maquinarias y Equipos | C197: 0.00 | S197: CERO
A198: 84.01.07 | B198: Equipos, sistemas y Paquetes informáticos | C198: 0.00 | S198: CERO
A199: 97 | B199: PASIVO CIRCULANTE | C199: =SUM(C200) -> 0.00 | S199: CERO
A200: 97.01 | B200: DEUDA FLOTANTE | C200: =C201 -> 0.00 | S200: CERO
A201: 97.01.01 | B201: De cuentas por pagar | C201: 0.00 | S201: CERO
B202: TOTAL PROGRAMA | C202: =SUM(C129,C151,C186,C193+C183) -> 107,428.14 | S202: =IF(C202>0,"ET","CERO") -> ET
... 461 more rows

Sheet 120
A1: =+'100'!B1 -> GOBIERNO AUTONOMO DESCENTRALIZADO MUNICIPAL DEL CANTON PEDRO MONCAYO
B2: =+'100'!B2 -> PROFORMA PRESUPUESTARIA AÑO 2020
A3: =+'100'!$B$4 -> FUNCION I: SERVICIOS GENERALES
A4: =CONCATENATE("CÓDIGO DE FUNCIÓN:"," ",GASTO!$A$6) -> CÓDIGO DE FUNCIÓN: 100
A5: =CONCATENATE("PROGRAMA 1ro:",GASTO!$B$7) -> PROGRAMA 1ro:ADMINISTRACION GENERAL
A6: =CONCATENATE("CÓDIGO DE PROGRAMA:"," ",GASTO!$A$7) -> CÓDIGO DE PROGRAMA: 110
A7: =CONCATENATE("PROGRAMA 2do:"," ",GASTO!B19) -> PROGRAMA 2do: DIRECCION ADMINISTRATIVA
A8: =CONCATENATE("CÓDIGO SUBPROGRAMA:"," ",GASTO!$A$19) -> CÓDIGO SUBPROGRAMA: 120
A9: 3RA. ASIGNACIÓN SEGÚN EL OBJETO DEL GASTO
A10: PARTIDA | B10: DETALLE | D10: ASIGNACIÓN | F10: PARTIDA
D11: =+'110'!D11 -> 2020 | U11: SELECC
A12: 5 | B12: GASTOS CORRIENTES | D12: =SUM(D13+D37+D84+D87) -> 440,750.10 | F12: 5 | U12: =IF(D12>0,"ET","CERO") -> ET
A13: 51 | B13: GASTOS EN PERSONAL | D13: =+D14+D17+D24+D29 -> 156,450.10 | F13: 51 | U13: =IF(D13>0,"ET","CERO") -> ET
A14: 51.01 | B14: REMUNERACIONES BÁSICAS | D14: =SUM(D15:M16) -> 77,280.00 | F14: 51.01 | U14: ET
A15: 51.01.05 | B15: Remuneraciones Unificadas | D15: =+SUMIF(adm,F15,_adm1) -> 77,280.00 | F15: 51.01.05
A16: 51.01.06 | B16: Salarios Unificados | D16: =+SUMIF(adm,F16,_adm1) -> 0.00 | F16: 51.01.06 | U16: CERO
A17: 51.02 | B17: REMUNERACIONES COMPLEMENTARIAS | D17: =SUM(D18:D19) -> 8,465.00 | F17: 51.02 | U17: ET
A18: 51.02.03 | B18: Décimo Tercer Sueldo | D18: =+SUMIF(adm,F18,_adm1) -> 6,440.00 | F18: 51.02.03 | U18: ET
A19: 51.02.04 | B19: Décimo Cuarto Sueldo | D19: =+SUMIF(adm,F19,_adm1) -> 2,025.00 | F19: 51.02.04 | U19: ET
A20: 51.05 | B20: REMUNERACIONES TEMPORALES | D20: =+D21+D22+D23 -> 500.00 | F20: 51.05 | U20: ET
A21: 51.05.12 | B21: Subrogación | D21: =+SUMIF(adm,F21,_adm1) -> 500.00 | F21: 51.05.04 | U21: ET
A22: 51.05.06 | B22: Licencia Remunerada | D22: =+SUMIF(adm,F22,_adm1) -> 0.00 | F22: 51.05.06 | U22: CERO
A23: 51.05.13 | B23: Encargos | D23: =+SUMIF(adm,F23,_adm1) -> 0.00 | F23: 51.05.08 | U23: CERO
A24: 51.05 | B24: REMUNERCIONES TEMPORALES | D24: =+D25+D26+D27+D28 -> 55,261.98 | U24: ET
A25: 51.05.09 | B25: Horas Extraordinarias y Suplementarias | D25: =+SUMIF(adm,F25,_adm1) -> 0.00 | F25: 51.05.09 | U25: CERO
A26: 51.05.10 | B26: Servicios Personales por contrato( personal técnico.especil.pract) | D26: =+SUMIF(adm,F26,_adm1) -> 55,261.98 | F26: 51.05.10 | U26: ET
A27: 51.05.12 | B27: Subrogación
A28: 51.05.13 | B28: Encargos
A29: 51.06 | B29: APORTES PATRONALES A LA SEGURIDAD SOCIAL | D29: =SUM(D30:D31) -> 15,443.12 | F29: 51.06 | U29: ET
A30: 51.06.01 | B30: Aporte Patronal | D30: =+SUMIF(adm,F30,_adm1) -> 9,003.12 | F30: 51.06.01 | U30: ET
A31: 51.06.02 | B31: Fondos de Reserva | D31: =+SUMIF(adm,F31,_adm1) -> 6,440.00 | F31: 51.06.02 | U31: ET
A32: 51.07 | B32: INDEMNIZACIONES | D32: =SUM(D33:D34) -> 0.00 | F32: 51.07 | U32: CERO
A33: 51.07.01 | B33: Compensacion por renuncia Voluntaria | D33: =+SUMIF(adm,F33,_adm1) -> 0.00 | F33: 51.07.01 | U33: CERO
A34: 51.07.99 | B34: Otras Indem/por renuncia voluntaria | D34: =+SUMIF(adm,F34,_adm1) -> 0.00 | F34: 51.07.99 | U34: CERO
A35: 51.99 | B35: ASIGNACIONES A DISTRIBUIR | D35: =D36 -> 0.00 | F35: 51.99 | U35: CERO
A36: 51.99.01 | B36: Asignaciones a distribuir en Gastos en Personal | D36: =+SUMIF(adm,F36,_adm1) -> 0.00 | F36: 51.99.01 | U36: CERO
A37: 53 | B37: BIENES Y SERVICIOS DE CONSUMO | D37: =SUM(D38+D43+D51+D56+D62+D65+D69+D82+D80) -> 209,300.00 | F37: 53 | U37: ET
A38: 53.01 | B38: SERVICIOS BÁSICOS | D38: =SUM(D39:D42) -> 51,600.00 | F38: 53.01 | U38: ET
A39: 53.01.01 | B39: Agua Potable | D39: =+C154+C276+C385+C498 -> 11,000.00 | F39: 53.01.01 | U39: ET
A40: 53.01.04 | B40: Energía eléctrica | D40: =+C155+C277+C386+C499 -> 25,000.00 | F40: 53.01.04 | U40: ET
A41: 53.01.05 | B41: Telecomunicaciones | D41: =+C156+C278+C387+C500 -> 15,000.00 | F41: 53.01.05 | U41: ET
A42: 53.01.06 | B42: Servicio de Correo | D42: =+C157+C279+C388+C501 -> 600.00 | F42: 53.01.06 | U42: ET
A43: 53.02 | B43: SERVICIOS GENERALES | D43: =SUM(D44:D50) -> 130,400.00 | F43: 53.02 | U43: ET
A44: 53.02.01 | B44: Transporte de personal | D44: 0.00 | F44: 53.02.01 | U44: CERO
A45: 53.02.04 | B45: Edición, Impresión. reproducción y publicaciones | D45: =+SUMIF(adm,F45,_adm1) -> 400.00 | F45: 53.02.04 | U45: ET
A46: 53.02.05 | B46: Espectáculos Culturales y Sociales | D46: =+SUMIF(adm,F46,_adm1) -> 0.00 | F46: 53.02.05 | U46: CERO
A47: 53.02.06 | B47: Eventos Públicos y Oficiales | D47: =+SUMIF(adm,F47,_adm1) -> 0.00 | F47: 53.02.06 | U47: CERO
A48: 53.02.07 | B48: Difusión. Información y Publicidad | D48: =+SUMIF(adm,F48,_adm1) -> 0.00 | F48: 53.02.07 | U48: CERO
A49: 53.02.08 | B49: Servicio, Seguridad y Vigilancia | D49: =+SUMIF(adm,F49,_adm1) -> 130,000.00 | F49: 53.02.08 | U49: ET
A50: 53.02.99 | B50: Otros servicios generales | F50: 53.02.99 | U50: CERO
A51: 53.03 | B51: TRASLADOS. INSTALACIONES. VIÁTICOS Y SUBSISTENCIAS | D51: =SUM(D52:D55) -> 0.00 | F51: 53.03 | U51: CERO
A52: 53.03.01 | B52: Pasajes al Interior | D52: =+C171+C289+C511 -> 0.00 | F52: 53.03.01 | U52: CERO
A53: 53.03.02 | B53: Pasajes al exterior | D53: =+C172+C290+C400+C512 -> 0.00 | F53: 53.03.02 | U53: CERO
A54: 53.03.03 | B54: Viáticos y Subsistencias en el Interior | D54: =+C173+C291+C401+C513 -> 0.00 | F54: 53.03.03 | U54: CERO
A55: 53.03.04 | B55: Viáticos y Subsistencias en el Exterior | D55: =+C174+C292+C402+C514 -> 0.00 | F55: 53.03.04 | U55: CERO
A56: 53.04 | B56: INSTALACIÓN. MANTENIMIENTO Y REPARACIÓN | D56: =SUM(D57:D61) -> 7,000.00 | F56: 53.04 | U56: ET
A57: 53.04.02 | B57: Edificios. locales y residencias | D57: =+SUMIF(adm,F57,_adm1) -> 5,000.00 | F57: 53.04.02 | U57: ET
A58: 53.04.03 | B58: Mobiliarios | D58: =+SUMIF(adm,F58,_adm1) -> 1,000.00 | F58: 53.04.03 | U58: ET
A59: 53.04.04 | B59: Maquinarias y Equipos | D59: =+C178+C296+C406+C518 -> 0.00 | F59: 53.04.04 | U59: CERO
A60: 53.04.05 | B60: Vehículos | D60: =+C179+C297+C407+C519 -> 1,000.00 | F60: 53.04.05 | U60: ET
A61: 53.04.99 | B61: Otras instalaciones. mantenimiento y reparaciones. | D61: =+C180+C298+C408+C520 -> 0.00 | F61: 53.04.99 | U61: CERO
A62: 53.06 | B62: CONTRATACIÓN DE ESTUDIOS E INVESTÍ | D62: =SUM(D63:D64) -> 1,100.00 | F62: 53.06 | U62: ET
A63: 53.06.01 | B63: Consultoría. Ascesoria e Investigación especializada | D63: =+SUMIF(adm,F63,_adm1) -> 0.00 | F63: 53.06.01 | U63: CERO
A64: 53.06.03 | B64: Servicios de Capacitación | D64: =+C183+C301+C411+C523 -> 1,100.00 | F64: 53.06.03 | U64: ET
A65: 53.07 | B65: GASTOS EN INFORMÁTICA | D65: =SUM(D66:D68) -> 1,500.00 | F65: 53.07 | U65: ET
A66: 53.07.01 | B66: Desarrollo Equipos. sistemas y paquetes informáticos | D66: =+SUMIF(adm,F66,_adm1) -> 0.00 | F66: 53.07.01 | U66: CERO
A67: 53.07.02 | B67: Arrendamiento y Licencias de Uso de Paquetes Informáticos | D67: =+SUMIF(adm,F67,_adm1) -> 1,500.00 | F67: 53.07.02 | U67: ET
A68: 53.07.04 | B68: Mantenimiento y reparación de sistemas informáticos | D68: =+C188+C305+C415+C527 -> 0.00 | F68: 53.07.04 | U68: CERO
A69: 53.08 | B69: BIENES DE USO Y CONSUMO CORRIENTE | D69: =SUM(D70:D79) -> 17,700.00 | F69: 53.08 | U69: ET
A70: 53.08.01 | B70: Alimentos y Bebidas | D70: =+C190+C307+C417+C529 -> 0.00 | F70: 53.08.01 | U70: CERO
A71: 53.08.02 | B71: Vestuario. Lencería y Prendas de Protección | D71: =+SUMIF(adm,F71,_adm1) -> 1,000.00 | F71: 53.08.02 | U71: ET
A72: 53.08.03 | B72: Combustibles y Lubricantes | D72: =+C193+C309+C419+C531 -> 0.00 | F72: 53.08.03 | U72: CERO
A73: 53.08.04 | B73: Materiales de Oficina | D73: =+C194+C310+C420+C532 -> 1,000.00 | F73: 53.08.04 | U73: ET
A74: 53.08.05 | B74: Materiales de Aseo | D74: =+C195+C311+C421+C533 -> 700.00 | F74: 53.08.05 | U74: ET
A75: 53.08.06 | B75: Herramientas | D75: 0.00 | F75: 53.08.06 | U75: CERO
A76: 53.08.07 | B76: Materiales de Impresión. Fotografía. Reproduc.y Publi. | D76: 5,000.00 | F76: 53.08.07 | U76: ET
A77: 53.08.11 | B77: Insumos, Bienes, Materiales y Suministros para la Construcción, Eléctricos, Plomería, Carpintería, Señalización Vial, Navegación y Contra Incendios | D77: 10,000.00 | F77: 53.08.11 | U77: ET
A78: 53.08.13 | B78: Repuestos y accesorios | D78: 0.00 | F78: 53.08.13 | U78: CERO
A79: 53.08.99 | B79: Otros de uso y consumo. | F79: 53.08.99 | U79: CERO
A80: 53.10 | B80: PERTRECHOS PARA LA DEFENSA Y SEGURIDAD PUBLICA | D80: =+D81 -> 0.00 | F80: 53.10 | U80: =IF(D80>0,"ET","CERO") -> CERO
A81: 53.10.02 | B81: Suministros para la defensa y seguridad publica | D81: =+SUMIF(adm,F81,_adm1) -> 0.00 | F81: 53.10.02 | U81: CERO
A82: 53.99 | B82: ASIGNACIONES A DISTRIBUIR | D82: =D83 -> 0.00 | F82: 53.99 | U82: CERO
A83: 53.99.01 | B83: Asignaciones a distribuir en Bienes y servicios | D83: =+SUMIF(adm,F83,_adm1) -> 0.00 | F83: 53.99.01 | U83: CERO
A84: 56 | B84: GASTOS FINANCIEROS | D84: 0.00 | F84: 56 | U84: CERO
A85: 56.01 | B85: TÍTULOS Y VALORES EN CIRCULACIÓN | D85: 0.00 | F85: 56.01 | U85: CERO
A86: 56.01.06 | B86: Descuentos. Comisiones y otros cargos en Títulos y valores | D86: 0.00 | F86: 56.01.06 | U86: CERO
A87: 57 | B87: OTROS GASTOS CORRIENTES | D87: =+SUMIF(adm,F87,_adm1) -> 75,000.00 | F87: 57 | U87: ET
A88: 57.02 | B88: SEGUROS. COSTOS FINANCIEROS Y OTROS GASTOS | D88: 70,000.00 | F88: 57.02 | U88: ET
A89: 57.02.01 | B89: Seguros, pago de pólizas de vehículos, de vida, fidelidad, matrículas | D89: =+C209+C321+C432+C543 -> 70,000.00 | F89: 57.02.01 | U89: ET
A90: 57.02.03 | B90: Comisiones bancarias | D90: =+C210+C322+C433+C544 -> 0.00 | F90: 57.02.03 | U90: CERO
A91: 57.02.06 | B91: Costos Judiciales | D91: =+C211+C323+C434+C545 -> 0.00 | F91: 57.02.06 | U91: CERO
A92: 57.02.13 | B92: Devolución de garantías | D92: 0.00 | F92: 57.02.13 | U92: CERO
A93: 57.02.99 | B93: Otros Gastos Financieros | D93: =+C212 -> 0.00 | F93: 57.02.99 | U93: CERO
A94: 8. | B94: GASTOS DE CAPITAL | D94: =SUM(D95) -> 91,300.00 | F94: 8. | U94: ET
A95: 84. | B95: ACTIVOS DE LARGA DURACIÓN | D95: =SUM(D96+D103) -> 91,300.00 | F95: 84. | U95: ET
A96: 84.01 | B96: BIENES MUEBLES | D96: =SUM(D97:D102)+91000 -> 91,300.00 | F96: 84.01 | U96: ET
A97: 84.01.03 | B97: Mobiliarios | D97: =+C216+C328+C439+C552 -> 300.00 | F97: 84.01.03 | U97: ET
A98: 84.01.04 | B98: Maquinarias y Equipos | D98: =+C217+C329+D440+C553 -> 0.00 | F98: 84.01.04 | U98: CERO
A99: 84.01.05 | B99: Vehiculos | F99: 84.01.06 | U99: CERO
A100: 84.01.07 | B100: Equipos. sistemas y Paquetes informáticos | D100: =+C220+C330+C443+C554 -> 0.00 | F100: 84.01.07 | U100: CERO | V100: 965381.9
A101: 84.01.09 | B101: Libros y Colecciones | D101: =+SUMIF(adm,F101,_adm1) -> 0.00 | F101: 84.01.09 | U101: CERO
A102: 84.01.11 | B102: Partes y Repuestos | D102: =+SUMIF(adm,F102,_adm1) -> 0.00 | F102: 84.01.11 | U102: CERO
A103: 84.03 | B103: EXPROPIACIÓN DE BIENES | D103: =SUM(D104:D105) -> 0.00 | F103: 84.03 | U103: CERO
A104: 84.03.01 | B104: Terrenos | D104: =+SUMIF(adm,F104,_adm1) -> 0.00 | F104: 84.03.01 | U104: CERO
A105: 84.03.02 | B105: Edificios. locales y residencias | D105: =+SUMIF(adm,F105,_adm1) -> 0.00 | F105: 84.03.02 | U105: CERO
A106: 97 | B106: PASIVO CIRCULANTE | D106: =SUM(D107) -> 0.00 | F106: 97 | U106: CERO
A107: 97.01 | B107: DEUDA FLOTANTE | D107: =D108 -> 0.00 | F107: 97.01 | U107: CERO
A108: 97.01.01 | B108: De cuentas por pagar | D108: =+SUMIF(adm,F108,_adm1) -> 0.00 | F108: 97.01.01 | U108: CERO
B109: TOTAL PROGRAMA | D109: =+C1170 -> 1,176,868.33 | U109: ET
U110: ET | V110: =+D109-V100 -> 211,486.43
B111: DETALLE | U111: ET
B112: CORRIENTES | C112: =+D12 -> 440,750.10 | U112: ET
B113: INVERSIÓN | U113: ET
B114: CAPITAL | C114: =+D94 -> 91,300.00 | U114: ET
B115: PASIVO CIRCULANTE | C115: =+D106 -> 0 | U115: ET
B116: SUBTOTAL | C116: =+D109 -> 1,176,868.33 | U116: ET
A117: =+'100'!$B$4 -> FUNCION I: SERVICIOS GENERALES | U117: ET
A118: =CONCATENATE("CÓDIGO DE FUNCIÓN:"," ",GASTO!$A$6) -> CÓDIGO DE FUNCIÓN: 100 | U118: ET
A119: PROGRAMA 2do. "SECRETARIA ADMINISTRATIVA" | U119: ET
A120: CODIGO PROGRAMA 120 | U120: ET
A121: =CONCATENATE("SUBPROGRAMA 1ro",":"," ",GASTO!$B$20) -> SUBPROGRAMA 1ro: DIR. ADMINISTRATIVA | U121: ET
A122: =CONCATENATE("CÓDIGO SUBPROGRAMA:"," ",GASTO!$A$20) -> CÓDIGO SUBPROGRAMA: 121 | U122: ET
A123: 3RA. ASIGNACIÓN SEGÚN EL OBJETO DEL GASTO | U123: ET
U124: ET
U125: ET
A126: PARTIDA | B126: DETALLE | C126: ASIGNACIÓN | G126: PARTIDA | H126: DETALLE | U126: ET
C127: =+'110'!D11 -> 2020 | U127: ET
A128: 5 | B128: GASTOS CORRIENTES | C128: =+C129+C152+C205 -> 359,080.14 | G128: 5 | H128: GASTOS CORRIENTES | U128: =IF(C128>0,"ET","CERO") -> ET
A129: 51 | B129: GASTOS EN PERSONAL | C129: =SUM(C130+C133+C136+C144+C147+C150) -> 47,080.14 | G129: 51 | H129: GASTOS EN PERSONAL | U129: =IF(C129>0,"ET","CERO") -> ET
A130: 51.01 | B130: REMUNERACIONES BÁSICAS | C130: =SUM(C131:C132) -> 35,160.00 | G130: 51.01 | H130: REMUNERACIONES BÁSICAS | U130: ET
A131: 51.01.05 | B131: Remuneraciones Unificadas | C131: =+'CDR PERS'!F144 -> 35,160.00 | G131: 51.01.05 | H131: Remuneraciones Unificadas | P131: 60,600.00 | U131: ET
A132: 51.01.06 | B132: Salarios Unificados | C132: =+'CDR PERS'!F391 -> 0.00 | G132: 51.01.06 | H132: Salarios Unificados | U132: CERO
A133: 51.02 | B133: REMUNERACIONES COMPLEMENTARIAS | C133: =SUM(C134:C135) -> 3,740.00 | G133: 51.02 | H133: REMUNERACIONES COMPLEMENTARIAS | U133: ET
A134: 51.02.03 | B134: Décimo Tercer Sueldo | C134: =+'CDR PERS'!G18 -> 2,930.00 | G134: 51.02.03 | H134: Décimo Tercer Sueldo
A135: 51.02.04 | B135: Décimo Cuarto Sueldo | C135: =+'CDR PERS'!H18 -> 810.00 | G135: 51.02.04 | H135: Décimo Cuarto Sueldo | U135: ET
A136: 51.05 | B136: REMUNERACIONES TEMPORALES | C136: =SUM(C137:C141)+C142+C143 -> 1,154.00 | G136: 51.05 | H136: REMUNERACIONES TEMPORALES | U136: ET
A137: 51.05.12 | B137: Subrogación | C137: 1,154.00 | G137: 51.05.04 | H137: Encargo y subrogaciones | U137: ET
A138: 51.05.06 | B138: Licencia Remunerada | C138: 0.00 | G138: 51.05.06 | H138: Licencia Remunerada | U138: CERO
A139: 51.05.13 | B139: Encargos | C139: 0.00 | G139: 51.05.08 | H139: Dietas | U139: CERO
A140: 51.05.09 | B140: Horas Extraordinarias y Suplementarias | C140: =SUMIFS(extras,ORG,GASTO!$B$20,CLASIF,B131)+SUMIFS(extras,ORG,GASTO!$B$20,CLASIF,B132) -> 0.00 | G140: 51.05.09 | H140: Horas Extraordinarias y Suplementarias | U140: CERO
A141: 51.05.10 | B141: Servicios Personales por contrato | C141: =+'CDR PERS'!F269 -> 0.00 | G141: 51.05.10 | H141: Servicios Personales por contrato( personal técnico.especil.pract) | O141: mas | P141: 110,000.00 | U141: CERO
A142: 51.05.12 | B142: Subrogación
A143: 51.05.13 | B143: Encargos
A144: 51.06 | B144: APORTES PATRONALES A LA SEGURIDAD SOCIAL | C144: =+C145+C146 -> 7,026.14 | G144: 51.06 | H144: APORTES PATRONALES A LA SEGURIDAD SOCIAL | U144: ET
A145: 51.06.01 | B145: Aporte Patronal | C145: =+'CDR PERS'!J18 -> 4,096.14 | G145: 51.06.01 | H145: Aporte Patronal | U145: ET
A146: 51.06.02 | B146: Fondos de Reserva | C146: =+'CDR PERS'!I18 -> 2,930.00 | G146: 51.06.02 | H146: Fondos de Reserva | O146: mas | P146: =P134+200000 -> 200,000.00 | U146: ET
A147: 51.07 | B147: INDEMNIZACIONES | C147: =SUM(C148:C149) -> 0.00 | G147: 51.07 | H147: INDEMNIZACIONES | U147: CERO
A148: 51.07.01 | B148: Compensación por renuncia Voluntaria | C148: 0.00 | G148: 51.07.01 | H148: Compensación por renuncia Voluntaria | U148: CERO
A149: 51.07.99 | B149: Otras Indem/por renuncia voluntaria | C149: 0.00 | G149: 51.07.99 | H149: Otras Indem/por renuncia voluntaria | U149: CERO
A150: 51.99 | B150: ASIGNACIONES A DISTRIBUIR | C150: =C151 -> 0.00 | G150: 51.99 | H150: ASIGNACIONES A DISTRIBUIR | U150: CERO
A151: 51.99.01 | B151: Asignaciones a distribuir en Gastos en Personal | C151: 0.00 | G151: 51.99.01 | H151: Asignaciones a distribuir en Gastos en Personal | U151: CERO
A152: 53 | B152: BIENES Y SERVICIOS DE CONSUMO | C152: =SUM(C153+C158+C170+C175+C181+C185+C189+C203) -> 237,000.00 | G152: 53 | H152: BIENES Y SERVICIOS DE CONSUMO | U152: ET
A153: 53.01 | B153: SERVICIOS BÁSICOS | C153: =+C154+C155+C156+C157 -> 51,600.00 | G153: 53.01 | H153: SERVICIOS BÁSICOS | U153: ET
A154: 53.01.01 | B154: Agua Potable | C154: 11,000.00 | G154: 53.01.01 | H154: Agua Potable | U154: ET
A155: 53.01.04 | B155: Energía eléctrica | C155: 25,000.00 | G155: 53.01.04 | H155: Energía eléctrica | U155: ET
A156: 53.01.05 | B156: Telecomunicaciones | C156: 15,000.00 | G156: 53.01.05 | H156: Telecomunicaciones | U156: ET
A157: 53.01.06 | B157: Servicio de Correo | C157: 600.00 | G157: 53.01.06 | H157: Servicio de Correo | U157: ET
A158: 53.02 | B158: SERVICIOS GENERALES | C158: =+C161+C163+C165+C168+C169 -> 160,200.00 | G158: 53.02 | H158: SERVICIOS GENERALES | U158: ET
A159: 53.02.01 | B159: Transporte de personal | C159: 0.00 | G159: 53.02.01 | H159: Transporte de personal | U159: CERO
A160: 53.02.02 | B160: Fletes y Maniobras | C160: 0.00 | U160: CERO
A161: 53.02.04 | B161: Edición, Impresión. reproducción y publicaciones | C161: 200.00 | G161: 53.02.04 | H161: Impresión. reproducción y publicaciones | U161: ET
A162: 53.02.05 | B162: Espectáculos Culturales y Sociales | C162: 0.00 | G162: 53.02.05 | H162: Espectáculos Culturales y Sociales | U162: CERO
A163: 53.02.05 | B163: Espectáculos Culturales y Sociales | C163: 0.00 | G163: 53.02.06 | H163: Eventos Públicos y Oficiales | U163: CERO
A164: 53.02.07 | B164: Difusión. Información y Publicidad | C164: 0.00 | G164: 53.02.07 | H164: Difusión. Información y Publicidad | U164: CERO
A165: 53.02.08 | B165: Servicios Seguridad Vigilancia | C165: 130,000.00 | G165: 53.02.08 | U165: ET
A166: 53,02,09 | B166: Servicio de aseo, vestimenta de trabajo, fumigación, desinfección y limpieza de las instalaciones del sector público | C166: 0.00 | U166: CERO
A167: 53.02.35 | B167: Servicio de Alimentación | C167: 0.00 | G167: 53.02.99 | H167: Otros servicios generales | U167: CERO
A168: 53.02.48 | B168: Eventos Oficiales (atencion autoridades) | C168: 20,000.00 | U168: ET
A169: 53.02.49 | B169: Eventos Públicos promocionales | C169: 10,000.00
A170: 53.03 | B170: TRASLADOS. INSTALACIONES. VIÁTICOS Y SUBSISTENCIAS | C170: =SUM(C171:C174) -> 0.00 | G170: 53.03 | H170: TRASLADOS. INSTALACIONES. VIÁTICOS Y SUBSISTENCIAS | U170: CERO
A171: 53.03.01 | B171: Pasajes al Interior | C171: 0.00 | G171: 53.03.01 | H171: Pasajes al Interior | U171: CERO
A172: 53.03.02 | B172: Pasajes al exterior | C172: 0.00 | G172: 53.03.02 | H172: Pasajes al exterior | U172: CERO
A173: 53.03.03 | B173: Viáticos y Subsistencias en el Interior | C173: 0.00 | G173: 53.03.03 | H173: Viáticos y Subsistencias en el Interior | U173: CERO
A174: 53.03.04 | B174: Viáticos y Subsistencias en el Exterior | C174: 0.00 | G174: 53.03.04 | H174: Viáticos y Subsistencias en el Exterior | U174: CERO
A175: 53.04 | B175: INSTALACIÓN. MANTENIMIENTO Y REPARACIÓN | C175: =+C176+C177+C178+C179 -> 7,000.00 | G175: 53.04 | H175: INSTALACIÓN. MANTENIMIENTO Y REPARACIÓN | U175: ET
A176: 53.04.02 | B176: Edificios. locales y residencias | C176: 5,000.00 | G176: 53.04.02 | H176: Edificios. locales y residencias | U176: ET
A177: 53.04.03 | B177: Mobiliarios | C177: 1,000.00 | G177: 53.04.03 | H177: Mobiliarios | U177: ET
A178: 53.04.04 | B178: Maquinarias y Equipos | C178: 0.00 | G178: 53.04.04 | H178: Maquinarias y Equipos | U178: CERO
A179: 53.04.05 | B179: Vehículos | C179: 1,000.00 | G179: 53.04.05 | H179: Vehículos | U179: ET
A180: 53.04.99 | B180: Otras instalaciones. mantenimiento y reparaciones. | C180: 0.00 | G180: 53.04.99 | H180: Otras instalaciones. mantenimiento y reparaciones. | U180: CERO
A181: 53.06 | B181: CONTRATACIÓN DE ESTUDIOS E INVEST | C181: =+C182+C183+C184 -> 800.00 | G181: 53.06 | H181: CONTRATACIÓN DE ESTUDIOS E INVESTÍ | U181: ET
A182: 53.06.01 | B182: Consultoría. Ascesoria e Investigación especializada | C182: 0.00 | G182: 53.06.01 | H182: Consultoría. Ascesoria e Investigación especializada | U182: CERO
A183: 53.06.03 | B183: Servicios de Capacitación | C183: 800.00 | G183: 53.06.03 | H183: Servicios de Capacitación | U183: ET
A184: 53.06.04 | B184: Estudio y Diseño de Proyectos (estudio nuevo edificio) | C184: 0.00 | U184: CERO
A185: 53.07 | B185: GASTOS EN INFORMÁTICA | C185: =+C188+C186+C187 -> 1,000.00 | G185: GASTOS EN INFORMÁTICA | U185: ET
A186: 53.07.01 | B186: Desarrollo Equipos. sistemas y paquetes informáticos | C186: 0.00 | G186: 53.07.01 | U186: CERO
A187: 53.07.02 | B187: Arrendamiento y Licencias de Uso de Paquetes Informáticos | C187: 1,000.00 | G187: 53.07.02 | H187: Arrendamiento y Licencias de Uso de Paquetes Informáticos | U187: ET
A188: 53.07.04 | B188: Mantenimiento y reparación de equipos y sistemas informáticos | C188: 0.00 | G188: 53.07.04 | H188: Mantenimiento y reparación de sistemas informáticos | U188: CERO
A189: 53.08 | B189: BIENES DE USO Y CONSUMO CORRIENTE | C189: =+C191+C192+C193+C194+C195+C196+C198+C199+C201+C197+C200+C202 -> 16,400.00 | G189: 53.08 | H189: BIENES DE USO Y CONSUMO CORRIENTE | U189: ET
A190: 53.08.01 | B190: Alimentos y Bebidas | G190: 53.08.01 | H190: Alimentos y Bebidas | U190: CERO
A191: 53.08.01 | B191: Alimentos y Bebidas | C191: 0.00
A192: 53.08.02 | B192: Vestuario. Lencería y Prendas de Protección | C192: =SUMIFS(uniformes,ORG,GASTO!$B$20,CLASIF,B131)+SUMIFS(uniformes,ORG,GASTO!$B$20,CLASIF,B132)+SUMIFS(uniformes,ORG,GASTO!$B$20,CLASIF,B141) -> 400.00 | G192: 53.08.02 | H192: Vestuario. Lencería y Prendas de Protección | P192: =+'CDR PERS'!$M$18+'CDR PERS'!$M$391+50000 -> 50,400.00 | U192: ET
A193: 53.08.03 | B193: Combustibles y Lubricantes | C193: 0.00 | G193: 53.08.03 | H193: Combustibles y Lubricantes | U193: CERO
A194: 53.08.04 | B194: Materiales de Oficina | C194: 500.00 | G194: 53.08.04 | H194: Materiales de Oficina | U194: ET
A195: 53.08.05 | B195: Materiales de Aseo | C195: 500.00 | G195: 53.08.05 | H195: Materiales de Aseo | U195: ET
A196: 53.08.06 | B196: Herramientas | C196: 0.00 | G196: 53.08.06 | H196: Herramientas | U196: CERO
A197: 53.08.07 | B197: Materiales de Impresión. Fotografía. Reproduc.y Publi. | C197: 5,000.00 | G197: 53.08.07 | H197: Materiales de Impresión. Fotografía. Reproduc.y Publi. | U197: ET
A198: 53.08.11 | B198: Insumos, Bienes, Materiales y Suministros para la Construcción, Eléctricos, Plomería, Carpintería, Señalización Vial, Navegación y Contra Incendios (sist. Electrico talleres) | C198: 10,000.00 | G198: 53.08.11 | H198: Mat.const. Eléctrica. Plomería y carpintería | U198: ET
A199: 53.08.13 | B199: Repuestos y accesorios | C199: 0.00 | G199: 53.08.13 | H199: Repuestos y accesorios | U199: CERO
A200: 53.08.14 | B200: Suministros para actividades Agropecuarias y Pesca | C200: 0.00 | U200: CERO
... 929 more rows

Sheet 140
A1: =+'100'!B1 -> GOBIERNO AUTONOMO DESCENTRALIZADO MUNICIPAL DEL CANTON PEDRO MONCAYO
A2: =+'100'!B2 -> PROFORMA PRESUPUESTARIA AÑO 2020
A4: FUNCIÓN I: SERVICIOS GENERALES
A5: CÓDIGO DE FUNCIÓN: 100
A6: PROGRAMA 4to: SECRETARIA DE CONTROL DE GESTION
A7: CÓDIGO DE PROGRAMA: 140
A8: 3DA. ASIGNACIÓN SEGÚN EL OBJETO DEL GASTO
A10: PARTIDA | B10: DETALLE | D10: ASIGNACION
D11: =+'100'!D11 -> AÑO 2020
A12: 5 | B12: GASTOS CORRIENTES | D12: =SUM(D13+D30) -> 342,962.19 | G12: 5
A13: 51 | B13: GASTOS EN PERSONAL | D13: =SUM(D14+D17+D22+D28)+50000+118524 -> 240,662.19 | G13: 51
A14: 51.01 | B14: REMUNERACIONES BÁSICAS | D14: =SUM(D15:D16) -> 55,272.00 | G14: 51.01
A15: 51.01.05 | B15: Remuneraciones Unificadas | D15: =+SUMIF(just,G15,just1) -> 55,272.00 | G15: 51.01.05
A16: 51.01.06 | B16: Salarios Unificados | D16: =+SUMIF(just,G16,just1) -> 0.00 | G16: 51.01.06
A17: 51.02 | B17: REMUNERACIONES COMPLEMENTARIAS | D17: =SUM(D18:D19) -> 5,821.00 | G17: 51.02
A18: 51.02.03 | B18: Décimo Tercer Sueldo | D18: =+SUMIF(just,G18,just1) -> 4,606.00 | G18: 51.02.03
A19: 51.02.04 | B19: Décimo Cuarto Sueldo | D19: =+SUMIF(just,G19,just1) -> 1,215.00 | G19: 51.02.04
A20: 51.05.12 | B20: Subrogación
A21: 51.05.13 | B21: Encargos
A22: 51.06 | B22: APORTES PATRONALES A LA SEGURIDAD SOCIAL | D22: =SUM(D23:D24) -> 11,045.19 | G22: 51.06
A23: 51.06.01 | B23: Aporte Patronal | D23: =+SUMIF(just,G23,just1) -> 6,439.19 | G23: 51.06.01
A24: 51.06.02 | B24: Fondos de Reserva | D24: =+SUMIF(just,G24,just1) -> 4,606.00 | G24: 51.06.02
A25: 51.07 | B25: INDEMNIZACIONES | D25: =+D26+D27 -> 0.00 | G25: 51.07
A26: 51.07.01 | B26: Compensación por Renuncia Voluntaria | D26: =+SUMIF(just,G26,just1) -> 0.00 | G26: 51.07.01
A27: 51.07.99 | B27: Otras Indemnizaciones laborales | D27: =+SUMIF(just,G27,just1) -> 0.00 | G27: 51.07.99
A28: 51.99 | B28: ASIGNACIONES A DISTRIBUIR | D28: =D29 -> 0.00 | G28: 51.99
A29: 51.99.01 | B29: Asignaciones a distribuir en Gastos en el Personal | D29: =+SUMIF(just,G29,just1) -> 0.00 | G29: 51.99.01
A30: 53 | B30: BIENES Y SERVICIOS DE CONSUMO | D30: =+D31+D36+D44+D49+D54+D57+D61+D72+D74+102000 -> 102,300.00 | G30: 53
A31: 53.01 | B31: SERVICIOS BÁSICOS | D31: 0.00 | G31: 53.01
A32: 53.01.01 | B32: Agua Potable | D32: =+SUMIF(just,G32,just1) -> 0.00 | G32: 53.01.01
A33: 53.01.04 | B33: Energía eléctrica | D33: =+SUMIF(just,G33,just1) -> 0.00 | G33: 53.01.04
A34: 53.01.05 | B34: Telecomunicaciones | D34: =+SUMIF(just,G34,just1) -> 0.00 | G34: 53.01.05
A35: 53.01.06 | B35: Servicio de Correo | D35: =+SUMIF(just,G35,just1) -> 0.00 | G35: 53.01.06
A36: 53.02 | B36: SERVICIOS GENERALES | D36: =SUM(D37:D43) -> 0.00 | G36: 53.02
A37: 53.02.01 | B37: Transporte de personal | D37: =+SUMIF(just,G37,just1) -> 0.00 | G37: 53.02.01
A38: 53,02,04 | B38: Edición, Impresión, reproducción y publicaciones | D38: 0.00 | G38: 53.02.04
A39: 53.02.05 | B39: Espectáculos Culturales y Sociales | D39: 0.00 | G39: 53.02.05
A40: 53.02.06 | B40: Eventos Públicos y Oficiales | D40: 0.00 | G40: 53.02.06
A41: 53.02.17 | B41: Difusión e Información | D41: 0.00 | G41: 53.02.07
A42: 53.02.08 | B42: Servicios de Vigilancia | D42: 0.00
A43: 53.02.99 | B43: Otros Servicios Generales | D43: 0.00 | G43: 53.02.99
A44: 53.03 | B44: TRASLADOS, INSTALACIONES, VIÁTICOS Y SUBSISTENCIAS | D44: =SUM(D45:D47) -> 0.00 | G44: 53.03
A45: 53.03.01 | B45: Pasajes al Interior | D45: 0.00 | G45: 53.03.01
A46: 53.03.02 | B46: Pasajes al exterior | D46: =+SUMIF(just,G46,just1) -> 0.00 | G46: 53.03.02
A47: 53.03.03 | B47: Viáticos y Subsistencias en el Interior | D47: 0.00 | G47: 53.03.03
A48: 53.03.04 | B48: Viáticos y Subsistencias en el Exterior | D48: =+SUMIF(just,G48,just1) -> 0.00 | G48: 53.03.04
A49: 53.04 | B49: INSTALACIÓN, MANTENIMIENTO Y REPARACIÓN | D49: 0.00 | G49: 53.04
A50: 53.04.02 | B50: Edificios, locales y residencias | D50: 0.00 | G50: 53.04.02
A51: 53.04.03 | B51: Mobiliarios | D51: 0.00 | G51: 53.04.03
A52: 53.04.04 | B52: Maquinarias y Equipos | D52: 0.00 | G52: 53.04.04
A53: 53.04.99 | B53: Otras instalaciones, mantenimiento y reparaciones. | D53: 0.00 | G53: 53.04.99
A54: 53.06 | B54: CONTRATACIÓN DE ESTUDIOS E INVESTÍ | D54: 300.00 | G54: 53.06
A55: 53.06.01 | B55: Consultoría, Ascesoria e Investigación especializada | D55: 0.00 | G55: 53.06.01
A56: 53.06.03 | B56: Servicios de Capacitación | D56: 0.00 | G56: 53.06.03
A57: 53.07 | B57: GASTOS EN INFORMÁTICA | D57: =+D59+D60 -> 0.00 | G57: 53.07
A58: 53.07.01 | B58: Desarrollo Equipos. sistemas y paquetes informáticos | D58: =+SUMIF(just,G58,just1) -> 0.00 | G58: 53.07.01
A59: 53.07.02 | B59: Arrendamiento y Licencias de Uso de Paquetes Informáticos | D59: =+SUMIF(just,G59,just1) -> 0.00 | G59: 53.07.02
A60: 53.07.04 | B60: Mantenimiento y reparación de sistemas informáticos | D60: 0.00 | G60: 53.07.04
A61: 53.08 | B61: BIENES DE USO Y CONSUMO CORRIENTE | D61: 0.00 | G61: 53.08
A62: 53.08.01 | B62: Alimentos y Bebidas | D62: =+SUMIF(just,G62,just1) -> 0.00 | G62: 53.08.01
A63: 53.08.02 | B63: Vestuario, Lencería y Prendas de Protección | D63: =+SUMIF(just,G63,just1) -> 600.00 | G63: 53.08.02 | O63: 687,362.91
A64: 53.08.03 | B64: Combustible y Lubricantes | D64: =+SUMIF(just,G64,just1) -> 0.00 | G64: 53.08.03
A65: 53.08.04 | B65: Materiales de Oficina | D65: 0.00 | G65: 53.08.04
A66: 53.08.05 | B66: Materiales de Aseo | D66: =+SUMIF(just,G66,just1) -> 100.00 | G66: 53.08.05
A67: 53.08.06 | B67: Herramientas | D67: 475.00 | G67: 53.08.06
A68: 53.08.07 | B68: Materiales de impresión,fotografía,reprod,y publicaciones | D68: 200.00 | G68: 53.08.07 | O68: =+O63-D101 -> 610,219.72
A69: 53.08.11 | B69: Insumos, Bienes, Materiales y Suministros para la Construcción, Eléctricos, Plomería, Carpintería, Señalización Vial, Navegación y Contra Incendios | D69: 0.00 | G69: 53.08.11
A70: 53.08.13 | B70: Repuestos y accesorios | D70: 0.00 | G70: 53.08.13
A71: 53.08.99 | B71: Otros de uso y consumo. | D71: 0.00 | G71: 53.08.99
A72: 53.10 | B72: PERTRECHOS PARA LA DEFENSA Y SEGURIDAD PUBLICA | D72: =D73 -> 0.00 | G72: 53.10
A73: 53.10.02 | B73: Suministros para la defensa y seguridad publica | D73: =+SUMIF(just,G73,just1) -> 0.00 | G73: 53.10.02
A74: 53.99 | B74: ASIGNACIONES A DISTRIBUIR | D74: =SUM(D75) -> 0.00 | G74: 53.99
A75: 53.99.01 | B75: Asignaciones para distribuir en bienes y servicios | D75: =+SUMIF(just,G75,just1) -> 0.00 | G75: 53.99.01
A76: 56 | B76: GASTOS FINANCIEROS | D76: =+D77 -> 0.00 | G76: 56
A77: 56.01 | B77: TÍTULOS Y VALORES EN CIRCULACIÓN | D77: =+D78 -> 0.00 | G77: 56.01
A78: 56.01.06 | B78: Descuentos, Comisiones y otros cargos en Títulos y valores | D78: =+SUMIF(just,G78,just1) -> 0.00 | G78: 56.01.06
A79: 57 | B79: OTROS GASTOS CORRIENTES | D79: =+D80 -> 0.00 | G79: 57
A80: 57.02 | B80: SEGUROS, COSTOS FINANCIEROS Y OTROS GASTOS | D80: =SUM(D81:D85) -> 0.00 | G80: 57.02
A81: 57.02.01 | B81: Seguros (Bienes) | D81: =+SUMIF(just,G81,just1) -> 0.00 | G81: 57.02.01
A82: 57.02.03 | B82: Comisiones bancarias | D82: =+SUMIF(just,G82,just1) -> 0.00 | G82: 57.02.03
A83: 57.02.06 | B83: Costos Judiciales | D83: =+SUMIF(just,G83,just1) -> 0.00 | G83: 57.02.06
A84: 57.02.13 | B84: Devolución de garantías | D84: =+SUMIF(just,G84,just1) -> 0.00 | G84: 57.02.13
A85: 57.02.99 | B85: Otros Gastos Financieros | D85: =+SUMIF(just,G85,just1) -> 0.00 | G85: 57.02.99
A86: 8. | B86: GASTOS DE CAPITAL | D86: =SUM(D87) -> 0.00 | G86: 8.
A87: 84. | B87: ACTIVOS DE LARGA DURACIÓN | D87: =SUM(D88) -> 0.00 | G87: 84.
A88: 84.01 | B88: BIENES MUEBLES | D88: =SUM(D89:D94) -> 0.00 | G88: 84.01
A89: 84.01.03 | B89: Mobiliarios | D89: 0.00 | G89: 84.01.03
A90: 84.01.04 | B90: Maquinarias y Equipos | D90: 0.00 | G90: 84.01.04
A91: 84.01.06 | B91: Herramientas | D91: =+SUMIF(just,G91,just1) -> 0.00 | G91: 84.01.06
A92: 84.01.07 | B92: Equipos, sistemas y Paquetes informáticos | D92: 0.00 | G92: 84.01.07
A93: 84.01.09 | B93: Libros y Colecciones | D93: 0.00 | G93: 84.01.09
A94: 84.01.11 | B94: Partes y Repuestos | D94: =+SUMIF(just,G94,just1) -> 0.00 | G94: 84.01.11
A95: 84.03 | B95: EXPROPIACIÓN DE BIENES | D95: =+SUMIF(just,G95,just1) -> 0.00 | G95: 84.03
A96: 84.03.01 | B96: Terrenos | D96: =+SUMIF(just,G96,just1) -> 0.00 | G96: 84.03.01
A97: 84.03.02 | B97: Edificios, locales y residencias | D97: =+SUMIF(just,G97,just1) -> 0.00 | G97: 84.03.02
A98: 97 | B98: PASIVO CIRCULANTE | D98: =SUM(D99) -> 0.00 | G98: 97
A99: 97.01 | B99: DEUDA FLOTANTE | D99: =D100 -> 0.00 | G99: 97.01
A100: 97.01.01 | B100: De cuentas por pagar | D100: =+SUMIF(just,G100,just1) -> 0.00 | G100: 97.01.01
B101: TOTAL PROGRAMA | D101: =+C470 -> 77,143.19
B103: DETALLE
B104: CORRIENTES | C104: =+E12 -> 0 | D104: =+D101 -> 77,143.19
B105: INVERSIÓN | C105: 0 | D105: 0
B106: CAPITAL | C106: =+E86 -> 0 | D106: =+D86 -> 0
B107: PASIVO CIRCULANTE | C107: 0 | D107: =+D98 -> 0
B108: SUBTOTAL | C108: =+C104+C105+C106 -> 0 | D108: =+D104+D105+D106 -> 77,143.19
A112: FUNCIÓN I: SERVICIOS GENERALES
A113: CÓDIGO DE FUNCIÓN: 100
A114: =+A6 -> PROGRAMA 4to: SECRETARIA DE CONTROL DE GESTION
A115: =CONCATENATE("CÓDIGO PROGRAMA:"," ",GASTO!$A$34) -> CÓDIGO PROGRAMA: 140
A116: =CONCATENATE("SUBPROGRAMA 1ro",":"," ",GASTO!$B$35) -> SUBPROGRAMA 1ro: DIR. DE GESTION DE FISCALIZACION
A117: =CONCATENATE("CÓDIGO SUBPROGRAMA:"," ",GASTO!$A$35) -> CÓDIGO SUBPROGRAMA: 141
A118: 3DA. ASIGNACIÓN SEGÚN EL OBJETO DEL GASTO
A120: PARTIDA | B120: DETALLE | C120: ASIGNACIÓN
C121: =+D11 -> AÑO 2020
A122: 5 | B122: GASTOS CORRIENTES | C122: =SUM(C123+C142) -> 74,993.19
A123: 51 | B123: GASTOS EN PERSONAL | C123: =+C124+C127+C130+C137 -> 73,292.19
A124: 51.01 | B124: REMUNERACIONES BÁSICAS | C124: =SUM(C125:C126) -> 55,272.00
A125: 51.01.05 | B125: Remuneraciones Unificadas | C125: =SUMIFS(REMUN,ORG,GASTO!$B$35,CLASIF,B125) -> 55,272.00
A126: 51.01.06 | B126: Salarios Unificados | C126: =SUMIFS(REMUN,ORG,GASTO!$B$35,CLASIF,B126) -> 0.00
A127: 51.02 | B127: REMUNERACIONES COMPLEMENTARIAS | C127: =SUM(C128:C129) -> 5,821.00
A128: 51.02.03 | B128: Décimo Tercer Sueldo | C128: =+'CDR PERS'!G34 -> 4,606.00
A129: 51.02.04 | B129: Décimo Cuarto Sueldo | C129: =+'CDR PERS'!H34 -> 1,215.00
A130: 51.05 | B130: REMUNERACIONES TEMPORALES | C130: =SUM(C131:C134)+C135+C136 -> 1,154.00
A131: 51.05.12 | B131: Subrogación | C131: 1,154.00
A132: 51.05.06 | B132: Licencia Remunerada | C132: 0.00
A133: 51.05.08 | B133: Dietas | C133: 0.00
A134: 51.05.10 | B134: Servicios Personales por contrato | C134: =+'CDR PERS'!F286 -> 0.00
A135: 51.05.12 | B135: Subrogación
A136: 5105.13 | B136: Encargos
A137: 51.06 | B137: APORTES PATRONALES A LA SEGURIDAD SOCIAL | C137: =+C138+C139 -> 11,045.19
A138: 51.06.01 | B138: Aporte Patronal | C138: =+'CDR PERS'!J34 -> 6,439.19
A139: 51.06.02 | B139: Fondos de Reserva | C139: =+'CDR PERS'!I34 -> 4,606.00
A140: 51.99 | B140: ASIGNACIONES A DISTRIBUIR | C140: =+C141 -> 0.00
A141: 51.99.01 | B141: Asignaciones a distribuir en Gastos en el Personal | C141: 0.00
A142: 53 | B142: BIENES Y SERVICIOS DE CONSUMO | C142: =+C145+C149+C152+C155+C157 -> 1,701.00
A143: 53.02 | B143: SERVICIOS GENERALES | C143: =+C144 -> 0.00
A144: 53,02,04 | B144: Edición, Impresión, reproducción y publicaciones | C144: 0.00
A145: 53.03 | B145: TRASLADOS, INSTALACIONES, VIÁTICOS Y SUBSISTENCIAS | C145: =+C148 -> 0.00
A146: 53.03.01 | B146: Pasajes al Interior | C146: 0.00 | G146: 53.03.03
A147: 53.03.02 | B147: Pasajes al exterior | C147: 0.00
A148: 53.03.03 | B148: Viáticos y Subsistencias en el Interior | C148: 0.00 | G148: 53
A149: 53.04 | B149: INSTALACIÓN, MANTENIMIENTO Y REPARACIÓN | C149: =+C150+C151 -> 0.00
A150: 53.04.03 | B150: Mobiliarios (Instalación, Mantenimiento y Reparaciones) | C150: 0.00
A151: 53.04.04 | B151: Maquinarias y Equipos | C151: 0.00
A152: 53.06 | B152: CONTRATACIÓN DE ESTUDIOS E INVESTÍ | C152: =+C153 -> 300.00 | G152: 53.06
A153: 53.06.12 | B153: Capacitación a Servidores Publicos | C153: =+'CDR PERS'!N34 -> 300.00 | G153: 53.07
A154: 53.07 | B154: GASTOS EN INFORMÁTICA | C154: =+C155+C156 -> 252.00 | G154: 53.07.02
A155: 53.07. | B155: GASTOS EN INFORMÁTICA | C155: =+C156 -> 126.00 | G155: 53.07.04
A156: 53.07.04 | B156: Mantenimiento y reparación de sistemas informáticos | C156: 126.00 | G156: 53.08
A157: 53.08 | B157: BIENES DE USO Y CONSUMO CORRIENTE | C157: =SUM(C158:C164) -> 1,275.00 | G157: 53.08.02
A158: 53.08.02 | B158: Vestuario, Lencería y Prendas de Protección | C158: =+'CDR PERS'!M34 -> 600.00 | G158: 53.08.04
A159: 53.08.04 | B159: Materiales de Oficina | C159: 100.00 | G159: 53.08.05
A160: 53.08.05 | B160: Materiales de Aseo | C160: 100.00 | G160: 53.08.06
A161: 53.08.06 | B161: Herramientas | C161: 475.00 | G161: 53.08.07
A162: 53.08.07 | B162: Materiales de impresión,fotografía,reprod,y publicaciones | C162: 0.00 | G162: 53.08.11
A163: 53.08.11 | B163: Materiales de construcción, eléctricos plomería, carpintería. | C163: 0.00 | G163: 53.08.99
A164: 53.08.99 | B164: Otros de uso y consumo. | C164: 0.00 | G164: 53.10
A165: 53.10 | B165: PERTRECHOS PARA LA DEFENSA Y SEGURIDAD PUBLICA | C165: =C166 -> 0.00 | G165: 53.10.02
A166: 53.10.02 | B166: Suministros para la defensa y seguridad publica | C166: 0.00 | G166: 53.99
A167: 53.99 | B167: ASIGNACIONES A DISTRIBUIR | C167: =SUM(C168) -> 0.00 | G167: 53.99.01
A168: 53.99.01 | B168: Asignaciones para distribuir en bienes y servicios | C168: 0.00 | G168: 8.
A169: 8. | B169: GASTOS DE CAPITAL | C169: =SUM(C170) -> 2,150.00 | G169: 84.
A170: 84. | B170: ACTIVOS DE LARGA DURACIÓN | C170: =SUM(C171) -> 2,150.00 | G170: 84.01
A171: 84.01 | B171: BIENES MUEBLES | C171: =SUM(C172:C176) -> 2,150.00 | G171: 84.01.03
A172: 84.01.03 | B172: Mobiliarios | C172: 200.00 | G172: 84.01.04
A173: 84.01.04 | B173: Maquinarias y Equipos | C173: 450.00 | G173: 84.01.07
A174: 84.01.07 | B174: Equipos, sistemas y Paquetes informáticos | C174: 1,500.00 | G174: 84.01.08
A175: 84.01.08 | B175: Bienes Artísticos y Culturales | C175: 0.00 | G175: 84.01.09
A176: 84.01.09 | B176: Libros y Colecciones | C176: 0.00 | G176: 97
A177: 97 | B177: PASIVO CIRCULANTE | C177: =SUM(C178) -> 0.00 | G177: 97.01
A178: 97.01 | B178: DEUDA FLOTANTE | C178: =C179 -> 0.00 | G178: 97.01.01
A179: 97.01.01 | B179: De cuentas por pagar | C179: 0.00
B180: TOTAL PROGRAMA | C180: =+C123+C142+C169 -> 77,143.19
B181: DETALLE
B182: CORRIENTES | C182: =+C122 -> 74,993.19
B183: INVERSIÓN | C183: 0
B184: CAPITAL | C184: =+C169 -> 2,150.00
B185: PASIVO CIRCULANTE | C185: 0
B186: SUBTOTAL | C186: =+C182+C183+C184 -> 77,143.19
A190: FUNCIÓN I: SERVICIOS GENERALES
A191: CÓDIGO DE FUNCIÓN: 100
A192: PROGRAMA 4to: SECRETARIA DE TALENTO HUMANO
A193: CÓDIGO DE PROGRAMA: 140
A194: =CONCATENATE("SUBPROGRAMA 2do",":"," ",GASTO!$B$36) -> SUBPROGRAMA 2do:
A195: =CONCATENATE("CÓDIGO SUBPROGRAMA:"," ",GASTO!$A$36) -> CÓDIGO SUBPROGRAMA: 142
A196: 3DA. ASIGNACIÓN SEGÚN EL OBJETO DEL GASTO
G198: PARTIDA
A199: PARTIDA | B199: DETALLE | C199: ASIGNACIÓN
C200: =+'140'!C121 -> AÑO 2020 | G200: 5
A201: 5 | B201: GASTOS CORRIENTES | C201: =+C202+C223+C260 -> 0.00 | G201: 51
A202: 51 | B202: GASTOS EN PERSONAL | C202: =+C203+C206+C209+C216+C219 -> 0.00 | G202: 51.01
A203: 51.01 | B203: REMUNERACIONES BÁSICAS | C203: =SUM(C204:C205) -> 0.00 | G203: 51.01.05
A204: 51.01.05 | B204: Remuneraciones Unificadas | G204: 51.02 | K204: =+C203+C206+C209+C216 -> 0.00
A205: 51.01.06 | B205: Salarios Unificados | C205: =SUMIFS(REMUN,ORG,GASTO!$B$36,CLASIF,B205) -> 0.00
A206: 51.02 | B206: REMUNERACIONES COMPLEMENTARIAS | C206: =SUM(C207:C208) -> 0.00 | G206: 51.02.03
A207: 51.02.03 | B207: Décimo Tercer Sueldo | G207: 51.02.04
A208: 51.02.04 | B208: Décimo Cuarto Sueldo | G208: 51.05
A209: 51.05 | B209: REMUNERACIONES TEMPORALES | C209: =SUM(C210:C213)+C214+C215 -> 0.00
A210: 51.05.12 | B210: Subrogación
A211: 51.05.13 | B211: Encargos | C211: 0.00 | G211: 51.05.09
... 245 more rows

Sheet 150
A1: =+'100'!B1 -> GOBIERNO AUTONOMO DESCENTRALIZADO MUNICIPAL DEL CANTON PEDRO MONCAYO
A2: =+'100'!B2 -> PROFORMA PRESUPUESTARIA AÑO 2020
A4: FUNCIÓN I: SERVICIOS GENERALES
A5: CÓDIGO DE FUNCIÓN: 100
A6: =CONCATENATE("PROGRAMA 5to:"," ",GASTO!$B$39) -> PROGRAMA 5to: DIRECCION DE TALENTO HUMANO
A7: =CONCATENATE("CODIGO DEL PROGRAMA:"," ",GASTO!$A$39) -> CODIGO DEL PROGRAMA: 150
A8: 3DA. ASIGNACIÓN SEGÚN EL OBJETO DEL GASTO
A10: PARTIDA | B10: DETALLE | D10: ASIGNACIÓN
D11: =+DAT_INI!B3 -> 2020
A12: 5 | B12: GASTOS CORRIENTES | D12: =SUM(D13+D36+D86+D83) -> 491,572.18
A13: 51 | B13: GASTOS EN PERSONAL | D13: =+D14+D17+D20+D28+37038.21 -> 345,124.18
A14: 51.01 | B14: REMUNERACIONES BÁSICAS | D14: =SUM(D15:D16) -> 212,388.00
A15: 51.01.05 | B15: Remuneraciones Unificadas | D15: =+SUMIF(_cod1,A15,valor1) -> 212,388.00
A16: 51.01.06 | B16: Salarios unificados | D16: =+SUMIF(_cod1,A16,valor1) -> 0.00
A17: 51.02 | B17: REMUNERACIONES COMPLEMENTARIAS | D17: =SUM(D18:D19) -> 24,584.00
A18: 51.02.03 | B18: Décimo Tercer Sueldo | D18: =+SUMIF(_cod1,A18,valor1) -> 17,699.00
A19: 51.02.04 | B19: Décimo Cuarto Sueldo | D19: =+SUMIF(_cod1,A19,valor1) -> 6,885.00
A20: 51.05 | B20: REMUNERACIONES TEMPORALES | D20: =SUM(D21:D25)+D26+D27 -> 28,671.77
A21: 51.05.12 | B21: Subrogación
A22: 51.05.06 | B22: Licencia Remunerada | D22: =+SUMIF(_cod1,A22,valor1) -> 0.00
A23: 51.05.13 | B23: Encargos
A24: 51.05.09 | B24: Horas Extraordinarias y Suplementarias | D24: =+SUMIF(_cod1,A24,valor1) -> 0.00
A25: 51.05.10 | B25: Servicios Personales por contrato | D25: =+SUMIF(_cod1,A25,valor1)-26590.21 -> 28,671.77
A26: 51.05.12 | B26: Subrogación
A27: 51.05.13 | B27: Encargos
A28: 51.06 | B28: APORTES PATRONALES A LA SEGURIDAD SOCIAL | D28: =SUM(D29:D30) -> 42,442.20
A29: 51.06.01 | B29: Aporte Patronal | D29: =+SUMIF(_cod1,A29,valor1) -> 24,743.20
A30: 51.06.02 | B30: Fondos de Reserva | D30: =+SUMIF(_cod1,A30,valor1) -> 17,699.00
A31: 51.07 | B31: INDEMNIZACIONES | D31: =SUM(D32+D33) -> 0.00
A32: 51.07.01 | B32: Compensación por Renuncia Voluntaria | D32: =+SUMIF(_cod1,A32,valor1) -> 0.00
A33: 51.07.99 | B33: Otras Indemnizaciones laborales | D33: =+SUMIF(_cod1,A33,valor1) -> 0.00
A34: 51.99 | B34: ASIGNACIÓN A DISTRIBUIR | D34: =D35 -> 0.00
A35: 51.99.01 | B35: Asignaciones a distribuir Gastos en el Personal | D35: =+SUMIF(_cod1,A35,valor1) -> 0.00
A36: 53 | B36: BIENES Y SERVICIOS DE CONSUMO | D36: =+D42+D50+D55+D61+D64+D68 -> 112,848.00
A37: 53.01 | B37: SERVICIOS BÁSICOS
A38: 53.01.01 | B38: Agua Potable | D38: 0.00
A39: 53.01.04 | B39: Energía eléctrica | D39: 0.00
A40: 53.01.05 | B40: Telecomunicaciones | D40: 0.00
A41: 53.01.06 | B41: Servicio de Correo
A42: 53.02 | B42: SERVICIOS GENERALES | D42: =SUM(D43:D49) -> 2,900.00
A43: 53.02.01 | B43: Transporte de personal | D43: =+SUMIF(_cod1,A43,valor1) -> 0.00
A44: 53.02.04 | B44: Edición, impresión, reproducción y publicaciones | D44: 2,900.00
A45: 53.02.05 | B45: Espectáculos Culturales y Sociales | D45: 0.00
A46: 53.02.06 | B46: Eventos Públicos y Oficiales | D46: 0.00
A47: 53.02.07 | B47: Difusión, Información y Publicidad | D47: 0.00
A48: 53.02.08 | B48: Servicios de Vigilancia | D48: 0.00
A49: 53.02.99 | B49: Otros Servicios Generales | D49: 0.00
A50: 53.03 | B50: TRASLADOS, INSTALACIONES, VIÁTICOS Y SUBSISTENCIAS | D50: =SUM(D51:D54) -> 0.00
A51: 53.03.01 | B51: Pasajes al Interior | D51: =+SUMIF(_cod1,A51,valor1) -> 0.00
A52: 53.03.02 | B52: Pasajes al exterior | D52: =+SUMIF(_cod1,A52,valor1) -> 0.00
A53: 53.03.03 | B53: Viáticos y Subsistencias en el Interior | D53: =+SUMIF(_cod1,A53,valor1) -> 0.00
A54: 53.03.04 | B54: Viáticos y Subsistencias en el Exterior | D54: =+SUMIF(_cod1,A54,valor1) -> 0.00
A55: 53.04 | B55: INSTALACIÓN, MANTENIMIENTO Y REPARACIÓN | D55: =SUM(D56:D60) -> 0.00
A56: 53.04.02 | B56: Edificios, locales y residencias | D56: 0.00
A57: 53.04.03 | B57: Mobiliarios | D57: =+SUMIF(_cod1,A57,valor1) -> 0.00
A58: 53.04.04 | B58: Maquinarias y Equipos
A59: 53.04.05 | B59: Vehículos
A60: 53.04.99 | B60: Otras instalaciones, mantenimiento y reparaciones. | D60: =+SUMIF(_cod1,A60,valor1) -> 0.00
A61: 53.06 | B61: CONTRATACIÓN DE ESTUDIOS E INVESTÍ | D61: =SUM(D63:D63) -> 2,000.00
A62: 53.06.01 | B62: Consultoría, Ascesoria e Investigación especializada | D62: 0.00
A63: 53.06.03 | B63: Servicios de Capacitación | D63: =+SUMIF(_cod1,A63,valor1) -> 2,000.00
A64: 53.07 | B64: GASTOS EN INFORMÁTICA | D64: =SUM(D65:D67) -> 100,600.00
A65: 53.07.01 | B65: Desarrollo Equipos. sistemas y paquetes informáticos | D65: 0.00
A66: 53.07.02 | B66: Arrendamiento y Licencias de Uso de Paquetes Informáticos | D66: =+SUMIF(_cod1,A66,valor1) -> 100,000.00
A67: 53.07.04 | B67: Mantenimiento y reparación de sistemas informáticos | D67: =+SUMIF(_cod1,A67,valor1) -> 600.00
A68: 53.08 | B68: BIENES DE USO Y CONSUMO CORRIENTE | D68: =SUM(D69:D78) -> 7,348.00
A69: 53.08.01 | B69: Alimentos y Bebidas | D69: 0.00
A70: 53.08.02 | B70: Vestuario, Lencería y Prendas de Protección | D70: =+SUMIF(_cod1,A70,valor1) -> 3,848.00
A71: 53.08.03 | B71: Combustibles y Lubricantes | D71: 0.00
A72: 53.08.04 | B72: Materiales de Oficina | D72: 2,500.00
A73: 53.08.05 | B73: Materiales de Aseo | D73: 500.00
A74: 53.08.06 | B74: Herramientas | D74: 0.00
A75: 53.08.07 | B75: Materiales de Impresión, Fotografía, Reproduc.y Publicaciones | D75: 500.00
A76: 53.08.11 | B76: Insumos, Bienes, Materiales y Suministros para la Construcción, Eléctricos, Plomería, Carpintería, Señalización Vial, Navegación y Contra Incendios | D76: 0.00
A77: 53.08.13 | B77: Repuestos y Accesorios | D77: 0.00
A78: 53.08.99 | B78: Otros de uso y consumo. | D78: 0.00
A79: 53.10 | B79: PERTRECHOS PARA LA DEFENSA Y SEGURIDAD PUBLICA | D79: 0.00
A80: 53.10.02 | B80: Suministros para la defensa y seguridad publica | D80: 0.00
A81: 53.99 | B81: ASIGNACIONES A DISTRIBUIR | D81: =D82 -> 0.00
A82: 53.99.01 | B82: Asignaciones a distribuir para Bienes y servicios | D82: =+SUMIF(_cod1,A82,valor1) -> 0.00
A83: 56 | B83: GASTOS FINANCIEROS | D83: =+D85 -> 25,000.00
A84: 56.01 | B84: TÍTULOS Y VALORES EN CIRCULACIÓN | D84: =+D85 -> 25,000.00
A85: 56.01.06 | B85: Descuentos, Comisiones y otros cargos en Títulos y valores | D85: =+SUMIF(_cod1,A85,valor1) -> 25,000.00
A86: 57 | B86: OTROS GASTOS CORRIENTES | D86: =+D88+D89 -> 8,600.00
A87: 57.02 | B87: SEGUROS, COSTOS FINANCIEROS Y OTROS GASTOS | D87: =SUM(D88:D92) -> 14,600.00
A88: 57.02.01 | B88: Seguros (caución funcionarios) | D88: =+SUMIF(_cod1,A88,valor1) -> 3,500.00
A89: 57.02.03 | B89: Comisiones bancarias | D89: =+SUMIF(_cod1,A89,valor1) -> 5,100.00
A90: 57.02.06 | B90: Costos Judiciales
A91: 57.02.13 | B91: Devolución de garantías | D91: =+SUMIF(_cod1,A91,valor1) -> 0.00
A92: 57.02.99 | B92: Otros Gastos Financieros | D92: =+SUMIF(_cod1,A92,valor1) -> 6,000.00
A93: 8. | B93: GASTOS DE CAPITAL | D93: =+D96+D97+D99 -> 4,950.00
A94: 84. | B94: ACTIVOS DE LARGA DURACIÓN | D94: =SUM(D95) -> 4,950.00
A95: 84.01 | B95: BIENES MUEBLES | D95: =SUM(D96:D101) -> 4,950.00
A96: 84.01.03 | B96: Mobiliarios | D96: =+SUMIF(_cod1,A96,valor1) -> 3,100.00
A97: 84.01.04 | B97: Maquinarias y Equipos | D97: 0.00
A98: 84.01.06 | B98: Herramientas | D98: 0.00
A99: 84.01.07 | B99: Equipos, sistemas y Paquetes informáticos | D99: 1,850.00
A100: 84.01.09 | B100: Libros y Colecciones | D100: 0.00
A101: 84.01.11 | B101: Partes y Repuestos | D101: 0.00
A102: 84.03 | B102: EXPROPIACIÓN DE BIENES | D102: 0.00
A103: 84.03.01 | B103: Terrenos | D103: 0.00
A104: 84.03.02 | B104: Edificios, locales y residencias | D104: 0.00
A105: 97 | B105: PASIVO CIRCULANTE | D105: =SUM(D106) -> 0.00
A106: 97.01 | B106: DEUDA FLOTANTE | D106: =D107 -> 0.00
A107: 97.01.01 | B107: De cuentas por pagar | D107: =+SUMIF(_cod1,A107,valor1) -> 0.00
B108: TOTAL PROGRAMA | D108: =+C693 -> 555,035.85
B110: DETALLE | C110: =+C111-GASTO!C27 -> 154,072.00
B111: CORRIENTES | C111: =+D12 -> 491,572.18
B112: INVERSIÓN | C112: 0
B113: CAPITAL | C113: =+D93 -> 4,950.00
B114: PASIVO CIRCULANTE | C114: =+D105 -> 0
B115: SUBTOTAL | C115: =+D108 -> 555,035.85
A117: FUNCIÓN I: SERVICIOS GENERALES
A118: CÓDIGO DE FUNCIÓN: 100
A119: =CONCATENATE("PROGRAMA 5to:"," ",GASTO!$B$39) -> PROGRAMA 5to: DIRECCION DE TALENTO HUMANO
A120: =CONCATENATE("CÓDIGO DE PROGRAMA:",+GASTO!A39) -> CÓDIGO DE PROGRAMA:150
A121: =CONCATENATE("SUBPROGRAMA 1ro",":"," ",GASTO!$B$40) -> SUBPROGRAMA 1ro: DIR. DE TALENTO HUMANO
A122: =CONCATENATE("CÓDIGO SUBPROGRAMA:"," ",GASTO!$A$40) -> CÓDIGO SUBPROGRAMA: 151
A123: 3DA. ASIGNACIÓN SEGÚN EL OBJETO DEL GASTO
A125: PARTIDA | B125: DETALLE | C125: ASIGNACIÓN
C126: =+D11 -> 2020
A127: 5 | B127: GASTOS CORRIENTES | C127: =SUM(C128+C150+C185+C182) -> 121,517.61
A128: 51 | B128: GASTOS EN PERSONAL | C128: =SUM(C129+C132+C135+C142+C145+C148) -> 117,417.61
A129: 51.01 | B129: REMUNERACIONES BÁSICAS | C129: =SUM(C130:C131) -> 62,352.00
A130: 51.01.05 | B130: Remuneraciones Unificadas | C130: =+'CDR PERS'!F167 -> 62,352.00
A131: 51.01.06 | B131: Salarios Unificados | C131: =SUMIFS(REMUN,ORG,GASTO!$B$28,CLASIF,B131) -> 0.00
A132: 51.02 | B132: REMUNERACIONES COMPLEMENTARIAS | C132: =SUM(C133:C134) -> 9,519.00
A133: 51.02.03 | B133: Décimo Tercer Sueldo | C133: =+'CDR PERS'!G40 -> 7,494.00
A134: 51.02.04 | B134: Décimo Cuarto Sueldo | C134: =+'CDR PERS'!H40 -> 2,025.00
A135: 51.05 | B135: REMUNERACIONES TEMPORALES | C135: =SUM(C136:C136:C139)+C140+C141 -> 27,576.00
A136: 51.05.12 | B136: Subrogación
A137: 51.05.13 | B137: Encargos | C137: 0.00
A138: 51.05.09 | B138: Horas Extraordinarias y Suplementarias
A139: 51.05.10 | B139: Servicios Personales por contrato | C139: =+'CDR PERS'!F292 -> 27,576.00
A140: 51.05.12 | B140: Subrogación
A141: 51.05.13 | B141: Encargos
A142: 51.06 | B142: APORTES PATRONALES A LA SEGURIDAD SOCIAL | C142: =SUM(C143:C144) -> 17,970.61
A143: 51.06.01 | B143: Aporte Patronal | C143: =+'CDR PERS'!J40 -> 10,476.61
A144: 51.06.02 | B144: Fondos de Reserva | C144: =+'CDR PERS'!I40 -> 7,494.00
A145: 51.07 | B145: INDEMNIZACIONES | C145: =SUM(C146:C147) -> 0.00
A146: 51.07.01 | B146: Compensación por Renuncia Voluntaria | C146: 0.00
A147: 51.07.99 | B147: Otras Indemnizaciones laborales | C147: 0.00
A148: 51.99 | B148: ASIGNACIÓN A DISTRIBUIR | C148: =C149 -> 0.00
A149: 51.99.01 | B149: Asignaciones a distribuir Gastos en el Personal | C149: =C129*0 -> 0.00
A150: 53 | B150: BIENES Y SERVICIOS DE CONSUMO | C150: =SUM(C151+C153+C157+C161+C166+C168+C171+C180) -> 4,100.00
A151: 53.01 | B151: SERVICIOS BASICOS | C151: =+C152 -> 0.00
A152: 53.01.06 | B152: Servicios de Correos | C152: 0.00
A153: 53.02 | B153: SERVICIOS GENERALES | C153: =SUM(C154:C156) -> 0.00
A154: 53.02.04 | B154: Edición, impresión, reproducción y publicaciones | C154: 0.00
A155: 53.02.07 | B155: Difusión, Información y Publicidad | C155: 0.00
A156: 53.02.17 | B156: Difusión e información | C156: 0.00
A157: 53.03 | B157: TRASLADOS, INSTALACIONES, VIÁTICOS Y SUBSISTENCIAS | C157: =+C158+C159+C160 -> 500.00
A158: 53.03.01 | B158: Pasajes al Interior | C158: 200.00
A159: 53.03.03 | B159: Viáticos y Subsistencias en el Interior | C159: 300.00
A160: 53.03.06 | B160: Viáticos por Gastos de Residencia
A161: 53.04 | B161: INSTALACIÓN, MANTENIMIENTO Y REPARACIÓN | C161: =+C162+C164 -> 0.00
A162: 53.04.02 | B162: Edificios, Locales , Residencias y Cableado Estructural | C162: 0.00
A163: 53.04.04 | B163: Maquinarias y Equipos | C163: 0.00
A164: 53.04.05 | B164: Vehículos | C164: 0.00
A165: 53.04.99 | B165: Otras instalaciones. mantenimiento y reparaciones. | C165: 0.00
A166: 53.06 | B166: CONTRATACIÓN DE ESTUDIOS E INVESTÍ | C166: =+C167 -> 500.00
A167: 53.06.12 | B167: Capacitación Servidores Publicos | C167: =+'CDR PERS'!N40 -> 500.00
A168: 53.07 | B168: GASTOS EN INFORMÁTICA | C168: =+C169+C170 -> 0.00
A169: 53.07.02 | B169: Arrendamiento y Licencias de Uso de Paquetes Informáticos | C169: 0.00
A170: 53.07.04 | B170: Mantenimiento y reparación de equipos y sistemas informáticos | C170: 0.00
A171: 53.08 | B171: BIENES DE USO Y CONSUMO CORRIENTE | C171: =+SUM(C172:C179) -> 3,100.00
A172: 53.08.02 | B172: Vestuario, Lencería y Prendas de Protección | C172: =+'CDR PERS'!M40 -> 1,000.00
A173: 53.08.03 | B173: Combustible y Lubricantes
A174: 53.08.04 | B174: Materiales de Oficina | C174: 400.00
A175: 53.08.05 | B175: Materiales de Aseo | C175: 200.00
A176: 53.08.07 | B176: Materiales de Impresión, Fotografía, Reproduc.y Publicaciones | C176: 1,500.00
A177: 53.08.11 | B177: Insumos, Bienes, Materiales y Suministros para la Construcción, Eléctricos, Plomería, Carpintería, Señalización Vial, Navegación y Contra Incendios | C177: 0.00
A178: 53.08.13 | B178: Repuestos y Accesorios | C178: 0.00
A179: 53.08.99 | B179: Otros de uso y consumo. | C179: 0.00
A180: 53.99 | B180: ASIGNACIONES A DISTRIBUIR | C180: =C181 -> 0.00
A181: 53.99.01 | B181: Asignaciones a distribuir para Bienes y servicios | C181: 0.00
A182: 56 | B182: GASTOS FINANCIEROS | C182: =+C184 -> 0.00
A183: 56.01 | B183: TÍTULOS Y VALORES EN CIRCULACIÓN | C183: =+C184 -> 0.00
A184: 56.01.06 | B184: Descuentos, Comisiones y otros cargos en Títulos y valores | C184: 0.00
A185: 57 | B185: OTROS GASTOS CORRIENTES | C185: =SUM(C187) -> 0.00
A186: 53.08.13 | B186: Repuestos y Accesorios | C186: 0.00
A187: 57.02 | B187: SEGUROS, COSTOS FINANCIEROS Y OTROS GASTOS | C187: =+C188+C189+C191 -> 0.00
A188: 57.02.01 | B188: Seguros (caución funcionarios) | C188: 0.00
A189: 57.02.03 | B189: Comisiones bancarias | C189: 0.00
A190: 57.02.13 | B190: Devolución de garantías | C190: 0.00
A191: 57.02.99 | B191: Intereses por mora patronal IESS | C191: 0.00
A192: 8. | B192: GASTOS DE CAPITAL | C192: =+C194 -> 1,500.00
A193: 84. | B193: ACTIVOS DE LARGA DURACIÓN | C193: =+C194 -> 1,500.00
A194: 84.01 | B194: BIENES MUEBLES | C194: =+C197+C195 -> 1,500.00
A195: 84.01.03 | B195: Mobiliarios | C195: 500.00
A196: 84.01.04 | B196: Maquinarias y Equipos | C196: 0.00
A197: 84.01.07 | B197: Equipos, sistemas y Paquetes informáticos | C197: 1,000.00
A198: 97 | B198: PASIVO CIRCULANTE | C198: =SUM(C199) -> 0.00
A199: 97.01 | B199: DEUDA FLOTANTE | C199: =C200 -> 0.00
A200: 97.01.01 | B200: De cuentas por pagar | C200: 0.00
B201: TOTAL PROGRAMA | C201: =SUM(C128,C150,C185,C192+C182) -> 123,017.61
B203: DETALLE
B204: CORRIENTES | C204: =+C127 -> 121,517.61
B205: INVERSIÓN | C205: 0
B206: CAPITAL | C206: =+C192 -> 1,500.00
... 441 more rows

Sheet 160
A1: =+'100'!B1 -> GOBIERNO AUTONOMO DESCENTRALIZADO MUNICIPAL DEL CANTON PEDRO MONCAYO
A2: =+'100'!B2 -> PROFORMA PRESUPUESTARIA AÑO 2020
A4: FUNCIÓN I: SERVICIOS GENERALES
A5: CÓDIGO DE FUNCIÓN: 100
A6: =CONCATENATE("PROGRAMA 6 to:"," ",GASTO!$B$45) -> PROGRAMA 6 to: DIRECCION DE SERVICIOS PUBLICOS
A7: =CONCATENATE("CÓDIGO DE PROGRAMA:",+GASTO!A45) -> CÓDIGO DE PROGRAMA:160
A8: 3DA. ASIGNACIÓN SEGÚN EL OBJETO DEL GASTO
A10: PARTIDA | B10: DETALLE | D10: ASIGNACIÓN
D11: =+DAT_INI!B3 -> 2020
A12: 5 | B12: GASTOS CORRIENTES | D12: =SUM(D13+D36+D86+D83) -> 391,672.18
A13: 51 | B13: GASTOS EN PERSONAL | D13: =+D14+D17+D20+D28+37038.21 -> 345,124.18
A14: 51.01 | B14: REMUNERACIONES BÁSICAS | D14: =SUM(D15:D16) -> 212,388.00
A15: 51.01.05 | B15: Remuneraciones Unificadas | D15: =+SUMIF(_cod1,A15,valor1) -> 212,388.00
A16: 51.01.06 | B16: Salarios unificados | D16: =+SUMIF(_cod1,A16,valor1) -> 0.00
A17: 51.02 | B17: REMUNERACIONES COMPLEMENTARIAS | D17: =SUM(D18:D19) -> 24,584.00
A18: 51.02.03 | B18: Décimo Tercer Sueldo | D18: =+SUMIF(_cod1,A18,valor1) -> 17,699.00
A19: 51.02.04 | B19: Décimo Cuarto Sueldo | D19: =+SUMIF(_cod1,A19,valor1) -> 6,885.00
A20: 51.05 | B20: REMUNERACIONES TEMPORALES | D20: =SUM(D21:D25)+D26+D27 -> 28,671.77
A21: 51.05.12 | B21: Subrogación
A22: 51.05.06 | B22: Licencia Remunerada+B89 | D22: =+SUMIF(_cod1,A22,valor1) -> 0.00
A23: 51.05.13 | B23: Encargos
A24: 51.05.09 | B24: Horas Extraordinarias y Suplementarias | D24: =+SUMIF(_cod1,A24,valor1) -> 0.00
A25: 51.05.10 | B25: Servicios Personales por contrato | D25: =+SUMIF(_cod1,A25,valor1)-26590.21 -> 28,671.77
A26: 51.05.12 | B26: Subrogación
A27: 51.05.13 | B27: Encargos
A28: 51.06 | B28: APORTES PATRONALES A LA SEGURIDAD SOCIAL | D28: =SUM(D29:D30) -> 42,442.20
A29: 51.06.01 | B29: Aporte Patronal | D29: =+SUMIF(_cod1,A29,valor1) -> 24,743.20
A30: 51.06.02 | B30: Fondos de Reserva | D30: =+SUMIF(_cod1,A30,valor1) -> 17,699.00
A31: 51.07 | B31: INDEMNIZACIONES | D31: =SUM(D32+D33) -> 0.00
A32: 51.07.01 | B32: Compensación por Renuncia Voluntaria | D32: =+SUMIF(_cod1,A32,valor1) -> 0.00
A33: 51.07.99 | B33: Otras Indemnizaciones laborales | D33: =+SUMIF(_cod1,A33,valor1) -> 0.00
A34: 51.99 | B34: ASIGNACIÓN A DISTRIBUIR | D34: =D35 -> 0.00
A35: 51.99.01 | B35: Asignaciones a distribuir Gastos en el Personal | D35: =+SUMIF(_cod1,A35,valor1) -> 0.00
A36: 53 | B36: BIENES Y SERVICIOS DE CONSUMO | D36: =+D42+D50+D55+D61+D64+D68 -> 12,948.00
A37: 53.01 | B37: SERVICIOS BÁSICOS
A38: 53.01.01 | B38: Agua Potable | D38: 0.00
A39: 53.01.04 | B39: Energía eléctrica | D39: 0.00
A40: 53.01.05 | B40: Telecomunicaciones | D40: 0.00
A41: 53.01.06 | B41: Servicio de Correo
A42: 53.02 | B42: SERVICIOS GENERALES | D42: =SUM(D43:D49) -> 2,900.00
A43: 53.02.01 | B43: Transporte de personal | D43: =+SUMIF(_cod1,A43,valor1) -> 0.00
A44: 53.02.04 | B44: Edición, impresión, reproducción y publicaciones | D44: 2,900.00
A45: 53.02.05 | B45: Espectáculos Culturales y Sociales | D45: 0.00
A46: 53.02.06 | B46: Eventos Públicos y Oficiales | D46: 0.00
A47: 53.02.07 | B47: Difusión, Información y Publicidad | D47: 0.00
A48: 53.02.08 | B48: Servicios de Vigilancia | D48: 0.00
A49: 53.02.99 | B49: Otros Servicios Generales | D49: 0.00
A50: 53.03 | B50: TRASLADOS, INSTALACIONES, VIÁTICOS Y SUBSISTENCIAS | D50: =SUM(D51:D54) -> 0.00
A51: 53.03.01 | B51: Pasajes al Interior | D51: =+SUMIF(_cod1,A51,valor1) -> 0.00
A52: 53.03.02 | B52: Pasajes al exterior | D52: =+SUMIF(_cod1,A52,valor1) -> 0.00
A53: 53.03.03 | B53: Viáticos y Subsistencias en el Interior | D53: =+SUMIF(_cod1,A53,valor1) -> 0.00
A54: 53.03.04 | B54: Viáticos y Subsistencias en el Exterior | D54: =+SUMIF(_cod1,A54,valor1) -> 0.00
A55: 53.04 | B55: INSTALACIÓN, MANTENIMIENTO Y REPARACIÓN | D55: =SUM(D56:D60) -> 0.00
A56: 53.04.02 | B56: Edificios, locales y residencias | D56: 0.00
A57: 53.04.03 | B57: Mobiliarios | D57: =+SUMIF(_cod1,A57,valor1) -> 0.00
A58: 53.04.04 | B58: Maquinarias y Equipos
A59: 53.04.05 | B59: Vehículos
A60: 53.04.99 | B60: Otras instalaciones, mantenimiento y reparaciones. | D60: =+SUMIF(_cod1,A60,valor1) -> 0.00
A61: 53.06 | B61: CONTRATACIÓN DE ESTUDIOS E INVESTÍ | D61: =SUM(D63:D63) -> 2,000.00
A62: 53.06.01 | B62: Consultoría, Ascesoria e Investigación especializada | D62: 0.00
A63: 53.06.03 | B63: Servicios de Capacitación | D63: =+SUMIF(_cod1,A63,valor1) -> 2,000.00
A64: 53.07 | B64: GASTOS EN INFORMÁTICA | D64: =SUM(D65:D67) -> 700.00
A65: 53.07.01 | B65: Desarrollo Equipos. sistemas y paquetes informáticos | D65: 0.00
A66: 53.07.02 | B66: Arrendamiento y Licencias de Uso de Paquetes Informáticos | D66: 100.00
A67: 53.07.04 | B67: Mantenimiento y reparación de sistemas informáticos | D67: =+SUMIF(_cod1,A67,valor1) -> 600.00
A68: 53.08 | B68: BIENES DE USO Y CONSUMO CORRIENTE | D68: =SUM(D69:D78) -> 7,348.00
A69: 53.08.01 | B69: Alimentos y Bebidas | D69: 0.00
A70: 53.08.02 | B70: Vestuario, Lencería y Prendas de Protección | D70: =+SUMIF(_cod1,A70,valor1) -> 3,848.00
A71: 53.08.03 | B71: Combustibles y Lubricantes | D71: 0.00
A72: 53.08.04 | B72: Materiales de Oficina | D72: 2,500.00
A73: 53.08.05 | B73: Materiales de Aseo | D73: 500.00
A74: 53.08.06 | B74: Herramientas | D74: 0.00
A75: 53.08.07 | B75: Materiales de Impresión, Fotografía, Reproduc.y Publicaciones | D75: 500.00
A76: 53.08.11 | B76: Insumos, Bienes, Materiales y Suministros para la Construcción, Eléctricos, Plomería, Carpintería, Señalización Vial, Navegación y Contra Incendios | D76: 0.00
A77: 53.08.13 | B77: Repuestos y Accesorios | D77: 0.00
A78: 53.08.99 | B78: Otros de uso y consumo. | D78: 0.00
A79: 53.10 | B79: PERTRECHOS PARA LA DEFENSA Y SEGURIDAD PUBLICA | D79: 0.00
A80: 53.10.02 | B80: Suministros para la defensa y seguridad publica | D80: 0.00
A81: 53.99 | B81: ASIGNACIONES A DISTRIBUIR | D81: =D82 -> 0.00
A82: 53.99.01 | B82: Asignaciones a distribuir para Bienes y servicios | D82: =+SUMIF(_cod1,A82,valor1) -> 0.00
A83: 56 | B83: GASTOS FINANCIEROS | D83: =+D85 -> 25,000.00
A84: 56.01 | B84: TÍTULOS Y VALORES EN CIRCULACIÓN | D84: =+D85 -> 25,000.00
A85: 56.01.06 | B85: Descuentos, Comisiones y otros cargos en Títulos y valores | D85: =+SUMIF(_cod1,A85,valor1) -> 25,000.00
A86: 57 | B86: OTROS GASTOS CORRIENTES | D86: =+D88+D89 -> 8,600.00
A87: 57.02 | B87: SEGUROS, COSTOS FINANCIEROS Y OTROS GASTOS | D87: =SUM(D88:D92) -> 14,600.00
A88: 57.02.01 | B88: Seguros (caución funcionarios) | D88: =+SUMIF(_cod1,A88,valor1) -> 3,500.00
A89: 57.02.03 | B89: Comisiones bancarias | D89: =+SUMIF(_cod1,A89,valor1) -> 5,100.00
A90: 57.02.06 | B90: Costos Judiciales
A91: 57.02.13 | B91: Devolución de garantías | D91: =+SUMIF(_cod1,A91,valor1) -> 0.00
A92: 57.02.99 | B92: Otros Gastos Financieros | D92: =+SUMIF(_cod1,A92,valor1) -> 6,000.00
A93: 8. | B93: GASTOS DE CAPITAL | D93: =+D96+D97+D99 -> 4,950.00
A94: 84. | B94: ACTIVOS DE LARGA DURACIÓN | D94: =SUM(D95) -> 4,950.00
A95: 84.01 | B95: BIENES MUEBLES | D95: =SUM(D96:D101) -> 4,950.00
A96: 84.01.03 | B96: Mobiliarios | D96: =+SUMIF(_cod1,A96,valor1) -> 3,100.00
A97: 84.01.04 | B97: Maquinarias y Equipos | D97: 0.00
A98: 84.01.06 | B98: Herramientas | D98: 0.00
A99: 84.01.07 | B99: Equipos, sistemas y Paquetes informáticos | D99: 1,850.00
A100: 84.01.09 | B100: Libros y Colecciones | D100: 0.00
A101: 84.01.11 | B101: Partes y Repuestos | D101: 0.00
A102: 84.03 | B102: EXPROPIACIÓN DE BIENES | D102: 0.00
A103: 84.03.01 | B103: Terrenos | D103: 0.00
A104: 84.03.02 | B104: Edificios, locales y residencias | D104: 0.00
A105: 97 | B105: PASIVO CIRCULANTE | D105: =SUM(D106) -> 0.00
A106: 97.01 | B106: DEUDA FLOTANTE | D106: =D107 -> 0.00
A107: 97.01.01 | B107: De cuentas por pagar | D107: =+SUMIF(_cod1,A107,valor1) -> 0.00
B108: TOTAL PROGRAMA | D108: =+C512 -> 464,957.33
B110: DETALLE | C110: =+C111-GASTO!C27 -> 54,172.00
B111: CORRIENTES | C111: =+D12 -> 391,672.18
B112: INVERSIÓN | C112: 0
B113: CAPITAL | C113: =+D93 -> 4,950.00
B114: PASIVO CIRCULANTE | C114: =+D105 -> 0
B115: SUBTOTAL | C115: =+D108 -> 464,957.33
A118: FUNCIÓN I: SERVICIOS GENERALES
A119: CÓDIGO DE FUNCIÓN: 100
A120: =CONCATENATE("PROGRAMA 6 to:"," ",GASTO!$B$45) -> PROGRAMA 6 to: DIRECCION DE SERVICIOS PUBLICOS
A121: =CONCATENATE("CÓDIGO DE PROGRAMA:",+GASTO!A45) -> CÓDIGO DE PROGRAMA:160
A122: =CONCATENATE("SUBPROGRAMA 1ro",":"," ",GASTO!$B$46) -> SUBPROGRAMA 1ro: DIRECCION DE SERVICIOS PUBLICOS
A123: =CONCATENATE("CÓDIGO SUBPROGRAMA:"," ",GASTO!$A$46) -> CÓDIGO SUBPROGRAMA: 161
A124: 3DA. ASIGNACIÓN SEGÚN EL OBJETO DEL GASTO
A126: PARTIDA | B126: DETALLE | C126: ASIGNACIÓN
C127: =+D11 -> 2020
A128: 5 | B128: GASTOS CORRIENTES | C128: =SUM(C129+C151+C186+C183) -> 54,786.34
A129: 51 | B129: GASTOS EN PERSONAL | C129: =SUM(C130+C133+C136+C143+C146+C149) -> 47,886.34
A130: 51.01 | B130: REMUNERACIONES BÁSICAS | C130: =SUM(C131:C132) -> 0.00
A131: 51.01.05 | B131: Remuneraciones Unificadas | C131: =+'CDR PERS'!F173 -> 0.00
A132: 51.01.06 | B132: Salarios Unificados | C132: =SUMIFS(REMUN,ORG,GASTO!$B$28,CLASIF,B132) -> 0.00
A133: 51.02 | B133: REMUNERACIONES COMPLEMENTARIAS | C133: =SUM(C134:C135) -> 4,246.00
A134: 51.02.03 | B134: Décimo Tercer Sueldo | C134: =+'CDR PERS'!G46 -> 3,031.00
A135: 51.02.04 | B135: Décimo Cuarto Sueldo | C135: =+'CDR PERS'!H46 -> 1,215.00
A136: 51.05 | B136: REMUNERACIONES TEMPORALES | C136: =SUM(C137:C137:C140)+C141+C142 -> 36,372.00
A137: 51.05.12 | B137: Subrogación
A138: 51.05.13 | B138: Encargos | C138: 0.00
A139: 51.05.09 | B139: Horas Extraordinarias y Suplementarias
A140: 51.05.10 | B140: Servicios Personales por contrato | C140: =+'CDR PERS'!F298 -> 36,372.00
A141: 51.05.12 | B141: Subrogación
A142: 51.05.13 | B142: Encargos
A143: 51.06 | B143: APORTES PATRONALES A LA SEGURIDAD SOCIAL | C143: =SUM(C144:C145) -> 7,268.34
A144: 51.06.01 | B144: Aporte Patronal | C144: =+'CDR PERS'!J46 -> 4,237.34
A145: 51.06.02 | B145: Fondos de Reserva | C145: =+'CDR PERS'!I46 -> 3,031.00
A146: 51.07 | B146: INDEMNIZACIONES | C146: =SUM(C147:C148) -> 0.00
A147: 51.07.01 | B147: Compensación por Renuncia Voluntaria | C147: 0.00
A148: 51.07.99 | B148: Otras Indemnizaciones laborales | C148: 0.00
A149: 51.99 | B149: ASIGNACIÓN A DISTRIBUIR | C149: =C150 -> 0.00
A150: 51.99.01 | B150: Asignaciones a distribuir Gastos en el Personal | C150: =C130*0 -> 0.00
A151: 53 | B151: BIENES Y SERVICIOS DE CONSUMO | C151: =SUM(C152+C154+C158+C162+C167+C169+C172+C181) -> 6,900.00
A152: 53.01 | B152: SERVICIOS BASICOS | C152: =+C153 -> 0.00
A153: 53.01.06 | B153: Servicios de Correos | C153: 0.00
A154: 53.02 | B154: SERVICIOS GENERALES | C154: =SUM(C155:C157) -> 0.00
A155: 53.02.04 | B155: Edición, impresión, reproducción y publicaciones | C155: 0.00
A156: 53.02.07 | B156: Difusión, Información y Publicidad | C156: 0.00
A157: 53.02.17 | B157: Difusión e información | C157: 0.00
A158: 53.03 | B158: TRASLADOS, INSTALACIONES, VIÁTICOS Y SUBSISTENCIAS | C158: =+C159+C160+C161 -> 0.00
A159: 53.03.01 | B159: Pasajes al Interior | C159: 0.00
A160: 53.03.03 | B160: Viáticos y Subsistencias en el Interior | C160: 0.00
A161: 53.03.06 | B161: Viáticos por Gastos de Residencia
A162: 53.04 | B162: INSTALACIÓN, MANTENIMIENTO Y REPARACIÓN | C162: =+C163+C165 -> 0.00
A163: 53.04.02 | B163: Edificios, Locales , Residencias y Cableado Estructural | C163: 0.00
A164: 53.04.04 | B164: Maquinarias y Equipos | C164: 0.00
A165: 53.04.05 | B165: Vehículos | C165: 0.00
A166: 53.04.99 | B166: Otras instalaciones. mantenimiento y reparaciones. | C166: 0.00
A167: 53.06 | B167: CONTRATACIÓN DE ESTUDIOS E INVESTÍ | C167: =+C168 -> 400.00
A168: 53.06.12 | B168: Capacitación Servidores Publicos | C168: =+'CDR PERS'!N46+100 -> 400.00
A169: 53.07 | B169: GASTOS EN INFORMÁTICA | C169: =+C170+C171 -> 2,000.00
A170: 53.07.02 | B170: Arrendamiento y Licencias de Uso de Paquetes Informáticos | C170: 0.00
A171: 53.07.04 | B171: Mantenimiento y reparación de equipos y sistemas informáticos | C171: 2,000.00
A172: 53.08 | B172: BIENES DE USO Y CONSUMO CORRIENTE | C172: =+SUM(C173:C179) -> 4,500.00
A173: 53.08.02 | B173: Vestuario, Lencería y Prendas de Protección | C173: =+'CDR PERS'!M46 -> 600.00
A174: 53.08.03 | B174: Combustible y Lubricantes | C174: 500.00
A175: 53.08.04 | B175: Materiales de Oficina | C175: 400.00
A176: 53.08.05 | B176: Materiales de Aseo | C176: 500.00
A177: 53.08.07 | B177: Materiales de Impresión, Fotografía, Reproduc.y Publicaciones | C177: 2,000.00
A178: 53.08.11 | B178: Insumos, Bienes, Materiales y Suministros para la Construcción, Eléctricos, Plomería, Carpintería, Señalización Vial, Navegación y Contra Incendios | C178: 0.00
A179: 53.08.13 | B179: Repuestos y Accesorios | C179: 500.00
A180: 53.08.99 | B180: Otros de uso y consumo. | C180: 0.00
A181: 53.99 | B181: ASIGNACIONES A DISTRIBUIR | C181: =C182 -> 0.00
A182: 53.99.01 | B182: Asignaciones a distribuir para Bienes y servicios | C182: 0.00
A183: 56 | B183: GASTOS FINANCIEROS | C183: =+C185 -> 0.00
A184: 56.01 | B184: TÍTULOS Y VALORES EN CIRCULACIÓN | C184: =+C185 -> 0.00
A185: 56.01.06 | B185: Descuentos, Comisiones y otros cargos en Títulos y valores | C185: 0.00
A186: 57 | B186: OTROS GASTOS CORRIENTES | C186: =SUM(C188) -> 0.00
A187: 53.08.13 | B187: Repuestos y Accesorios | C187: 0.00
A188: 57.02 | B188: SEGUROS, COSTOS FINANCIEROS Y OTROS GASTOS | C188: =+C189+C190+C192 -> 0.00
A189: 57.02.01 | B189: Seguros (caución funcionarios) | C189: 0.00
A190: 57.02.03 | B190: Comisiones bancarias | C190: 0.00
A191: 57.02.13 | B191: Devolución de garantías | C191: 0.00
A192: 57.02.99 | B192: Intereses por mora patronal IESS | C192: 0.00
A193: 8. | B193: GASTOS DE CAPITAL | C193: =+C195 -> 4,400.00
A194: 84. | B194: ACTIVOS DE LARGA DURACIÓN | C194: =+C195 -> 4,400.00
A195: 84.01 | B195: BIENES MUEBLES | C195: =+C198+C196+C197 -> 4,400.00
A196: 84.01.03 | B196: Mobiliarios | C196: 1,000.00
A197: 84.01.04 | B197: Maquinarias y Equipos | C197: 400.00
A198: 84.01.07 | B198: Equipos, sistemas y Paquetes informáticos | C198: 3,000.00
A199: 97 | B199: PASIVO CIRCULANTE | C199: =SUM(C200) -> 0.00
A200: 97.01 | B200: DEUDA FLOTANTE | C200: =C201 -> 0.00
A201: 97.01.01 | B201: De cuentas por pagar | C201: 0.00
B202: TOTAL PROGRAMA | C202: =SUM(C129,C151,C186,C193+C183) -> 59,186.34
B204: DETALLE
B205: CORRIENTES | C205: =+C128 -> 54,786.34
B206: INVERSIÓN | C206: 0
B207: CAPITAL | C207: =+C193 -> 4,400.00
... 282 more rows

Sheet 200 (hidden)
A1: =+'100'!B1 -> GOBIERNO AUTONOMO DESCENTRALIZADO MUNICIPAL DEL CANTON PEDRO MONCAYO
A2: =+'100'!B2 -> PROFORMA PRESUPUESTARIA AÑO 2020
A4: =+GASTO!B51 -> FUNCION II: SERVICIOS SOCIALES
A5: CÓDIGO DE FUNCIÓN: 200
A6: 3DA. ASIGNACIÓN SEGÚN EL OBJETO DEL GASTO
A10: PARTIDA | B10: DETALLE | C10: ASIGNACIÓN | D10: =IF(C10>0,"ET","CERO") -> ET
C11: =+'210'!D11 -> AÑO 2020 | D11: ET
A12: 7 | B12: GASTOS DE INVERSIÓN | C12: =SUM(C13+C32+C83+C73)+100 -> 1,848,651.84 | D12: ET
A13: 71 | B13: GASTOS EN PERSONAL PARA INVERSIÓN | C13: =SUM(C14+C17+C20+C25+C30+C28) -> 986,934.83 | D13: ET
A14: 71.01 | B14: REMUNERACIONES BÁSICAS | C14: =SUM(C15:C16) -> 70,512.00 | D14: =IF(C14>0,"ET","CERO") -> ET
A15: 71.01.06 | B15: Salarios Unificados | C15: =+'210'!D15+'220'!C15 -> 0.00 | D15: CERO
A16: 71.01.05 | B16: Remuneraciones Unificados | C16: =+'210'!D16+'220'!C16 -> 70,512.00 | D16: ET
A17: 71.02 | B17: REMUNERACIONES COMPLEMENTARIAS | C17: =SUM(C18:C19) -> 82,852.00 | D17: ET
A18: 71.02.03 | B18: Décimo Tercer Sueldo | C18: =+'210'!D18+'220'!C18 -> 44,782.00 | D18: ET
A19: 71.02.04 | B19: Décimo Cuarto Sueldo | C19: =+'210'!D19+'220'!C19 -> 38,070.00 | D19: ET
A20: 71.05 | B20: REMUNERACIONES TEMPORALES | C20: =SUM(C21:C24) -> 726,183.59 | D20: ET
A21: 71.05.04 | B21: Encargo y subrogaciones | C21: =+'210'!D21+'220'!C21 -> 979.33 | D21: ET
A22: 71.05.06 | B22: Licencia Remunerada | C22: =+'210'!D22+'220'!C22 -> 0.00 | D22: CERO
A23: 71.05.09 | B23: Horas extraordinarias | C23: =+'210'!D23+'220'!C23 -> 0.00 | D23: CERO
A24: 71.05.10 | B24: Servicios Personales por contrato | C24: =+'210'!D24+'220'!C24 -> 725,204.26 | D24: ET
A25: 71.06 | B25: APORTES PATRONALES A LA SEGURIDAD SOCIAL | C25: =SUM(C26:C27) -> 107,387.24 | D25: ET
A26: 71.06.01 | B26: Aporte Patronal | C26: =+'210'!D26+'220'!C26 -> 62,605.24 | D26: ET
A27: 71.06.02 | B27: Fondos de Reserva | C27: =+'210'!D27+'220'!C27 -> 44,782.00 | D27: ET
A28: 71.07 | B28: INDEMNIZACIONES | C28: =SUM(C29) -> 0.00 | D28: CERO
A29: 71.07.01 | B29: compensación por renuncia voluntaria | C29: =+'210'!D29+'220'!C29 -> 0.00 | D29: CERO
A30: 71.99 | B30: ASIGNACIONES A DISTRIBUIR PARA GTOS PERSONAL DE INVERSIÓN | C30: =C31 -> 0.00 | D30: CERO
A31: 71.99.01 | B31: Asignaciones a Distribuir para Gastos en el Personal | C31: =+'210'!D31+'220'!C31 -> 0.00 | D31: CERO
A32: 73 | B32: BIENES Y SERVICIOS DE INVERSIÓN | C32: =SUM(C33+C36+C43+C46+C51+C53+C60+C71+C57+C69) -> 821,617.01 | D32: ET
A33: 73.01 | B33: SERVICIOS BASICOS | C33: =+C35+C34 -> 0.00 | D33: CERO
A34: 73.01.05 | B34: Energía Eléctrica | C34: =+'210'!D34+'220'!C33 -> 0.00 | D34: CERO
A35: 73.01.05 | B35: Telecomunicaciones | C35: =+'210'!D35+'220'!C34 -> 0.00 | D35: CERO
A36: 73.02 | B36: SERVICIOS GENERALES | C36: =SUM(C37:C42) -> 722,817.01 | D36: ET
A37: 73.02.01 | B37: Transporte de personal | C37: =+'210'!D37+'220'!C36 -> 36,000.00 | D37: ET
A38: 73.02.04 | B38: Impresión. reproducción y publicaciones | C38: =+'210'!D38+'220'!C37 -> 6,650.00 | D38: ET
A39: 73.02.05 | B39: Espectaculos Culturales y Sociales | C39: =+'210'!D39+'220'!C38 -> 15,000.00 | D39: ET
A40: 73.02.06 | B40: Eventos Publicos y Oficiales | C40: =+'210'!D40+'220'!C39 -> 0.00 | D40: CERO
A41: 73.02.07 | B41: Difusión. Información y Publicidad | C41: =+'210'!D41+'220'!C40 -> 0.00 | D41: CERO
A42: 73.02.17 | B42: Servicio de Alimentacion ( CIBVs) | C42: =+'210'!D42+'220'!C41 -> 665,167.01 | D42: ET
A43: 73.03 | B43: TRASLADOS. INSTALACIONES. VIÁTICOS Y SUBSISTENCIAS | C43: =SUM(C44:C45) -> 0.00 | D43: CERO
A44: 73.03.01 | B44: Pasajes al Interior | C44: =+'210'!D44+'220'!C43 -> 0.00 | D44: CERO
A45: 73.03.03 | B45: Viáticos y Subsistencias en el Interior | C45: =+'210'!D45+'220'!C44 -> 0.00 | D45: CERO
A46: 73.04 | B46: INSTALACIÓN. MANTENIMIENTO Y REPARACIÓN | C46: =SUM(C47:C50) -> -100.00 | D46: CERO
A47: 73.04.03 | B47: Mobiliarios | C47: =+'210'!D47+'220'!C46 -> 0.00 | D47: CERO
A48: 73.04.04 | B48: Maquinarias y Equipos | C48: =+'210'!D48+'220'!C47-100 -> -100.00
A49: 73.04.05 | B49: Vehículos | C49: =+'210'!D49+'220'!C48 -> 0.00 | D49: CERO
A50: 73.04.06 | B50: Matenimiento y Reparación de Instituciones Educativas | C50: =+'210'!D50+'220'!C49 -> 0.00 | D50: CERO
A51: 73.05 | B51: INSTALACION. MANTENIMIENTO Y REPARACION | C51: =+C52 -> 0.00 | D51: CERO
A52: 73.05.02 | B52: Arrendamiento de Locales | C52: =+'210'!D52+'220'!C51 -> 0.00 | D52: CERO
A53: 73.06 | B53: CONTRATACIÓN DE ESTUDIOS E INVESTIGACIONES | C53: =SUM(C54:C56) -> 11,800.00 | D53: ET
A54: 73.06.03 | B54: Servicio de Capacitación | C54: =+'210'!D54+'220'!C53 -> 11,800.00 | D54: ET
A55: 73.06.04 | B55: Fiscalización y Inspecciones Técnicas | C55: =+'210'!D55+'220'!C54 -> 0.00 | D55: CERO
A56: 73.06.05 | B56: Estudio y diseño de proyectos | C56: =+'210'!D56+'220'!C55 -> 0.00 | D56: CERO
A57: 73.07 | B57: GASTOS EN INFORMÁTICA | C57: =+C58+C59 -> 0.00 | D57: CERO
A58: 73.07.02 | B58: Arrendamiento y Licencias de uso paquetes Informa | C58: =+'210'!D58+'220'!C57 -> 0.00 | D58: CERO
A59: 73.07.04 | B59: Mantenimiento y reparación de equipos y sistemas informáticos | C59: =+'210'!D59+'220'!C58 -> 0.00 | D59: CERO
A60: 73.08 | B60: BIENES DE USO Y CONSUMO CORRIENTE | C60: =SUM(C61:C68) -> 87,100.00 | D60: ET
A61: 73.08.02 | B61: Vestuario. Lencería y Prendas de Protección | C61: =+'210'!D61+'220'!C60 -> 23,600.00 | D61: ET
A62: 73.08.03 | B62: Combustibles y Lubricantes | C62: =+'210'!D62+'220'!C61 -> 0.00 | D62: CERO
A63: 73.08.04 | B63: Materiales de Oficina | C63: =+'210'!D63+'220'!C62 -> 1,400.00 | D63: ET
A64: 73.08.05 | B64: Materiales de Aseo | C64: =+'210'!D64+'220'!C63 -> 12,150.00 | D64: ET
A65: 73.08.07 | B65: Materiales de Impresión. Fotografía. Reproduc.y Publicaciones | C65: =+'210'!D65+'220'!C64 -> -50.00 | D65: CERO
A66: 73.08.11 | B66: Materiales construcción. eléctrica. plomería y carpintería | C66: =+'210'!D66+'220'!C65 -> 30,000.00 | D66: ET
A67: 73.08.13 | B67: Repuestos y accesorios | C67: =+'210'!D67+'220'!C66 -> 20,000.00 | D67: ET
A68: 73.08.99 | B68: Otros de uso y consumo. | C68: =+'210'!D68+'220'!C67 -> 0.00 | D68: CERO
A69: 73.14 | B69: BIENES MUEBLES NO DEPRECIABLES | C69: =+C70 -> 0.00 | D69: CERO
A70: 73.14.07 | B70: Equipos, Sistemas y Paquetes Informáticos - Canje Deuda | C70: =+'210'!D70+'220'!C69 -> 0.00 | D70: CERO
A71: 73.99 | B71: ASIGNACIONES A DISTRIBUIR PARA BIENES Y SERVI. INVERSIÓN | C71: =C72 -> 0.00 | D71: CERO
A72: 73.99.01 | B72: Asignaciones a Distribuir para Bienes y servicios | C72: =+'210'!D72+'220'!C71 -> 0.00 | D72: CERO
A73: 75 | B73: OBRAS PUBLICAS | C73: =SUM(C74,C81,C79) -> 0.00 | D73: CERO
A74: 75.01 | B74: OBRAS DE INFRAESTRUCTURA | C74: =SUM(C75:C78) -> 0.00 | D74: CERO
A75: 75.01.04 | B75: DE URBANIZACION Y EMBELLECIMIENTO | C75: =+'210'!D75+'220'!C74 -> 0.00 | D75: CERO
A76: 75.01.07 | B76: CONSTRUCCIONES Y EDIFICACIONES | C76: =+'210'!D76+'220'!C75 -> 0.00 | D76: CERO
A77: 75.01.99 | B77: HOSPITALES Y CENTROS DE ASISTENCIA SOCIAL Y SALUD | C77: =+'210'!D77+'220'!C76 -> 0.00 | D77: CERO
A78: 75.01.09 | B78: OTRAS OBRAS DE INFRAESTRUCTURA | C78: =+'210'!D78+'220'!C80 -> 0.00 | D78: =IF(C78>0,"ET","CERO") -> CERO
A79: 75.05 | B79: MANTENIMIENTO Y REPARACIONES | C79: =+'210'!D79+'220'!C81 -> 0.00 | D79: CERO
A80: 75.05.01 | B80: EN OBRAS DE INFRAESTRUCTURA | C80: =+'210'!D80+'220'!C82 -> 0.00 | D80: CERO
A81: 75.99 | B81: ASIGNACIONES A DISTRIBUIR | C81: =+C82 -> 0.00 | D81: CERO
A82: 75.99.01 | B82: Asignaciones a distribuir en bienes y servicios | C82: =+'210'!D82+'220'!C84 -> 0.00 | D82: CERO
A83: 78 | B83: TRANSFERENCIAS Y DONACIONES INVERSIÓN | C83: =SUM(C84+C91+C111) -> 40,000.00 | D83: ET
A84: 78.01 | B84: TRANSFERENCIAS PARA INVERSIÓN SECTOR PUBLICO | C84: =C85 -> 40,000.00 | D84: ET
A85: 78.01.04 | B85: A ENTIDADES DEL GOBIERNO SECCIONAL | C85: =SUM(C86:C90) -> 40,000.00 | D85: ET
A86: 78.01.04.01 | B86: Junta Parroquial | C86: =+'210'!D86+'220'!C88 -> 40,000.00 | D86: ET
A87: 78.01.04.02 | B87: Junta Parroquial | C87: =+'210'!D87+'220'!C89 -> 0.00 | D87: CERO
A88: 78.01.04.03 | B88: Junta Parroquial | C88: =+'210'!D88+'220'!C90 -> 0.00 | D88: CERO
A89: 78.01.04.04 | B89: Junta Parroquial | C89: =+'210'!D89+'220'!C91 -> 0.00 | D89: CERO
A90: 78.01.04.05 | B90: Junta Parroquial | C90: =+'210'!D90+'220'!C92 -> 0.00 | D90: CERO
A91: 78.01 | B91: TRANFERENCIAS PARA INV.EN EL SEC.PUBLICO | C91: =C92 -> 0.00
A92: 78.01.08 | B92: A CUENTAS O FONDOS ESPECIALES | C92: =SUM(C93:C110) -> 0.00
A93: 78.01.08.01 | B93: =+'210'!B539 -> Atencion Grupos Vulnerables | C93: =+'210'!C539 -> 0.00
A94: 78.01.08.02 | B94: Recuperacion del Archivo Municipal | C94: =+'210'!D94+'220'!C96 -> 0.00 | D94: CERO
A95: 78.01.08.03 | B95: Programa de Alfabetización | C95: =+'210'!D95+'220'!C97 -> 0.00 | D95: CERO
A96: 78.01.08.04 | B96: Aporte a la Primeras Olimpiadas Interparroquiales del Cantón Salcedo | C96: =+'210'!D96+'220'!C98 -> 0.00 | D96: CERO
A97: 78.01.08.05 | B97: Apoyo a la mujer y la familia | C97: =+'210'!D97+'220'!C99 -> 0.00 | D97: CERO
A98: 78.01.08.06 | B98: Programa de La Estudiantina de Salcedo | C98: =+'210'!D98+'220'!C100 -> 0.00 | D98: CERO
A99: 78.01.08.07 | B99: Programa de la Banda Municipal | C99: =+'210'!D99+'220'!C101 -> 0.00 | D99: CERO
A100: 78.01.08.08 | B100: Navidad para la niñez del Cantón | C100: =+'210'!D100+'220'!C102 -> 0.00 | D100: CERO
A101: 78.01.08.09 | B101: fortalecimiento de la Red Interinstitucional de Desarrollo | C101: =+'210'!D101+'220'!C103 -> 0.00 | D101: CERO
A102: 78.01.08.10 | B102: Aporte a la liga Deportiva Cantonal | C102: =+'210'!D102+'220'!C104 -> 0.00 | D102: CERO
A103: 78.01.08.11 | B103: Mes de la Salud | C103: =+'210'!D103+'220'!C105 -> 0.00 | D103: CERO
A104: 78.01.08.12 | B104: Ley de Maternidad Gratuita | C104: =+'210'!D104+'220'!C106 -> 0.00 | D104: CERO
A105: 78.01.08.13 | B105: Fomento al Turísmo | C105: =+'210'!D105+'220'!C107 -> 0.00 | D105: CERO
A106: 78.01.08.14 | B106: Programa de salud | C106: =+'210'!D106+'220'!C108 -> 0.00 | D106: CERO
A107: 78.01.08.15 | B107: Programa Alfabetización.Yo SI PUEDO | C107: =+'210'!D107+'220'!C109 -> 0.00 | D107: CERO
A108: 78.01.08.16 | B108: =+'210'!B576 -> 0 | C108: =+'210'!C576 -> 0.00
A109: 78.01.08.17 | B109: Aporte al Patronato | C109: =+'210'!D109+'220'!C111 -> 0.00 | D109: CERO
A110: 78.01.08.18 | B110: Convenios con organizaciones de apoyo social | C110: =+'210'!D110+'220'!C112 -> 0.00 | D110: CERO
A111: 78.02 | B111: DONACIONES DE INVERSIÓN AL SECTOR PRIVADO INTERNO | C111: =(C112) -> 0.00 | D111: CERO
A112: 78.02.04 | B112: AL SECTOR PRIVADO NO FINANCIERO | C112: =SUM(C113:C116) -> 0.00 | D112: CERO
A113: 78.02.04.11 | B113: Consejo Cantonal de la Ninez y adolecencia | C113: =+'210'!D113+'220'!C115 -> 0.00 | D113: CERO
A114: 78.02.04.02 | B114: Comité de Seguridad Ciudadana | C114: =+'210'!D114+'220'!C116 -> 0.00 | D114: CERO
A115: 78.02.04.08 | B115: Concejo Cantonal de la Salud | C115: =+'210'!D115+'220'!C117 -> 0.00 | D115: CERO
A116: 78.02.04.10 | B116: Otras organizaciones | C116: =+'210'!D116+'220'!C118 -> 0.00 | D116: CERO
A117: 78.99 | B117: ASIGNACION A DISTRIBUIR | C117: =+C118 -> 0.00 | D117: CERO
A118: 78.99.01 | B118: Asignaciones para Distribuir para Transferencias y donaciones | C118: =+'210'!D118+'220'!C120 -> 0.00 | D118: CERO
A119: 8. | B119: GASTOS DE CAPITAL | C119: =SUM(C120) -> 1,500.00 | D119: ET
A120: 84. | B120: ACTIVOS DE LARGA DURACIÓN | C120: =SUM(C121) -> 1,500.00 | D120: ET
A121: 84.01 | B121: BIENES MUEBLES | C121: =SUM(C122:C126) -> 1,500.00 | D121: ET
A122: 84.01.03 | B122: Mobiliarios | C122: =+'210'!D122+'220'!C124 -> 500.00 | D122: ET
A123: 84.01.04 | B123: Maquinarias y Equipos | C123: =+'210'!D123+'220'!C125 -> 0.00 | D123: CERO
A124: 84.01.07 | B124: Equipos. sistemas y Paquetes informáticos | C124: =+'210'!D124+'220'!C126 -> 1,000.00 | D124: ET
A125: 84.01.08 | B125: Bienes Artísticos y culturales | C125: =+'210'!D125+'220'!C127 -> 0.00 | D125: CERO
A126: 84.01.09 | B126: Libros y Colecciones | C126: =+'210'!D126+'220'!C128 -> 0.00 | D126: CERO
A127: 97 | B127: PASIVO CIRCULANTE | C127: =SUM(C128) -> 0.00 | D127: CERO
A128: 97.01 | B128: DEUDA FLOTANTE | C128: =C129 -> 0.00 | D128: CERO
A129: 97.01.01 | B129: De cuentas por pagar | C129: =+'210'!D129+'220'!C131 -> 0.00 | D129: CERO
B130: TOTAL PROGRAMA | C130: =+'210'!C1232+'220'!C617 -> 2,601,453.03 | D130: ET
B132: DETALLE
B133: CORRIENTES
B134: INVERSIÓN | C134: =+C130-C135 -> 2,599,953.03 | E134: =+C130-C134 -> 1,500.00
B135: CAPITAL | C135: =+C119 -> 1,500.00
B136: PASIVO CIRCULANTE | C136: =+C127 -> 0
B137: SUBTOTAL | C137: =+C134+C135+C136 -> 2,601,453.03
A139: REALIZADO POR: | C139: AUTORIZADO POR:
A144: =+DAT_INI!$B$8 -> 0

Sheet 210
A1: =+'200'!A1:C1 -> GOBIERNO AUTONOMO DESCENTRALIZADO MUNICIPAL DEL CANTON PEDRO MONCAYO
A2: =+'200'!A2:C2 -> PROFORMA PRESUPUESTARIA AÑO 2020
A4: =+'200'!$A$4 -> FUNCION II: SERVICIOS SOCIALES
A5: =CONCATENATE("CODIGO DE FUNCION;"," ",GASTO!$A$51) -> CODIGO DE FUNCION; 200
A6: =CONCATENATE("PROGRAMA 1ro:"," ",GASTO!$B$52) -> PROGRAMA 1ro: DIRECCION DE ACCION SOCIAL Y GRUPOS PRIORITARIOS
A7: =CONCATENATE("CODIGO DEL PROGRAMA:"," ",GASTO!$A$52) -> CODIGO DEL PROGRAMA: 210
A8: 3DA. ASIGNACION SEGÚN EL OBJETO DEL GASTO
A10: PARTIDA | B10: DETALLE | D10: ASIGNACION
D11: =+'100'!D11 -> AÑO 2020 | S11: SELECC
A12: 7 | B12: GASTOS DE INVERSION | D12: =SUM(D13+D32+D73+D83) -> 1,717,412.44 | G12: 7 | S12: =IF(D12>0,"ET","CERO") -> ET
A13: 71 | B13: GASTOS EN PERSONAL PARA INVERSION | D13: =SUM(D14+D17+D20+D25+D30+D28) -> 939,695.43 | G13: 71 | S13: =IF(D13>0,"ET","CERO") -> ET
A14: 71.01 | B14: REMUNERACIONES BASICAS | D14: =SUM(D15:D16) -> 34,716.00 | G14: 71.01 | S14: ET
A15: 71.01.06 | B15: Salarios Unificados | D15: =SUMIF(deshum,G15,deshum1) -> 0.00 | G15: 71.01.06 | S15: CERO
A16: 71.01.05 | B16: Remuneraciones Unificados | D16: =SUMIF(deshum,G16,deshum1) -> 34,716.00 | G16: 71.01.05 | S16: ET
A17: 71.02 | B17: REMUNERACIONES COMPLEMENTARIAS | D17: =SUM(D18:D19) -> 79,059.00 | G17: 71.02 | S17: ET
A18: 71.02.03 | B18: Décimo Tercer Sueldo | D18: =SUMIF(deshum,G18,deshum1) -> 41,799.00 | G18: 71.02.03 | S18: ET
A19: 71.02.04 | B19: Décimo Cuarto Sueldo | D19: =SUMIF(deshum,G19,deshum1) -> 37,260.00 | G19: 71.02.04 | S19: ET
A20: 71.05 | B20: REMUNERACIONES TEMPORALES | D20: =SUM(D21:D24) -> 725,686.43 | G20: 71.05 | S20: ET
A21: 71.05.04 | B21: Encargo y subrogaciones | D21: =SUMIF(deshum,G21,deshum1) -> 482.17 | G21: 71.05.04 | S21: ET
A22: 71.05.06 | B22: Licencia Remunerada | D22: =SUMIF(deshum,G22,deshum1) -> 0.00 | G22: 71.05.06 | S22: CERO
A23: 71.05.09 | B23: Horas extraordinarias | D23: =SUMIF(deshum,G23,deshum1) -> 0.00 | G23: 71.05.09 | S23: CERO
A24: 71.05.10 | B24: Servicios Personales por contrato | D24: =SUMIF(deshum,G24,deshum1) -> 725,204.26 | G24: 71.05.10 | S24: ET
A25: 71.06 | B25: APORTES PATRONALES A LA SEGURIDAD SOCIAL | D25: =SUM(D26:D27) -> 100,234.00 | G25: 71.06 | S25: ET
A26: 71.06.01 | B26: Aporte Patronal | D26: =SUMIF(deshum,G26,deshum1) -> 58,435.00 | G26: 71.06.01 | S26: ET
A27: 71.06.02 | B27: Fondos de Reserva | D27: =SUMIF(deshum,G27,deshum1) -> 41,799.00 | G27: 71.06.02 | S27: ET
A28: 71.07 | B28: INDEMNIZACIONES | D28: =SUM(D29) -> 0.00 | G28: 71.07 | S28: CERO
A29: 71.07.01 | B29: compensación por renuncia voluntaria | D29: =SUMIF(deshum,G29,deshum1) -> 0.00 | G29: 71.07.01 | S29: CERO
A30: 71.99 | B30: ASIGNACIONES A DISTRIBUIR PARA GTOS PERSONAL DE INVERSION | D30: =D31 -> 0.00 | G30: 71.99 | S30: CERO
A31: 71.99.01 | B31: Asignaciones a Distribuir para Gastos en el Personal | D31: =SUMIF(deshum,G31,deshum1) -> 0.00 | G31: 71.99.01 | S31: CERO
A32: 73 | B32: BIENES Y SERVICIOS DE INVERSION | D32: =SUM(D33+D36+D43+D46+D51+D53+D60+D71+D57+D69) -> 777,617.01 | G32: 73 | S32: ET
A33: 73.01 | B33: SERVICIOS BASICOS | D33: =+D35+D34 -> 0.00 | G33: 73.01 | S33: CERO
A34: 73.01.04 | B34: Telecomunicaciones | D34: =SUMIF(deshum,G34,deshum1) -> 0.00 | G34: 73.01.04 | S34: =IF(D34>0,"ET","CERO") -> CERO
A35: 73.01.05 | B35: Telecomunicaciones | D35: =SUMIF(deshum,G35,deshum1) -> 0.00 | G35: 73.01.05 | S35: CERO
A36: 73.02 | B36: SERVICIOS GENERALES | D36: =SUM(D37:D42) -> 722,817.01 | G36: 73.02 | S36: ET
A37: 73.02.01 | B37: Transporte de personal | D37: =SUMIF(deshum,G37,deshum1) -> 36,000.00 | G37: 73.02.01 | S37: ET
A38: 73.02.04 | B38: Edición, Impresión. reproducción y publicaciones | D38: 6,650.00 | G38: 73.02.04 | S38: ET
A39: 73.02.05 | B39: Espectaculos Culturales y Sociales | D39: 15,000.00 | G39: 73.02.05 | S39: ET
A40: 73.02.06 | B40: Eventos Publicos y Oficiales | D40: 0.00 | G40: 73.02.06 | S40: CERO
A41: 73.02.17 | B41: Difusión e Información | D41: 0.00 | G41: 73.02.07 | S41: CERO
A42: 73.02.17 | B42: Servicio de Alimentacion ( CIBVs) | D42: =SUMIF(deshum,G42,deshum1)+C497 -> 665,167.01 | G42: 73.02.99 | S42: ET
A43: 73.03 | B43: TRASLADOS. INSTALACIONES. VIATICOS Y SUBSISTENCIAS | D43: =SUM(D44:D45) -> 0.00 | G43: 73.03 | S43: CERO
A44: 73.03.01 | B44: Pasajes al Interior | D44: =SUMIF(deshum,G44,deshum1) -> 0.00 | G44: 73.03.01 | S44: CERO
A45: 73.03.03 | B45: Viáticos y Subsistencias en el Interior | D45: =SUMIF(deshum,G45,deshum1) -> 0.00 | G45: 73.03.03 | S45: CERO
A46: 73.04 | B46: INSTALACION. MANTENIMIENTO Y REPARACION | D46: =SUM(D47:D50) -> 0.00 | G46: 73.04 | S46: CERO
A47: 73.04.03 | B47: Mobiliarios | D47: =SUMIF(deshum,G47,deshum1) -> 0.00 | G47: 73.04.03 | S47: CERO
A48: 73.04.04 | B48: Maquinarias y Equipos | D48: =SUMIF(deshum,G48,deshum1) -> 0.00 | G48: 73.04.04 | S48: CERO
A49: 73.04.05 | B49: Vehículos | D49: =SUMIF(deshum,G49,deshum1) -> 0.00 | G49: 73.04.05 | S49: CERO
A50: 73.04.06 | B50: Matenimiento y Reparación de Instituciones Educativas | D50: =SUMIF(deshum,G50,deshum1) -> 0.00 | G50: 73.04.06 | S50: CERO
A51: 73.05 | B51: INSTALACION. MANTENIMIENTO Y REPARACION | D51: =+D52 -> 0.00 | G51: 73.05 | S51: CERO
A52: 73.05.02 | B52: Arrendamiento de Locales | D52: =SUMIF(deshum,G52,deshum1) -> 0.00 | G52: 73.05.02 | S52: CERO
A53: 73.06 | B53: CONTRATACION DE ESTUDIOS E INVESTIGACIONES | D53: =SUM(D54:D56) -> 11,600.00 | G53: 73.06 | S53: ET
A54: 73.06.03 | B54: Servicio de Capacitación | D54: =SUMIF(deshum,G54,deshum1) -> 11,600.00 | G54: 73.06.03 | S54: ET
A55: 73.06.04 | B55: Fiscalización | D55: =SUMIF(deshum,G55,deshum1) -> 0.00 | G55: 73.06.04 | S55: CERO
A56: 73.06.05 | B56: Estudio y diseño de proyectos | D56: =SUMIF(deshum,G56,deshum1) -> 0.00 | G56: 73.06.05 | S56: CERO
A57: 73.07 | B57: GASTOS EN INFORMATICA | D57: =+D58+D59 -> 0.00 | G57: 73.07 | S57: CERO
A58: 73.07.02 | B58: Arrendamiento y Licencias de uso paquetes Informa | D58: =SUMIF(deshum,G58,deshum1) -> 0.00 | G58: 73.07.02 | S58: CERO
A59: 73.07.04 | B59: Mantenimiento y reparación de equipos y sistemas informáticos | D59: =SUMIF(deshum,G59,deshum1) -> 0.00 | G59: 73.07.04 | S59: CERO
A60: 73.08 | B60: BIENES DE USO Y CONSUMO CORRIENTE | D60: =+D63+D64+D65+D66 -> 43,200.00 | G60: 73.08 | S60: ET
A61: 73.08.02 | B61: Vestuario. Lenceria y Prendas de Protección | D61: =SUMIF(deshum,G61,deshum1) -> 23,200.00 | G61: 73.08.02 | S61: ET
A62: 73.08.03 | B62: Combustibles y Lubricantes | D62: =SUMIF(deshum,G62,deshum1) -> 0.00 | G62: 73.08.03 | S62: CERO
A63: 73.08.04 | B63: Materiales de Oficina | D63: 1,200.00 | G63: 73.08.04 | S63: ET
A64: 73.08.05 | B64: Materiales de Aseo | D64: 12,050.00 | G64: 73.08.05 | S64: ET
A65: 73.08.07 | B65: Materiales de Impresión. Fotografía. Reproduc.y Publicaciones | D65: =SUMIF(deshum,G65,deshum1)-50 -> -50.00 | G65: 73.08.07 | S65: CERO
A66: 73.08.11 | B66: Insumos, Bienes, Materiales y Suministros para la Construcción, Eléctricos, Plomería, Carpintería, Señalización Vial, Navegación y Contra Incendios | D66: 30,000.00 | G66: 73.08.11 | S66: ET
A67: 73.08.13 | B67: Repuestos y accesorios | D67: 20,000.00 | G67: 73.08.13 | S67: ET
A68: 73.08.99 | B68: Otros de uso y consumo. | D68: 0.00 | G68: 73.08.99 | S68: CERO
A69: 73.14 | B69: BIENES MUEBLES NO DEPRECIABLES | D69: 0.00 | G69: 73.14 | S69: CERO
A70: 73.14.07 | B70: Equipos, Sistemas y Paquetes Informáticos - Canje Deuda | D70: 0.00 | G70: 73.14.07 | S70: CERO
A71: 73.99 | B71: ASIGNACIONES A DISTRIBUIR PARA BIENES Y SERVI. INVERSION | D71: =D72 -> 0.00 | G71: 73.99 | S71: CERO
A72: 73.99.01 | B72: Asignaciones a Distribuir para Bienes y servicios | D72: =SUMIF(deshum,G72,deshum1) -> 0.00 | G72: 73.99.01 | S72: CERO
A73: 75 | B73: OBRAS PUBLICAS | D73: 0.00 | G73: 75 | S73: CERO
A74: 75.01 | B74: OBRAS DE INFRAESTRUCTURA | D74: 0.00 | G74: 75.01 | S74: CERO
A75: 75.01.04 | B75: DE URBANIZACION Y EMBELLECIMIENTO | D75: 0.00 | G75: 75.01.04 | S75: CERO
A76: 75.01.07 | B76: CONSTRUCCIONES Y EDIFICACIONES | D76: 0.00 | G76: 75.01.07 | S76: CERO
A77: 75.01.08 | B77: HOSPITALES Y CENTROS DE ASISTENCIA SOCIAL Y SALUD | D77: 0.00 | G77: 75.01.08 | S77: CERO
A78: 75.01.09 | B78: OTRAS OBRAS DE INFRAESTRUCTURA | D78: 0.00 | G78: 75.01.99 | S78: =IF(D78>0,"ET","CERO") -> CERO
A79: 75.05 | B79: MANTENIMIENTO Y REPARACIONES | D79: 0.00 | G79: 75.05 | S79: CERO
A80: 75.05.01 | B80: EN OBRAS DE INFRAESTRUCTURA | D80: =SUMIF(deshum,G80,deshum1) -> 0.00 | G80: 75.05.01 | S80: CERO
A81: 75.99 | B81: ASIGNACIONES A DISTRIBUIR | D81: =+D82 -> 0.00 | G81: 75.99 | S81: CERO
A82: 75.99.01 | B82: Asignaciones a distribuir en bienes y servicios | D82: =SUMIF(deshum,G82,deshum1) -> 0.00 | G82: 75.99.01 | S82: CERO
A83: 78 | B83: TRANSFERENCIAS Y DONACIONES INVERSION | D83: =SUM(D84+D91+D111)+100 -> 100.00 | G83: 78 | S83: ET
A84: 78.01 | B84: TRANSFERENCIAS PARA INVERSION SECTOR PUBLICO | D84: =D85 -> 0.00 | G84: 78.01 | S84: CERO
A85: 78.01.04 | B85: A ENTIDADES DEL GOBIERNO SECCIONAL | D85: =SUM(D86:D90) -> 0.00 | G85: 78.01.04 | S85: CERO
A86: 78.01.04.001 | B86: Junta Parroquial | D86: =SUMIF(deshum,G86,deshum1) -> 0.00 | G86: 78.01.04.001 | S86: CERO
A87: 78.01.04.002 | B87: Junta Parroquial | D87: =SUMIF(deshum,G87,deshum1) -> 0.00 | G87: 78.01.04.002 | S87: CERO
A88: 78.01.04.003 | B88: Junta Parroquial | D88: =SUMIF(deshum,G88,deshum1) -> 0.00 | G88: 78.01.04.003 | S88: CERO
A89: 78.01.04.004 | B89: Junta Parroquial | D89: =SUMIF(deshum,G89,deshum1) -> 0.00 | G89: 78.01.04.004 | S89: CERO
A90: 78.01.04.005 | B90: Junta Parroquial | D90: =SUMIF(deshum,G90,deshum1) -> 0.00 | G90: 78.01.04.005 | S90: CERO
A91: 78.01 | B91: TRANFERENCIAS PARA INV.EN EL SEC.PUBLICO | D91: =D92 -> 0.00 | G91: 78.01 | S91: CERO
A92: 78.01.08 | B92: A CUENTAS O FONDOS ESPECIALES | D92: =+D93 -> 0.00 | G92: 78.01.08 | S92: CERO
A93: 78.01.08.001 | B93: Atencion a grupos vulnerables | D93: =+C527 -> 0.00 | G93: 78.01.08.001 | S93: CERO
A94: 78.01.08.002 | D94: 0.00 | G94: 78.01.08.002 | S94: CERO
A95: 78.01.08.003 | D95: 0.00 | G95: 78.01.08.003 | S95: CERO
A96: 78.01.08.004 | D96: 0.00 | G96: 78.01.08.004 | S96: CERO
A97: 78.01.08.005 | D97: 0.00 | G97: 78.01.08.005 | S97: CERO
A98: 78.01.08.006 | D98: 0.00 | G98: 78.01.08.006 | S98: CERO
A99: 78.01.08.007 | D99: 0.00 | G99: 78.01.08.007 | S99: CERO
A100: 78.01.08.008 | D100: 0.00 | G100: 78.01.08.008 | S100: CERO
A101: 78.01.08.009 | D101: 0.00 | G101: 78.01.08.009 | S101: CERO
A102: 78.01.08.010 | D102: =SUMIF(deshum,G102,deshum1) -> 0.00 | G102: 78.01.08.010 | S102: CERO
A103: 78.01.08.011 | D103: 0.00 | G103: 78.01.08.011 | S103: CERO
A104: 78.01.08.012 | D104: 0.00 | G104: 78.01.08.012 | S104: CERO
A105: 78.01.08.013 | D105: 0.00 | G105: 78.01.08.013 | S105: CERO
A106: 78.01.08.014 | D106: 0.00 | G106: 78.01.08.014 | S106: CERO
A107: 78.01.08.015 | D107: 0.00 | G107: 78.01.08.015 | S107: CERO
A108: 78.01.08.016 | D108: 0.00 | G108: 78.01.08.016 | S108: CERO
A109: 78.01.08.017 | D109: 0.00 | G109: 78.01.08.017 | S109: CERO
A110: 78.01.08.018 | D110: 0.00 | G110: 78.01.08.018 | S110: CERO
A111: 78.02 | B111: DONACIONES DE INVERSION AL SECTOR PRIVADO INTERNO | D111: =SUM(D112) -> 0.00 | G111: 78.02 | S111: CERO
A112: 78.02.04 | B112: AL SECTOR PRIVADO NO FINANCIERO | D112: =SUM(D113:D116) -> 0.00 | G112: 78.02.04 | S112: CERO
A113: 78.02.04.11 | B113: Consejo Cantonal de la Ninez y adolecencia | D113: =SUMIF(deshum,G113,deshum1) -> 0.00 | G113: 78.02.04.11 | S113: CERO
A114: 78.02.04.02 | B114: Comité de Seguridad Ciudadana | D114: 0.00 | G114: 78.02.04.02 | S114: CERO
A115: 78.02.04.08 | B115: Concejo Cantonal de la Salud | D115: =SUMIF(deshum,G115,deshum1) -> 0.00 | G115: 78.02.04.08 | S115: CERO
A116: 78.02.04.10 | B116: Otras organizaciones | D116: =SUMIF(deshum,G116,deshum1) -> 0.00 | G116: 78.02.04.10 | S116: CERO
A117: 78.99 | B117: ASIGNACIONES A DISTRIBUIR | D117: =+D118 -> 0.00 | G117: 78.99 | S117: CERO
A118: 78.99.01 | B118: Asignaciones para Distribuir para Transferencias y donaciones | D118: =SUMIF(deshum,G118,deshum1) -> 0.00 | G118: 78.99.01 | S118: CERO
A119: 8. | B119: GASTOS DE CAPITAL | D119: =SUM(D120) -> 0.00 | G119: 8. | S119: CERO
A120: 84. | B120: ACTIVOS DE LARGA DURACION | D120: =SUM(D121) -> 0.00 | G120: 84. | S120: CERO
A121: 84.01 | B121: BIENES MUEBLES | D121: =SUM(D122:D126) -> 0.00 | G121: 84.01 | S121: CERO
A122: 84.01.03 | B122: Mobiliarios | D122: =SUMIF(deshum,G122,deshum1) -> 0.00 | G122: 84.01.03 | S122: CERO
A123: 84.01.04 | B123: Maquinarias y Equipos | D123: =SUMIF(deshum,G123,deshum1) -> 0.00 | G123: 84.01.04 | S123: CERO
A124: 84.01.07 | B124: Equipos. sistemas y Paquetes informaticos | D124: =SUMIF(deshum,G124,deshum1) -> 0.00 | G124: 84.01.07 | S124: CERO
A125: 84.01.08 | B125: Bienes Artísticos y culturales | D125: =SUMIF(deshum,G125,deshum1) -> 0.00 | G125: 84.01.08 | S125: CERO
A126: 84.01.09 | B126: Libros y Colecciones | D126: =SUMIF(deshum,G126,deshum1) -> 0.00 | G126: 84.01.09 | S126: CERO
A127: 97 | B127: PASIVO CIRCULANTE | D127: =SUM(D128) -> 0.00 | G127: 97 | S127: CERO
A128: 97.01 | B128: DEUDA FLOTANTE | D128: =D129 -> 0.00 | G128: 97.01 | S128: CERO
A129: 97.01.01 | B129: De cuentas por pagar | D129: =SUMIF(deshum,G129,deshum1) -> 0.00 | G129: 97.01.01 | S129: CERO
B130: TOTAL PROGRAMA | D130: =+C1232 -> 2,251,455.53 | S130: ET | U130: 1,365,516.83
S131: ET
B132: DETALLE | S132: ET | U132: =+U130-D130 -> -885,938.70
B133: CORRIENTES | S133: ET
B134: INVERSION | D134: =+D130-D135 -> 2,251,455.53 | S134: ET
B135: CAPITAL | D135: =+D119 -> 0.00 | S135: ET
B136: PASIVO CIRCULANTE | D136: =+D127 -> 0.00 | S136: ET
B137: SUBTOTAL | D137: =+D134+D135+D136 -> 2,251,455.53 | G137: =+GASTO!P52-D137 -> 0.00 | S137: ET
S138: ET
A140: =+'200'!$A$4 -> FUNCION II: SERVICIOS SOCIALES | S140: ET
A141: =CONCATENATE("CODIGO DE FUNCION;"," ",GASTO!$A$51) -> CODIGO DE FUNCION; 200 | S141: ET
A142: =CONCATENATE("PROGRAMA 1ro:"," ",GASTO!$B$52) -> PROGRAMA 1ro: DIRECCION DE ACCION SOCIAL Y GRUPOS PRIORITARIOS | S142: ET
A143: =CONCATENATE("CODIGO DEL PROGRAMA:"," ",GASTO!$A$52) -> CODIGO DEL PROGRAMA: 210 | S143: ET
A144: =CONCATENATE("SUBPROGRAMA 1ro",":"," ",GASTO!$B$53) -> SUBPROGRAMA 1ro: DIR. DE GESTION DE ACCION SOCIAL Y GRUPOS PRIORITARIOS | S144: ET
A145: =CONCATENATE("CODIGO DE SUBPROGRAMA:"," ",GASTO!$A$53) -> CODIGO DE SUBPROGRAMA: 211 | S145: ET
A146: 3DA. ASIGNACION SEGÚN EL OBJETO DEL GASTO | S146: ET
B147: PLANIFICACION | S147: ET
A148: PARTIDA | B148: DETALLE | C148: ASIGNACION | S148: ET
C149: =+D11 -> AÑO 2020 | S149: ET
A150: 7 | B150: GASTOS DE INVERSION | C150: =SUM(C151+C170+C271+C231) -> 46,738.58 | S150: =IF(C150>0,"ET","CERO") -> ET
A151: 71 | B151: GASTOS EN PERSONAL PARA INVERSION | C151: =+C152+C155+C158+C163 -> 45,838.58 | S151: =IF(C151>0,"ET","CERO") -> ET
A152: 71.01 | B152: REMUNERACIONES BASICAS | C152: =SUM(C153:C154) -> 34,716.00 | S152: ET
A153: 71.01.05 | B153: Remuneraciones Unificadas | C153: =SUMIFS(REMUN,ORG,GASTO!$B$53,CLASIF,B153) -> 34,716.00 | M153: 45,231.50 | S153: ET
A154: 71.01.06 | B154: Salarios Unificados | C154: =SUMIFS(REMUN,ORG,GASTO!$B$53,CLASIF,B154) -> 0.00 | S154: CERO
A155: 71.02 | B155: REMUNERACIONES COMPLEMENTARIAS | C155: =SUM(C156:C157) -> 3,703.00 | S155: ET
A156: 71.02.03 | B156: Décimo Tercer Sueldo | C156: =+'CDR PERS'!G53 -> 2,893.00 | S156: ET
A157: 71.02.04 | B157: Décimo Cuarto Sueldo | C157: =+'CDR PERS'!H53 -> 810.00 | S157: ET
A158: 71.05 | B158: REMUNERACIONES TEMPORALES | C158: =SUM(C159:C162) -> 482.17 | S158: ET
A159: 71.05.04 | B159: Encargo y subrogaciones | C159: =SUMIFS(encargo,ORG,GASTO!$B$53,CLASIF,B153)+SUMIFS(encargo,ORG,GASTO!$B$53,CLASIF,B154) -> 482.17 | S159: ET
A160: 71.05.06 | B160: Licencia Remunerada | C160: 0.00 | S160: CERO
A161: 71.05.09 | B161: Horas extraordinarias | C161: =SUMIFS(extras,ORG,GASTO!$B$53,CLASIF,B153)+SUMIFS(extras,ORG,GASTO!$B$53,CLASIF,B154) -> 0.00 | S161: CERO
A162: 71.05.10 | B162: Servicios Personales por contrato | C162: =+'CDR PERS'!F305 -> 0.00 | S162: CERO
A163: 71.06 | B163: APORTES PATRONALES A LA SEGURIDAD SOCIAL | C163: =SUM(C164:C165) -> 6,937.41 | S163: ET
A164: 71.06.01 | B164: Aporte Patronal | C164: =+'CDR PERS'!J53 -> 4,044.41 | S164: ET
A165: 71.06.02 | B165: Fondos de Reserva | C165: =+'CDR PERS'!I53 -> 2,893.00 | S165: ET
A166: 71.07 | B166: INDEMNIZACIONES | C166: =SUM(C167) -> 0.00 | S166: CERO
A167: 71.07.01 | B167: compensación por renuncia voluntaria | C167: 0.00 | S167: CERO
A168: 71.99 | B168: ASIGNACIONES A DISTRIBUIR PARA GTOS PERSONAL DE INVERSION | C168: =C169 -> 0.00 | S168: CERO
A169: 71.99.01 | B169: Asignaciones a Distribuir para Gastos en el Personal | C169: =C152*0 -> 0.00 | S169: CERO
A170: 73 | B170: BIENES Y SERVICIOS DE INVERSION | C170: =+C171+C177+C187+C192+C199+C203+C229+C216+C225+C227 -> 900.00 | L170: =SUM(L171+L177+L187+L192+L199+L203+L216+L227+L211+L225) -> 1,561,955.49 | S170: ET
A171: 73.01 | B171: SERVICIOS BASICOS | C171: =+C173+C172 -> 0.00 | L171: =+L173 -> 1,030,160.00 | S171: CERO
A172: 73.01.04 | B172: Energia Elèctrica - Escuelas Servicio de Internet | C172: 0.00 | S172: CERO
A173: 73.01.05 | B173: Telecomunicaciones | C173: =+C174+C175+C176 -> 0.00 | L173: =SUM(L174:L175) -> 1,030,160.00 | S173: CERO
A174: 73.01.05.01 | B174: Instalacion Internet - Establecimientos Educativos -Convenios | C174: 0.00 | L174: 20,160.00 | S174: CERO
A175: 73.01.05.02 | B175: Instalación Internet - Establecimientos Educativos - Convenio | C175: 0.00 | L175: 1,010,000.00 | Q175: 80% | R175: =+P175*Q175 -> 0 | S175: CERO
A176: 73.01.05.03 | B176: Telefonia - Escuelas Servicio Internet | C176: 0.00 | S176: CERO
A177: 73.02 | B177: SERVICIOS GENERALES | C177: =SUM(C178:C183) -> 50.00 | L177: =SUM(L178:L183) -> 290,000.00 | S177: ET
A178: 73.02.01 | B178: Transporte de personal | C178: 0.00 | L178: 0.00 | S178: CERO
A179: 73.02.04 | B179: Edición, impresión. reproducción y publicaciones | C179: 50.00 | L179: 50,000.00 | S179: ET
A180: 73.02.05 | B180: Espectaculos Culturales y Sociales | C180: 0.00 | L180: 130,000.00 | S180: CERO
A181: 73.02.06 | B181: Eventos Publicos y Oficiales | C181: 0.00 | L181: 20,000.00 | S181: CERO
A182: 73.02.07 | B182: Difusión. Información y Publicidad | C182: 0.00 | L182: 30,000.00 | S182: CERO
A183: 73.02.99 | B183: Otros Servicios | C183: =+C184+C185+C186 -> 0.00 | L183: 60,000.00 | S183: CERO
A184: 73.02.99.01 | B184: Plan de Defensa y Seguridad Comunitaria | C184: 0.00 | L184: 10,000.00 | S184: CERO
A185: 73.02.99.02 | B185: Participación y Mancomunidad | C185: 0.00 | L185: 10,000.00 | S185: CERO
A186: 73.02.99.03 | B186: Otros Servicios Generales | C186: 0.00 | S186: CERO
A187: 73.03 | B187: TRASLADOS. INSTALACIONES. VIATICOS Y SUBSISTENCIAS | C187: =SUM(C188:C189) -> 0.00 | L187: =SUM(L188:L189) -> 7,860.00 | S187: CERO
A188: 73.03.01 | B188: Pasajes al Interior | C188: 0.00 | L188: 0.00 | S188: CERO
A189: 73.03.03 | B189: Viáticos y Subsistencias en el Interior | C189: 0.00 | L189: =+L190+L191 -> 7,860.00 | S189: CERO
A190: 73.03.03.01 | B190: Viáticos y Subsistencias en el Interior | C190: 0.00 | L190: 7,200.00 | S190: CERO
A191: 73.03.03.02 | B191: Viáticos y Subsistencias en el Interior - Canje Deuda Ecuador - España | C191: 0.00 | L191: 660.00 | S191: CERO
A192: 73.04 | B192: INSTALACION. MANTENIMIENTO Y REPARACION | C192: =+C193+C194+C195+C198 -> 0.00 | L192: =+L193+L194+L195+L198 -> 78,567.00 | S192: CERO
A193: 73.04.03 | B193: Mobiliarios | C193: 0.00 | L193: 50,000.00 | S193: CERO
A194: 73.04.04 | B194: Maquinarias y Equipos | C194: 0.00 | L194: 2,000.00 | S194: CERO
A195: 73.04.05 | B195: Vehículos | C195: =+C196 -> 0.00 | L195: =+L196+L197 -> 11,567.00 | S195: CERO
A196: 73.04.05.01 | B196: Mantenimiento Vehículos Institución | C196: 0.00 | L196: 10,000.00 | S196: CERO
A197: 73.04.05.02 | B197: Mantenimiento Vehículos - Canje Deuda Ecuador - España | C197: 0.00 | L197: 1,567.00 | S197: CERO
A198: 73.04.06 | B198: Matenimiento y Reparación de Instituciones Educativas | C198: 0.00 | L198: 15,000.00 | S198: CERO
A199: 73.05 | B199: INSTALACION. MANTENIMIENTO Y REPARACION | C199: =+C200 -> 0.00 | L199: =+L200 -> 11,092.49 | S199: CERO
A200: 73.05.02 | B200: Arrendamiento de Locales | C200: 0.00 | L200: =SUM(L201:L202) -> 11,092.49 | S200: CERO
A201: 73.05.02.01 | B201: Arrendamiento de Local | C201: 0.00 | L201: 5,000.00 | S201: CERO
A202: 73.05.02.02 | B202: Arrendamiento de Local - Canje Deuda Ecuador - España | C202: 0.00 | L202: 6,092.49 | S202: CERO
A203: 73.06 | B203: CONTRATACION DE ESTUDIOS E INVESTIGACIONES | C203: =+C204+C207+C210 -> 200.00 | L203: =+L204+L207+L210 -> 56,548.00 | S203: ET
... 1008 more rows

Sheet 3000 (hidden)
A1: =+'100'!B1 -> GOBIERNO AUTONOMO DESCENTRALIZADO MUNICIPAL DEL CANTON PEDRO MONCAYO
A2: =+'100'!B2 -> PROFORMA PRESUPUESTARIA AÑO 2020
A4: =+GASTO!B66 -> FUNCION III: SERVICIOS COMUNALES
A5: =CONCATENATE("CODIGO DE LA FUNCION:"," ",GASTO!$A$66) -> CODIGO DE LA FUNCION: 300
A6: 3DA. ASIGNACION SEGÚN EL OBJETO DEL GASTO
A10: PARTIDA | B10: DETALLE | C10: ASIGNACION | D10: BUSCAR V | E10: BUSCAR V | F10: BUSCAR V
C11: =+'100'!D11 -> AÑO 2020 | D11: 310 | E11: 320 | F11: 330
A12: 7 | B12: GASTOS DE INVERSION | C12: =+'310'!D12+'3'!C12+'350'!D12 -> 7,552,690.88 | D12: =VLOOKUP(A12,'310'!A12:D146,4,FALSE) -> 367563.7567 | E12: =VLOOKUP(A12,'350'!A12:D141,4,FALSE) -> 296497.682 | F12: =VLOOKUP(A12,'3'!A12:C135,3,FALSE) -> 6888629.442 | G12: =SUM(D12:F12) -> 7552690.881
A13: 71 | B13: GASTOS EN PERSONAL PARA INVERSION | C13: =+'310'!D13+'3'!C13+'350'!D13 -> 2,009,226.63 | D13: =VLOOKUP(A13,'310'!A13:D147,4,FALSE) -> 337249.09 | E13: =VLOOKUP(A13,'350'!A13:D142,4,FALSE) -> 203997.682 | F13: =VLOOKUP(A13,'3'!A13:C136,3,FALSE) -> 1467979.862 | G13: 2009226.634
A14: 71.01 | B14: REMUNERACIONES BASICAS | C14: =+'310'!D14+'3'!C14+'350'!D14 -> 869,640.00 | D14: =VLOOKUP(A14,'310'!A14:D148,4,FALSE) -> 142476 | E14: =VLOOKUP(A14,'350'!A14:D143,4,FALSE) -> 56724 | F14: =VLOOKUP(A14,'3'!A14:C137,3,FALSE) -> 670440 | G14: 869640
A15: 71.01.06 | B15: Remuneraciones unificadas | C15: =+'310'!D15+'3'!C15+'350'!D15 -> 356,340.00 | D15: =VLOOKUP(A15,'310'!A15:D149,4,FALSE) -> 0 | E15: =VLOOKUP(A15,'350'!A15:D144,4,FALSE) -> 0 | F15: =VLOOKUP(A15,'3'!A15:C138,3,FALSE) -> 157140 | G15: 157140
A16: 71.01.06 | B16: Salarios Unificados | C16: =+'310'!D16+'3'!C16+'350'!D16 -> 513,300.00 | D16: =VLOOKUP(A16,'310'!A16:D150,4,FALSE) -> 0 | E16: =VLOOKUP(A16,'350'!A16:D145,4,FALSE) -> 0 | F16: =VLOOKUP(A16,'3'!A16:C139,3,FALSE) -> 513300 | G16: 513300
A17: 71.02 | B17: REMUNERACIONES COMPLEMENTARIAS | C17: =+'310'!D17+'3'!C17+'350'!D17 -> 164,860.00 | D17: =VLOOKUP(A17,'310'!A17:D151,4,FALSE) -> 26259 | E17: =VLOOKUP(A17,'350'!A17:D146,4,FALSE) ->  | F17: =VLOOKUP(A17,'3'!A17:C140,3,FALSE) -> 
A18: 71.02.03 | B18: Décimo Tercer Sueldo | C18: =+'310'!D18+'3'!C18+'350'!D18 -> 108,565.00 | D18: =VLOOKUP(A18,'310'!A18:D152,4,FALSE) -> 19779 | E18: =VLOOKUP(A18,'350'!A18:D147,4,FALSE) -> 11283 | F18: =VLOOKUP(A18,'3'!A18:C141,3,FALSE) -> 77503 | G18: 108565
A19: 71.02.04 | B19: Décimo Cuarto Sueldo | C19: =+'310'!D19+'3'!C19+'350'!D19 -> 56,295.00 | D19: =VLOOKUP(A19,'310'!A19:D153,4,FALSE) -> 6480 | E19: =VLOOKUP(A19,'350'!A19:D148,4,FALSE) -> 4050 | F19: =VLOOKUP(A19,'3'!A19:C142,3,FALSE) -> 45765 | G19: 56295
A20: 71.02.13 | B20: Aguinaldo Navideño | C20: =+'310'!D20+'3'!C20+'350'!D20 -> 0.00 | D20: =VLOOKUP(A20,'310'!A20:D154,4,FALSE) -> 0 | E20: =VLOOKUP(A20,'350'!A20:D152,4,FALSE) -> 0 | F20: =VLOOKUP(A20,'3'!A20:C143,3,FALSE) -> 0 | G20: 0
A21: 71.04 | B21: SUBSIDIOS | C21: =+'310'!D23+'3'!C21+'350'!D23 -> 14,106.00 | D21: =VLOOKUP(A21,'310'!A23:D156,4,FALSE) -> 0 | E21: =VLOOKUP(A21,'350'!A23:D153,4,FALSE) ->  | F21: =VLOOKUP(A21,'3'!A21:C144,3,FALSE) -> 14106
A22: 71.04.07 | B22: Estimulo Económico por años de servicio | C22: =+'310'!D24+'3'!C22+'350'!D24 -> 0.00 | D22: =VLOOKUP(A22,'310'!A24:D157,4,FALSE) -> 0 | E22: =VLOOKUP(A22,'350'!A24:D154,4,FALSE) -> 0 | F22: =VLOOKUP(A22,'3'!A22:C145,3,FALSE) -> 0 | G22: 0
A23: 71.05 | B23: REMUNERACIONES TEMPORALES | C23: =+'310'!D25+'3'!C23+'350'!#REF! ->  | D23: =VLOOKUP(A23,'310'!A25:D158,4,FALSE) -> 121084.048 | E23: =VLOOKUP(A23,'350'!A25:D155,4,FALSE) ->  | F23: =VLOOKUP(A23,'3'!A23:C146,3,FALSE) -> 491524.42
A24: 71.05.04 | B24: Encargo y subrogaciones | C24: =+'310'!D26+'3'!C24+'350'!#REF! -> 
A25: 71.05.06 | B25: Licencia Remunerada | C25: =+'310'!D27+'3'!C25+'350'!#REF! ->  | D25: =VLOOKUP(A25,'310'!A27:D159,4,FALSE) -> 0 | E25: =VLOOKUP(A25,'350'!A25:D156,4,FALSE) ->  | F25: =VLOOKUP(A25,'3'!A25:C147,3,FALSE) -> 0
A26: 71.05.09 | B26: Horas Extraordinarias y Suplementarias | C26: =+'310'!D28+'3'!C26+'350'!#REF! ->  | D26: =VLOOKUP(A26,'310'!A28:D160,4,FALSE) -> 0 | E26: =VLOOKUP(A26,'350'!A25:D157,4,FALSE) ->  | F26: =VLOOKUP(A26,'3'!A26:C148,3,FALSE) -> 87520
A27: 71.05.10 | B27: Servicios Personales por contrato | C27: =+'310'!D29+'3'!C27+'350'!#REF! ->  | D27: =VLOOKUP(A27,'310'!A29:D161,4,FALSE) -> 121084.048 | E27: =VLOOKUP(A27,'350'!A25:D158,4,FALSE) ->  | F27: =VLOOKUP(A27,'3'!A27:C149,3,FALSE) -> 404004.42
A28: 71.06 | B28: APORTES PATRONALES A LA SEGURIDAD SOCIAL | C28: =+'310'!D32+'3'!C28+'350'!D27 -> 257,234.12 | D28: =VLOOKUP(A28,'310'!A32:D162,4,FALSE) -> 47430.042 | E28: =VLOOKUP(A28,'350'!A27:D159,4,FALSE) -> 27056.634 | F28: =VLOOKUP(A28,'3'!A28:C150,3,FALSE) -> 182747.442 | G28: 257234.118
A29: 71.06.01 | B29: Aporte Patronal | C29: =+'310'!D33+'3'!C29+'350'!D28 -> 148,819.88 | D29: =VLOOKUP(A29,'310'!A33:D163,4,FALSE) -> 27651.042 | E29: =VLOOKUP(A29,'350'!A28:D160,4,FALSE) -> 15773.634 | F29: =VLOOKUP(A29,'3'!A29:C151,3,FALSE) -> 105395.202 | G29: 148819.878
A30: 71.06.02 | B30: Fondos de Reserva | C30: =+'310'!D34+'3'!C30+'350'!D29 -> 108,414.24 | D30: =VLOOKUP(A30,'310'!A34:D164,4,FALSE) -> 19779 | E30: =VLOOKUP(A30,'350'!A29:D161,4,FALSE) -> 11283 | F30: =VLOOKUP(A30,'3'!A30:C152,3,FALSE) -> 77352.24 | G30: 108414.24
A31: 71.07 | B31: INDEMNIZACIONES | C31: =+'310'!D36+'3'!C31+'350'!D31 -> 0.00 | D31: =VLOOKUP(A31,'310'!A36:D165,4,FALSE) -> 0 | E31: =VLOOKUP(A31,'350'!A31:D162,4,FALSE) -> 0 | F31: =VLOOKUP(A31,'3'!A31:C153,3,FALSE) -> 0 | G31: 0
A32: 71.07.01 | B32: Compensaciòn por Renuncia Voluntaria | C32: =+'310'!D37+'3'!C32+'350'!D32 -> 0.00 | D32: =VLOOKUP(A32,'310'!A37:D165,4,FALSE) -> 0 | E32: =VLOOKUP(A32,'350'!A32:D163,4,FALSE) -> 0 | F32: =VLOOKUP(A32,'3'!A32:C154,3,FALSE) -> 0 | G32: 0
A33: 71.07.99 | B33: Otras Indemn.Compens..por renuncia | C33: =+'310'!D38+'3'!C33+'350'!D33 -> 0.00 | D33: =VLOOKUP(A33,'310'!A38:D166,4,FALSE) -> 0 | E33: =VLOOKUP(A33,'350'!A33:D164,4,FALSE) -> 0 | F33: =VLOOKUP(A33,'3'!A33:C155,3,FALSE) -> 0 | G33: 0
A34: 71.99 | B34: ASIGNACIONES A DISTRIBUIR PARA GTOS DE INVERSIONES | C34: =+'310'!D39+'3'!C34+'350'!D34 -> 0.00 | D34: =VLOOKUP(A34,'310'!A39:D167,4,FALSE) ->  | E34: =VLOOKUP(A34,'350'!A34:D165,4,FALSE) -> 0 | F34: =VLOOKUP(A34,'3'!A34:C156,3,FALSE) -> 0
A35: 71.99.01 | B35: Asignaciones a distribuir para Gastos en el Personal | C35: =+'310'!D40+'3'!C35+'350'!D35 -> 0.00 | D35: =VLOOKUP(A35,'310'!A40:D168,4,FALSE) -> 0 | E35: =VLOOKUP(A35,'350'!A35:D166,4,FALSE) -> 0 | F35: =VLOOKUP(A35,'3'!A35:C157,3,FALSE) -> 0 | G35: 0
A36: 73 | B36: BIENES Y SERVICIOS DE INVERSION | C36: =+'310'!D41+'3'!C36+'350'!D36 -> 1,059,672.87 | D36: =VLOOKUP(A36,'310'!A41:D170,4,FALSE) -> 9350 | E36: =VLOOKUP(A36,'350'!A36:D167,4,FALSE) -> 92500 | F36: =VLOOKUP(A36,'3'!A36:C158,3,FALSE) -> 957822.87 | G36: 1059672.87
A37: 73.01 | B37: SERVICIOS BASICOS | C37: =+'310'!D42+'3'!C37+'350'!D37 -> 200.00 | D37: =VLOOKUP(A37,'310'!A42:D171,4,FALSE) -> 0 | E37: =VLOOKUP(A37,'350'!A37:D168,4,FALSE) -> 0 | F37: =VLOOKUP(A37,'3'!A37:C159,3,FALSE) -> 200 | G37: 200
A38: 73.01.05 | B38: Telecomunicaciones | C38: =+'310'!D43+'3'!C38+'350'!D38 -> 200.00 | D38: =VLOOKUP(A38,'310'!A43:D172,4,FALSE) ->  | E38: =VLOOKUP(A38,'350'!A38:D169,4,FALSE) ->  | F38: =VLOOKUP(A38,'3'!A38:C160,3,FALSE) -> 200
A39: 73.02 | B39: SERVICIOS GENERALES | C39: =+'310'!D47+'3'!C39+'350'!D42 -> 81,850.00 | D39: =VLOOKUP(A39,'310'!A47:D173,4,FALSE) -> 1300 | E39: =VLOOKUP(A39,'350'!A42:D170,4,FALSE) -> 1300 | F39: =VLOOKUP(A39,'3'!A39:C161,3,FALSE) -> 79250 | G39: 81850
A40: 73.02.01 | B40: Transporte de personal | C40: =+'310'!D48+'3'!C40+'350'!D43 -> 0.00 | D40: =VLOOKUP(A40,'310'!A48:D177,4,FALSE) -> 0 | E40: =VLOOKUP(A40,'350'!A43:D171,4,FALSE) -> 0 | F40: =VLOOKUP(A40,'3'!A40:C162,3,FALSE) -> 0 | G40: 0
A41: 73.02.02 | B41: Fletes y maniobras | C41: =+'310'!D49+'3'!C41+'350'!D44 -> 0.00 | D41: =VLOOKUP(A41,'310'!A49:D178,4,FALSE) -> 0 | E41: =VLOOKUP(A41,'350'!A44:D174,4,FALSE) -> 0 | F41: =VLOOKUP(A41,'3'!A41:C163,3,FALSE) -> 0 | G41: 0
A42: 73.02.04 | B42: Impresión, reproducción y publicaciones | C42: =+'310'!D50+'3'!C42+'350'!D45 -> 9,900.00 | D42: =VLOOKUP(A42,'310'!A50:D179,4,FALSE) -> 1300 | E42: =VLOOKUP(A42,'350'!A45:D176,4,FALSE) -> 300 | F42: =VLOOKUP(A42,'3'!A42:C164,3,FALSE) -> 8300 | G42: 9900
A43: 73.02.06 | B43: Eventos Públicos y Oficiales (Asamblea Cantonal) | C43: =+'310'!D52+'3'!C43+'350'!D47 -> 0.00 | D43: =VLOOKUP(A43,'310'!A52:D181,4,FALSE) -> 0 | E43: =VLOOKUP(A43,'350'!A47:D177,4,FALSE) -> 0 | F43: =VLOOKUP(A43,'3'!A43:C165,3,FALSE) -> 0 | G43: 0
A44: 73.02.07 | B44: Impresión, reproducción y publicaciones | C44: =+'310'!D53+'3'!C44+'350'!D48 -> 1,000.00 | D44: =VLOOKUP(A44,'310'!A53:D182,4,FALSE) -> 0 | E44: =VLOOKUP(A44,'350'!A48:D180,4,FALSE) -> 1000 | F44: =VLOOKUP(A44,'3'!A44:C166,3,FALSE) -> 0 | G44: 1000
A45: 73.02.09 | B45: Servicios de Aseo | C45: =+'310'!D54+'3'!C45+'350'!D49 -> 3,000.00 | D45: =VLOOKUP(A45,'310'!A54:D183,4,FALSE) -> 0 | E45: =VLOOKUP(A45,'350'!A49:D181,4,FALSE) -> 0 | F45: =VLOOKUP(A45,'3'!A45:C167,3,FALSE) -> 3000 | G45: =SUM(D45:F45) -> 3000
A46: 73.02.99 | B46: Otros Servicios | C46: =+'310'!D55+'3'!C46+'350'!D50 -> 500.00 | D46: =VLOOKUP(A46,'310'!A55:D186,4,FALSE) -> 0 | E46: =VLOOKUP(A46,'350'!A50:D182,4,FALSE) -> 0 | F46: =VLOOKUP(A46,'3'!A46:C168,3,FALSE) -> 500 | G46: 500
A47: 73.03 | B47: TRASLADOS, INSTALACIONES, VIATICOS Y SUBSISTENCIAS | C47: =+'310'!D56+'3'!C47+'350'!D51 -> 10,500.00 | D47: =VLOOKUP(A47,'310'!A56:D187,4,FALSE) ->  | E47: =VLOOKUP(A47,'350'!A51:D183,4,FALSE) -> 0 | F47: =VLOOKUP(A47,'3'!A47:C169,3,FALSE) -> 10500
A48: 73.03.01 | B48: Pasajes al Interior | C48: =+'310'!D57+'3'!C48+'350'!D52 -> 500.00 | D48: =VLOOKUP(A48,'310'!A57:D188,4,FALSE) -> 0 | E48: =VLOOKUP(A48,'350'!A52:D184,4,FALSE) -> 0 | F48: =VLOOKUP(A48,'3'!A48:C170,3,FALSE) -> 500 | G48: 500
A49: 73.03.03 | B49: Viáticos y Subsistencias en el Interior | C49: =+'310'!D58+'3'!C49+'350'!D53 -> 10,000.00 | D49: =VLOOKUP(A49,'310'!A58:D189,4,FALSE) -> 0 | E49: =VLOOKUP(A49,'350'!A53:D185,4,FALSE) -> 0 | F49: =VLOOKUP(A49,'3'!A49:C171,3,FALSE) -> 10000 | G49: 10000
A50: 73.04 | B50: INSTALACION MANTENIMIENTO Y REPARACIONES | C50: =+'310'!D59+'3'!C50+'350'!D54 -> 34,000.00 | D50: =VLOOKUP(A50,'310'!A59:D190,4,FALSE) ->  | E50: =VLOOKUP(A50,'350'!A54:D186,4,FALSE) -> 1500 | F50: =VLOOKUP(A50,'3'!A50:C172,3,FALSE) -> 32000
A51: 73.04.02 | B51: Edificios, locales y residencias | C51: =+'310'!D60+'3'!C51+'350'!D55 -> 12,000.00 | D51: =VLOOKUP(A51,'310'!A60:D197,4,FALSE) -> 500 | E51: =VLOOKUP(A51,'350'!A55:D187,4,FALSE) -> 500 | F51: =VLOOKUP(A51,'3'!A51:C173,3,FALSE) -> 11000 | G51: 12000
A52: 73.04.04 | B52: Maquinaria y equipos | C52: =+'310'!D62+'3'!C52+'350'!D57 -> 14,000.00 | D52: =VLOOKUP(A52,'310'!A62:D198,4,FALSE) -> 0 | E52: =VLOOKUP(A52,'350'!A57:D188,4,FALSE) -> 1000 | F52: =VLOOKUP(A52,'3'!A52:C174,3,FALSE) -> 13000 | G52: 14000
A53: 73.04.05 | B53: Vehículos | C53: =+'310'!D63+'3'!C53+'350'!D58 -> 0.00 | D53: =VLOOKUP(A53,'310'!A63:D199,4,FALSE) -> 0 | E53: =VLOOKUP(A53,'350'!A58:D189,4,FALSE) -> 0 | F53: =VLOOKUP(A53,'3'!A53:C175,3,FALSE) -> 0 | G53: 0
A54: 73.04.99 | B54: Otros instalaciones mant y reparaciones | C54: =+'310'!D64+'3'!C54+'350'!D59 -> 1,000.00 | D54: =VLOOKUP(A54,'310'!A64:D200,4,FALSE) -> 0 | E54: =VLOOKUP(A54,'350'!A59:D202,4,FALSE) -> 0 | F54: =VLOOKUP(A54,'3'!A54:C176,3,FALSE) -> 1000 | G54: 1000
A55: 73.05 | B55: ARRENDAMIENTO DE BIENES | C55: =+'310'!D65+'3'!C55+'350'!D60 -> 1,000.00 | D55: =VLOOKUP(A55,'310'!A65:D205,4,FALSE) -> 0 | E55: =VLOOKUP(A55,'350'!A60:D203,4,FALSE) -> 0 | F55: =VLOOKUP(A55,'3'!A55:C177,3,FALSE) -> 1000 | G55: 1000
A56: 73.05.04 | B56: Maquinaria y equipos | C56: =+'310'!D66+'3'!C56+'350'!D61 -> 0.00 | D56: =VLOOKUP(A56,'310'!A66:D206,4,FALSE) -> 0 | E56: =VLOOKUP(A56,'350'!A61:D204,4,FALSE) -> 0 | F56: =VLOOKUP(A56,'3'!A56:C178,3,FALSE) -> 0 | G56: 0
A57: 73.06 | B57: CONTRATACION DE DE ESTUDIOS E INVEST | C57: =+'310'!D69+'3'!C57+'350'!D64 -> 152,850.00 | D57: =VLOOKUP(A57,'310'!A69:D207,4,FALSE) ->  | E57: =VLOOKUP(A57,'350'!A64:D209,4,FALSE) -> 84100 | F57: =VLOOKUP(A57,'3'!A57:C179,3,FALSE) -> 67350
A58: 73.06.03 | B58: Servicios de Capacitación | C58: =+'310'!D70+'3'!C58+'350'!D65 -> 16,100.00 | D58: =VLOOKUP(A58,'310'!A70:D208,4,FALSE) -> 1400 | E58: =VLOOKUP(A58,'350'!A65:D210,4,FALSE) -> 0 | F58: =VLOOKUP(A58,'3'!A58:C180,3,FALSE) -> 14700 | G58: 16100
A59: 73.06.05 | B59: Estudio y Diseño de proyectos | C59: =+'310'!D72+'3'!C59+'350'!D67 -> 42,000.00 | D59: =VLOOKUP(A59,'310'!A72:D210,4,FALSE) -> 0 | E59: =VLOOKUP(A59,'350'!A67:D211,4,FALSE) -> 25000 | F59: =VLOOKUP(A59,'3'!A59:C181,3,FALSE) -> 17000 | G59: 42000
A60: 73.06.05.01 | B60: Estudio y Diseño de proyectos Actualizaciòn Catastral | C60: =+'3'!C60+'350'!#REF! ->  | D60: =VLOOKUP(A60,'310'!A73:D212,4,FALSE) ->  | E60: =VLOOKUP(A60,'350'!A68:D215,4,FALSE) -> 0 | F60: =VLOOKUP(A60,'3'!A60:C182,3,FALSE) -> 
A61: 73.06.05.02 | B61: Estudio y Diseño de proyectos Ordenamiento Territorial | C61: =+'3'!C61+'350'!#REF! ->  | D61: =VLOOKUP(A61,'310'!A73:D213,4,FALSE) ->  | E61: =VLOOKUP(A61,'350'!A68:D216,4,FALSE) -> 0 | F61: =VLOOKUP(A61,'3'!A61:C183,3,FALSE) -> 
A62: 73.06.05.03 | B62: Estudio y Diseño de Proyectos Sociales | C62: =+'3'!C62+'350'!#REF! ->  | D62: =VLOOKUP(A62,'310'!A73:D214,4,FALSE) ->  | E62: =VLOOKUP(A62,'350'!A68:D219,4,FALSE) ->  | F62: =VLOOKUP(A62,'3'!A62:C184,3,FALSE) -> 
A63: 73.06.05.04 | B63: Estudio y diseño de Proyectos Economicos | C63: =+'3'!C63+'350'!#REF! ->  | D63: =VLOOKUP(A63,'310'!A73:D218,4,FALSE) ->  | E63: =VLOOKUP(A63,'350'!A68:D220,4,FALSE) ->  | F63: =VLOOKUP(A63,'3'!A63:C185,3,FALSE) -> 
A64: 73.06.05.05 | B64: Estudio y diseño de Proyectos Productivos | C64: =+'3'!C64+'350'!#REF! ->  | D64: =VLOOKUP(A64,'310'!A73:D228,4,FALSE) -> 0 | E64: =VLOOKUP(A64,'350'!A68:D221,4,FALSE) ->  | F64: =VLOOKUP(A64,'3'!A64:C186,3,FALSE) -> 
A65: 73.07 | B65: GASTOS EN INFORMATICA | C65: =+'310'!D73+'3'!C65+'350'!D68 -> 5,800.00 | D65: =VLOOKUP(A65,'310'!A73:D228,4,FALSE) ->  | E65: =VLOOKUP(A65,'350'!A68:D222,4,FALSE) ->  | F65: =VLOOKUP(A65,'3'!A65:C187,3,FALSE) -> 
A66: 73.07.02 | B66: Arrendamiento y Licencias de uso paquetes Informa | C66: =+'310'!D74+'3'!C66+'350'!D69 -> 1,000.00 | D66: =VLOOKUP(A66,'310'!A74:D228,4,FALSE) -> 0 | E66: =VLOOKUP(A66,'350'!A69:D223,4,FALSE) -> 0 | F66: =VLOOKUP(A66,'3'!A66:C188,3,FALSE) -> 1000 | G66: 1000
A67: 73.07.04 | B67: Mantenimiento y reparación de equipos y sistemas informáticos | C67: =+'310'!D75+'3'!C67+'350'!D70 -> 5,200.00 | D67: =VLOOKUP(A67,'310'!A75:D228,4,FALSE) -> 500 | E67: =VLOOKUP(A67,'350'!A70:D224,4,FALSE) -> 3000 | F67: =VLOOKUP(A67,'3'!A67:C189,3,FALSE) -> 1700 | G67: 5200
A68: 73.08 | B68: BIENES DE USO Y CONSUMO PARA INVERSION | C68: =+'310'!D76+'3'!C68+'350'!D71 -> 548,252.00 | D68: =VLOOKUP(A68,'310'!A76:D228,4,FALSE) ->  | E68: =VLOOKUP(A68,'350'!A71:D225,4,FALSE) -> 2300 | F68: =VLOOKUP(A68,'3'!A68:C190,3,FALSE) -> 540302
A69: 73.08.01 | B69: Alimentos y Bebidas | C69: =+'310'!D77+'3'!C69+'350'!D72 -> 0.00 | D69: =VLOOKUP(A69,'310'!A77:D229,4,FALSE) -> 0 | E69: =VLOOKUP(A69,'350'!A72:D226,4,FALSE) -> 0 | F69: =VLOOKUP(A69,'3'!A69:C191,3,FALSE) -> 0 | G69: 0
A70: 73.08.02 | B70: Vestuario, Lenceria y Prendas de Protección | C70: =+'310'!D78+'3'!C70+'350'!D73 -> 46,702.00 | D70: =VLOOKUP(A70,'310'!A78:D230,4,FALSE) -> 3800 | E70: =VLOOKUP(A70,'350'!A73:D227,4,FALSE) -> 2200 | F70: =VLOOKUP(A70,'3'!A70:C192,3,FALSE) -> 40702 | G70: 46702
A71: 73.08.03 | B71: Combustibles y Lubricantes | C71: =+'310'!D79+'3'!C71+'350'!D74 -> 0.00 | D71: =VLOOKUP(A71,'310'!A79:D231,4,FALSE) -> 0 | E71: =VLOOKUP(A71,'350'!A74:D228,4,FALSE) -> 0 | F71: =VLOOKUP(A71,'3'!A71:C193,3,FALSE) -> 0 | G71: 0
A72: 73.08.04 | B72: Materiales de Oficina | C72: =+'310'!D80+'3'!C72+'350'!D75 -> 4,950.00 | D72: =VLOOKUP(A72,'310'!A80:D232,4,FALSE) -> 1150 | E72: =VLOOKUP(A72,'350'!A75:D229,4,FALSE) -> 800 | F72: =VLOOKUP(A72,'3'!A72:C194,3,FALSE) -> 3000 | G72: 4950
A73: 73.08.05 | B73: Materiales de Aseo | C73: =+'310'!D81+'3'!C73+'350'!D76 -> 2,500.00 | D73: =VLOOKUP(A73,'310'!A81:D234,4,FALSE) -> 700 | E73: =VLOOKUP(A73,'350'!A76:D230,4,FALSE) -> 400 | F73: =VLOOKUP(A73,'3'!A73:C195,3,FALSE) -> 1400 | G73: 2500
A74: 73.08.06 | B74: Herramientas | C74: =+'310'!D82+'3'!C74+'350'!D77 -> 6,500.00 | D74: =VLOOKUP(A74,'310'!A82:D235,4,FALSE) -> 0 | E74: =VLOOKUP(A74,'350'!A77:D231,4,FALSE) -> 0 | F74: =VLOOKUP(A74,'3'!A74:C196,3,FALSE) -> 6500 | G74: 6500
A75: 73.08.07 | B75: Mat. Impresión,fotografía, Reproducción y Publicación | C75: =+'310'!D83+'3'!C75+'350'!D78 -> 1,200.00 | D75: =VLOOKUP(A75,'310'!A83:D236,4,FALSE) -> 0 | E75: =VLOOKUP(A75,'350'!A78:D232,4,FALSE) -> 0 | F75: =VLOOKUP(A75,'3'!A75:C197,3,FALSE) -> 1200 | G75: 1200
A76: 73.08.08 | B76: Instrumental Médico Menor | C76: =+'320'!D84 -> 0.00
A77: 73.08.09 | B77: Medicinas y Productos Farmacéuticos | C77: =+'320'!D85 -> 0.00
A78: 73.08.11 | B78: Materiales construcciòn,electrica,plomeria y carpinteria | C78: =+'310'!D86+'3'!C76+'350'!D81 -> 487,500.00 | D78: =VLOOKUP(A78,'310'!A86:D239,4,FALSE) -> 0 | E78: =VLOOKUP(A78,'350'!A81:D233,4,FALSE) -> 0 | F78: =VLOOKUP(A78,'3'!A76:C198,3,FALSE) -> 487500 | G78: 487500
A79: 73.08.13 | B79: Repuestos y Accesorios | C79: =+'310'!D87+'3'!C77+'350'!D82 -> 1,000.00 | D79: =VLOOKUP(A79,'310'!A87:D240,4,FALSE) -> 0 | E79: =VLOOKUP(A79,'350'!A82:D234,4,FALSE) -> 0 | F79: =VLOOKUP(A79,'3'!A77:C199,3,FALSE) -> 1000 | G79: =SUM(D79:F79) -> 1000
A80: 73.08.99 | B80: Otros de uso y consumo. | C80: =+'310'!D88+'3'!C78+'350'!D83 -> 0.00 | D80: =VLOOKUP(A80,'310'!A88:D243,4,FALSE) -> 0 | E80: =VLOOKUP(A80,'350'!A83:D235,4,FALSE) -> 0 | F80: =VLOOKUP(A80,'3'!A78:C200,3,FALSE) -> 0 | G80: 0
A81: 73.99 | B81: ASIGNACIONES A DISTRIBUIR | C81: =+'310'!D89+'3'!C79+'350'!D84 -> 0.00 | D81: =VLOOKUP(A81,'310'!A89:D244,4,FALSE) ->  | E81: =VLOOKUP(A81,'350'!A84:D236,4,FALSE) -> 0 | F81: =VLOOKUP(A81,'3'!A79:C201,3,FALSE) -> 0
A82: 73.99.01 | B82: Asignaciones a distribuir para Bienes y servicios de Inversión | C82: =+'310'!D90+'3'!C80+'350'!D85 -> 0.00 | D82: =VLOOKUP(A82,'310'!A90:D245,4,FALSE) -> 0 | E82: =VLOOKUP(A82,'350'!A85:D237,4,FALSE) -> 0 | F82: =VLOOKUP(A82,'3'!A80:C202,3,FALSE) -> 0 | G82: 0
A83: 75 | B83: OBRAS PUBLICAS | C83: =+'310'!D91+'3'!C81+'350'!D86 -> 7,457,839.33 | D83: =VLOOKUP(A83,'310'!A91:D246,4,FALSE) -> 0 | E83: =VLOOKUP(A83,'350'!A86:D238,4,FALSE) ->  | F83: =VLOOKUP(A83,'3'!A81:C203,3,FALSE) -> 
A84: 75.01 | B84: OBRAS DE INFRAESTRUCTURA | C84: =+'310'!D92+'3'!C82+'350'!D87 -> 7,457,839.33 | D84: =VLOOKUP(A84,'310'!A92:D251,4,FALSE) ->  | E84: =VLOOKUP(A84,'350'!A87:D239,4,FALSE) ->  | F84: =VLOOKUP(A84,'3'!A82:C204,3,FALSE) -> 
A85: 75.01.01 | B85: De agua potable | C85: =+'310'!D93+'3'!C83+'350'!D88 -> 0.00 | D85: =VLOOKUP(A85,'310'!A93:D252,4,FALSE) -> 0 | E85: =VLOOKUP(A85,'350'!A88:D240,4,FALSE) -> 0 | F85: =VLOOKUP(A85,'3'!A83:C205,3,FALSE) -> 0 | G85: 0
A86: 75.01.01.01 | B86: Convenios de agua potable (MIDUVI, PRAGUAS) | C86: =+'310'!#REF!+'3'!C84+'350'!#REF! ->  | D86: =VLOOKUP(A86,'310'!A94:D253,4,FALSE) ->  | E86: =VLOOKUP(A86,'350'!A89:D241,4,FALSE) ->  | F86: =VLOOKUP(A86,'3'!A84:C206,3,FALSE) -> 
A87: 75.01.01.02 | B87: Convenios de agua potable (MIDUVI,Comunidad Agumba) | C87: =+'310'!#REF!+'3'!C85+'350'!#REF! ->  | D87: =VLOOKUP(A87,'310'!A94:D266,4,FALSE) ->  | E87: =VLOOKUP(A87,'350'!A89:D242,4,FALSE) ->  | F87: =VLOOKUP(A87,'3'!A85:C207,3,FALSE) -> 
A88: 75.01.02 | B88: De riego y manejo de aguas | C88: =+'310'!D94+'3'!C86+'350'!D89 -> 0.00 | D88: =VLOOKUP(A88,'310'!A94:D266,4,FALSE) -> 0 | E88: =VLOOKUP(A88,'350'!A89:D243,4,FALSE) -> 0 | F88: =VLOOKUP(A88,'3'!A86:C208,3,FALSE) -> 0 | G88: 0
A89: 75.01.03 | B89: Convenios de alcantarillado | C89: =+'310'!D95+'3'!C87+'350'!D90 -> 2,525,019.56 | D89: =VLOOKUP(A89,'310'!A95:D269,4,FALSE) -> 0 | E89: =VLOOKUP(A89,'350'!A90:D248,4,FALSE) -> 0 | F89: =VLOOKUP(A89,'3'!A87:C209,3,FALSE) -> 2525019.56 | G89: 2525019.56
A90: 75.01.03.01 | B90: Convenios de alcantarillado MIDUVI (Comunidad Pucalpa) | C90: =+'310'!#REF!+'3'!C88+'350'!#REF! ->  | D90: =VLOOKUP(A90,'310'!A96:D270,4,FALSE) ->  | E90: =VLOOKUP(A90,'350'!A91:D249,4,FALSE) ->  | F90: =VLOOKUP(A90,'3'!A88:C210,3,FALSE) -> 
A91: 75.01.04 | B91: De Urbanización y embellecimiento | C91: =+'310'!D96+'3'!C89+'350'!D91 -> 245,000.00 | D91: =VLOOKUP(A91,'310'!A96:D271,4,FALSE) -> 0 | E91: =VLOOKUP(A91,'350'!A91:D250,4,FALSE) -> 0 | F91: =VLOOKUP(A91,'3'!A89:C211,3,FALSE) -> 245000 | G91: 245000
A92: 75.01.05 | B92: Obras públicas de transporte y vías | C92: =+'310'!D97+'3'!C90+'350'!D92 -> 0.00 | D92: =VLOOKUP(A92,'310'!A97:D277,4,FALSE) -> 0 | E92: =VLOOKUP(A92,'350'!A92:D251,4,FALSE) -> 0 | F92: =VLOOKUP(A92,'3'!A90:C212,3,FALSE) -> 0 | G92: 0
A93: 75.01.07 | B93: Construcciones y Edificaciones | C93: =+'310'!D98+'3'!C91+'350'!D93 -> 4,932,819.77 | D93: =VLOOKUP(A93,'310'!A98:D278,4,FALSE) -> 0 | E93: =VLOOKUP(A93,'350'!A93:D252,4,FALSE) -> 0 | F93: =VLOOKUP(A93,'3'!A91:C213,3,FALSE) -> 4932819.77 | G93: 4932819.77
A94: 75.01.08 | B94: Construcción hospitales y asistencia | C94: =+'310'!D99+'3'!C92+'350'!D94 -> 0.00 | D94: =VLOOKUP(A94,'310'!A99:D279,4,FALSE) -> 0 | E94: =VLOOKUP(A94,'350'!A94:D253,4,FALSE) -> 0 | F94: =VLOOKUP(A94,'3'!A92:C214,3,FALSE) -> 0 | G94: 0
A95: 75.01.11 | B95: Habilitamiento y protección del suelo, subsuelo y áreas ecológicas | C95: =+'310'!D100+'3'!C93+'350'!D95 -> 0.00 | D95: =VLOOKUP(A95,'310'!A100:D280,4,FALSE) -> 0 | E95: =VLOOKUP(A95,'350'!A95:D254,4,FALSE) -> 0 | F95: =VLOOKUP(A95,'3'!A93:C215,3,FALSE) -> 0 | G95: 0
A96: 75.01.12 | B96: Formación de plantaciones (medicinales) | C96: =+'310'!D101+'3'!C94+'350'!D96 -> 0.00 | D96: =VLOOKUP(A96,'310'!A101:D281,4,FALSE) -> 0 | E96: =VLOOKUP(A96,'350'!A96:D255,4,FALSE) -> 0 | F96: =VLOOKUP(A96,'3'!A94:C216,3,FALSE) -> 0 | G96: 0
A97: 75.01.99 | B97: Otras obras de infraestructura (relleno sanitario apertura de celdas) | C97: =+'310'!D102+'3'!C95+'350'!D97 -> 0.00 | D97: =VLOOKUP(A97,'310'!A102:D282,4,FALSE) -> 0 | E97: =VLOOKUP(A97,'350'!A97:D256,4,FALSE) -> 0 | F97: =VLOOKUP(A97,'3'!A95:C217,3,FALSE) -> 0 | G97: 0
A98: 75.04 | B98: OBRAS EN LINEAS, REDES E INSTALACIONES ELECTRICAS | C98: =+'310'!D103+'3'!C96+'350'!D98 -> 0.00 | D98: =VLOOKUP(A98,'310'!A103:D283,4,FALSE) -> 0 | E98: =VLOOKUP(A98,'350'!A98:D257,4,FALSE) -> 0 | F98: =VLOOKUP(A98,'3'!A96:C218,3,FALSE) -> 0 | G98: 0
A99: 75.04.01 | B99: Líneas, redes e instalaciones eléctricas | C99: =+'310'!D104+'3'!C97+'350'!D99 -> 0.00 | D99: =VLOOKUP(A99,'310'!A104:D284,4,FALSE) -> 0 | E99: =VLOOKUP(A99,'350'!A99:D258,4,FALSE) -> 0 | F99: =VLOOKUP(A99,'3'!A97:C219,3,FALSE) -> 0 | G99: 0
A100: 75.05 | B100: MANTENIMIENTO Y REPARACIONES | C100: =+'310'!D105+'3'!C98+'350'!D100 -> 0.00 | D100: =VLOOKUP(A100,'310'!A105:D285,4,FALSE) ->  | E100: =VLOOKUP(A100,'350'!A100:D259,4,FALSE) -> 0 | F100: =VLOOKUP(A100,'3'!A98:C220,3,FALSE) -> 0
A101: 75.05.01 | B101: En Obras de infraestructura | C101: =+'310'!D106+'3'!C99+'350'!D101 -> 0.00 | D101: =VLOOKUP(A101,'310'!A106:D287,4,FALSE) -> 0 | E101: =VLOOKUP(A101,'350'!A101:D260,4,FALSE) -> 0 | F101: =VLOOKUP(A101,'3'!A99:C221,3,FALSE) -> 0 | G101: 0
A102: 75.99 | B102: ASIGNACIONES A DISTRIBUIR | C102: =+'310'!D107+'3'!C100+'350'!D102 -> 0.00 | D102: =VLOOKUP(A102,'310'!A107:D288,4,FALSE) ->  | E102: =VLOOKUP(A102,'350'!A102:D261,4,FALSE) -> 0 | F102: =VLOOKUP(A102,'3'!A100:C222,3,FALSE) -> 0
A103: 75.99.01 | B103: Asignaciones a Distribuir para Obras Públicas | C103: =+'310'!D108+'3'!C101+'350'!D103 -> 0.00 | D103: =VLOOKUP(A103,'310'!A108:D289,4,FALSE) -> 0 | E103: =VLOOKUP(A103,'350'!A103:D262,4,FALSE) -> 0 | F103: =VLOOKUP(A103,'3'!A101:C223,3,FALSE) -> 0 | G103: 0
A104: 77 | B104: OTROS GASTOS DE INVERSION | C104: =+'310'!D109+'3'!C102+'350'!D104 -> 0.00 | D104: =VLOOKUP(A104,'310'!A109:D290,4,FALSE) -> 0 | E104: =VLOOKUP(A104,'350'!A104:D263,4,FALSE) -> 0 | F104: =VLOOKUP(A104,'3'!A102:C224,3,FALSE) -> 0 | G104: 0
A105: 77.02 | B105: SEGUROS, COSTOS FINACIEROS Y OTROS | C105: =+'310'!D110+'3'!C103+'350'!D105 -> 0.00 | D105: =VLOOKUP(A105,'310'!A110:D291,4,FALSE) ->  | E105: =VLOOKUP(A105,'350'!A105:D264,4,FALSE) -> 0 | F105: =VLOOKUP(A105,'3'!A103:C225,3,FALSE) -> 0
A106: 77.02.01 | B106: Seguros | C106: =+'310'!D111+'3'!C104+'350'!D106 -> 0.00 | D106: =VLOOKUP(A106,'310'!A111:D292,4,FALSE) -> 0 | E106: =VLOOKUP(A106,'350'!A106:D265,4,FALSE) -> 0 | F106: =VLOOKUP(A106,'3'!A104:C226,3,FALSE) -> 0 | G106: 0
A107: 8 | B107: GASTOS DE CAPITAL | C107: =+'310'!D116+'3'!C105+'350'!D111 -> 161,503.38 | D107: =VLOOKUP(A107,'310'!A116:D293,4,FALSE) -> 0 | E107: =VLOOKUP(A107,'350'!A111:D269,4,FALSE) -> 1000 | F107: =VLOOKUP(A107,'3'!A105:C227,3,FALSE) -> 160503.38 | G107: 161503.38
A108: 84 | B108: ACTIVOS DE LARGA DURACION | C108: =+C109+C119+C123+C126 -> 1,153,799.79 | D108: =VLOOKUP(A108,'310'!A117:D293,4,FALSE) -> 5000 | E108: =VLOOKUP(A108,'350'!A112:D281,4,FALSE) -> 1000 | F108: =VLOOKUP(A108,'3'!A106:C228,3,FALSE) -> 160503.38 | G108: 166503.38
A109: 84.01 | B109: BIENES MUEBLES | C109: =SUM(C110:C118) -> 44,000.00 | D109: =VLOOKUP(A109,'310'!A118:D294,4,FALSE) -> 5000 | E109: =VLOOKUP(A109,'350'!A113:D282,4,FALSE) ->  | F109: =VLOOKUP(A109,'3'!A107:C229,3,FALSE) -> 
A110: 84.01.03 | B110: Mobiliarios | C110: =+'310'!D119+'3'!C108+'350'!D114 -> 8,750.00 | D110: =VLOOKUP(A110,'310'!A119:D295,4,FALSE) -> 1600 | E110: =VLOOKUP(A110,'350'!A114:D283,4,FALSE) -> 1000 | F110: =VLOOKUP(A110,'3'!A108:C230,3,FALSE) -> 6150 | G110: 8750
A111: 84.01.04 | B111: Maquinarias y Equipos | C111: =+'310'!D120+'3'!C109+'350'!D115 -> 10,600.00 | D111: =VLOOKUP(A111,'310'!A120:D296,4,FALSE) -> 0 | E111: =VLOOKUP(A111,'350'!A115:D284,4,FALSE) -> 0 | F111: =VLOOKUP(A111,'3'!A109:C231,3,FALSE) -> 10600 | G111: =SUM(D111:F111) -> 10600
A112: 84.01.05 | B112: Vehículo de Producción (recolector) | C112: =+'310'!D121+'3'!C110+'350'!D116 -> 0.00 | D112: =VLOOKUP(A112,'310'!A121:D297,4,FALSE) -> 0 | E112: =VLOOKUP(A112,'350'!A116:D285,4,FALSE) -> 0 | F112: =VLOOKUP(A112,'3'!A110:C232,3,FALSE) -> 0 | G112: 0
A113: 84.01.06 | B113: Herramientas | C113: =+'310'!D122+'3'!C111+'350'!D117 -> 500.00 | D113: =VLOOKUP(A113,'310'!A122:D298,4,FALSE) -> 0 | E113: =VLOOKUP(A113,'350'!A117:D286,4,FALSE) -> 0 | F113: =VLOOKUP(A113,'3'!A111:C233,3,FALSE) -> 500 | G113: 500
A114: 84.01.07 | B114: Equipos, Sistemas y paquetes informáticos | C114: =+'310'!D123+'3'!C112+'350'!D118 -> 19,150.00 | D114: =VLOOKUP(A114,'310'!A123:D299,4,FALSE) -> 5000 | E114: =VLOOKUP(A114,'350'!A118:D287,4,FALSE) -> 0 | F114: =VLOOKUP(A114,'3'!A112:C234,3,FALSE) -> 14150 | G114: 19150
A115: 84.01.08 | B115: Bienes Artísticos y Culturales | C115: =+'310'!D124+'3'!C113+'350'!D119 -> 0.00 | D115: =VLOOKUP(A115,'310'!A124:D301,4,FALSE) -> 0 | E115: =VLOOKUP(A115,'350'!A119:D288,4,FALSE) -> 0 | F115: =VLOOKUP(A115,'3'!A113:C235,3,FALSE) -> 0 | G115: 0
A116: 84.01.09 | B116: Libros y Colecciones | C116: =+'310'!D125+'3'!C114+'350'!D120 -> 0.00 | D116: =VLOOKUP(A116,'310'!A125:D302,4,FALSE) -> 0 | E116: =VLOOKUP(A116,'350'!A120:D289,4,FALSE) -> 0 | F116: =VLOOKUP(A116,'3'!A114:C236,3,FALSE) -> 0 | G116: 0
A117: 84.01.10 | B117: Percheros para la defensa y seguridad Publica | C117: =+'310'!D126+'3'!C115+'350'!D121 -> 0.00 | D117: =VLOOKUP(A117,'310'!A126:D303,4,FALSE) -> 0 | E117: =VLOOKUP(A117,'350'!A121:D290,4,FALSE) -> 0 | F117: =VLOOKUP(A117,'3'!A115:C237,3,FALSE) -> 0 | G117: 0
A118: 84.01.11 | B118: Partes y Repuestos | C118: =+'310'!D127+'3'!C116+'350'!D122 -> 5,000.00 | D118: =VLOOKUP(A118,'310'!A127:D304,4,FALSE) -> 0 | E118: =VLOOKUP(A118,'350'!A122:D291,4,FALSE) -> 0 | F118: =VLOOKUP(A118,'3'!A116:C238,3,FALSE) -> 5000 | G118: 5000
A119: 84.02 | B119: BIENES INMUEBLES YSEMOVIENTES | C119: =SUM(C120:C122) -> 0.00 | D119: =VLOOKUP(A119,'310'!A128:D306,4,FALSE) ->  | E119: =VLOOKUP(A119,'350'!A123:D292,4,FALSE) -> 0 | F119: =VLOOKUP(A119,'3'!A117:C239,3,FALSE) -> 
A120: 84.02.01 | B120: Terrenos | C120: =+'310'!D129+'3'!C118+'350'!D124 -> 0.00 | D120: =VLOOKUP(A120,'310'!A129:D307,4,FALSE) -> 0 | E120: =VLOOKUP(A120,'350'!A124:D293,4,FALSE) -> 0 | F120: =VLOOKUP(A120,'3'!A118:C240,3,FALSE) -> 0 | G120: 0
A121: 84.02.02 | B121: Edificios, locales y residencias | C121: =+'310'!D130+'3'!C119+'350'!D125 -> 0.00 | D121: =VLOOKUP(A121,'310'!A130:D308,4,FALSE) -> 0 | E121: =VLOOKUP(A121,'350'!A125:D294,4,FALSE) -> 0 | F121: =VLOOKUP(A121,'3'!A119:C241,3,FALSE) -> 0 | G121: 0
A122: 84.02.12 | B122: Semovientes | C122: =+'310'!D131+'3'!C120+'350'!D126 -> 0.00 | D122: =VLOOKUP(A122,'310'!A131:D310,4,FALSE) -> 0 | E122: =VLOOKUP(A122,'350'!A126:D295,4,FALSE) -> 0 | F122: =VLOOKUP(A122,'3'!A120:C242,3,FALSE) -> 0 | G122: 0
A123: 84.03 | B123: EXPROPIACION DE BIENES | C123: =SUM(C124:C125) -> 1,109,799.79 | D123: =VLOOKUP(A123,'310'!A132:D311,4,FALSE) -> 80000 | E123: =VLOOKUP(A123,'350'!A127:D296,4,FALSE) -> 0 | F123: =VLOOKUP(A123,'3'!A121:C243,3,FALSE) -> 1029799.79 | G123: 1109799.79
A124: 84.03.01 | B124: Terrenos | C124: =+'310'!D133+'3'!C122+'350'!D128 -> 1,109,799.79 | D124: =VLOOKUP(A124,'310'!A133:D312,4,FALSE) -> 80000 | E124: =VLOOKUP(A124,'350'!A128:D297,4,FALSE) -> 0 | F124: =VLOOKUP(A124,'3'!A122:C244,3,FALSE) -> 1029799.79 | G124: 1109799.79
A125: 84.03.02 | B125: Edificios, locales y residencias | C125: =+'310'!D134+'3'!C123+'350'!D129 -> 0.00 | D125: =VLOOKUP(A125,'310'!A134:D313,4,FALSE) -> 0 | E125: =VLOOKUP(A125,'350'!A129:D298,4,FALSE) -> 0 | F125: =VLOOKUP(A125,'3'!A123:C245,3,FALSE) -> 0 | G125: 0
A126: 84.04 | B126: INTANGIBLES | C126: =+C127 -> 0.00
A127: 84.04.01 | B127: Intangibles | C127: =+'310'!D136+'3'!C125+'350'!D131 -> 0.00
A128: 96 | B128: AMORTIZACION DE LA DEUDA PUBLICA | C128: =+C129 -> 0.00
A129: 96.02 | B129: AMORTIZACION DEUDA INTERNA | C129: =+C130 -> 0.00
A130: 96.02.01 | B130: Al sector público financiero | C130: =+'310'!D139+'3'!C128+'350'!D134 -> 0.00
A131: 97 | B131: PASIVO CIRCULANTE | C131: =+C132 -> 100,000.00 | D131: =VLOOKUP(A131,'310'!A140:D314,4,FALSE) -> 0 | E131: =VLOOKUP(A131,'350'!A135:D299,4,FALSE) -> 0 | F131: =VLOOKUP(A131,'3'!A129:C246,3,FALSE) -> 100000 | G131: 100000
A132: 97.01 | B132: DEUDA FLOTANTE | C132: =+C133 -> 100,000.00 | D132: =VLOOKUP(A132,'310'!A141:D315,4,FALSE) -> 0 | E132: =VLOOKUP(A132,'350'!A136:D300,4,FALSE) ->  | F132: =VLOOKUP(A132,'3'!A130:C247,3,FALSE) -> 
A133: 97.01.01 | B133: De cuentas por pagar | C133: =+'310'!D142+'3'!C131+'350'!D137 -> 100,000.00 | D133: =VLOOKUP(A133,'310'!A142:D316,4,FALSE) -> 0 | E133: =VLOOKUP(A133,'350'!A137:D301,4,FALSE) -> 0 | F133: =VLOOKUP(A133,'3'!A131:C248,3,FALSE) -> 100000 | G133: 100000
A134: 56 | B134: GASTOS FINANCIEROS | C134: =+C135 -> 0.00
A135: 56.02 | B135: INTERESES Y OTROS CARGOS DE LA DEUDA PUBLICA INTERNA | C135: =+C136 -> 0.00
A136: 56.02.01 | B136: Sector público financiero | C136: =+'310'!D145+'3'!C134+'350'!D140 -> 0.00
B137: TOTAL PROGRAMA | C137: =+'310'!D146+'3'!C135+'350'!D141 -> 9,223,473.17 | D137: =VLOOKUP(A137,'310'!A146:D317,4,FALSE) ->  | E137: =VLOOKUP(A137,'350'!A141:D302,4,FALSE) ->  | F137: =VLOOKUP(A137,'3'!A135:C249,3,FALSE) -> 
F138: =VLOOKUP(A138,'350'!A142:E303,3,FALSE) -> 
B139: DETALLE | F139: =VLOOKUP(A139,'350'!A143:E304,3,FALSE) -> 
B140: CORRIENTES | C140: =+C134 -> 0 | F140: =VLOOKUP(A140,'350'!A144:E305,3,FALSE) -> 
B141: INVERSION | C141: =+C12 -> 7,552,690.88 | F141: =VLOOKUP(A141,'350'!A145:E306,3,FALSE) -> 
B142: CAPITAL | C142: =+C107 -> 161,503.38 | F142: =VLOOKUP(A142,'350'!A146:E309,3,FALSE) -> 
B143: PASIVO CIRCULANTE | C143: =+C128 -> 0 | F143: =VLOOKUP(A143,'350'!A147:E310,3,FALSE) -> 
B144: SUBTOTAL | C144: =SUM(C140:C143) -> 7,714,194.26 | F144: =VLOOKUP(A144,'350'!A148:E311,3,FALSE) -> 
F145: =VLOOKUP(A145,'350'!A152:E312,3,FALSE) -> 
A146: REALIZADO POR: | C146: AUTORIZADO POR: | F146: =VLOOKUP(A146,'350'!A153:E313,3,FALSE) -> 
A151: =+DAT_INI!$B$8 -> 0 | C151: =+DAT_INI!$B$9 -> 0
C152: =+DAT_INI!B10 -> 0
B894: Remuneraciones Unificadas

Sheet 220
A1: =+'100'!B1 -> GOBIERNO AUTONOMO DESCENTRALIZADO MUNICIPAL DEL CANTON PEDRO MONCAYO
A2: =+'100'!B2 -> PROFORMA PRESUPUESTARIA AÑO 2020
A3: =+GASTO!$B$51 -> FUNCION II: SERVICIOS SOCIALES
A4: =CONCATENATE("CODIGO DE FUNCION;"," ",GASTO!$A$51) -> CODIGO DE FUNCION; 200
A5: =CONCATENATE("PROGRAMA 2 do:"," ",GASTO!$B$60) -> PROGRAMA 2 do: DIRECCION DE EDUCACION, CULTURA, DEPORTES Y JUVENTUDES
A6: =CONCATENATE("CODIGO DEL PROGRAMA:"," ",GASTO!$A$60) -> CODIGO DEL PROGRAMA: 220
A7: =CONCATENATE("SUBPROGRAMA 1ro",":"," ",GASTO!$B$61) -> SUBPROGRAMA 1ro: DIR. DE GESTION DE EDUCACION, CULTURA, DEPORTE Y JUVENTUDES
A8: =CONCATENATE("CODIGO DEL PROGRAMA:"," ",GASTO!$A$61) -> CODIGO DEL PROGRAMA: 221
A9: 3DA. ASIGNACION SEGÚN EL OBJETO DEL GASTO
A10: PARTIDA | B10: DETALLE | C10: ASIGNACION
C11: =+'100'!D11 -> AÑO 2020
A12: 7 | B12: GASTOS DE INVERSION | C12: =SUM(C13+C32+C85+C72) -> 87,939.40
A13: 71 | B13: GASTOS EN PERSONAL PARA INVERSION | C13: =SUM(C14+C17+C20+C25+C30+C28) -> 47,239.40
A14: 71.01.06 | B14: REMUNERACIONES BASICAS | C14: =SUM(C15:C16) -> 35,796.00
A15: 71.01.06 | B15: Salarios Unificados | C15: =SUMIFS(REMUN,ORG,GASTO!$B$61,CLASIF,B15) -> 0.00
A16: 71.01.05 | B16: Remuneraciones Unificadas | C16: =SUMIFS(REMUN,ORG,GASTO!$B$61,CLASIF,B16) -> 35,796.00
A17: 71.02 | B17: REMUNERACIONES COMPLEMENTARIAS | C17: =SUM(C18:C19) -> 3,793.00
A18: 71.02.03 | B18: Décimo Tercer Sueldo | C18: =SUMIFS(tercero,CLASIF,B15,ORG,GASTO!$B$61)+SUMIFS(tercero,CLASIF,B16,ORG,GASTO!$B$61) -> 2,983.00
A19: 71.02.04 | B19: Décimo Cuarto Sueldo | C19: =SUMIFS(cuarto,CLASIF,B15,ORG,GASTO!$B$61)+SUMIFS(cuarto,CLASIF,B16,ORG,GASTO!$B$61) -> 810.00
A20: 71.05 | B20: REMUNERACIONES TEMPORALES | C20: =SUM(C21:C24) -> 497.17
A21: 71.05.04 | B21: Encargo y subrogaciones | C21: =SUMIFS(encargo,ORG,GASTO!$B$61,CLASIF,B15)+SUMIFS(encargo,ORG,GASTO!$B$61,CLASIF,B16) -> 497.17
A22: 71.05.06 | B22: Licencia Remunerada | C22: 0.00
A23: 71.05.09 | B23: Horas extraordinarias | C23: =SUMIFS(extras,ORG,GASTO!$B$61,CLASIF,B15)+SUMIFS(extras,ORG,GASTO!$B$61,CLASIF,B16) -> 0.00
A24: 71.05.10 | B24: Servicios Personales por contrato | C24: =SUMIFS(ren_anual,CLASIF,B24,ORG,GASTO!$B$61) -> 0.00
A25: 71.06 | B25: APORTES PATRONALES A LA SEGURIDAD SOCIAL | C25: =SUM(C26:C27) -> 7,153.23
A26: 71.06.01 | B26: Aporte Patronal | C26: =SUMIFS(patronal,ORG,GASTO!$B$61,CLASIF,B15)+SUMIFS(patronal,ORG,GASTO!$B$61,CLASIF,B16) -> 4,170.23
A27: 71.06.02 | B27: Fondos de Reserva | C27: =SUMIFS(reserva,ORG,GASTO!$B$61,CLASIF,B15)+SUMIFS(reserva,ORG,GASTO!$B$61,CLASIF,B16) -> 2,983.00
A28: 71.07 | B28: INDEMNIZACIONES | C28: =SUM(C29) -> 0.00
A29: 71.07.01 | B29: compensación por renuncia voluntaria | C29: 0.00
A30: 71.99 | B30: ASIGNACIONES A DISTRIBUIR PARA GTOS PERSONAL DE INVERSION | C30: =C31 -> 0.00
A31: 71.99.01 | B31: Asignaciones a Distribuir para Gastos en el Personal | C31: =C14*0 -> 0.00
A32: 73 | B32: BIENES Y SERVICIOS DE INVERSION | C32: =+C33+C42+C45+C59 -> 700.00
A33: 73.01 | B33: SERVICIOS BASICOS | C33: =+C34 -> 0.00 | E33: 161546.53
A34: 73.01.05 | B34: Telecomunicaciones | C34: 0.00 | E34: =+E33-E32 -> 161,546.53
A35: 73.02 | B35: SERVICIOS GENERALES | C35: =SUM(C36:C41) -> 0.00
A36: 73.02.01 | B36: Transporte de personal | C36: 0.00
A37: 73.02.04 | B37: Impresión. reproducción y publicaciones | C37: 0.00
A38: 73.02.05 | B38: Espectaculos Culturales y Sociales | C38: 0.00
A39: 73.02.06 | B39: Eventos Publicos y Oficiales
A40: 73.02.07 | B40: Difusión. Información y Publicidad
A41: 73.02.99 | B41: Otros Servicios
A42: 73.03 | B42: TRASLADOS. INSTALACIONES. VIATICOS Y SUBSISTENCIAS | C42: =SUM(C43:C44) -> 0.00
A43: 73.03.01 | B43: Pasajes al Interior | C43: 0.00
A44: 73.03.03 | B44: Viáticos y Subsistencias en el Interior | C44: 0.00 | E44: =+C32+C85 -> 40,700.00
A45: 73.04 | B45: INSTALACION. MANTENIMIENTO Y REPARACION | C45: =SUM(C46:C49) -> 0.00 | E45: 1800
A46: 73.04.03 | B46: Mobiliarios | C46: 0.00 | E46: =+E44-E45 -> 38,900.00
A47: 73.04.04 | B47: Maquinarias y Equipos | C47: 0.00
A48: 73.04.05 | B48: Vehículos | C48: 0.00
A49: 73.04.06 | B49: Matenimiento y Reparación de Instituciones Educativas
A50: 73.05 | B50: INSTALACION. MANTENIMIENTO Y REPARACION | C50: =+C51 -> 0.00
A51: 73.05.02 | B51: Arrendamiento de Locales
A52: 73.06 | B52: CONTRATACION DE ESTUDIOS E INVESTIGACIONES | C52: =SUM(C53:C55) -> 200.00
A53: 73.06.03 | B53: Servicio de Capacitación | C53: =SUMIFS(capac,ORG,GASTO!$B$61,CLASIF,B15)+SUMIFS(capac,ORG,GASTO!$B$61,CLASIF,B16)+SUMIFS(capac,ORG,GASTO!$B$61,CLASIF,B24) -> 200.00
A54: 73.06.04 | B54: Fiscalización e Inspeciones Técnicas | C54: 0.00
A55: 73.06.05 | B55: Estudio y diseño de proyectos | C55: 0.00
A56: 73.07 | B56: GASTOS EN INFORMATICA | C56: =+C57+C58 -> 0.00
A57: 73.07.02 | B57: Arrendamiento y Licencias de uso paquetes Informa | C57: 0.00
A58: 73.07.04 | B58: Mantenimiento y reparación de equipos y sistemas informáticos | C58: 0.00
A59: 73.08 | B59: BIENES DE USO Y CONSUMO CORRIENTE | C59: =SUM(C60:C67) -> 700.00
A60: 73.08.02 | B60: Vestuario. Lenceria y Prendas de Protección | C60: =SUMIFS(uniformes,ORG,GASTO!$B$61,CLASIF,B15)+SUMIFS(uniformes,ORG,GASTO!$B$61,CLASIF,B16)+SUMIFS(uniformes,ORG,GASTO!$B$61,CLASIF,B24) -> 400.00
A61: 73.08.03 | B61: Combustibles y Lubricantes | C61: 0.00
A62: 73.08.04 | B62: Materiales de Oficina | C62: 200.00
A63: 73.08.05 | B63: Materiales de Aseo | C63: 100.00
A64: 73.08.07 | B64: Materiales de Impresión. Fotografía. Reproduc.y Publicaciones | C64: 0.00
A65: 73.08.11 | B65: Materiales construcción. eléctrica. plomería y carpintería | C65: 0.00
A66: 73.08.13 | B66: Repuestos y accesorios | C66: 0.00
A67: 73.08.99 | B67: Otros de uso y consumo. | C67: 0.00
A68: 73.14 | B68: BIENES MUEBLES NO DEPRECIABLES | C68: =+C69 -> 0.00
A69: 73.14.07 | B69: Equipos, Sistemas y Paquetes Informáticos - Canje Deuda | C69: 0.00
A70: 73.99 | B70: ASIGNACIONES A DISTRIBUIR PARA BIENES Y SERVI. INVERSION | C70: =C71 -> 0.00
A71: 73.99.01 | B71: Asignaciones a Distribuir para Bienes y servicios | C71: 0.00
A72: 75 | B72: OBRAS PUBLICAS | C72: =SUM(C73,C83) -> 0.00
A73: 75.01 | B73: OBRAS DE INFRAESTRUCTURA | C73: =+C74+C75+C76+C80 -> 0.00
A74: 75.01.04 | B74: DE URBANIZACION Y EMBELLECIMIENTO | C74: 0.00
A75: 75.01.07 | B75: CONSTRUCCIONES Y EDIFICACIONES | C75: 0.00
A76: 75.01.08 | B76: HOSPITALES Y CENTROS DE ASISTENCIA SOCIAL Y SALUD | C76: =SUM(C77:C79) -> 0.00
A77: 75.01.08.01
A78: 75.01.08.02
A79: 75.01.08.03
A80: 75.01.99 | B80: OTRAS OBRAS DE INFRAESTRUCTURA | C80: 0.00
A81: 75.05 | B81: MANTENIMIENTO Y REPARACIONES | C81: =+C82 -> 0.00
A82: 75.05.01 | B82: EN OBRAS DE INFRAESTRUCTURA
A83: 75.99 | B83: ASIGNACIONES A DISTRIBUIR | C83: =+C84 -> 0.00
A84: 75.99.01 | B84: Asignaciones a distribuir en bienes y servicios | C84: 0.00
A85: 78 | B85: TRANSFERENCIAS Y DONACIONES INVERSION | C85: =SUM(C86+C93+C119) -> 40,000.00
A86: 78.01 | B86: TRANSFERENCIAS PARA INVERSION SECTOR PUBLICO | C86: =C87 -> 40,000.00
A87: 78.01.04 | B87: A ENTIDADES DEL GOBIERNO SECCIONAL | C87: =+C88+C89+C90+C91 -> 40,000.00
A88: 78.01.04.01 | B88: Recuperacion Intangible a Travez de agendas Culturales | C88: 40,000.00
A89: 78.01.04.02 | B89: Programa Escuelas Saludables | C89: 0.00 | E89: =SUM(C88:C90) -> 40,000.00
A90: 78.01.04.03 | B90: Laboratorio Clinico Movil | C90: 0.00
A91: 78.01.04.04 | B91: Implementacion y funcionamiento del Centro de Dialisis del Patronato | C91: 0.00 | F91: =+C91 -> 0.00
A92: 78.01.04.05 | C92: 0.00
A93: 78.01 | B93: TRANFERENCIAS PARA INV.EN EL SEC.PUBLICO | C93: =C94 -> 0.00
A94: 78.01.08 | B94: A CUENTAS O FONDOS ESPECIALES | C94: =SUM(C95:C112) -> 0.00
A95: 78.01.08.01 | B95: Fomento educación. deporte. Cultura. arte. salud. etc. | C95: 0.00
A96: 78.01.08.02 | B96: Recuperacion del Archivo Municipal | C96: 0.00
A97: 78.01.08.03 | B97: Programa de Alfabetización | C97: 0.00
A98: 78.01.08.04 | B98: Aporte a la Primeras Olimpiadas Interparroquiales del Cantón Salcedo | C98: 0.00
A99: 78.01.08.05 | B99: Apoyo a la mujer y la familia | C99: 0.00
A100: 78.01.08.06 | B100: Programa de La Estudiantina de Salcedo | C100: 0.00
A101: 78.01.08.07 | B101: Programa de la Banda Municipal | C101: 0.00
A102: 78.01.08.08 | B102: Navidad para la niñez del Cantón | C102: 0.00
A103: 78.01.08.09 | B103: Programa de Capacitación Ocupacional | C103: 0.00
A104: 78.01.08.10 | B104: Aporte a la liga Deportiva Cantonal | C104: 0.00
A105: 78.01.08.11 | B105: Mes de la Salud | C105: 0.00
A106: 78.01.08.12 | B106: Ley de Maternidad Gratuita | C106: 0.00
A107: 78.01.08.13 | B107: Fomento al Turísmo | C107: 0.00
A108: 78.01.08.14 | B108: Programa de salud | C108: 0.00
A109: 78.01.08.15 | B109: Programa Alfabetización.Yo SI PUEDO | C109: 0.00
A110: 78.01.08.16 | B110: Subvención Asilo de Ancianos | C110: 0.00
A111: 78.01.08.17 | B111: Aporte al Patronato | C111: 0.00
A112: 78.01.08.18 | B112: Convenios con organizaciones de apoyo social | C112: 0.00
A113: 78.02 | B113: DONACIONES DE INVERSION AL SECTOR PRIVADO INTERNO | C113: =SUM(C114) -> 0.00
A114: 78.02.04 | B114: Al Sector Privado no financiero | C114: =SUM(C115:C118) -> 0.00
A115: 78.02.04.11 | B115: Consejo Cantonal de la Ninez y adolecencia | C115: 0.00
A116: 78.02.04.02 | B116: Comité de Seguridad Ciudadana | C116: 0.00
A117: 78.02.04.08 | B117: Concejo Cantonal de la Salud | C117: 0.00
A118: 78.02.04.10 | B118: Otras organizaciones | C118: 0.00
A119: 78.99 | B119: Asignaciones a Distribuir | C119: =+C120 -> 0.00
A120: 78.99.01 | B120: Asignaciones para Distribuir para Transferencias y donaciones | C120: 0.00
A121: 8. | B121: GASTOS DE CAPITAL | C121: =SUM(C122) -> 1,500.00
A122: 84. | B122: ACTIVOS DE LARGA DURACION | C122: =SUM(C123) -> 1,500.00
A123: 84.01 | B123: BIENES MUEBLES | C123: =SUM(C124:C128) -> 1,500.00
A124: 84.01.03 | B124: Mobiliarios | C124: 500.00
A125: 84.01.04 | B125: Maquinarias y Equipos | C125: 0.00
A126: 84.01.07 | B126: Equipos. sistemas y Paquetes informaticos | C126: 1,000.00
A127: 84.01.08 | B127: Bienes Artísticos y culturales | C127: 0.00
A128: 84.01.09 | B128: Libros y Colecciones | C128: 0.00
A129: 97 | B129: PASIVO CIRCULANTE | C129: =SUM(C130) -> 0.00
A130: 97.01 | B130: Deuda Flotante | C130: =C131 -> 0.00
A131: 97.01.01 | B131: De cuentas por pagar | C131: 0.00
B132: TOTAL PROGRAMA | C132: =+C85+C32+C13+C121 -> 89,439.40
B134: DETALLE
B135: CORRIENTES
B136: INVERSION | C136: =+C12 -> 87,939.40
B137: CAPITAL | C137: =+C121 -> 1,500.00
B138: PASIVO CIRCULANTE | C138: 0
B139: SUBTOTAL | C139: =+C135+C136+C137 -> 89,439.40
A158: =+GASTO!$B$51 -> FUNCION II: SERVICIOS SOCIALES
A159: =CONCATENATE("CODIGO DE FUNCION;"," ",GASTO!$A$51) -> CODIGO DE FUNCION; 200
A160: =CONCATENATE("PROGRAMA 2do:"," ",GASTO!$B$61) -> PROGRAMA 2do: DIR. DE GESTION DE EDUCACION, CULTURA, DEPORTE Y JUVENTUDES
A161: =CONCATENATE("CODIGO DEL PROGRAMA:"," ",GASTO!$A$60) -> CODIGO DEL PROGRAMA: 220
A162: =CONCATENATE("SUBPROGRAMA 2 do",":"," ",GASTO!$B$62) -> SUBPROGRAMA 2 do: UNIDAD DE EDUCACION Y CULTURA
A163: =CONCATENATE("CODIGO DEL PROGRAMA:"," ",GASTO!$A$61) -> CODIGO DEL PROGRAMA: 221
A164: 3DA. ASIGNACION SEGÚN EL OBJETO DEL GASTO
A165: PARTIDA | B165: DETALLE | C165: ASIGNACION
C166: =+C11 -> AÑO 2020
A167: 7 | B167: GASTOS DE INVERSION | C167: =SUM(C168+C187+C240+C227) -> 146,766.85
A168: 71 | B168: GASTOS EN PERSONAL PARA INVERSION | C168: =SUM(C169+C172+C175+C180+C185+C183) -> 60,866.85
A169: 71.01.06 | B169: REMUNERACIONES BASICAS | C169: =SUM(C170:C171) -> 0.00
A170: 71.01.06 | B170: Salarios Unificados | C170: =SUMIFS(REMUN,ORG,GASTO!$B$61,CLASIF,B170) -> 0.00
A171: 71.01.05 | B171: Remuneraciones Unificadas | C171: =+'CDR PERS'!F189 -> 0.00
A172: 71.02 | B172: REMUNERACIONES COMPLEMENTARIAS | C172: =SUM(C173:C174) -> 5,089.00
A173: 71.02.03 | B173: Décimo Tercer Sueldo | C173: =+'CDR PERS'!G62 -> 3,874.00
A174: 71.02.04 | B174: Décimo Cuarto Sueldo | C174: =+'CDR PERS'!H62 -> 1,215.00
A175: 71.05 | B175: REMUNERACIONES TEMPORALES | C175: =SUM(C176:C179) -> 46,488.00
A176: 71.05.04 | B176: Encargo y subrogaciones | C176: =+'CDR PERS'!L62 -> 0.00
A177: 71.05.06 | B177: Licencia Remunerada | C177: 0.00
A178: 71.05.09 | B178: Horas extraordinarias | C178: =SUMIFS(extras,ORG,GASTO!$B$61,CLASIF,B170)+SUMIFS(extras,ORG,GASTO!$B$61,CLASIF,B171) -> 0.00
A179: 71.05.10 | B179: Servicios Personales por contrato | C179: =+'CDR PERS'!F314 -> 46,488.00
A180: 71.06 | B180: APORTES PATRONALES A LA SEGURIDAD SOCIAL | C180: =SUM(C181:C182) -> 9,289.85
A181: 71.06.01 | B181: Aporte Patronal | C181: =+'CDR PERS'!J62 -> 5,415.85
A182: 71.06.02 | B182: Fondos de Reserva | C182: =+'CDR PERS'!I62 -> 3,874.00
A183: 71.07 | B183: INDEMNIZACIONES | C183: =SUM(C184) -> 0.00
A184: 71.07.01 | B184: compensación por renuncia voluntaria | C184: 0.00
A185: 71.99 | B185: ASIGNACIONES A DISTRIBUIR PARA GTOS PERSONAL DE INVERSION | C185: =C186 -> 0.00
A186: 71.99.01 | B186: Asignaciones a Distribuir para Gastos en el Personal | C186: =C169*0 -> 0.00
A187: 73 | B187: BIENES Y SERVICIOS DE INVERSION | C187: =+C188+C197+C200+C214+C190 -> 85,900.00
A188: 73.01 | B188: SERVICIOS BASICOS | C188: =+C189 -> 0.00
A189: 73.01.05 | B189: Telecomunicaciones | C189: 0.00
A190: 73.02 | B190: SERVICIOS GENERALES | C190: =SUM(C191:C196) -> 85,000.00
A191: 73.02.01 | B191: Transporte de personal | C191: 10,000.00
A192: 73.02.04 | B192: Impresión. reproducción y publicaciones | C192: 0.00
A193: 73.02.05 | B193: Espectaculos Culturales y Sociales (agendas culturales) | C193: 75,000.00
A194: 73.02.06 | B194: Eventos Publicos y Oficiales
A195: 73.02.07 | B195: Difusión. Información y Publicidad
A196: 73.02.99 | B196: Otros Servicios
A197: 73.03 | B197: TRASLADOS. INSTALACIONES. VIATICOS Y SUBSISTENCIAS | C197: =SUM(C198:C199) -> 0.00
A198: 73.03.01 | B198: Pasajes al Interior | C198: 0.00
A199: 73.03.03 | B199: Viáticos y Subsistencias en el Interior | C199: 0.00
A200: 73.04 | B200: INSTALACION. MANTENIMIENTO Y REPARACION | C200: =SUM(C201:C204) -> 0.00
A201: 73.04.03 | B201: Mobiliarios | C201: 0.00
A202: 73.04.04 | B202: Maquinarias y Equipos | C202: 0.00
A203: 73.04.05 | B203: Vehículos | C203: 0.00
A204: 73.04.06 | B204: Matenimiento y Reparación de Instituciones Educativas
A205: 73.05 | B205: INSTALACION. MANTENIMIENTO Y REPARACION | C205: =+C206 -> 0.00
A206: 73.05.02 | B206: Arrendamiento de Locales
A207: 73.06 | B207: CONTRATACION DE ESTUDIOS E INVESTIGACIONES | C207: =SUM(C208:C210) -> 300.00
A208: 73.06.03 | B208: Servicio de Capacitación | C208: =+'CDR PERS'!N62 -> 300.00
A209: 73.06.04 | B209: Fiscalización e Inspeciones Técnicas | C209: 0.00
A210: 73.06.05 | B210: Estudio y diseño de proyectos | C210: 0.00
A211: 73.07 | B211: GASTOS EN INFORMATICA | C211: =+C212+C213 -> 0.00
A212: 73.07.02 | B212: Arrendamiento y Licencias de uso paquetes Informa | C212: 0.00
A213: 73.07.04 | B213: Mantenimiento y reparación de equipos y sistemas informáticos | C213: 0.00
A214: 73.08 | B214: BIENES DE USO Y CONSUMO CORRIENTE | C214: =SUM(C215:C222) -> 900.00
A215: 73.08.02 | B215: Vestuario. Lenceria y Prendas de Protección | C215: =+'CDR PERS'!M62 -> 600.00
A216: 73.08.03 | B216: Combustibles y Lubricantes | C216: 0.00
A217: 73.08.04 | B217: Materiales de Oficina | C217: 200.00
A218: 73.08.05 | B218: Materiales de Aseo | C218: 100.00
A219: 73.08.07 | B219: Materiales de Impresión. Fotografía. Reproduc.y Publicaciones | C219: 0.00
... 347 more rows

Sheet 300 (hidden)
A1: =+'100'!B1 -> GOBIERNO AUTONOMO DESCENTRALIZADO MUNICIPAL DEL CANTON PEDRO MONCAYO
A2: =+'100'!B2 -> PROFORMA PRESUPUESTARIA AÑO 2020
A4: =+GASTO!B66 -> FUNCION III: SERVICIOS COMUNALES
A5: =CONCATENATE("CODIGO DE LA FUNCION:"," ",GASTO!$A$66) -> CODIGO DE LA FUNCION: 300
A6: 3DA. ASIGNACION SEGÚN EL OBJETO DEL GASTO
A10: PARTIDA | B10: DETALLE | D10: BUSCAR V | E10: BUSCAR V | F10: BUSCAR V
C11: =+'100'!D11 -> AÑO 2020 | D11: 310 | E11: 320 | F11: 330 | K11: SELECC
A12: 7 | B12: GASTOS DE INVERSION | C12: =+'310'!D12+'320'!D12+'330'!D12+'340'!D11+'350'!D12+'360'!D12+'370'!D12+'380'!D12 -> 8,150,594.35 | D12: =VLOOKUP(A12,'310'!A12:D146,4,FALSE) -> 367563.7567 | E12: =VLOOKUP(A12,'350'!A12:D141,4,FALSE) -> 296497.682 | F12: =VLOOKUP(A12,'3'!A12:C135,3,FALSE) -> 6888629.442 | G12: =SUM(D12:F12) -> 7552690.881 | K12: =IF(C12>0,"ET","CERO") -> ET
A13: 71 | B13: GASTOS EN PERSONAL PARA INVERSION | C13: 6,852,658.20 | D13: =VLOOKUP(A13,'310'!A13:D147,4,FALSE) -> 337249.09 | E13: =VLOOKUP(A13,'350'!A13:D142,4,FALSE) -> 203997.682 | F13: =VLOOKUP(A13,'3'!A13:C136,3,FALSE) -> 1467979.862 | G13: 2009226.634 | K13: =IF(C13>0,"ET","CERO") -> ET
A14: 71.01 | B14: REMUNERACIONES BASICAS | C14: =+C15+C16 -> 1,019,364.00 | D14: =VLOOKUP(A14,'310'!A14:D148,4,FALSE) -> 142476 | E14: =VLOOKUP(A14,'350'!A14:D143,4,FALSE) -> 56724 | F14: =VLOOKUP(A14,'3'!A14:C137,3,FALSE) -> 670440 | G14: 869640 | K14: ET
A15: 71.01.05 | B15: Remuneraciones unificadas | C15: =+'310'!D15+'320'!D15+'330'!D15+'340'!D14+'350'!D15+'360'!D15+'370'!D15+'380'!D15 -> 438,744.00 | D15: =VLOOKUP(A15,'310'!A15:D149,4,FALSE) -> 142476 | E15: =VLOOKUP(A15,'350'!A15:D144,4,FALSE) -> 56724 | F15: =VLOOKUP(A15,'3'!A15:C138,3,FALSE) ->  | K15: ET
A16: 71.01.06 | B16: Salarios Unificados | C16: =+'310'!D16+'320'!D16+'330'!D16+'340'!D15+'350'!D16+'360'!D16+'370'!D16+'380'!D16 -> 580,620.00 | D16: =VLOOKUP(A16,'310'!A16:D150,4,FALSE) -> 0 | E16: =VLOOKUP(A16,'350'!A16:D145,4,FALSE) -> 0 | F16: =VLOOKUP(A16,'3'!A16:C139,3,FALSE) -> 513300 | G16: 513300 | K16: ET
A17: 71.02 | B17: REMUNERACIONES COMPLEMENTARIAS | C17: =+C18+C19 -> 200,927.00 | D17: =VLOOKUP(A17,'310'!A17:D151,4,FALSE) -> 26259 | E17: =VLOOKUP(A17,'350'!A17:D146,4,FALSE) ->  | F17: =VLOOKUP(A17,'3'!A17:C140,3,FALSE) ->  | K17: ET
A18: 71.02.03 | B18: Décimo Tercer Sueldo | C18: =+'310'!D18+'320'!D18+'330'!D18+'340'!D17+'350'!D18+'360'!D18+'370'!D18+'380'!D18 -> 132,482.00 | D18: =VLOOKUP(A18,'310'!A18:D152,4,FALSE) -> 19779 | E18: =VLOOKUP(A18,'350'!A18:D147,4,FALSE) -> 11283 | F18: =VLOOKUP(A18,'3'!A18:C141,3,FALSE) -> 77503 | G18: 108565 | K18: ET
A19: 71.02.04 | B19: Décimo Cuarto Sueldo | C19: =+'310'!D19+'320'!D19+'330'!D19+'340'!D18+'350'!D19+'360'!D19+'370'!D19+'380'!D19 -> 68,445.00 | D19: =VLOOKUP(A19,'310'!A19:D153,4,FALSE) -> 6480 | E19: =VLOOKUP(A19,'350'!A19:D148,4,FALSE) -> 4050 | F19: =VLOOKUP(A19,'3'!A19:C142,3,FALSE) -> 45765 | G19: 56295 | K19: ET
A20: 71.02.13 | B20: Aguinaldo Navideño | C20: =+'310'!D20+'320'!D20+'330'!D20+'340'!D19+'350'!D20+'360'!D20+'370'!D20+'380'!D20 -> 0.00 | D20: =VLOOKUP(A20,'310'!A20:D154,4,FALSE) -> 0 | E20: =VLOOKUP(A20,'350'!A20:D152,4,FALSE) -> 0 | F20: =VLOOKUP(A20,'3'!A20:C143,3,FALSE) -> 0 | G20: 0 | K20: CERO
A21: 71,03 | B21: REMUNERACIONES COMPENSATORIAS | C21: =+'310'!D21+'320'!D21+'330'!D21+'340'!D20+'350'!D21+'360'!D21+'370'!D21+'380'!D21 -> 114,367.50 | K21: ET
A22: 71.03.06 | B22: Refrigerios | C22: =+'310'!D22+'320'!D22+'330'!D22+'340'!D21+'350'!D22+'360'!D22+'370'!D22+'380'!D22 -> 104,638.50 | K22: ET
A23: 71.04 | B23: SUBSIDIOS | C23: =+'310'!D23+'320'!D23+'330'!D23+'340'!D22+'350'!D23+'360'!D23+'370'!D23+'380'!D23 -> 17,970.00 | D23: =VLOOKUP(A23,'310'!A23:D156,4,FALSE) -> 0 | E23: =VLOOKUP(A23,'350'!A23:D153,4,FALSE) ->  | F23: =VLOOKUP(A23,'3'!A21:C144,3,FALSE) -> 14106 | K23: ET
A24: 71.04.07 | B24: Estimulo Económico por años de servicio | C24: =+'310'!D24+'320'!D24+'330'!D24+'340'!D23+'350'!D24+'360'!D24+'370'!D24+'380'!D24 -> 0.00 | D24: =VLOOKUP(A24,'310'!A24:D157,4,FALSE) -> 0 | E24: =VLOOKUP(A24,'350'!A24:D154,4,FALSE) -> 0 | F24: =VLOOKUP(A24,'3'!A22:C145,3,FALSE) -> 0 | G24: 0 | K24: CERO
A25: 71.05 | B25: REMUNERACIONES TEMPORALES | C25: =+C28+C29 ->  | D25: =VLOOKUP(A25,'310'!A25:D158,4,FALSE) -> 121084.048 | E25: =VLOOKUP(A25,'350'!A25:D155,4,FALSE) ->  | F25: =VLOOKUP(A25,'3'!A23:C146,3,FALSE) -> 491524.42
A26: 71.05.04 | B26: Encargo y subrogaciones | K26: CERO
A27: 71.05.06 | B27: Licencia Remunerada | C27: =+'310'!D27+'320'!D27+'330'!D27+'340'!D26+'350'!#REF!+'360'!D27+'370'!D27+'380'!D27 ->  | D27: =VLOOKUP(A27,'310'!A27:D159,4,FALSE) -> 0 | E27: =VLOOKUP(A27,'350'!A25:D156,4,FALSE) ->  | F27: =VLOOKUP(A27,'3'!A25:C147,3,FALSE) -> 0
A28: 71.05.09 | B28: Horas Extraordinarias y Suplementarias | C28: =+'310'!D28+'320'!D28+'330'!D28+'340'!D27+'350'!#REF!+'360'!D28+'370'!D28+'380'!D28 ->  | D28: =VLOOKUP(A28,'310'!A28:D160,4,FALSE) -> 0 | E28: =VLOOKUP(A28,'350'!A25:D157,4,FALSE) ->  | F28: =VLOOKUP(A28,'3'!A26:C148,3,FALSE) -> 87520
A29: 71.05.10 | B29: Servicios Personales por contrato | C29: =+'310'!D29+'320'!D29+'330'!D29+'340'!D28+'350'!#REF!+'360'!D29+'370'!D29+'380'!D29 ->  | D29: =VLOOKUP(A29,'310'!A29:D161,4,FALSE) -> 121084.048 | E29: =VLOOKUP(A29,'350'!A25:D158,4,FALSE) ->  | F29: =VLOOKUP(A29,'3'!A27:C149,3,FALSE) -> 404004.42
A30: 71.05.12 | B30: Subrogación
A31: 71.05.13 | B31: Encargos
A32: 71.06 | B32: APORTES PATRONALES A LA SEGURIDAD SOCIAL | C32: =+C33+C34 -> 314,587.08 | D32: =VLOOKUP(A32,'310'!A32:D162,4,FALSE) -> 47430.042 | E32: =VLOOKUP(A32,'350'!A27:D159,4,FALSE) -> 27056.634 | F32: =VLOOKUP(A32,'3'!A28:C150,3,FALSE) -> 182747.442 | G32: 257234.118 | K32: ET
A33: 71.06.01 | B33: Aporte Patronal | C33: =+'310'!D33+'320'!D33+'330'!D33+'340'!D32+'350'!D28+'360'!D33+'370'!D33+'380'!D31 -> 182,255.84 | D33: =VLOOKUP(A33,'310'!A33:D163,4,FALSE) -> 27651.042 | E33: =VLOOKUP(A33,'350'!A28:D160,4,FALSE) -> 15773.634 | F33: =VLOOKUP(A33,'3'!A29:C151,3,FALSE) -> 105395.202 | G33: 148819.878 | K33: ET
A34: 71.06.02 | B34: Fondos de Reserva | C34: =+'310'!D34+'320'!D34+'330'!D34+'340'!D33+'350'!D29+'360'!D34+'370'!D34+'380'!D32 -> 132,331.24 | D34: =VLOOKUP(A34,'310'!A34:D164,4,FALSE) -> 19779 | E34: =VLOOKUP(A34,'350'!A29:D161,4,FALSE) -> 11283 | F34: =VLOOKUP(A34,'3'!A30:C152,3,FALSE) -> 77352.24 | G34: 108414.24 | K34: ET
A35: 71.06.03 | B35: Fondo de Jubilación | C35: =+'310'!D35+'320'!D35+'330'!D35+'340'!D34+'350'!D30+'360'!D35+'370'!D35+'380'!D33 -> 0.00 | K35: CERO
A36: 71.07 | B36: INDEMNIZACIONES | C36: =+'310'!D36+'320'!D36+'330'!D36+'340'!D35+'350'!D31+'360'!D36+'370'!D36+'380'!D34 -> 0.00 | D36: =VLOOKUP(A36,'310'!A36:D165,4,FALSE) -> 0 | E36: =VLOOKUP(A36,'350'!A31:D162,4,FALSE) -> 0 | F36: =VLOOKUP(A36,'3'!A31:C153,3,FALSE) -> 0 | G36: 0 | K36: CERO
A37: 71.07.01 | B37: Compensaciòn por Renuncia Voluntaria | C37: =+'310'!D37+'320'!D37+'330'!D37+'340'!D36+'350'!D32+'360'!D37+'370'!D37+'380'!D35 -> 0.00 | D37: =VLOOKUP(A37,'310'!A37:D165,4,FALSE) -> 0 | E37: =VLOOKUP(A37,'350'!A32:D163,4,FALSE) -> 0 | F37: =VLOOKUP(A37,'3'!A32:C154,3,FALSE) -> 0 | G37: 0 | K37: CERO
A38: 71.07.99 | B38: Otras Indemn.Compens..por renuncia | C38: =+'310'!D38+'320'!D38+'330'!D38+'340'!D37+'350'!D33+'360'!D38+'370'!D38+'380'!D36 -> 0.00 | D38: =VLOOKUP(A38,'310'!A38:D166,4,FALSE) -> 0 | E38: =VLOOKUP(A38,'350'!A33:D164,4,FALSE) -> 0 | F38: =VLOOKUP(A38,'3'!A33:C155,3,FALSE) -> 0 | G38: 0 | K38: CERO
A39: 71.99 | B39: ASIGNACIONES A DISTRIBUIR PARA GTOS DE INVERSIONES | C39: =+'310'!D39+'320'!D39+'330'!D39+'340'!D38+'350'!D34+'360'!D39+'370'!D39+'380'!D37 -> 0.00 | D39: =VLOOKUP(A39,'310'!A39:D167,4,FALSE) ->  | E39: =VLOOKUP(A39,'350'!A34:D165,4,FALSE) -> 0 | F39: =VLOOKUP(A39,'3'!A34:C156,3,FALSE) -> 0 | K39: CERO
A40: 71.99.01 | B40: Asignaciones a distribuir para Gastos en el Personal | C40: =+'310'!D40+'320'!D40+'330'!D40+'340'!D39+'350'!D35+'360'!D40+'370'!D40+'380'!D38 -> 0.00 | D40: =VLOOKUP(A40,'310'!A40:D168,4,FALSE) -> 0 | E40: =VLOOKUP(A40,'350'!A35:D166,4,FALSE) -> 0 | F40: =VLOOKUP(A40,'3'!A35:C157,3,FALSE) -> 0 | G40: 0 | K40: CERO
A41: 73 | B41: BIENES Y SERVICIOS DE INVERSION | C41: 6,405,127.34 | D41: =VLOOKUP(A41,'310'!A41:D170,4,FALSE) -> 9350 | E41: =VLOOKUP(A41,'350'!A36:D167,4,FALSE) -> 92500 | F41: =VLOOKUP(A41,'3'!A36:C158,3,FALSE) -> 957822.87 | G41: 1059672.87 | K41: ET
A42: 73.01 | B42: SERVICIOS BASICOS | C42: =+C43+C45 -> 400.00 | D42: =VLOOKUP(A42,'310'!A42:D171,4,FALSE) -> 0 | E42: =VLOOKUP(A42,'350'!A37:D168,4,FALSE) -> 0 | F42: =VLOOKUP(A42,'3'!A37:C159,3,FALSE) -> 200 | G42: 200 | K42: ET
A43: 73.01.01 | B43: Agua Potable | C43: =+'310'!D43+'320'!D43+'330'!D43+'340'!D42+'350'!D38+'360'!D43+'370'!D43+'380'!D41 -> 200.00 | D43: =VLOOKUP(A43,'310'!A43:D172,4,FALSE) -> 0 | E43: =VLOOKUP(A43,'350'!A38:D169,4,FALSE) -> 0 | F43: =VLOOKUP(A43,'3'!A38:C160,3,FALSE) ->  | K43: ET
A44: 73.01.02 | B44: Energía eléctrica | K44: CERO
A45: 73.01.03 | B45: Telecomunicaciones | C45: =+'310'!D45+'320'!D45+'330'!D45+'340'!D44+'350'!D40+'360'!D45+'370'!D45+'380'!D43 -> 200.00 | K45: ET
A46: 73.01.04 | B46: Servicio de Correo | K46: CERO
A47: 73.02 | B47: SERVICIOS GENERALES | C47: =+C49+C50+C52 -> 10,200.00 | D47: =VLOOKUP(A47,'310'!A47:D173,4,FALSE) -> 1300 | E47: =VLOOKUP(A47,'350'!A42:D170,4,FALSE) -> 1300 | F47: =VLOOKUP(A47,'3'!A39:C161,3,FALSE) -> 79250 | G47: 81850 | K47: ET
A48: 73.02.01 | B48: Transporte de personal | C48: =+'310'!D48+'320'!D48+'330'!D48+'340'!D47+'350'!D43+'360'!D48+'370'!D48+'380'!D46 -> 0.00 | D48: =VLOOKUP(A48,'310'!A48:D177,4,FALSE) -> 0 | E48: =VLOOKUP(A48,'350'!A43:D171,4,FALSE) -> 0 | F48: =VLOOKUP(A48,'3'!A40:C162,3,FALSE) -> 0 | G48: 0 | K48: CERO
A49: 73.02.02 | B49: Fletes y maniobras | C49: =+'310'!D49+'320'!D49+'330'!D49+'340'!D48+'350'!D44+'360'!D49+'370'!D49+'380'!D47 -> 0.00 | D49: =VLOOKUP(A49,'310'!A49:D178,4,FALSE) -> 0 | E49: =VLOOKUP(A49,'350'!A44:D174,4,FALSE) -> 0 | F49: =VLOOKUP(A49,'3'!A41:C163,3,FALSE) -> 0 | G49: 0 | K49: CERO
A50: 73.02.04 | B50: Edición, Impresión, reproducción y publicaciones | C50: =+'310'!D50+'320'!D50+'330'!D50+'340'!D49+'350'!D45+'360'!D50+'370'!D50+'380'!D48 -> 10,200.00 | D50: =VLOOKUP(A50,'310'!A50:D179,4,FALSE) -> 1300 | E50: =VLOOKUP(A50,'350'!A45:D176,4,FALSE) -> 300 | F50: =VLOOKUP(A50,'3'!A42:C164,3,FALSE) -> 8300 | G50: 9900 | K50: ET
A51: 73.02.05 | B51: Espectáculos Culturales y Sociales | C51: =+'310'!D51+'320'!D51+'330'!D51+'340'!D50+'350'!D46+'360'!D51+'370'!D51+'380'!D49 -> 67,950.00 | K51: ET
A52: 73.02.06 | B52: Eventos Públicos y Oficiales (Asamblea Cantonal) | C52: =+'310'!D52+'320'!D52+'330'!D52+'340'!D51+'350'!D47+'360'!D52+'370'!D52+'380'!D50 -> 0.00 | D52: =VLOOKUP(A52,'310'!A52:D181,4,FALSE) -> 0 | E52: =VLOOKUP(A52,'350'!A47:D177,4,FALSE) -> 0 | F52: =VLOOKUP(A52,'3'!A43:C165,3,FALSE) -> 0 | G52: 0 | K52: CERO
A53: 73.02.07 | B53: Impresión, reproducción y publicaciones | C53: =+'310'!D53+'320'!D53+'330'!D53+'340'!D52+'350'!D48+'360'!D53+'370'!D53+'380'!D51 -> 1,000.00 | D53: =VLOOKUP(A53,'310'!A53:D182,4,FALSE) -> 0 | E53: =VLOOKUP(A53,'350'!A48:D180,4,FALSE) -> 1000 | F53: =VLOOKUP(A53,'3'!A44:C166,3,FALSE) -> 0 | G53: 1000 | K53: ET
A54: 73.02.09 | B54: Servicios de Aseo | D54: =VLOOKUP(A54,'310'!A54:D183,4,FALSE) -> 0 | E54: =VLOOKUP(A54,'350'!A49:D181,4,FALSE) -> 0 | F54: =VLOOKUP(A54,'3'!A45:C167,3,FALSE) -> 3000 | G54: 3000 | K54: CERO
A55: 73.02.99 | B55: Otros Servicios | D55: =VLOOKUP(A55,'310'!A55:D186,4,FALSE) -> 0 | E55: =VLOOKUP(A55,'350'!A50:D182,4,FALSE) -> 0 | F55: =VLOOKUP(A55,'3'!A46:C168,3,FALSE) -> 500 | G55: 500 | K55: CERO
A56: 73.03 | B56: TRASLADOS, INSTALACIONES, VIATICOS Y SUBSISTENCIAS | C56: =+C57+C58 -> 10,500.00 | D56: =VLOOKUP(A56,'310'!A56:D187,4,FALSE) ->  | E56: =VLOOKUP(A56,'350'!A51:D183,4,FALSE) -> 0 | F56: =VLOOKUP(A56,'3'!A47:C169,3,FALSE) -> 10500 | K56: ET
A57: 73.03.01 | B57: Pasajes al Interior | C57: =+'310'!D57+'320'!D57+'330'!D57+'340'!D56+'350'!D52+'360'!D57+'370'!D57+'380'!D55 -> 500.00 | D57: =VLOOKUP(A57,'310'!A57:D188,4,FALSE) -> 0 | E57: =VLOOKUP(A57,'350'!A52:D184,4,FALSE) -> 0 | F57: =VLOOKUP(A57,'3'!A48:C170,3,FALSE) -> 500 | G57: 500 | K57: ET
A58: 73.03.03 | B58: Viáticos y Subsistencias en el Interior | C58: =+'310'!D58+'320'!D58+'330'!D58+'340'!D57+'350'!D53+'360'!D58+'370'!D58+'380'!D56 -> 10,000.00 | D58: =VLOOKUP(A58,'310'!A58:D189,4,FALSE) -> 0 | E58: =VLOOKUP(A58,'350'!A53:D185,4,FALSE) -> 0 | F58: =VLOOKUP(A58,'3'!A49:C171,3,FALSE) -> 10000 | G58: 10000 | K58: ET
A59: 73.04 | B59: INSTALACION MANTENIMIENTO Y REPARACIONES | C59: =+C60+C61+C62+C63 -> 44,100.00 | D59: =VLOOKUP(A59,'310'!A59:D190,4,FALSE) ->  | E59: =VLOOKUP(A59,'350'!A54:D186,4,FALSE) -> 1500 | F59: =VLOOKUP(A59,'3'!A50:C172,3,FALSE) -> 32000 | K59: ET
A60: 73.04.02 | B60: Edificios, locales y residencias | C60: =+'310'!D60+'320'!D60+'330'!D60+'340'!D59+'350'!D55+'360'!D60+'370'!D60+'380'!D58 -> 12,500.00 | D60: =VLOOKUP(A60,'310'!A60:D197,4,FALSE) -> 500 | E60: =VLOOKUP(A60,'350'!A55:D187,4,FALSE) -> 500 | F60: =VLOOKUP(A60,'3'!A51:C173,3,FALSE) -> 11000 | G60: 12000 | K60: ET
A61: 73.04.03 | B61: Mobiliarios | C61: =+'310'!D61+'320'!D61+'330'!D61+'340'!D60+'350'!D56+'360'!D61+'370'!D61+'380'!D59 -> 8,000.00 | K61: ET
A62: 73.04.04 | B62: Maquinaria y equipos | C62: =+'310'!D62+'320'!D62+'330'!D62+'340'!D61+'350'!D57+'360'!D62+'370'!D62+'380'!D60 -> 17,600.00 | D62: =VLOOKUP(A62,'310'!A62:D198,4,FALSE) -> 0 | E62: =VLOOKUP(A62,'350'!A57:D188,4,FALSE) -> 1000 | F62: =VLOOKUP(A62,'3'!A52:C174,3,FALSE) -> 13000 | G62: 14000 | K62: ET
A63: 73.04.05 | B63: Vehículos | C63: =+'310'!D63+'320'!D63+'330'!D63+'340'!D62+'350'!D58+'360'!D63+'370'!D63+'380'!D61 -> 6,000.00 | D63: =VLOOKUP(A63,'310'!A63:D199,4,FALSE) -> 0 | E63: =VLOOKUP(A63,'350'!A58:D189,4,FALSE) -> 0 | F63: =VLOOKUP(A63,'3'!A53:C175,3,FALSE) -> 0 | G63: 0 | K63: ET
A64: 73.04.99 | B64: Otros instalaciones mant y reparaciones | C64: =+'310'!D64+'320'!D64+'330'!D64+'340'!D63+'350'!D59+'360'!D64+'370'!D64+'380'!D62 -> 5,000.00 | D64: =VLOOKUP(A64,'310'!A64:D200,4,FALSE) -> 0 | E64: =VLOOKUP(A64,'350'!A59:D202,4,FALSE) -> 0 | F64: =VLOOKUP(A64,'3'!A54:C176,3,FALSE) -> 1000 | G64: 1000 | K64: ET
A65: 73.05 | B65: ARRENDAMIENTO DE BIENES | C65: =+C66+C68 -> 1,000.00 | D65: =VLOOKUP(A65,'310'!A65:D205,4,FALSE) -> 0 | E65: =VLOOKUP(A65,'350'!A60:D203,4,FALSE) -> 0 | F65: =VLOOKUP(A65,'3'!A55:C177,3,FALSE) -> 1000 | G65: 1000 | K65: ET
A66: 73.05.02 | B66: Edificios, locales y residencias | C66: =+'310'!D66+'320'!D66+'330'!D66+'340'!D65+'350'!D61+'360'!D66+'370'!D66+'380'!D64 -> 0.00 | D66: =VLOOKUP(A66,'310'!A66:D206,4,FALSE) -> 0 | E66: =VLOOKUP(A66,'350'!A61:D204,4,FALSE) -> 0 | F66: =VLOOKUP(A66,'3'!A56:C178,3,FALSE) ->  | K66: CERO
A67: 73.05.04 | B67: Maquinaria y equipos | K67: CERO
A68: 73.05.05 | B68: Vehículos | C68: =+'310'!D68+'320'!D68+'330'!D68+'340'!D67+'350'!D63+'360'!D68+'370'!D68+'380'!D66 -> 1,000.00 | K68: ET
A69: 73.06 | B69: CONTRATACION DE DE ESTUDIOS E INVEST | C69: =+C70+C71+C72 -> 71,200.00 | D69: =VLOOKUP(A69,'310'!A69:D207,4,FALSE) ->  | E69: =VLOOKUP(A69,'350'!A64:D209,4,FALSE) -> 84100 | F69: =VLOOKUP(A69,'3'!A57:C179,3,FALSE) -> 67350 | K69: ET
A70: 73.06.03 | B70: Servicios de Capacitación | C70: =+'310'!D70+'320'!D70+'330'!D70+'340'!D69+'350'!D65+'360'!D70+'370'!D70+'380'!D68 -> 19,200.00 | D70: =VLOOKUP(A70,'310'!A70:D208,4,FALSE) -> 1400 | E70: =VLOOKUP(A70,'350'!A65:D210,4,FALSE) -> 0 | F70: =VLOOKUP(A70,'3'!A58:C180,3,FALSE) -> 14700 | G70: 16100 | K70: ET
A71: 73.06.04 | B71: Fiscalización e Inspecciones Técnicas | K71: CERO
A72: 73.06.05 | B72: Estudio y Diseño de proyectos | C72: =+'310'!D72+'320'!D72+'330'!D72+'340'!D71+'350'!D67+'360'!D72+'370'!D72+'380'!D70 -> 52,000.00 | D72: =VLOOKUP(A72,'310'!A72:D210,4,FALSE) -> 0 | E72: =VLOOKUP(A72,'350'!A67:D211,4,FALSE) -> 25000 | F72: =VLOOKUP(A72,'3'!A59:C181,3,FALSE) -> 17000 | G72: 42000 | K72: ET
A73: 73.07 | B73: GASTOS EN INFORMATICA | C73: =+C74+C75 -> 6,200.00 | D73: =VLOOKUP(A73,'310'!A73:D228,4,FALSE) ->  | E73: =VLOOKUP(A73,'350'!A68:D222,4,FALSE) ->  | F73: =VLOOKUP(A73,'3'!A65:C187,3,FALSE) ->  | K73: ET
A74: 73.07.02 | B74: Arrendamiento y Licencias de uso paquetes Informa | C74: =+'310'!D74+'320'!D74+'330'!D74+'340'!D73+'350'!D69+'360'!D74+'370'!D74+'380'!D72 -> 1,000.00 | D74: =VLOOKUP(A74,'310'!A74:D228,4,FALSE) -> 0 | E74: =VLOOKUP(A74,'350'!A69:D223,4,FALSE) -> 0 | F74: =VLOOKUP(A74,'3'!A66:C188,3,FALSE) -> 1000 | G74: 1000 | K74: ET
A75: 73.07.04 | B75: Mantenimiento y reparación de equipos y sistemas informáticos | C75: =+'310'!D75+'320'!D75+'330'!D75+'340'!D74+'350'!D70+'360'!D75+'370'!D75+'380'!D73 -> 5,200.00 | D75: =VLOOKUP(A75,'310'!A75:D228,4,FALSE) -> 500 | E75: =VLOOKUP(A75,'350'!A70:D224,4,FALSE) -> 3000 | F75: =VLOOKUP(A75,'3'!A67:C189,3,FALSE) -> 1700 | G75: 5200 | K75: ET
A76: 73.08 | B76: BIENES DE USO Y CONSUMO PARA INVERSION | C76: =+C78+C79+C80+C81+C82+C83+C86+C87 -> 582,892.00 | D76: =VLOOKUP(A76,'310'!A76:D228,4,FALSE) ->  | E76: =VLOOKUP(A76,'350'!A71:D225,4,FALSE) -> 2300 | F76: =VLOOKUP(A76,'3'!A68:C190,3,FALSE) -> 540302 | K76: ET
A77: 73.08.01 | B77: Alimentos y Bebidas | C77: =+'310'!D77+'320'!D77+'330'!D77+'340'!D76+'350'!D72+'360'!D77+'370'!D77+'380'!D75 -> 0.00 | D77: =VLOOKUP(A77,'310'!A77:D229,4,FALSE) -> 0 | E77: =VLOOKUP(A77,'350'!A72:D226,4,FALSE) -> 0 | F77: =VLOOKUP(A77,'3'!A69:C191,3,FALSE) -> 0 | G77: 0 | K77: CERO
A78: 73.08.02 | B78: Vestuario, Lenceria y Prendas de Protección | C78: =+'310'!D78+'320'!D78+'330'!D78+'340'!D77+'350'!D73+'360'!D78+'370'!D78+'380'!D76 -> 53,142.00 | D78: =VLOOKUP(A78,'310'!A78:D230,4,FALSE) -> 3800 | E78: =VLOOKUP(A78,'350'!A73:D227,4,FALSE) -> 2200 | F78: =VLOOKUP(A78,'3'!A70:C192,3,FALSE) -> 40702 | G78: 46702 | K78: ET
A79: 73.08.03 | B79: Combustibles y Lubricantes | C79: =+'310'!D79+'320'!D79+'330'!D79+'340'!D78+'350'!D74+'360'!D79+'370'!D79+'380'!D77 -> 13,800.00 | D79: =VLOOKUP(A79,'310'!A79:D231,4,FALSE) -> 0 | E79: =VLOOKUP(A79,'350'!A74:D228,4,FALSE) -> 0 | F79: =VLOOKUP(A79,'3'!A71:C193,3,FALSE) -> 0 | G79: 0 | K79: =IF(C79>0,"ET","CERO") -> ET
A80: 73.08.04 | B80: Materiales de Oficina | C80: =+'310'!D80+'320'!D80+'330'!D80+'340'!D79+'350'!D75+'360'!D80+'370'!D80+'380'!D78 -> 6,150.00 | D80: =VLOOKUP(A80,'310'!A80:D232,4,FALSE) -> 1150 | E80: =VLOOKUP(A80,'350'!A75:D229,4,FALSE) -> 800 | F80: =VLOOKUP(A80,'3'!A72:C194,3,FALSE) -> 3000 | G80: 4950 | K80: ET
A81: 73.08.05 | B81: Materiales de Aseo | C81: =+'310'!D81+'320'!D81+'330'!D81+'340'!D80+'350'!D76+'360'!D81+'370'!D81+'380'!D79 -> 3,300.00 | D81: =VLOOKUP(A81,'310'!A81:D234,4,FALSE) -> 700 | E81: =VLOOKUP(A81,'350'!A76:D230,4,FALSE) -> 400 | F81: =VLOOKUP(A81,'3'!A73:C195,3,FALSE) -> 1400 | G81: 2500 | K81: ET
A82: 73.08.06 | B82: Herramientas | C82: =+'310'!D82+'320'!D82+'330'!D82+'340'!D81+'350'!D77+'360'!D82+'370'!D82+'380'!D80 -> 6,500.00 | D82: =VLOOKUP(A82,'310'!A82:D235,4,FALSE) -> 0 | E82: =VLOOKUP(A82,'350'!A77:D231,4,FALSE) -> 0 | F82: =VLOOKUP(A82,'3'!A74:C196,3,FALSE) -> 6500 | G82: 6500 | K82: ET
A83: 73.08.07 | B83: Mat. Impresión,fotografía, Reproducción y Publicación | C83: =+'310'!D83+'320'!D83+'330'!D83+'340'!D82+'350'!D78+'360'!D83+'370'!D83+'380'!D81 -> 4,000.00 | D83: =VLOOKUP(A83,'310'!A83:D236,4,FALSE) -> 0 | E83: =VLOOKUP(A83,'350'!A78:D232,4,FALSE) -> 0 | F83: =VLOOKUP(A83,'3'!A75:C197,3,FALSE) -> 1200 | G83: 1200 | K83: ET
A84: 73.08.08 | B84: Instrumental Médico Menor | C84: =+'310'!D84+'320'!D84+'330'!D84+'340'!D83+'350'!D79+'360'!D84+'370'!D84+'380'!D82 -> 0.00 | K84: CERO
A85: 73.08.09 | B85: Medicinas y Productos Farmacéuticos | C85: =+'310'!D85+'320'!D85+'330'!D85+'340'!D84+'350'!D80+'360'!D85+'370'!D85+'380'!D83 -> 0.00 | K85: CERO
A86: 73.08.11 | B86: Insumos, Bienes, Materiales y Suministros para la Construcción, Eléctricos, Plomería, Carpintería, Señalización Vial, Navegación y Contra Incendios | C86: =+'310'!D86+'320'!D86+'330'!D86+'340'!D85+'350'!D81+'360'!D86+'370'!D86+'380'!D84 -> 495,000.00 | D86: =VLOOKUP(A86,'310'!A86:D239,4,FALSE) -> 0 | E86: =VLOOKUP(A86,'350'!A81:D233,4,FALSE) -> 0 | F86: =VLOOKUP(A86,'3'!A76:C198,3,FALSE) -> 487500 | G86: =SUM(D86:F86) -> 487500 | K86: ET
A87: 73.08.13 | B87: Repuestos y Accesorios | C87: =+'310'!D87+'320'!D87+'330'!D87+'340'!D86+'350'!D82+'360'!D87+'370'!D87+'380'!D85 -> 1,000.00 | D87: =VLOOKUP(A87,'310'!A87:D240,4,FALSE) -> 0 | E87: =VLOOKUP(A87,'350'!A82:D234,4,FALSE) -> 0 | F87: =VLOOKUP(A87,'3'!A77:C199,3,FALSE) -> 1000 | G87: 1000 | K87: ET
A88: 73.08.99 | B88: Otros de uso y consumo. | C88: =+'310'!D88+'320'!D88+'330'!D88+'340'!D87+'350'!D83+'360'!D88+'370'!D88+'380'!D86 -> 0.00 | D88: =VLOOKUP(A88,'310'!A88:D243,4,FALSE) -> 0 | E88: =VLOOKUP(A88,'350'!A83:D235,4,FALSE) -> 0 | F88: =VLOOKUP(A88,'3'!A78:C200,3,FALSE) -> 0 | G88: 0 | K88: CERO
A89: 73.99 | B89: ASIGNACIONES A DISTRIBUIR | C89: =+'310'!D89+'320'!D89+'330'!D89+'340'!D88+'350'!D84+'360'!D89+'370'!D89+'380'!D87 -> 0.00 | D89: =VLOOKUP(A89,'310'!A89:D244,4,FALSE) ->  | E89: =VLOOKUP(A89,'350'!A84:D236,4,FALSE) -> 0 | F89: =VLOOKUP(A89,'3'!A79:C201,3,FALSE) -> 0 | K89: CERO
A90: 73.99.01 | B90: Asignaciones a distribuir para Bienes y servicios de Inversión | C90: =+'310'!D90+'320'!D90+'330'!D90+'340'!D89+'350'!D85+'360'!D90+'370'!D90+'380'!D88 -> 0.00 | D90: =VLOOKUP(A90,'310'!A90:D245,4,FALSE) -> 0 | E90: =VLOOKUP(A90,'350'!A85:D237,4,FALSE) -> 0 | F90: =VLOOKUP(A90,'3'!A80:C202,3,FALSE) -> 0 | G90: 0 | K90: CERO
A91: 75 | B91: OBRAS PUBLICAS | C91: =+C95+C97+C98+C102+C94 -> 7,489,389.33 | D91: =VLOOKUP(A91,'310'!A91:D246,4,FALSE) -> 0 | E91: =VLOOKUP(A91,'350'!A86:D238,4,FALSE) ->  | F91: =VLOOKUP(A91,'3'!A81:C203,3,FALSE) ->  | K91: ET
A92: 75.01 | B92: OBRAS DE INFRAESTRUCTURA | C92: =+C91 -> 7,489,389.33 | D92: =VLOOKUP(A92,'310'!A92:D251,4,FALSE) ->  | E92: =VLOOKUP(A92,'350'!A87:D239,4,FALSE) ->  | F92: =VLOOKUP(A92,'3'!A82:C204,3,FALSE) ->  | K92: ET
A93: 75.01.01 | B93: De agua potable | C93: =+'310'!D93+'320'!D93+'330'!D93+'340'!D92+'350'!D88+'360'!D93+'370'!D93+'380'!D91 -> 0.00 | D93: =VLOOKUP(A93,'310'!A93:D252,4,FALSE) -> 0 | E93: =VLOOKUP(A93,'350'!A88:D240,4,FALSE) -> 0 | F93: =VLOOKUP(A93,'3'!A83:C205,3,FALSE) -> 0 | G93: 0 | K93: CERO
A94: 75.01.02 | B94: De riego y manejo de aguas | C94: =+'360'!C409 -> 0.00 | D94: =VLOOKUP(A94,'310'!A94:D266,4,FALSE) -> 0 | E94: =VLOOKUP(A94,'350'!A89:D243,4,FALSE) -> 0 | F94: =VLOOKUP(A94,'3'!A86:C208,3,FALSE) -> 0 | G94: 0 | K94: CERO
A95: 75.01.03 | B95: Convenios de alcantarillado | C95: =+'320'!C476 -> 2,525,019.56 | D95: =VLOOKUP(A95,'310'!A95:D269,4,FALSE) -> 0 | E95: =VLOOKUP(A95,'350'!A90:D248,4,FALSE) -> 0 | F95: =VLOOKUP(A95,'3'!A87:C209,3,FALSE) -> 2525019.56 | G95: 2525019.56 | K95: ET
A96: 75.01.04 | B96: De Urbanización y embellecimiento | C96: =+'310'!D96+'320'!D96+'330'!D96+'340'!D95+'350'!D91+'360'!D96+'370'!D96+'380'!D94 -> 245,000.00 | D96: =VLOOKUP(A96,'310'!A96:D271,4,FALSE) -> 0 | E96: =VLOOKUP(A96,'350'!A91:D250,4,FALSE) -> 0 | F96: =VLOOKUP(A96,'3'!A89:C211,3,FALSE) -> 245000 | G96: 245000 | K96: ET
A97: 75.01.05 | B97: Obras públicas de transporte y vías | C97: =+'350'!C594+'320'!C544 -> 0.00 | D97: =VLOOKUP(A97,'310'!A97:D277,4,FALSE) -> 0 | E97: =VLOOKUP(A97,'350'!A92:D251,4,FALSE) -> 0 | F97: =VLOOKUP(A97,'3'!A90:C212,3,FALSE) -> 0 | G97: 0 | K97: CERO
A98: 75.01.07 | B98: Construcciones y Edificaciones | C98: =+'320'!C732+'320'!C442 -> 4,932,819.77 | D98: =VLOOKUP(A98,'310'!A98:D278,4,FALSE) -> 0 | E98: =VLOOKUP(A98,'350'!A93:D252,4,FALSE) -> 0 | F98: =VLOOKUP(A98,'3'!A91:C213,3,FALSE) -> 4932819.77 | G98: 4932819.77 | K98: ET
A99: 75.01.08 | B99: Construcción hospitales y asistencia | C99: =+'310'!D99+'320'!D99+'330'!D99+'340'!D98+'350'!D94+'360'!D99+'370'!D99+'380'!D97 -> 0.00 | D99: =VLOOKUP(A99,'310'!A99:D279,4,FALSE) -> 0 | E99: =VLOOKUP(A99,'350'!A94:D253,4,FALSE) -> 0 | F99: =VLOOKUP(A99,'3'!A92:C214,3,FALSE) -> 0 | G99: 0 | K99: CERO
A100: 75.01.11 | B100: Habilitamiento y protección del suelo, subsuelo y áreas ecológicas | C100: =+'310'!D100+'320'!D100+'330'!D100+'340'!D99+'350'!D95+'360'!D100+'370'!D100+'380'!D98 -> 0.00 | D100: =VLOOKUP(A100,'310'!A100:D280,4,FALSE) -> 0 | E100: =VLOOKUP(A100,'350'!A95:D254,4,FALSE) -> 0 | F100: =VLOOKUP(A100,'3'!A93:C215,3,FALSE) -> 0 | G100: 0 | K100: CERO
A101: 75.01.12 | B101: Formación de plantaciones (medicinales) | C101: =+'310'!D101+'320'!D101+'330'!D101+'340'!D100+'350'!D96+'360'!D101+'370'!D101+'380'!D99 -> 0.00 | D101: =VLOOKUP(A101,'310'!A101:D281,4,FALSE) -> 0 | E101: =VLOOKUP(A101,'350'!A96:D255,4,FALSE) -> 0 | F101: =VLOOKUP(A101,'3'!A94:C216,3,FALSE) -> 0 | G101: 0 | K101: CERO
A102: 75.01.99 | B102: Otras obras de infraestructura (relleno sanitario apertura de celdas) | C102: =+'310'!D102+'320'!D102+'330'!D102+'340'!D101+'350'!D97+'360'!D102+'370'!D102+'380'!D100 -> 31,550.00 | D102: =VLOOKUP(A102,'310'!A102:D282,4,FALSE) -> 0 | E102: =VLOOKUP(A102,'350'!A97:D256,4,FALSE) -> 0 | F102: =VLOOKUP(A102,'3'!A95:C217,3,FALSE) -> 0 | G102: 0 | K102: ET
A103: 75.04 | B103: OBRAS EN LINEAS, REDES E INSTALACIONES ELECTRICAS | C103: =+'310'!D103+'320'!D103+'330'!D103+'340'!D102+'350'!D98+'360'!D103+'370'!D103+'380'!D101 -> 0.00 | D103: =VLOOKUP(A103,'310'!A103:D283,4,FALSE) -> 0 | E103: =VLOOKUP(A103,'350'!A98:D257,4,FALSE) -> 0 | F103: =VLOOKUP(A103,'3'!A96:C218,3,FALSE) -> 0 | G103: 0 | K103: CERO
A104: 75.04.01 | B104: Líneas, redes e instalaciones eléctricas | C104: =+'310'!D104+'320'!D104+'330'!D104+'340'!D103+'350'!D99+'360'!D104+'370'!D104+'380'!D102 -> 0.00 | D104: =VLOOKUP(A104,'310'!A104:D284,4,FALSE) -> 0 | E104: =VLOOKUP(A104,'350'!A99:D258,4,FALSE) -> 0 | F104: =VLOOKUP(A104,'3'!A97:C219,3,FALSE) -> 0 | G104: 0 | K104: CERO
A105: 75.05 | B105: MANTENIMIENTO Y REPARACIONES | D105: =VLOOKUP(A105,'310'!A105:D285,4,FALSE) ->  | E105: =VLOOKUP(A105,'350'!A100:D259,4,FALSE) -> 0 | F105: =VLOOKUP(A105,'3'!A98:C220,3,FALSE) -> 0 | K105: CERO
A106: 75.05.01 | B106: En Obras de infraestructura | C106: =+'310'!D106+'320'!D106+'330'!D106+'340'!D105+'350'!D101+'360'!D106+'370'!D106+'380'!D104 -> 0.00 | D106: =VLOOKUP(A106,'310'!A106:D287,4,FALSE) -> 0 | E106: =VLOOKUP(A106,'350'!A101:D260,4,FALSE) -> 0 | F106: =VLOOKUP(A106,'3'!A99:C221,3,FALSE) -> 0 | G106: 0 | K106: CERO
A107: 75.99 | B107: ASIGNACIONES A DISTRIBUIR | C107: =+'310'!D107+'320'!D107+'330'!D107+'340'!D106+'350'!D102+'360'!D107+'370'!D107+'380'!D105 -> 0.00 | D107: =VLOOKUP(A107,'310'!A107:D288,4,FALSE) ->  | E107: =VLOOKUP(A107,'350'!A102:D261,4,FALSE) -> 0 | F107: =VLOOKUP(A107,'3'!A100:C222,3,FALSE) -> 0 | K107: CERO
A108: 75.99.01 | B108: Asignaciones a Distribuir para Obras Públicas | C108: =+'310'!D108+'320'!D108+'330'!D108+'340'!D107+'350'!D103+'360'!D108+'370'!D108+'380'!D106 -> 0.00 | D108: =VLOOKUP(A108,'310'!A108:D289,4,FALSE) -> 0 | E108: =VLOOKUP(A108,'350'!A103:D262,4,FALSE) -> 0 | F108: =VLOOKUP(A108,'3'!A101:C223,3,FALSE) -> 0 | G108: 0 | K108: CERO
A109: 77 | B109: OTROS GASTOS DE INVERSION | C109: =+C110 -> 0.00 | D109: =VLOOKUP(A109,'310'!A109:D290,4,FALSE) -> 0 | E109: =VLOOKUP(A109,'350'!A104:D263,4,FALSE) -> 0 | F109: =VLOOKUP(A109,'3'!A102:C224,3,FALSE) -> 0 | G109: 0 | K109: CERO
A110: 77.02 | B110: SEGUROS, COSTOS FINACIEROS Y OTROS | C110: =+C111 -> 0.00 | D110: =VLOOKUP(A110,'310'!A110:D291,4,FALSE) ->  | E110: =VLOOKUP(A110,'350'!A105:D264,4,FALSE) -> 0 | F110: =VLOOKUP(A110,'3'!A103:C225,3,FALSE) -> 0 | K110: CERO
A111: 77.02.01 | B111: Seguros | C111: =+'370'!C365 -> 0.00 | D111: =VLOOKUP(A111,'310'!A111:D292,4,FALSE) -> 0 | E111: =VLOOKUP(A111,'350'!A106:D265,4,FALSE) -> 0 | F111: =VLOOKUP(A111,'3'!A104:C226,3,FALSE) -> 0 | G111: 0 | K111: CERO
A112: 77.02.06 | B112: Costas Judiciales | C112: =+'310'!D112+'320'!D112+'330'!D112+'340'!D111+'350'!D107+'360'!D112+'370'!D112+'380'!D110 -> 0.00 | K112: CERO
A113: 78 | B113: TRANSFERENCIAS Y DONOCIONES PARA INVERSION | C113: =+C115 -> 176,913.59 | K113: ET
A114: 78.02 | B114: DONACIONES DE INVERSION AL SECTOR PRIVADO INTERNO | C114: =+C115 -> 176,913.59 | K114: ET
A115: 78.02.04 | B115: Al Sector Privado No Financiero | C115: =+'310'!D115+'320'!D115+'330'!D115+'340'!D114+'350'!D110+'360'!D115+'370'!D115+'380'!D113+35182.66 -> 176,913.59 | K115: ET
A116: 8 | B116: GASTOS DE CAPITAL | D116: =VLOOKUP(A116,'310'!A116:D293,4,FALSE) -> 0 | E116: =VLOOKUP(A116,'350'!A111:D269,4,FALSE) -> 1000 | F116: =VLOOKUP(A116,'3'!A105:C227,3,FALSE) -> 160503.38 | G116: 161503.38 | K116: CERO
A117: 84 | B117: ACTIVOS DE LARGA DURACION | C117: =+C118 -> 4,502,289.91 | D117: =VLOOKUP(A117,'310'!A117:D293,4,FALSE) -> 5000 | E117: =VLOOKUP(A117,'350'!A112:D281,4,FALSE) -> 1000 | F117: =VLOOKUP(A117,'3'!A106:C228,3,FALSE) -> 160503.38 | G117: 166503.38 | K117: ET
A118: 84.01 | B118: BIENES MUEBLES | C118: 4,502,289.91 | D118: =VLOOKUP(A118,'310'!A118:D294,4,FALSE) -> 5000 | E118: =VLOOKUP(A118,'350'!A113:D282,4,FALSE) ->  | F118: =VLOOKUP(A118,'3'!A107:C229,3,FALSE) ->  | K118: ET
A119: 84.01.03 | B119: Mobiliarios | C119: =+'310'!D119+'320'!D119+'330'!D119+'340'!D118+'350'!D114+'360'!D119+'370'!D119+'380'!D117 -> 14,450.00 | D119: =VLOOKUP(A119,'310'!A119:D295,4,FALSE) -> 1600 | E119: =VLOOKUP(A119,'350'!A114:D283,4,FALSE) -> 1000 | F119: =VLOOKUP(A119,'3'!A108:C230,3,FALSE) -> 6150 | G119: 8750 | K119: ET
A120: 84.01.04 | B120: Maquinarias y Equipos | C120: =+'350'!C641 -> 0.00 | D120: =VLOOKUP(A120,'310'!A120:D296,4,FALSE) -> 0 | E120: =VLOOKUP(A120,'350'!A115:D284,4,FALSE) -> 0 | F120: =VLOOKUP(A120,'3'!A109:C231,3,FALSE) -> 10600 | G120: 10600 | K120: CERO
A121: 84.01.05 | B121: Vehículo de Producción (recolector) | C121: =+'310'!D121+'320'!D121+'330'!D121+'340'!D120+'350'!D116+'360'!D121+'370'!D121+'380'!D119 -> 0.00 | D121: =VLOOKUP(A121,'310'!A121:D297,4,FALSE) -> 0 | E121: =VLOOKUP(A121,'350'!A116:D285,4,FALSE) -> 0 | F121: =VLOOKUP(A121,'3'!A110:C232,3,FALSE) -> 0 | G121: 0 | K121: CERO
A122: 84.01.06 | B122: Herramientas | C122: =+'310'!D122+'320'!D122+'330'!D122+'340'!D121+'350'!D117+'360'!D122+'370'!D122+'380'!D120 -> 500.00 | D122: =VLOOKUP(A122,'310'!A122:D298,4,FALSE) -> 0 | E122: =VLOOKUP(A122,'350'!A117:D286,4,FALSE) -> 0 | F122: =VLOOKUP(A122,'3'!A111:C233,3,FALSE) -> 500 | G122: 500 | K122: ET
A123: 84.01.07 | B123: Equipos, Sistemas y paquetes informáticos | C123: =+'310'!D123+'320'!D123+'330'!D123+'340'!D122+'350'!D118+'360'!D123+'370'!D123+'380'!D121 -> 20,250.00 | D123: =VLOOKUP(A123,'310'!A123:D299,4,FALSE) -> 5000 | E123: =VLOOKUP(A123,'350'!A118:D287,4,FALSE) -> 0 | F123: =VLOOKUP(A123,'3'!A112:C234,3,FALSE) -> 14150 | G123: 19150 | K123: ET
A124: 84.01.08 | B124: Bienes Artísticos y Culturales | C124: =+'310'!D124+'320'!D124+'330'!D124+'340'!D123+'350'!D119+'360'!D124+'370'!D124+'380'!D122 -> 0.00 | D124: =VLOOKUP(A124,'310'!A124:D301,4,FALSE) -> 0 | E124: =VLOOKUP(A124,'350'!A119:D288,4,FALSE) -> 0 | F124: =VLOOKUP(A124,'3'!A113:C235,3,FALSE) -> 0 | G124: 0 | K124: CERO
A125: 84.01.09 | B125: Libros y Colecciones | D125: =VLOOKUP(A125,'310'!A125:D302,4,FALSE) -> 0 | E125: =VLOOKUP(A125,'350'!A120:D289,4,FALSE) -> 0 | F125: =VLOOKUP(A125,'3'!A114:C236,3,FALSE) -> 0 | G125: 0 | K125: CERO
A126: 84.01.10 | B126: Percheros para la defensa y seguridad Publica | C126: =+'310'!D126+'320'!D126+'330'!D126+'340'!D125+'350'!D121+'360'!D126+'370'!D126+'380'!D124 -> 0.00 | D126: =VLOOKUP(A126,'310'!A126:D303,4,FALSE) -> 0 | E126: =VLOOKUP(A126,'350'!A121:D290,4,FALSE) -> 0 | F126: =VLOOKUP(A126,'3'!A115:C237,3,FALSE) -> 0 | G126: 0 | K126: CERO
A127: 84.01.11 | B127: Partes y Repuestos | C127: =+'310'!D127+'320'!D127+'330'!D127+'340'!D126+'350'!D122+'360'!D127+'370'!D127+'380'!D125 -> 5,000.00 | D127: =VLOOKUP(A127,'310'!A127:D304,4,FALSE) -> 0 | E127: =VLOOKUP(A127,'350'!A122:D291,4,FALSE) -> 0 | F127: =VLOOKUP(A127,'3'!A116:C238,3,FALSE) -> 5000 | G127: 5000 | K127: ET
A128: 84.02 | B128: BIENES INMUEBLES YSEMOVIENTES | C128: =+'310'!D128+'320'!D128+'330'!D128+'340'!D127+'350'!D123+'360'!D128+'370'!D128+'380'!D126 -> 0.00 | D128: =VLOOKUP(A128,'310'!A128:D306,4,FALSE) ->  | E128: =VLOOKUP(A128,'350'!A123:D292,4,FALSE) -> 0 | F128: =VLOOKUP(A128,'3'!A117:C239,3,FALSE) ->  | K128: CERO
A129: 84.02.01 | B129: Terrenos | C129: =+'310'!D129+'320'!D129+'330'!D129+'340'!D128+'350'!D124+'360'!D129+'370'!D129+'380'!D127 -> 0.00 | D129: =VLOOKUP(A129,'310'!A129:D307,4,FALSE) -> 0 | E129: =VLOOKUP(A129,'350'!A124:D293,4,FALSE) -> 0 | F129: =VLOOKUP(A129,'3'!A118:C240,3,FALSE) -> 0 | G129: 0 | K129: CERO
A130: 84.02.02 | B130: Edificios, locales y residencias | C130: =+'310'!D130+'320'!D130+'330'!D130+'340'!D129+'350'!D125+'360'!D130+'370'!D130+'380'!D128 -> 0.00 | D130: =VLOOKUP(A130,'310'!A130:D308,4,FALSE) -> 0 | E130: =VLOOKUP(A130,'350'!A125:D294,4,FALSE) -> 0 | F130: =VLOOKUP(A130,'3'!A119:C241,3,FALSE) -> 0 | G130: 0 | K130: CERO
A131: 84.02.12 | B131: Semovientes | C131: =+'310'!D131+'320'!D131+'330'!D131+'340'!D130+'350'!D126+'360'!D131+'370'!D131+'380'!D129 -> 0.00 | D131: =VLOOKUP(A131,'310'!A131:D310,4,FALSE) -> 0 | E131: =VLOOKUP(A131,'350'!A126:D295,4,FALSE) -> 0 | F131: =VLOOKUP(A131,'3'!A120:C242,3,FALSE) -> 0 | G131: 0 | K131: CERO
A132: 84.03 | B132: EXPROPIACION DE BIENES | C132: =+'310'!D132+'320'!D132+'330'!D132+'340'!D131+'350'!D127+'360'!D132+'370'!D132+'380'!D130 -> 1,109,799.79 | D132: =VLOOKUP(A132,'310'!A132:D311,4,FALSE) -> 80000 | E132: =VLOOKUP(A132,'350'!A127:D296,4,FALSE) -> 0 | F132: =VLOOKUP(A132,'3'!A121:C243,3,FALSE) -> 1029799.79 | G132: 1109799.79 | K132: ET
A133: 84.03.01 | B133: Terrenos | C133: =+'310'!D133+'320'!D133+'330'!D133+'340'!D132+'350'!D128+'360'!D133+'370'!D133+'380'!D131 -> 1,109,799.79 | D133: =VLOOKUP(A133,'310'!A133:D312,4,FALSE) -> 80000 | E133: =VLOOKUP(A133,'350'!A128:D297,4,FALSE) -> 0 | F133: =VLOOKUP(A133,'3'!A122:C244,3,FALSE) -> 1029799.79 | G133: 1109799.79 | K133: ET
A134: 84.03.02 | B134: Edificios, locales y residencias | C134: =+'310'!D134+'320'!D134+'330'!D134+'340'!D133+'350'!D129+'360'!D134+'370'!D134+'380'!D132 -> 0.00 | D134: =VLOOKUP(A134,'310'!A134:D313,4,FALSE) -> 0 | E134: =VLOOKUP(A134,'350'!A129:D298,4,FALSE) -> 0 | F134: =VLOOKUP(A134,'3'!A123:C245,3,FALSE) -> 0 | G134: 0 | K134: CERO
A135: 84.04 | B135: INTANGIBLES | C135: =+'310'!D135+'320'!D135+'330'!D135+'340'!D134+'350'!D130+'360'!D135+'370'!D135+'380'!D133 -> 0.00 | K135: CERO
A136: 84.04.01 | B136: Intangibles | C136: =+'310'!D136+'320'!D136+'330'!D136+'340'!D135+'350'!D131+'360'!D136+'370'!D136+'380'!D134 -> 0.00 | K136: CERO
A137: 96 | B137: AMORTIZACION DE LA DEUDA PUBLICA | C137: =+'310'!D137+'320'!D137+'330'!D137+'340'!D136+'350'!D132+'360'!D137+'370'!D137+'380'!D135 -> 0.00 | K137: CERO
A138: 96.02 | B138: AMORTIZACION DEUDA INTERNA | C138: =+'310'!D138+'320'!D138+'330'!D138+'340'!D137+'350'!D133+'360'!D138+'370'!D138+'380'!D136 -> 0.00 | K138: CERO
A139: 96.02.01 | B139: Al sector público financiero | C139: =+'310'!D139+'320'!D139+'330'!D139+'340'!D138+'350'!D134+'360'!D139+'370'!D139+'380'!D137 -> 0.00 | K139: CERO
A140: 97 | B140: PASIVO CIRCULANTE | C140: =+C142 -> 100,000.00 | D140: =VLOOKUP(A140,'310'!A140:D314,4,FALSE) -> 0 | E140: =VLOOKUP(A140,'350'!A135:D299,4,FALSE) -> 0 | F140: =VLOOKUP(A140,'3'!A129:C246,3,FALSE) -> 100000 | G140: 100000 | K140: ET
A141: 97.01 | B141: DEUDA FLOTANTE | C141: =+C142 -> 100,000.00 | D141: =VLOOKUP(A141,'310'!A141:D315,4,FALSE) -> 0 | E141: =VLOOKUP(A141,'350'!A136:D300,4,FALSE) ->  | F141: =VLOOKUP(A141,'3'!A130:C247,3,FALSE) ->  | K141: ET | L141: 38839006.67
A142: 97.01.01 | B142: De cuentas por pagar | C142: 100,000.00 | D142: =VLOOKUP(A142,'310'!A142:D316,4,FALSE) -> 0 | E142: =VLOOKUP(A142,'350'!A137:D301,4,FALSE) -> 0 | F142: =VLOOKUP(A142,'3'!A131:C248,3,FALSE) -> 100000 | G142: 100000 | K142: ET | L142: =+L141-C146 -> 28,839,030.03
A143: 56 | B143: GASTOS FINANCIEROS | C143: =+'310'!D143+'320'!D143+'330'!D143+'340'!D142+'350'!D138+'360'!D143+'370'!D143+'380'!D141 -> 0.00 | K143: CERO
A144: 56.02 | B144: INTERESES Y OTROS CARGOS DE LA DEUDA PUBLICA INTERNA | C144: =+'310'!D144+'320'!D144+'330'!D144+'340'!D143+'350'!D139+'360'!D144+'370'!D144+'380'!D142 -> 0.00 | K144: =IF(C144>0,"ET","CERO") -> CERO
A145: 56.02.01 | B145: Sector público financiero | C145: =+'310'!D145+'320'!D145+'330'!D145+'340'!D144+'350'!D140+'360'!D145+'370'!D145+'380'!D143 -> 0.00 | K145: CERO
A146: T | B146: TOTAL PROGRAMA | C146: =+'310'!C838+'320'!C1247+'330'!C1138+'340'!C1107+'350'!C768+'360'!C731+'370'!C645 -> 9,999,976.64 | D146: =VLOOKUP(A146,'310'!A146:D317,4,FALSE) -> 0 | E146: =VLOOKUP(A146,'350'!A141:D302,4,FALSE) -> 297497.682 | F146: =VLOOKUP(A146,'3'!A135:C249,3,FALSE) ->  | K146: ET
F147: =VLOOKUP(A147,'350'!A142:E303,3,FALSE) ->  | K147: ET
B148: DETALLE | F148: =VLOOKUP(A148,'350'!A143:E304,3,FALSE) ->  | K148: ET
B149: CORRIENTES | C149: =+C143 -> 0 | F149: =VLOOKUP(A149,'350'!A144:E305,3,FALSE) ->  | K149: ET
B150: INVERSION | C150: =+C13+C41+C113 -> 13,434,699.13 | F150: =VLOOKUP(A150,'350'!A145:E306,3,FALSE) ->  | K150: ET
B151: CAPITAL | C151: =+C117+C109 -> 4,502,289.91 | F151: =VLOOKUP(A151,'350'!A146:E309,3,FALSE) ->  | G151: =SUM(D151:F151) ->  | K151: ET
B152: PASIVO CIRCULANTE | C152: =+C138+C140+C91 -> 7,589,389.33 | F152: =VLOOKUP(A152,'350'!A147:E310,3,FALSE) ->  | G152: =SUM(D152:F152) ->  | K152: ET
B153: SUBTOTAL | C153: =+C146 -> 9,999,976.64 | F153: =VLOOKUP(A153,'350'!A148:E311,3,FALSE) ->  | G153: =SUM(D153:F153) ->  | K153: ET
F154: =VLOOKUP(A154,'350'!A152:E312,3,FALSE) ->  | G154: =SUM(D154:F154) ->  | K154: ET
A155: REALIZADO POR: | C155: AUTORIZADO POR: | F155: =VLOOKUP(A155,'350'!A153:E313,3,FALSE) ->  | G155: =SUM(D155:F155) ->  | K155: ET
K156: ET
K157: ET
K158: ET
K159: ET
A160: =+DAT_INI!$B$8 -> 0 | C160: =+DAT_INI!$B$9 -> 0 | K160: ET
C161: =+DAT_INI!B10 -> 0 | K161: ET
K162: ET
B903: Remuneraciones Unificadas

Sheet 310
A1: =+'100'!B1 -> GOBIERNO AUTONOMO DESCENTRALIZADO MUNICIPAL DEL CANTON PEDRO MONCAYO
A2: =+'100'!B2 -> PROFORMA PRESUPUESTARIA AÑO 2020
A4: FUNCION III: SERVICIOS COMUNALES
A5: =+'3000'!A5 -> CODIGO DE LA FUNCION: 300
A6: =CONCATENATE("PROGRAMA 1ro:"," ",GASTO!$B$67) -> PROGRAMA 1ro: DIRECCION DE PLANIFICACION Y ORDENAMIENTO TERRITORIAL
A7: =CONCATENATE("CODIGO DEL PROGRAMA:"," ",GASTO!$A$67) -> CODIGO DEL PROGRAMA: 310
A8: 3DA. ASIGNACION SEGÚN EL OBJETO DEL GASTO
A10: PARTIDA | B10: DETALLE | D10: ASIGNACION
D11: =+'100'!D11 -> AÑO 2020 | L11: SELECC
A12: 7 | B12: GASTOS DE INVERSION | D12: =+SUMIF(_COD311,F12,_VAL310) -> 367,563.76 | F12: 7 | L12: =IF(D12>0,"ET","CERO") -> ET
A13: 71 | B13: GASTOS EN PERSONAL PARA INVERSION | D13: =+D14+D17+D25+D32 -> 337,249.09 | F13: 71 | L13: =IF(D13>0,"ET","CERO") -> ET
A14: 71.01 | B14: REMUNERACIONES BASICAS | D14: =+D15 -> 142,476.00 | F14: 71.01 | L14: ET
A15: 71.01.05 | B15: Remuneraciones unificadas | D15: =+SUMIF(_COD311,F15,_VAL310) -> 142,476.00 | F15: 71.01.05 | L15: ET
A16: 71.01.06 | B16: Salarios Unificados | D16: 0.00 | F16: 71.01.06 | L16: CERO
A17: 71.02 | B17: REMUNERACIONES COMPLEMENTARIAS | D17: =+D18+D19 -> 26,259.00 | F17: 71.02 | L17: ET
A18: 71.02.03 | B18: Décimo Tercer Sueldo | D18: 19,779.00 | F18: 71.02.03 | L18: ET
A19: 71.02.04 | B19: Décimo Cuarto Sueldo | D19: 6,480.00 | F19: 71.02.04 | L19: ET
A20: 71.02.13 | B20: Aguinaldo Navideño | D20: 0.00 | F20: 71.02.13 | L20: CERO
A21: 71,03 | B21: REMUNERACIONES COMPENSATORIAS | D21: 0.00 | F21: 71,03 | L21: CERO
A22: 71.03.06 | B22: Refrigerios | D22: 0.00 | F22: 71.03.06 | L22: CERO
A23: 71.04 | B23: SUBSIDIOS | D23: 0.00 | F23: 71.04 | L23: CERO
A24: 71.04.07 | B24: Estimulo Económico por años de servicio | D24: 0.00 | F24: 71.04.07 | L24: CERO
A25: 71.05 | B25: REMUNERACIONES TEMPORALES | D25: =+D28+D29 -> 121,084.05 | F25: 71.05 | L25: ET
A26: 71.05.04 | B26: Encargo y subrogaciones | F26: 71.05.04 | L26: CERO
A27: 71.05.06 | B27: Licencia Remunerada | D27: 0.00 | F27: 71.05.06 | L27: CERO
A28: 71.05.09 | B28: Horas Extraordinarias y Suplementarias | D28: 0.00 | F28: 71.05.09 | L28: CERO
A29: 71.05.10 | B29: Servicios Personales por contrato | D29: 121,084.05 | F29: 71.05.10 | L29: ET
A30: 71.05.12 | B30: Subrogación
A31: 71,05.13 | B31: Encargos
A32: 71.06 | B32: APORTES PATRONALES A LA SEGURIDAD SOCIAL | D32: =+D33+D34 -> 47,430.04 | F32: 71.06 | L32: ET
A33: 71.06.01 | B33: Aporte Patronal | D33: 27,651.04 | F33: 71.06.01 | L33: ET
A34: 71.06.02 | B34: Fondos de Reserva | D34: 19,779.00 | F34: 71.06.02 | L34: ET
A35: 71.06.03 | B35: Fondo de Jubilación | D35: 0.00 | F35: 71.06.03 | L35: CERO
A36: 71.07 | B36: INDEMNIZACIONES | D36: 0.00 | F36: 71.07 | L36: CERO
A37: 71.07.01 | B37: Compensaciòn por Renuncia Voluntaria | D37: 0.00 | F37: 71.07.01 | L37: CERO
A38: 71.07.99 | B38: Otras Indemn.Compens..por renuncia | D38: 0.00 | F38: 71.07.99 | L38: CERO
A39: 71.99 | B39: ASIGNACIONES A DISTRIBUIR PARA GTOS DE INVERSIONES | D39: 0.00 | F39: 71.99 | L39: CERO
A40: 71.99.01 | B40: Asignaciones a distribuir para Gastos en el Personal | D40: 0.00 | F40: 71.99.01 | L40: CERO
A41: 73 | B41: BIENES Y SERVICIOS DE INVERSION | D41: =+D42+D47+D56+D59+D69+D73+D76 -> 9,350.00 | F41: 73 | L41: ET
A42: 73.01 | B42: SERVICIOS BASICOS | D42: =+D43 -> 0.00 | F42: 73.01 | L42: CERO
A43: 73.01.01 | B43: Agua Potable | D43: 0.00 | F43: 73.01.05 | L43: CERO
A44: 73.01.02 | B44: Energía eléctrica | D44: 0.00 | F44: 73.01.02 | L44: CERO
A45: 73.01.03 | B45: Telecomunicaciones | D45: 0.00 | F45: 73.01.03 | L45: CERO
A46: 73.01.04 | B46: Servicio de Correo | D46: 0.00 | F46: 73.01.04 | L46: CERO
A47: 73.02 | B47: SERVICIOS GENERALES | D47: =+D50+D52 -> 1,300.00 | F47: 73.02 | L47: ET
A48: 73.02.01 | B48: Transporte de personal | D48: =+SUMIF(_COD311,F48,_VAL310) -> 0.00 | F48: 73.02.01 | L48: CERO
A49: 73.02.02 | B49: Fletes y maniobras | D49: 0.00 | F49: 73.02.02 | L49: CERO
A50: 73.02.04 | B50: Edición, Impresión, reproducción y publicaciones | D50: 1,300.00 | F50: 73.02.04 | L50: ET
A51: 73.02.05 | B51: Espectáculos Culturales y Sociales | D51: 0.00 | F51: 73.02.05 | L51: CERO
A52: 73.02.06 | B52: Eventos Públicos y Oficiales (Asamblea Cantonal) | D52: 0.00 | F52: 73.02.06 | L52: CERO
A53: 73.02.07 | B53: Impresión, reproducción y publicaciones | D53: 0.00 | F53: 73.02.07 | L53: CERO
A54: 73.02.09 | B54: Servicios de Aseo | D54: 0.00 | F54: 73.02.09 | L54: CERO
A55: 73.02.99 | B55: Otros Servicios | D55: 0.00 | F55: 73.02.99 | L55: CERO
A56: 73.03 | B56: TRASLADOS, INSTALACIONES, VIATICOS Y SUBSISTENCIAS | D56: =+D57+D58 -> 0.00 | F56: 73.03 | L56: CERO
A57: 73.03.01 | B57: Pasajes al Interior | D57: 0.00 | F57: 73.03.01 | L57: CERO
A58: 73.03.03 | B58: Viáticos y Subsistencias en el Interior | D58: 0.00 | F58: 73.03.03 | L58: CERO
A59: 73.04 | B59: INSTALACION MANTENIMIENTO Y REPARACIONES | D59: 500.00 | F59: 73.04 | L59: ET
A60: 73.04.02 | B60: Edificios, locales y residencias | D60: 500.00 | F60: 73.04.02 | L60: ET
A61: 73.04.03 | B61: Mobiliarios | D61: 0.00 | F61: 73.04.03 | L61: CERO
A62: 73.04.04 | B62: Maquinaria y equipos | D62: 0.00 | F62: 73.04.04 | L62: CERO
A63: 73.04.05 | B63: Vehículos | D63: 0.00 | F63: 73.04.05 | L63: CERO
A64: 73.04.99 | B64: Otros instalaciones mant y reparaciones | D64: 0.00 | F64: 73.04.99 | L64: CERO
A65: 73.05 | B65: ARRENDAMIENTO DE BIENES | D65: 0.00 | F65: 73.05 | L65: CERO
A66: 73.05.02 | B66: Edificios, locales y residencias | D66: 0.00 | F66: 73.05.04 | L66: CERO
A67: 73.05.04 | B67: Maquinaria y equipos | D67: 0.00 | F67: 73.05.04 | L67: CERO
A68: 73.05.05 | B68: Vehículos | D68: 0.00 | F68: 73.05.05 | L68: CERO
A69: 73.06 | B69: CONTRATACION DE DE ESTUDIOS E INVEST | D69: =+D70+D72 -> 1,400.00 | F69: 73.06 | H69: 117619 | L69: ET
A70: 73.06.03 | B70: Servicios de Capacitación | D70: =+SUMIF(_COD311,F70,_VAL310) -> 1,400.00 | F70: 73.06.03 | L70: ET
A71: 73.06.04 | B71: Fiscalización e Inspecciones Técnicas | D71: 0.00 | F71: 73.06.04 | L71: CERO
A72: 73.06.05 | B72: Estudio y diseño de proyectos | D72: 0.00 | F72: 73.06.05 | L72: CERO
